Workbook

Sheet Menu

Sheet Indicadores - Resíduos
A1: INÍCIO PERÍODO
A2: 2019
A3: Indicador | B3: Código do SNIS | C3: Frequência de atualização | D3: Expresso em | E3: =A2 -> 2019 | F3: =E3+1 -> 2020 | G3: =F3+1 -> 2021 | H3: =G3+1 -> 2022 | I3: =H3+1 -> 2023
E4: Anual | F4: Anual | G4: Anual | H4: Anual | I4: Anual
A5: Frequência da coleta domiciliar | C5: Anual | D5: dias/semana | E5: =IFERROR(RE!H3,"") -> 3 vezes e 6 vezes | F5: =IFERROR(RE!I3,"") -> 0 | G5: =IFERROR(RE!J3,"") -> 0 | H5: =IFERROR(RE!K3,"") -> 0 | I5: =IFERROR(RE!L3,"") -> 0
A6: Taxa de cobertura da coleta domiciliar na área urbana | B6: IN016 | C6: Anual | D6: % | E6: =IFERROR((RE!H4*100)/RE!H5,"") -> 100 | F6: =IFERROR((RE!I4*100)/RE!I5,"") ->  | G6: =IFERROR((RE!J4*100)/RE!J5,"") ->  | H6: =IFERROR((RE!K4*100)/RE!K5,"") ->  | I6: =IFERROR((RE!L4*100)/RE!L5,"") -> 
A7: Taxa de cobertura da coleta domiciliar na área rural | C7: Anual | D7: % | E7: =IFERROR((RE!H6*100)/RE!H7,"") -> 83.82687927 | F7: =IFERROR((RE!I6*100)/RE!I7,"") ->  | G7: =IFERROR((RE!J6*100)/RE!J7,"") ->  | H7: =IFERROR((RE!K6*100)/RE!K7,"") ->  | I7: =IFERROR((RE!L6*100)/RE!L7,"") -> 
A8: Taxa de cobertura da coleta domiciliar no município | B8: IN015 | C8: Semestral | D8: %
A9: Massa de RSU coletada | C9: Mensal | D9: tonelada/mês
A10: Massa coletada per capita | B10: IN022 | C10: Anual | D10: Kg / (habitantes/dia) | E10: =IFERROR(((RE!H15*1000)/365)/RE!H13,"") -> 0 | F10: =IFERROR(((RE!I15*1000)/365)/RE!I13,"") ->  | G10: =IFERROR(((RE!J15*1000)/365)/RE!J13,"") ->  | H10: =IFERROR(((RE!K15*1000)/365)/RE!K13,"") ->  | I10: =IFERROR(((RE!L15*1000)/365)/RE!L13,"") -> 
A11: Taxa de coletor e motorista por habitante urbano | B11: IN019 | C11: Semestral | D11: Empregados / 1.000 habitantes
A12: Produtividade média de coletores e motoristas | B12: IN018 | C12: Semestral | D12: Kg / (funcionário / dia)
A13: Custo da coleta convencional | C13: Anual | D13: R$ | E13: =IFERROR(RE!H14,"") -> 0 | F13: =IFERROR(RE!I14,"") -> 0 | G13: =IFERROR(RE!J14,"") -> 0 | H13: =IFERROR(RE!K14,"") -> 0 | I13: =IFERROR(RE!L14,"") -> 0
A14: Custo unitário da coleta | B14: IN023 | C14: Anual | D14: R$ / tonelada | E14: =IFERROR(RE!H14/RE!H15,"") ->  | F14: =IFERROR(RE!I14/RE!I15,"") ->  | G14: =IFERROR(RE!J14/RE!J15,"") ->  | H14: =IFERROR(RE!K14/RE!K15,"") ->  | I14: =IFERROR(RE!L14/RE!L15,"") -> 
A15: Despesas per capita com a coleta de RSU | C15: Anual | D15: R$ / habitante | E15: =IFERROR(RE!H14/RE!H13,"") -> 0 | F15: =IFERROR(RE!I14/RE!I13,"") ->  | G15: =IFERROR(RE!J14/RE!J13,"") ->  | H15: =IFERROR(RE!K14/RE!K13,"") ->  | I15: =IFERROR(RE!L14/RE!L13,"") -> 
A16: Incidência do custo da coleta no custo total do manejo dos RSU | B16: IN024 | C16: Anual | D16: % | E16: =IFERROR((RE!H14*100)/RE!H17,"") ->  | F16: =IFERROR((RE!I14*100)/RE!I17,"") ->  | G16: =IFERROR((RE!J14*100)/RE!J17,"") ->  | H16: =IFERROR((RE!K14*100)/RE!K17,"") ->  | I16: =IFERROR((RE!L14*100)/RE!L17,"") -> 
A17: Método de disposição final | C17: Anual | D17: Aterro sanitário / aterro controlado / lixão | E17: =IFERROR(RE!H34,"") -> Aterro Sanitário | F17: =IFERROR(RE!I34,"") -> 0 | G17: =IFERROR(RE!J34,"") -> 0 | H17: =IFERROR(RE!K34,"") -> 0 | I17: =IFERROR(RE!L34,"") -> 0
A18: Existência de licença ambiental | C18: Anual | D18: Sim / Não | E18: =IFERROR(RE!H35,"") -> Sim | F18: =IFERROR(RE!I35,"") -> 0 | G18: =IFERROR(RE!J35,"") -> 0 | H18: =IFERROR(RE!K35,"") -> 0 | I18: =IFERROR(RE!L35,"") -> 0
A19: Existência de balança | C19: Anual | D19: Sim / Não | E19: =IFERROR(RE!H36,"") -> Sim | F19: =IFERROR(RE!I36,"") -> 0 | G19: =IFERROR(RE!J36,"") -> 0 | H19: =IFERROR(RE!K36,"") -> 0 | I19: =IFERROR(RE!L36,"") -> 0
A20: Custo da disposição final dos RSU | C20: Anual | D20: R$ | E20: =IFERROR(RE!H18,"") -> 0 | F20: =IFERROR(RE!I18,"") -> 0 | G20: =IFERROR(RE!J18,"") -> 0 | H20: =IFERROR(RE!K18,"") -> 0 | I20: =IFERROR(RE!L18,"") -> 0
A21: Custo unitário da disposição final | C21: Anual | D21: R$ / tonelada | E21: =IFERROR(RE!H18/RE!H15,"") ->  | F21: =IFERROR(RE!I18/RE!I15,"") ->  | G21: =IFERROR(RE!J18/RE!J15,"") ->  | H21: =IFERROR(RE!K18/RE!K15,"") ->  | I21: =IFERROR(RE!L18/RE!L15,"") -> 
A22: Despesas per capita com a disposição dos RSU | C22: Anual | D22: R$ / habitante | E22: =IFERROR(RE!H18/RE!H13,"") -> 0 | F22: =IFERROR(RE!I18/RE!I13,"") ->  | G22: =IFERROR(RE!J18/RE!J13,"") ->  | H22: =IFERROR(RE!K18/RE!K13,"") ->  | I22: =IFERROR(RE!L18/RE!L13,"") -> 
A23: Coleta diferenciada de resíduos de serviço de saúde (RSS) | C23: Semestral | D23: Sim / Não
A24: Massa coletada de RSS | C24: Mensal | D24: Tonelada / mês | E24: =IFERROR((RE!H19/1000)/12,"") -> 0 | F24: =IFERROR((RE!I19/1000)/12,"") -> 0 | G24: =IFERROR((RE!J19/1000)/12,"") -> 0 | H24: =IFERROR((RE!K19/1000)/12,"") -> 0 | I24: =IFERROR((RE!L19/1000)/12,"") -> 0
A25: Taxa de massa do RSS sobre RSU | B25: IN037 | C25: Anual | D25: % | E25: =IFERROR(((RE!H19/1000)*100)/RE!H15,"") ->  | F25: =IFERROR(((RE!I19/1000)*100)/RE!I15,"") ->  | G25: =IFERROR(((RE!J19/1000)*100)/RE!J15,"") ->  | H25: =IFERROR(((RE!K19/1000)*100)/RE!K15,"") ->  | I25: =IFERROR(((RE!L19/1000)*100)/RE!L15,"") -> 
A26: Taxa de valor do RSS sobre RSU | C26: Anual | D26: % | E26: =IFERROR((RE!H20*100)/RE!H17,"") ->  | F26: =IFERROR((RE!I20*100)/RE!I17,"") ->  | G26: =IFERROR((RE!J20*100)/RE!J17,"") ->  | H26: =IFERROR((RE!K20*100)/RE!K17,"") ->  | I26: =IFERROR((RE!L20*100)/RE!L17,"") -> 
A27: Coleta diferenciada dos resíduos de construção civil (RCC) | C27: Semestral | D27: Sim / Não | E27: =IFERROR(RE!H38,"") -> 0 | F27: =IFERROR(RE!I38,"") -> 0 | G27: =IFERROR(RE!J38,"") -> 0 | H27: =IFERROR(RE!K38,"") -> 0 | I27: =IFERROR(RE!L38,"") -> 0
A28: Taxa de varredores por habitantes urbanos | B28: IN045 | C28: Anual | D28: Funcionários / 1.000 habitantes | E28: =IFERROR((RE!H21*1000)/RE!H22,"") -> 0.2003360476 | F28: =IFERROR((RE!I21*1000)/RE!I22,"") ->  | G28: =IFERROR((RE!J21*1000)/RE!J22,"") ->  | H28: =IFERROR((RE!K21*1000)/RE!K22,"") ->  | I28: =IFERROR((RE!L21*1000)/RE!L22,"") -> 
A29: Taxa de capinadores por habitantes urbano | B29: IN051 | C29: Anual | D29: Funcionários / 1.000 habitantes | E29: =IFERROR((RE!H23*1000)/RE!H22,"") -> 0.7948817371 | F29: =IFERROR((RE!I23*1000)/RE!I22,"") ->  | G29: =IFERROR((RE!J23*1000)/RE!J22,"") ->  | H29: =IFERROR((RE!K23*1000)/RE!K22,"") ->  | I29: =IFERROR((RE!L23*1000)/RE!L22,"") -> 
A30: Percentual da extensão atendida pela varrição | C30: Anual | D30: % | E30: =IFERROR((RE!H24*100)/RE!H25,"") ->  | F30: =IFERROR((RE!I24*100)/RE!I25,"") ->  | G30: =IFERROR((RE!J24*100)/RE!J25,"") ->  | H30: =IFERROR((RE!K24*100)/RE!K25,"") ->  | I30: =IFERROR((RE!L24*100)/RE!L25,"") -> 
A31: Custo do serviço da varrição | C31: Anual | D31: R$ / ano | E31: =IFERROR(RE!H26,"") -> 0 | F31: =IFERROR(RE!I26,"") -> 0 | G31: =IFERROR(RE!J26,"") -> 0 | H31: =IFERROR(RE!K26,"") -> 0 | I31: =IFERROR(RE!L26,"") -> 0
A32: Custo unitário da varrição | C32: Semestral | D32: R$ / km
A33: Incidência do custo da varrição no custo total do manejo de RSU | B33: IN046 | C33: Anual | D33: % | E33: =IFERROR((RE!H26*100)/RE!H17,"") ->  | F33: =IFERROR((RE!I26*100)/RE!I17,"") ->  | G33: =IFERROR((RE!J26*100)/RE!J17,"") ->  | H33: =IFERROR((RE!K26*100)/RE!K17,"") ->  | I33: =IFERROR((RE!L26*100)/RE!L17,"") -> 
A34: Taxa de cobertura da coleta seletiva no município | C34: Anual | D34: % | E34: =IFERROR((RE!H27*100)/RE!H9,"") -> 87.95992049 | F34: =IFERROR((RE!I27*100)/RE!I9,"") ->  | G34: =IFERROR((RE!J27*100)/RE!J9,"") ->  | H34: =IFERROR((RE!K27*100)/RE!K9,"") ->  | I34: =IFERROR((RE!L27*100)/RE!L9,"") -> 
A35: Massa de recicláveis coletada | C35: Mensal | D35: tonelada / mês
A36: Taxa de recuperação de recicláveis em relação à quantidade de RDO e RPU | B36: IN031 | C36: Mensal | D36: %
A37: Massa per capita de materiais recicláveis | C37: Anual | D37: Kg / (habitantes/dia) | E37: =IFERROR((RE!H29*1000)/RE!H30,"") -> 0 | F37: =IFERROR((RE!I29*1000)/RE!I30,"") ->  | G37: =IFERROR((RE!J29*1000)/RE!J30,"") ->  | H37: =IFERROR((RE!K29*1000)/RE!K30,"") ->  | I37: =IFERROR((RE!L29*1000)/RE!L30,"") -> 
A38: Custo do serviço para a coleta dos resíduos recicláveis | C38: Anual | D38: R$ / tonelada | E38: =IFERROR(RE!H31/RE!H28,"") ->  | F38: =IFERROR(RE!I31/RE!I28,"") ->  | G38: =IFERROR(RE!J31/RE!J28,"") ->  | H38: =IFERROR(RE!K31/RE!K28,"") ->  | I38: =IFERROR(RE!L31/RE!L28,"") -> 
A39: Sustentabilidade financeira da Prefeitura com o manejo de RSU | B39: IN005 | C39: Anual | D39: % | E39: =IFERROR((RE!H32*100)/RE!H17,"") ->  | F39: =IFERROR((RE!I32*100)/RE!I17,"") ->  | G39: =IFERROR((RE!J32*100)/RE!J17,"") ->  | H39: =IFERROR((RE!K32*100)/RE!K17,"") ->  | I39: =IFERROR((RE!L32*100)/RE!L17,"") -> 
A40: Despesa per capita com manejo de RSU em relação à população urbana | B40: IN006 | C40: Anual | D40: R$ / habitante | E40: =IFERROR(RE!H17/RE!H22,"") -> 0 | F40: =IFERROR(RE!I17/RE!I22,"") ->  | G40: =IFERROR(RE!J17/RE!J22,"") ->  | H40: =IFERROR(RE!K17/RE!K22,"") ->  | I40: =IFERROR(RE!L17/RE!L22,"") -> 
A41: Quantidade de ocorrências de disposição irregular/clandestina de RSU | C41: Anual | D41: ocorrências /ano a cada 1.000 habitantes | E41: =IFERROR((RE!H33*1000)/RE!H11,"") -> 0 | F41: =IFERROR((RE!I33*1000)/RE!I11,"") ->  | G41: =IFERROR((RE!J33*1000)/RE!J11,"") ->  | H41: =IFERROR((RE!K33*1000)/RE!K11,"") ->  | I41: =IFERROR((RE!L33*1000)/RE!L11,"") -> 
A42: Taxa de empregados por habitante urbano | B42: IN001 | D42: empreg./1000 hab. | E42: =IFERROR(((RE!H40+RE!H41)/RE!H39)*1000,"") ->  | F42: =IFERROR(((RE!I40+RE!I41)/RE!I39)*1000,"") ->  | G42: =IFERROR(((RE!J40+RE!J41)/RE!J39)*1000,"") ->  | H42: =IFERROR(((RE!K40+RE!K41)/RE!K39)*1000,"") ->  | I42: =IFERROR(((RE!L40+RE!L41)/RE!L39)*1000,"") -> 
A43: Despesa por empregado | B43: IN002 | D43: R$/empregado | E43: =IFERROR(RE!H43/(RE!H40+RE!H41),"") ->  | F43: =IFERROR(RE!I43/(RE!I40+RE!I41),"") ->  | G43: =IFERROR(RE!J43/(RE!J40+RE!J41),"") ->  | H43: =IFERROR(RE!K43/(RE!K40+RE!K41),"") ->  | I43: =IFERROR(RE!L43/(RE!L40+RE!L41),"") -> 
A44: Incidência de despesas com RSU na prefeitura | B44: IN003 | D44: % | E44: =IFERROR((RE!H43/RE!H44)*100,"") ->  | F44: =IFERROR((RE!I43/RE!I44)*100,"") ->  | G44: =IFERROR((RE!J43/RE!J44)*100,"") ->  | H44: =IFERROR((RE!K43/RE!K44)*100,"") ->  | I44: =IFERROR((RE!L43/RE!L44)*100,"") -> 
A45: Incidência de despesas com empresas contratadas | B45: IN004 | D45: % | E45: =IFERROR((RE!H45/RE!H43)*100,"") ->  | F45: =IFERROR((RE!I45/RE!I43)*100,"") ->  | G45: =IFERROR((RE!J45/RE!J43)*100,"") ->  | H45: =IFERROR((RE!K45/RE!K43)*100,"") ->  | I45: =IFERROR((RE!L45/RE!L43)*100,"") -> 
A46: incidência de empregados próprios | B46: IN007 | D46: % | E46: =IFERROR((RE!H40/(RE!H40+RE!H41))*100,"") ->  | F46: =IFERROR((RE!I40/(RE!I40+RE!I41))*100,"") ->  | G46: =IFERROR((RE!J40/(RE!J40+RE!J41))*100,"") ->  | H46: =IFERROR((RE!K40/(RE!K40+RE!K41))*100,"") ->  | I46: =IFERROR((RE!L40/(RE!L40+RE!L41))*100,"") -> 
A47: Incidência de empreg. de empr. contrat. no total de empreg. no manejo | B47: IN008 | D47: % | E47: =IFERROR((RE!H41/(RE!H40+RE!H41))*100,"") ->  | F47: =IFERROR((RE!I41/(RE!I40+RE!I41))*100,"") ->  | G47: =IFERROR((RE!J41/(RE!J40+RE!J41))*100,"") ->  | H47: =IFERROR((RE!K41/(RE!K40+RE!K41))*100,"") ->  | I47: =IFERROR((RE!L41/(RE!L40+RE!L41))*100,"") -> 
A48: Incidência de empreg. admin. no total de empreg no manejo | B48: IN010 | D48: % | E48: =IFERROR(((RE!H47+RE!H48)/(RE!H40+RE!H41))*100,"") ->  | F48: =IFERROR(((RE!I47+RE!I48)/(RE!I40+RE!I41))*100,"") ->  | G48: =IFERROR(((RE!J47+RE!J48)/(RE!J40+RE!J41))*100,"") ->  | H48: =IFERROR(((RE!K47+RE!K48)/(RE!K40+RE!K41))*100,"") ->  | I48: =IFERROR(((RE!L47+RE!L48)/(RE!L40+RE!L41))*100,"") -> 
A49: Receita arrecadada per capita com serviços de manejo | B49: IN011 | D49: R$/habitante | E49: =IFERROR(RE!H46/RE!H39,"") ->  | F49: =IFERROR(RE!I46/RE!I39,"") ->  | G49: =IFERROR(RE!J46/RE!J39,"") ->  | H49: =IFERROR(RE!K46/RE!K39,"") ->  | I49: =IFERROR(RE!L46/RE!L39,"") -> 
A50: Tx. cobertura de coleta direta RDO relativo à pop. urbana | B50: IN014 | D50: % | E50: =IFERROR((RE!H49/RE!H39)*100,"") ->  | F50: =IFERROR((RE!I49/RE!I39)*100,"") ->  | G50: =IFERROR((RE!J49/RE!J39)*100,"") ->  | H50: =IFERROR((RE!K49/RE!K39)*100,"") ->  | I50: =IFERROR((RE!L49/RE!L39)*100,"") -> 
A51: Taxa de terceirização da coleta | B51: IN017 | D51: % | E51: =IFERROR(((RE!H51+RE!H53+RE!H52)/(RE!H50+RE!H51+RE!H53+RE!H52))*100,"") ->  | F51: =IFERROR(((RE!I51+RE!I53+RE!I52)/(RE!I50+RE!I51+RE!I53+RE!I52))*100,"") ->  | G51: =IFERROR(((RE!J51+RE!J53+RE!J52)/(RE!J50+RE!J51+RE!J53+RE!J52))*100,"") ->  | H51: =IFERROR(((RE!K51+RE!K53+RE!K52)/(RE!K50+RE!K51+RE!K53+RE!K52))*100,"") ->  | I51: =IFERROR(((RE!L51+RE!L53+RE!L52)/(RE!L50+RE!L51+RE!L53+RE!L52))*100,"") -> 
A52: Massa [RDO+RPU] coletada per capita em relação à pop. urbana | B52: IN021 | D52: Kg/(hab.x dia) | E52: =IFERROR(((RE!H50+RE!H51+RE!H53+RE!H52)/RE!H39)*(1000/365),"") ->  | F52: =IFERROR(((RE!I50+RE!I51+RE!I53+RE!I52)/RE!I39)*(1000/365),"") ->  | G52: =IFERROR(((RE!J50+RE!J51+RE!J53+RE!J52)/RE!J39)*(1000/365),"") ->  | H52: =IFERROR(((RE!K50+RE!K51+RE!K53+RE!K52)/RE!K39)*(1000/365),"") ->  | I52: =IFERROR(((RE!L50+RE!L51+RE!L53+RE!L52)/RE!L39)*(1000/365),"") -> 
A53: Incidência de emprega.da coleta no total de empregados no manejo | B53: IN025 | D53: % | E53: =IFERROR(((RE!H54+RE!H55)/(RE!H40+RE!H41))*100,"") ->  | F53: =IFERROR(((RE!I54+RE!I55)/(RE!I40+RE!I41))*100,"") ->  | G53: =IFERROR(((RE!J54+RE!J55)/(RE!J40+RE!J41))*100,"") ->  | H53: =IFERROR(((RE!K54+RE!K55)/(RE!K40+RE!K41))*100,"") ->  | I53: =IFERROR(((RE!L54+RE!L55)/(RE!L40+RE!L41))*100,"") -> 
A54: Relação: quantidade RCD coletada pela Pref. p/quant. total [RDO+RPU] | B54: IN026 | D54: % | E54: =IFERROR((RE!H65/(RE!H51+RE!H51+RE!H53+RE!H52))*100,"") ->  | F54: =IFERROR((RE!I65/(RE!I51+RE!I51+RE!I53+RE!I52))*100,"") ->  | G54: =IFERROR((RE!J65/(RE!J51+RE!J51+RE!J53+RE!J52))*100,"") ->  | H54: =IFERROR((RE!K65/(RE!K51+RE!K51+RE!K53+RE!K52))*100,"") ->  | I54: =IFERROR((RE!L65/(RE!L51+RE!L51+RE!L53+RE!L52))*100,"") -> 
A55: Relação: quantidades coletadas de RPU por RDO | B55: IN027 | D55: % | E55: =IFERROR(((RE!H58+RE!H59+RE!H61)/(RE!H56+RE!H57+RE!H53+RE!H60))*100,"") ->  | F55: =IFERROR(((RE!I58+RE!I59+RE!I61)/(RE!I56+RE!I57+RE!I53+RE!I60))*100,"") ->  | G55: =IFERROR(((RE!J58+RE!J59+RE!J61)/(RE!J56+RE!J57+RE!J53+RE!J60))*100,"") ->  | H55: =IFERROR(((RE!K58+RE!K59+RE!K61)/(RE!K56+RE!K57+RE!K53+RE!K60))*100,"") ->  | I55: =IFERROR(((RE!L58+RE!L59+RE!L61)/(RE!L56+RE!L57+RE!L53+RE!L60))*100,"") -> 
A56: Massa [RDO+RPU] coletada per capita em relação à população total atendida | B56: IN028 | D56: Kg/(hab.x dia) | E56: =IFERROR(((RE!H50+RE!H51+RE!H53+RE!H52)/RE!H62)*(1000/365),"") ->  | F56: =IFERROR(((RE!I50+RE!I51+RE!I53+RE!I52)/RE!I62)*(1000/365),"") ->  | G56: =IFERROR(((RE!J50+RE!J51+RE!J53+RE!J52)/RE!J62)*(1000/365),"") ->  | H56: =IFERROR(((RE!K50+RE!K51+RE!K53+RE!K52)/RE!K62)*(1000/365),"") ->  | I56: =IFERROR(((RE!L50+RE!L51+RE!L53+RE!L52)/RE!L62)*(1000/365),"") -> 
A57: Massa de RCC per capita/ano em relação à pop. urbana | B57: IN029 | D57: Kg/(hab.x ano) | E57: =IFERROR(((RE!H65+RE!H66+RE!H67)/RE!H39)*1000,"") ->  | F57: =IFERROR(((RE!I65+RE!I66+RE!I67)/RE!I39)*1000,"") ->  | G57: =IFERROR(((RE!J65+RE!J66+RE!J67)/RE!J39)*1000,"") ->  | H57: =IFERROR(((RE!K65+RE!K66+RE!K67)/RE!K39)*1000,"") ->  | I57: =IFERROR(((RE!L65+RE!L66+RE!L67)/RE!L39)*1000,"") -> 
A58: Taxa de cobertura da col. Seletiva porta a porta em relação a pop. Urbana | B58: IN030 | D58: % | E58: =IFERROR((RE!H63/RE!H39)*100,"") ->  | F58: =IFERROR((RE!I63/RE!I39)*100,"") ->  | G58: =IFERROR((RE!J63/RE!J39)*100,"") ->  | H58: =IFERROR((RE!K63/RE!K39)*100,"") ->  | I58: =IFERROR((RE!L63/RE!L39)*100,"") -> 
A59: Massa recuperada per capita | B59: IN032 | D59: Kg/(hab. x ano) | E59: =IFERROR((RE!H64/RE!H39)*1000,"") ->  | F59: =IFERROR((RE!I64/RE!I39)*1000,"") ->  | G59: =IFERROR((RE!J64/RE!J39)*1000,"") ->  | H59: =IFERROR((RE!K64/RE!K39)*1000,"") ->  | I59: =IFERROR((RE!L64/RE!L39)*1000,"") -> 
A60: Relação entre quantidades da coleta seletiva e RDO | B60: IN053 | D60: % | E60: =IFERROR((RE!H68/(RE!H56+RE!H57+RE!H53+RE!H60))*100,"") ->  | F60: =IFERROR((RE!I68/(RE!I56+RE!I57+RE!I53+RE!I60))*100,"") ->  | G60: =IFERROR((RE!J68/(RE!J56+RE!J57+RE!J53+RE!J60))*100,"") ->  | H60: =IFERROR((RE!K68/(RE!K56+RE!K57+RE!K53+RE!K60))*100,"") ->  | I60: =IFERROR((RE!L68/(RE!L56+RE!L57+RE!L53+RE!L60))*100,"") -> 
A61: Incid. de papel/papelão sobre total mat. recuperado | B61: IN034 | D61: % | E61: =IFERROR((RE!H69/RE!H64)*100,"") ->  | F61: =IFERROR((RE!I69/RE!I64)*100,"") ->  | G61: =IFERROR((RE!J69/RE!J64)*100,"") ->  | H61: =IFERROR((RE!K69/RE!K64)*100,"") ->  | I61: =IFERROR((RE!L69/RE!L64)*100,"") -> 
A62: Incid. de plásticos sobre total material recuperado | B62: IN035 | D62: % | E62: =IFERROR((RE!H70/RE!H64)*100,"") ->  | F62: =IFERROR((RE!I70/RE!I64)*100,"") ->  | G62: =IFERROR((RE!J70/RE!J64)*100,"") ->  | H62: =IFERROR((RE!K70/RE!K64)*100,"") ->  | I62: =IFERROR((RE!L70/RE!L64)*100,"") -> 
A63: Incid.de metais sobre total material recuperado | B63: IN038 | D63: % | E63: =IFERROR((RE!H71/RE!H64)*100,"") ->  | F63: =IFERROR((RE!I71/RE!I64)*100,"") ->  | G63: =IFERROR((RE!J71/RE!J64)*100,"") ->  | H63: =IFERROR((RE!K71/RE!K64)*100,"") ->  | I63: =IFERROR((RE!L71/RE!L64)*100,"") -> 
A64: Incid.de vidros sobre total de material recuperado | B64: IN039 | D64: % | E64: =IFERROR((RE!H72/RE!H64)*100,"") ->  | F64: =IFERROR((RE!I72/RE!I64)*100,"") ->  | G64: =IFERROR((RE!J72/RE!J64)*100,"") ->  | H64: =IFERROR((RE!K72/RE!K64)*100,"") ->  | I64: =IFERROR((RE!L72/RE!L64)*100,"") -> 
A65: Incidência de ''outros'' sobre total material recuperado | B65: IN040 | D65: % | E65: =IFERROR((RE!H73/RE!H64)*100,"") ->  | F65: =IFERROR((RE!I73/RE!I64)*100,"") ->  | G65: =IFERROR((RE!J73/RE!J64)*100,"") ->  | H65: =IFERROR((RE!K73/RE!K64)*100,"") ->  | I65: =IFERROR((RE!L73/RE!L64)*100,"") -> 
A66: Massa per capita recolhida via coleta seletiva | B66: IN054 | D66: Kg/(hab. x ano) | E66: =IFERROR((RE!H68/RE!H39)*1000,"") ->  | F66: =IFERROR((RE!I68/RE!I39)*1000,"") ->  | G66: =IFERROR((RE!J68/RE!J39)*1000,"") ->  | H66: =IFERROR((RE!K68/RE!K39)*1000,"") ->  | I66: =IFERROR((RE!L68/RE!L39)*1000,"") -> 
A67: Massa de RSS coletada per capita | B67: IN036 | D67: Kg/(1000hab. X dia) | E67: =IFERROR((RE!H74/RE!H39)*(1000/365),"") ->  | F67: =IFERROR((RE!I74/RE!I39)*(1000/365),"") ->  | G67: =IFERROR((RE!J74/RE!J39)*(1000/365),"") ->  | H67: =IFERROR((RE!K74/RE!K39)*(1000/365),"") ->  | I67: =IFERROR((RE!L74/RE!L39)*(1000/365),"") -> 
A68: Taxa de terceirização de varredores | B68: IN041 | D68: % | E68: =IFERROR((RE!H75/(RE!H76+RE!H75))*100,"") ->  | F68: =IFERROR((RE!I75/(RE!I76+RE!I75))*100,"") ->  | G68: =IFERROR((RE!J75/(RE!J76+RE!J75))*100,"") ->  | H68: =IFERROR((RE!K75/(RE!K76+RE!K75))*100,"") ->  | I68: =IFERROR((RE!L75/(RE!L76+RE!L75))*100,"") -> 
A69: Taxa de terceirização de varrição | B69: IN042 | D69: % | E69: =IFERROR((RE!H77/RE!H78)*100,"") ->  | F69: =IFERROR((RE!I77/RE!I78)*100,"") ->  | G69: =IFERROR((RE!J77/RE!J78)*100,"") ->  | H69: =IFERROR((RE!K77/RE!K78)*100,"") ->  | I69: =IFERROR((RE!L77/RE!L78)*100,"") -> 
A70: Custo unitário da varrição | B70: IN043 | D70: R$/km | E70: =IFERROR((RE!H79+RE!H80)/RE!H78,"") ->  | F70: =IFERROR((RE!I79+RE!I80)/RE!I78,"") ->  | G70: =IFERROR((RE!J79+RE!J80)/RE!J78,"") ->  | H70: =IFERROR((RE!K79+RE!K80)/RE!K78,"") ->  | I70: =IFERROR((RE!L79+RE!L80)/RE!L78,"") -> 
A71: Produtividade média do varredores | B71: IN044 | D71: km/(empreg x dia) | E71: =IFERROR((RE!H78/(RE!H76+RE!H75))*(1/313),"") ->  | F71: =IFERROR((RE!I78/(RE!I76+RE!I75))*(1/313),"") ->  | G71: =IFERROR((RE!J78/(RE!J76+RE!J75))*(1/313),"") ->  | H71: =IFERROR((RE!K78/(RE!K76+RE!K75))*(1/313),"") ->  | I71: =IFERROR((RE!L78/(RE!L76+RE!L75))*(1/313),"") -> 
A72: Incidência de varredores no total de empregados no manejo | B72: IN047 | D72: % | E72: =IFERROR(((RE!H76+RE!H75)/(RE!H40+RE!H41))*100,"") ->  | F72: =IFERROR(((RE!I76+RE!I75)/(RE!I40+RE!I41))*100,"") ->  | G72: =IFERROR(((RE!J76+RE!J75)/(RE!J40+RE!J41))*100,"") ->  | H72: =IFERROR(((RE!K76+RE!K75)/(RE!K40+RE!K41))*100,"") ->  | I72: =IFERROR(((RE!L76+RE!L75)/(RE!L40+RE!L41))*100,"") -> 
A73: Extensão total anual varrida per capita | B73: IN048 | D73: Km/(hab. x ano) | E73: =IFERROR(RE!H78/RE!H39,"") ->  | F73: =IFERROR(RE!I78/RE!I39,"") ->  | G73: =IFERROR(RE!J78/RE!J39,"") ->  | H73: =IFERROR(RE!K78/RE!K39,"") ->  | I73: =IFERROR(RE!L78/RE!L39,"") -> 
A74: Relação de capinadores no total de empregados no manejo | B74: IN052 | D74: % | E74: =IFERROR(((RE!H81+RE!H82)/(RE!H40+RE!H41))*100,"") ->  | F74: =IFERROR(((RE!I81+RE!I82)/(RE!I40+RE!I41))*100,"") ->  | G74: =IFERROR(((RE!J81+RE!J82)/(RE!J40+RE!J41))*100,"") ->  | H74: =IFERROR(((RE!K81+RE!K82)/(RE!K40+RE!K41))*100,"") ->  | I74: =IFERROR(((RE!L81+RE!L82)/(RE!L40+RE!L41))*100,"") -> 

Sheet Base de Dados - Resíduos
A2: Dados | B2: Frequência | C2: Descrição | D2: Unidade de medida | E2: Fonte de dados | F2: Responsável pela geração dos dados
H3: 2019 | I3: 2020 | J3: 2021 | K3: 2022 | L3: 2023 | M3: 2024 | N3: 2025 | O3: 2026 | P3: 2027 | Q3: 2028 | R3: 2029 | S3: 2030 | T3: 2031 | U3: 2032 | V3: 2033 | W3: 2034 | X3: 2035 | Y3: 2036 | Z3: 2037 | AA3: 2038 | AB3: 2039 | AC3: 2040 | AD3: 2041 | AE3: 2042 | AF3: 2043 | AG3: 2044 | AH3: 2045 | AI3: 2046 | AJ3: 2047 | AK3: 2048 | AL3: 2049 | AM3: 2050 | AN3: 2051 | AO3: 2052 | AP3: 2053 | AQ3: 2054 | AR3: 2055 | AS3: 2056 | AT3: 2057 | AU3: 2058 | AV3: 2059 | AW3: 2060
A4: Frequência da coleta domiciliar | B4: Anual | C4: Número de dias que acontece a coleta seletiva nos bairros | D4: dias | E4: Diretoria de resíduos | F4: Diretoria de resíduos | G4: 1 vezes e 7 vezes | H4: 3 vezes e 6 vezes
A5: Rurb | B5: Anual | C5: Número de residências atendidas pela coleta convencional na área urbana | D5: Unidade | E5: Diretoria de resíduos | F5: Diretoria de resíduos | G5: 21537 | H5: 48424
A6: Rurbana | B6: Anual | C6: Número total de residências na área urbana | D6: Unidade | E6: IBGE ou Projeção de população (PSBM) | F6: Diretoria de resíduos | G6: 21537 | H6: 48424
A7: Rru | B7: Anual | C7: Número de residências atendidas pela coleta convencional na área rural | D7: Unidade | E7: Diretoria de resíduos | F7: Diretoria de resíduos | G7: 549 | H7: 736
A8: Rrural | B8: Anual | C8: Número total de residências na área rural | D8: Unidade | E8: IBGE ou Projeção de população (PSBM) | F8: Diretoria de resíduos | G8: 549 | H8: 878
A9: Rtot | B9: Semestral | C9: Número de residências totais atendidas pela coleta convencional | D9: Unidade | E9: Diretoria de resíduos | F9: Diretoria de resíduos
A10: Rtotal | B10: Anual / Semestral | C10: Número total de residências no município | D10: Unidade | E10: IBGE ou Projeção de população (PSBM) | F10: Diretoria de resíduos | G10: 22086 | H10: 49302
A11: Mtotal (mensal) | B11: Mensal | C11: Massa total de resíduos coletada mensalmente | D11: toneladas | E11: Diretoria de resíduos | F11: Diretoria de resíduos
A12: Ptotal | B12: Anual | C12: População total do município | D12: habitantes | E12: IBGE ou Projeção de população (PSBM) | F12: Diretoria de resíduos | G12: 67338 | H12: 157544
A13: Nfun | B13: Semestral | C13: Número total de funcionários que trabalha na coleta de resíduos sólidos urbanos | D13: - | E13: Empresa responsável pela operação da coleta de resíduos sólidos urbanos | F13: Diretoria de resíduos | G13: 15 | H13: 51
A14: Ptotal (atendida) | B14: Anual / Semestral | C14: População total atendida pela coleta convencional | D14: habitantes | E14: Diretoria de resíduos | F14: Diretoria de resíduos | G14: 67338 | H14: 157089
A15: Vtotal (anual) | B15: Anual | C15: Valor gasto no serviço de coleta convencional dos resíduos sólidos urbanos | D15: R$ | E15: Semasa | F15: Diretoria de resíduos
A16: Mtotal (anual) | B16: Anual | C16: Massa total de resíduos sólidos urbanos coletada anualmente | D16: toneladas | E16: Empresa responsável pela operação do Aterro sanitário | F16: Diretoria de resíduos | G16: 29662.56
A17: Vtotal (coleta) | B17: Anual | C17: Valor total gasto com a coleta seletiva | D17: R$ | E17: Semasa | F17: Diretoria de resíduos | H17: =(65865*12)+27028.17 -> 817408.17
A18: Vtotal (manejo dos RSU) | B18: Anual | C18: Valor total gasto com o manejo dos RSU | D18: R$ | E18: Semasa | F18: Diretoria de resíduos
A19: Custo da disposição final dos RSU | B19: Anual | C19: Valor gasto com a disposição final dos resíduos sólidos urbanos | D19: R$ | E19: Semasa | F19: Diretoria de resíduos
A20: Mtotal (RSS) | B20: Anual / Mensal | C20: Massa total de resíduos de serviço de saúde coletada | D20: quilogramas | E20: Empresa terceirizada para realizar a coleta dos RSS | F20: Diretoria de resíduos
A21: Vtotal (RSS) | B21: Anual | C21: Valor gasto com manejo dos resíduos de serviço de saúde | D21: R$ | E21: Semasa | F21: Diretoria de resíduos
A22: Nfun (varrição) | B22: Anual | C22: Número de funcionários do serviço de varrição | D22: funcionários | E22: Secretaria de Serviços Públicos e Meio Ambiente | F22: Diretoria de resíduos | G22: 68 | H22: 31
A23: P (urbana) | B23: Anual | C23: População total da área urbana | D23: habitantes | E23: IBGE ou Projeção de população (PSBM) | F23: Diretoria de resíduos | G23: 65665 | H23: 154740
A24: Nfun (capinação) | B24: Anual | C24: Número de funcionários do serviço de capinação | D24: funcionários | E24: Secretaria de Serviços Públicos e Meio Ambiente | F24: Diretoria de resíduos | G24: 36 | H24: 123
A25: EI (km de vias limpas) | B25: Anual / Semestral | C25: Extensão total das vias contempladas pelo serviço de varrição | D25: km | E25: Secretaria de Serviços Públicos e Meio Ambiente | F25: Diretoria de resíduos | G25: 85360
A26: E (km de vias pavimentadas) | B26: Anual | C26: Extensão total das vias municipais pavimentadas no município | D26: km | E26: Secretaria de Obras e Planejamento | F26: Secretaria de Planejamento e Obras
A27: Vtotal (varrição) | B27: Anual / Semestral | C27: Valor total gasto com o serviço de varrição | D27: R$ | E27: Secretaria de Administração e Fazenda | F27: Diretoria de resíduos
A28: R (atendida) | B28: Anual | C28: Número de residências atendidas pela coleta seletiva | D28: unidade | E28: Diretoria de resíduos | F28: Diretoria de resíduos | G28: 22086 | H28: 43366
A29: T (recicláveis coletado) | B29: Anual / Mensal | C29: Massa total dos materiais recicláveis coletada | D29: toneladas | E29: Diretoria de resíduos | F29: Diretoria de resíduos | G29: 1986
A30: Mrtotal (diária) | B30: Anual | C30: Massa diária total dos materiais recicláveis | D30: toneladas | E30: Diretoria de resíduos | F30: Diretoria de resíduos
A31: Ptotal (atendida) | B31: Anual | C31: População total atendida pela coleta seletiva | D31: habitantes | E31: Diretoria de resíduos | F31: Diretoria de resíduos | G31: 67338 | H31: 138607
A32: V (pago) | B32: Anual | C32: Valor total pago pela coleta dos materiais recicláveis | D32: R$ | E32: Semasa | F32: Diretoria de resíduos | H32: =(65865*12)+27028.17 -> 817408.17
A33: V (arrecadado) | B33: Anual | C33: Valor arrecadado pelo município com a cobrança do serviço de manejo dos resíduos sólidos urbanos | D33: R$ | E33: Semasa | F33: Diretoria de resíduos | G33: 14379783.12 | H33: 11909523.86
A34: O (ocorrências anual) | B34: Anual | C34: Indica o número de ocorrências de disposição irregular/clandestina | D34: - | E34: Secretaria de Serviços Públicos e Meio Ambiente | F34: Diretoria de resíduos
A35: Método de disposição final | B35: Anual | C35: Local de destinação final dos resíduos sólidos urbanos | D35: Aterro sanitário / aterro controlado / lixão | E35: Diretoria de resíduos | F35: Diretoria de resíduos | G35: Aterro sanitário | H35: Aterro Sanitário
A36: Existência de licença ambiental no local de disposição final | B36: Anual | C36: Existência de licença ambiental no Aterro sanitário | D36: Sim /Não | E36: Administrador do local de disposição final | F36: Diretoria de resíduos | G36: Sim | H36: Sim
A37: Existência de balança | B37: Anual | C37: Existência de balança no aterro sanitário | D37: Sim /Não | E37: Administrador do local de disposição final | F37: Diretoria de resíduos | G37: Sim | H37: Sim
A38: Coleta diferenciada de resíduos de serviço de saúde (RSS) | B38: Semestral | C38: Existência de coleta específica para os resíduos de serviço de saúde | D38: Sim /Não | E38: Diretoria de resíduos | F38: Diretoria de resíduos | G38: Sim
A39: Coleta diferenciada dos resíduos de construção civil (RCC) | B39: Semestral | C39: Existência de programa de coleta de resíduos de construção e demolição | D39: Sim /Não | E39: Diretoria de resíduos | F39: Diretoria de resíduos | G39: Não
A40: POP_URB | C40: População urbana do município (Fonte: IBGE)
A41: TB013 | C41: Quantidade de trabalhadores de agentes públicos envolvidos nos serviços de manejo de RSU
A42: TB014 | C42: Quantidade de trabalhadores de agentes privados envolvidos nos serviços de manejo de RSU
A43: TB016 | C43: Existência de frente de trabalho temporária
A44: FN220 | C44: Despesa total com serviços de manejo de RSU
A45: FN223 | C45: Despesa Corrente da Prefeitura durante o ano com TODOS os serviços do município (saúde, educação, pagamento de pessoal, etc.)
A46: FN219 | C46: Despesa com agentes privados executores de serviços de manejo de RSU
A47: FN222 | C47: Receita arrecadada com taxas e tarifas referentes à gestão e manejo de RSU
A48: TB011 | C48: Quantidade de empregados administrativos dos agentes públicos
A49: TB012 | C49: Quantidade de empregados administrativos dos agentes privados
A50: CO165 | C50: População urbana atendida pelo serviço de coleta domiciliar direta, ou seja, porta a porta
A51: CO116 | C51: Quantidade de RDO e RPU coletada pelo agente público
A52: CO117 | C52: Quantidade de RDO e RPU coletada pelos agentes privados
A53: CO142 | C53: Quantidade de RDO e RPU coletada por outros agentes executores
A54: CS048 | C54: Qtd. recolhida na coleta seletiva executada por associações ou cooperativas de catadores com parceria/apoio da Prefeitura?
A55: TB001 | C55: Quantidade de coletadores e motoristas de agentes públicos, alocados no serviço de coleta de RDO e RPU
A56: TB002 | C56: Quantidade de coletadores e motoristas de agentes públicos, alocados no serviço de coleta de RDO e RPU
A57: CO108 | C57: Quantidade de RDO coletada pelo agente público
A58: CO109 | C58: Quantidade de RDO coletada pelos agentes privados
A59: CO112 | C59: Quantidade de RPU coletada pelo agente público
A60: CO113 | C60: Quantidade de RPU coletada pelos agentes privados
A61: CO140 | C61: Quantidade de RDO coletada por outros agentes executores, exceto coop. ou associações de catadores
A62: CO141 | C62: Quantidade de RPU coletada por outros agentes executores, exceto coop. ou associações de catadores
A63: CO164 | C63: População total atendida no município
A64: CS050 | C64: População urbana do município atendida com a coleta seletiva do tipo porta a porta executada pela Prefeitura (ou SLU
A65: CS009 | C65: Quantidade total de materiais recicláveis recuperados
A66: CC013 | C66: Pela Prefeitura Municipal ou empresa contratada por ela
A67: CC014 | C67: Por empresas especializadas ("caçambeiros") ou autônomos contratados pelo gerador
A68: CC015 | C68: Pelo próprio gerador
A69: CS026 | C69: Qtd. total recolhida pelos 4 agentes executores da coleta seletiva acima mencionados
A70: CS010 | C70: Quantidade de Papel e papelão recicláveis recuperados
A71: CS011 | C71: Quantidade de Plásticos recicláveis recuperados
A72: CS012 | C72: Quantidade de Metais recicláveis recuperados
A73: CS013 | C73: Quantidade de Vidros recicláveis recuperados
A74: CS014 | C74: Quantidade de Outros materiais recicláveis recuperados (exceto pneus e eletrônicos)
A75: RS044 | C75: Quantidade total de RSS coletada pelos agentes executores
A76: TB004 | C76: Quantidade de varredores de agentes privados, alocados no serviço de varrição
A77: TB003 | C77: Quantidade de varredores dos agentes públicos, alocados no serviço de varrição
A78: VA011 | C78: Por empresas contratadas (Km varridos)
A79: VA039 | C79: Extensão total de sarjetas varridas pelos executores (Km varridos)
A80: FN212 | C80: Despesa dos agentes públicos com o serviço de varrição
A81: FN2013 | C81: Despesa com empresas contratadas para o serviço de varrição
A82: TB005 | C82: Quantidade de empregados dos agentes públicos envolvidos com os serviços de capina e roçada
A83: TB006 | C83: Quantidade de empregados dos agentes privados envolvidos com os serviços de capina e roçada

Sheet Gráficos - Resíduos
A1: Gráficos dos indicadores de resíduos sólidos

Sheet Indicadores - Água e esgoto
A1: Ano ínicio ciclo
A2: 2017
A3: Indicador | B3: Código SNIS | C3: Frequência de atualização | D3: Expresso em
E4: =A2 -> 2017 | F4: =E4+1 -> 2018 | G4: =F4+1 -> 2019 | H4: =G4+1 -> 2020 | I4: =H4+1 -> 2021
A5: Índice de atendimento total de água | B5: IN055 | C5: Anual | D5: % | E5: =IFERROR(AE!H4/AE!H5,"") -> 0.9751581218 | F5: =IFERROR(AE!I4/AE!I5,"") -> 0.9751462451 | G5: =IFERROR(AE!J4/AE!J5,"") -> 0.990461171 | H5: =IFERROR(AE!K4/AE!K5,"") -> 1 | I5: =IFERROR(AE!L4/AE!L5,"") -> 
A6: Índice de atendimento urbano de água | B6: IN023 | C6: Anual | D6: % | E6: =IFERROR(AE!H6/AE!H7,"") -> 1 | F6: =IFERROR(AE!I6/AE!I7,"") -> 1 | G6: =IFERROR(AE!J6/AE!J7,"") -> 1 | H6: =IFERROR(AE!K6/AE!K7,"") -> 1 | I6: =IFERROR(AE!L6/AE!L7,"") -> 
A7: Densidade de economias de água por ligação | B7: IN001 | C7: Anual | D7: Economia/ligação | E7: =IFERROR(AE!H9/AE!H10,"") -> 2.985787576 | F7: =IFERROR(AE!I9/AE!I10,"") -> 3.105012258 | G7: =IFERROR(AE!J9/AE!J10,"") -> 3.20515056 | H7: =IFERROR(AE!K9/AE!K10,"") -> 3.289970598 | I7: =IFERROR(AE!L8/AE!L9,"") -> 
A8: Participação das economias residenciais de água no total das economias de água | B8: IN043 | C8: Anual | D8: % | E8: =IFERROR(AE!H11/AE!H9,"") -> 0.8969744816 | F8: =IFERROR(AE!I11/AE!I9,"") -> 0.8979251656 | G8: =IFERROR(AE!J11/AE!J9,"") -> 0.895986776 | H8: =IFERROR(AE!K11/AE!K9,"") -> 0.8993704447 | I8: =IFERROR(AE!L10/AE!L8,"") -> 
A9: Índice de macromedição | B9: IN011 | C9: Anual | D9: % | E9: =IFERROR((AE!H12-AE!H13)/(AE!H14+AE!H21-AE!H13),"") -> 0 | F9: =IFERROR((AE!I12-AE!I13)/(AE!I14+AE!I21-AE!I13),"") -> 0 | G9: =IFERROR((AE!J12-AE!J13)/(AE!J14+AE!J21-AE!J13),"") -> 0 | H9: =IFERROR((AE!K12-AE!K13)/(AE!K14+AE!K21-AE!K13),"") -> 0 | I9: =IFERROR((AE!L11-AE!L12)/AE!L13,"") -> 
A10: Índice de hidrometração | B10: IN009 | C10: Anual | D10: % | E10: =IFERROR(AE!H15/AE!H10,"") -> 1 | F10: =IFERROR(AE!I15/AE!I10,"") -> 1 | G10: =IFERROR(AE!J15/AE!J10,"") -> 1 | H10: =IFERROR(AE!K15/AE!K10,"") -> 1 | I10: =IFERROR(AE!L14/AE!L9,"") -> 
A11: Índice de micromedição relativo ao volume disponibilizado | B11: IN010 | C11: Anual | D11: % | E11: =IFERROR(AE!H16/(AE!H14-AE!H17),"") -> 0.769376934 | F11: =IFERROR(AE!I16/(AE!I14-AE!I17),"") -> 0.7846460432 | G11: =IFERROR(AE!J16/(AE!J14-AE!J17),"") -> 0.875932067 | H11: =IFERROR(AE!K16/(AE!K14-AE!K17),"") -> 0.804623354 | I11: =IFERROR(AE!L15/(AE!L13-AE!L16),"") -> 
A12: Índice de micromedição relativo ao consumo | B12: IN044 | C12: Anual | D12: % | E12: =IFERROR(AE!H16/(AE!H18-AE!H13),"") -> 1 | F12: =IFERROR(AE!I16/(AE!I18-AE!I13),"") -> 1 | G12: =IFERROR(AE!J16/(AE!J18-AE!J13),"") -> 1 | H12: =IFERROR(AE!K16/(AE!K18-AE!K13),"") -> 1 | I12: =IFERROR(AE!L15/(AE!L17-AE!L12),"") -> 
A13: Índice de fluoretação de água | B13: IN057 | C13: Anual | D13: % | E13: =IFERROR(AE!H19/(AE!H20+AE!H21),"") -> 1 | F13: =IFERROR(AE!I19/(AE!I20+AE!I21),"") -> 1 | G13: =IFERROR(AE!J19/(AE!J20+AE!J21),"") -> 1 | H13: =IFERROR(AE!K19/(AE!K20+AE!K21),"") -> 1 | I13: =IFERROR(AE!L18/(AE!L19+AE!L20),"") -> 
A14: Índice de consumo de água | B14: IN052 | C14: Anual | D14: % | E14: =IFERROR(AE!H18/((AE!H20+AE!H21)-AE!H17),"") -> 0.769376934 | F14: =IFERROR(AE!I18/((AE!I20+AE!I21)-AE!I17),"") -> 0.7846460432 | G14: =IFERROR(AE!J18/((AE!J20+AE!J21)-AE!J17),"") -> 0.875932067 | H14: =IFERROR(AE!K18/((AE!K20+AE!K21)-AE!K17),"") -> 0.804623354 | I14: =IFERROR(AE!L17/((AE!L19+AE!L20)-AE!L16),"") -> 
A15: Volume de água disponibilizado por economia | B15: IN025 | C15: Anual | D15: (m³/mês)/economia | E15: =IFERROR(((AE!H14*1000)/12)/AE!H9,"") -> 11.13033181 | F15: =IFERROR(((AE!I14*1000)/12)/AE!I9,"") -> 10.7399731 | G15: =IFERROR(((AE!J14*1000)/12)/AE!J9,"") -> 10.74747517 | H15: =IFERROR(((AE!K14*1000)/12)/AE!K9,"") -> 11.27148995 | I15: =IFERROR(((AE!L13*1000)/12)/AE!L8,"") -> 
A16: Consumo médio de água por economia | B16: IN053 | C16: Anual | D16: (m³/mês)/economia | E16: =IFERROR((((AE!H18*1000)/12)-((AE!H13*1000)*12))/AE!H9,"") -> 8.563420562 | F16: =IFERROR((((AE!I18*1000)/12)-((AE!I13*1000)*12))/AE!I9,"") -> 8.427077393 | G16: =IFERROR((((AE!J18*1000)/12)-((AE!J13*1000)*12))/AE!J9,"") -> 9.414058141 | H16: =IFERROR((((AE!K18*1000)/12)-((AE!K13*1000)*12))/AE!K9,"") -> 9.069304047 | I16: =IFERROR((((AE!L17*1000)/12)-((AE!L12*1000)*12))/AE!L8,"") -> 
A17: Consumo micromedido por economia | B17: IN014 | C17: Anual | D17: (m³/mês)/economia | E17: =IFERROR(((AE!H16*1000)/12)/AE!H22,"") -> 8.563420562 | F17: =IFERROR(((AE!I16*1000)/12)/AE!I22,"") -> 8.427077393 | G17: =IFERROR(((AE!J16*1000)/12)/AE!J22,"") -> 9.414058141 | H17: =IFERROR(((AE!K16*1000)/12)/AE!K22,"") -> 9.069304047 | I17: =IFERROR(((AE!L15*1000)/12)/AE!L21,"") -> 
A18: Consumo de água faturado por economia | B18: IN017 | C18: Anual | D18: (m³/mês)/economia | E18: =IFERROR((((AE!H23*1000)/12)-((AE!H13)*1000)/12)/AE!H9,"") -> 8.563420562 | F18: =IFERROR((((AE!I23*1000)/12)-((AE!I13)*1000)/12)/AE!I9,"") -> 8.427077393 | G18: =IFERROR((((AE!J23*1000)/12)-((AE!J13)*1000)/12)/AE!J9,"") -> 9.414058141 | H18: =IFERROR((((AE!K23*1000)/12)-((AE!K13)*1000)/12)/AE!K9,"") -> 9.069304047 | I18: =IFERROR((((AE!L22*1000)/12)-((AE!L12)*1000)/12)/AE!L8,"") -> 
A19: Consumo médio per capita de água | B19: IN022 | C19: Anual | D19: L/(hab.dia) | E19: =IFERROR((((((AE!H18*1000)/365))-(((AE!H13)*1000)/365))/AE!H5)*1000,"") -> 198.1623368 | F19: =IFERROR((((((AE!I18*1000)/365))-(((AE!I13)*1000)/365))/AE!I5)*1000,"") -> 199.7158482 | G19: =IFERROR((((((AE!J18*1000)/365))-(((AE!J13)*1000)/365))/AE!J5)*1000,"") -> 226.4787607 | H19: =IFERROR((((((AE!K18*1000)/365))-(((AE!K13)*1000)/365))/AE!K5)*1000,"") -> 222.9602695 | I19: =IFERROR((((((AE!L17*1000)/365))-(((AE!L12)*1000)/365))/AE!L4)*1000,"") -> 
A20: Índice de consumo de energia elétrica em sistemas de abastecimento de água | B20: IN058 | C20: Anual | D20: kWh/m³ | E20: =IFERROR(AE!H24/(AE!H20+AE!H21),"") -> 0.2066930913 | F20: =IFERROR(AE!I24/(AE!I20+AE!I21),"") -> 0.2459403622 | G20: =IFERROR(AE!J24/(AE!J20+AE!J21),"") -> 0.2915430941 | H20: =IFERROR(AE!K24/(AE!K20+AE!K21),"") -> 0.2792057721 | I20: =IFERROR(AE!L23/(AE!L19+AE!L20),"") -> 
A21: Extensão da rede de água por ligação | B21: IN020 | C21: Anual | D21: m/lig | E21: =IFERROR((AE!H25*1000)/AE!H26,"") -> 19.64642263 | F21: =IFERROR((AE!I25*1000)/AE!I26,"") -> 19.37142468 | G21: =IFERROR((AE!J25*1000)/AE!J26,"") -> 19.52719469 | H21: =IFERROR((AE!K25*1000)/AE!K26,"") -> 19.31227613 | I21: =IFERROR((AE!L24*1000)/AE!L25,"") -> 
A22: Índice de faturamento de água | B22: IN028 | C22: Anual | D22: % | E22: =IFERROR(AE!H23/((AE!H20+AE!H21)-AE!H17),"") -> 0.769376934 | F22: =IFERROR(AE!I23/((AE!I20+AE!I21)-AE!I17),"") -> 0.7846460432 | G22: =IFERROR(AE!J23/((AE!J20+AE!J21)-AE!J17),"") -> 0.875932067 | H22: =IFERROR(AE!K23/((AE!K20+AE!K21)-AE!K17),"") -> 0.804623354 | I22: =IFERROR(AE!L22/((AE!L19+AE!L20)-AE!L16),"") -> 
A23: Índice de perdas faturamento | B23: IN013 | C23: Anual | D23: % | E23: =IFERROR(((AE!H20+AE!H21-AE!H17)-AE!H23)/(AE!H20+AE!H21-AE!H17),"") -> 0.230623066 | F23: =IFERROR(((AE!I20+AE!I21-AE!I17)-AE!I23)/(AE!I20+AE!I21-AE!I17),"") -> 0.2153539568 | G23: =IFERROR(((AE!J20+AE!J21-AE!J17)-AE!J23)/(AE!J20+AE!J21-AE!J17),"") -> 0.124067933 | H23: =IFERROR(((AE!K20+AE!K21-AE!K17)-AE!K23)/(AE!K20+AE!K21-AE!K17),"") -> 0.195376646 | I23: =IFERROR(((AE!L19+AE!L20-AE!L16)-AE!L22)/(AE!L19+AE!L20-AE!L16),"") -> 
A24: Índice de perdas na distribuição | B24: IN049 | C24: Anual | D24: % | E24: =IFERROR(((AE!H20+AE!H21-AE!H17)-AE!H18)/(AE!H20+AE!H21-AE!H17),"") -> 0.230623066 | F24: =IFERROR(((AE!I20+AE!I21-AE!I17)-AE!I18)/(AE!I20+AE!I21-AE!I17),"") -> 0.2153539568 | G24: =IFERROR(((AE!J20+AE!J21-AE!J17)-AE!J18)/(AE!J20+AE!J21-AE!J17),"") -> 0.124067933 | H24: =IFERROR(((AE!K20+AE!K21-AE!K17)-AE!K18)/(AE!K20+AE!K21-AE!K17),"") -> 0.195376646 | I24: =IFERROR(((AE!L19+AE!L20-AE!L16)-AE!L17)/(AE!L19+AE!L20-AE!L16),"") -> 
A25: Índice bruto de perdas lineares | B25: IN050 | C25: Anual | D25: m³/dia/Km | E25: =IFERROR((((((AE!H20+AE!H21)-(AE!H17)-(AE!H18))*1000))/365)/AE!H25,"") -> 12.82551045 | F25: =IFERROR((((((AE!I20+AE!I21)-(AE!I17)-(AE!I18))*1000))/365)/AE!I25,"") -> 12.18838566 | G25: =IFERROR((((((AE!J20+AE!J21)-(AE!J17)-(AE!J18))*1000))/365)/AE!J25,"") -> 7.195532808 | H25: =IFERROR((((((AE!K20+AE!K21)-(AE!K17)-(AE!K18))*1000))/365)/AE!K25,"") -> 12.2937514 | I25: =IFERROR((((((AE!L19+AE!L20)-(AE!L16)-(AE!L17))*1000))/365)/AE!L24,"") -> 
A26: Despesa total com os serviços por m³ faturado | B26: IN003 | C26: Anual | D26: R$/m³ | E26: =IFERROR((AE!H27/1000)/(AE!H23+AE!H28),"") -> 4.926307729 | F26: =IFERROR((AE!I27/1000)/(AE!I23+AE!I28),"") -> 6.030344721 | G26: =IFERROR((AE!J27/1000)/(AE!J23+AE!J28),"") -> 5.775643278 | H26: =IFERROR((AE!K27/1000)/(AE!K23+AE!K28),"") -> 5.456145596 | I26: =IFERROR((AE!L26/1000)/(AE!L22+AE!L27),"") -> 
A27: Despesa de exploração por m³ faturado | B27: IN026 | C27: Anual | D27: R$/m³ | E27: =IFERROR(AE!H29/((AE!H23+AE!H28)*1000),"") -> 3.155823183 | F27: =IFERROR(AE!I29/((AE!I23+AE!I28)*1000),"") -> 3.300727902 | G27: =IFERROR(AE!J29/((AE!J23+AE!J28)*1000),"") -> 3.049075012 | H27: =IFERROR(AE!K29/((AE!K23+AE!K28)*1000),"") -> 2.568212364 | I27: =IFERROR(AE!L28/((AE!L22+AE!L27)*1000),"") -> 
A28: Despesa de exploração por economia | B28: IN027 | C28: Anual | D28: R$/ano/economia | E28: =IFERROR(AE!H29/(AE!H9+AE!H30),"") -> 315.027463 | F28: =IFERROR(AE!I29/(AE!I9+AE!I30),"") -> 323.2648034 | G28: =IFERROR(AE!J29/(AE!J9+AE!J30),"") -> 314.3315764 | H28: =IFERROR(AE!K29/(AE!K9+AE!K30),"") -> 269.902027 | I28: =IFERROR(AE!L28/(AE!L8+AE!L29),"") -> 
A29: Tarifa média praticada | B29: IN004 | C29: Anual | D29: R$/m³ | E29: =IFERROR(AE!H31/((AE!H23+AE!H28)*1000),"") -> 6.823806801 | F29: =IFERROR(AE!I31/((AE!I23+AE!I28)*1000),"") -> 6.796436831 | G29: =IFERROR(AE!J31/((AE!J23+AE!J28)*1000),"") -> 6.511225139 | H29: =IFERROR(AE!K31/((AE!K23+AE!K28)*1000),"") -> 6.574211757 | I29: =IFERROR(AE!L30/((AE!L22+AE!L27)*1000),"") -> 
A30: Tarifa média de água | B30: IN005 | C30: Anual | D30: R$/m³ | E30: =IFERROR(AE!H32/((AE!H23-AE!H33-AE!H13)*1000),"") -> 6.841328131 | F30: =IFERROR(AE!I32/((AE!I23-AE!I33-AE!I13)*1000),"") -> 6.815481501 | G30: =IFERROR(AE!J32/((AE!J23-AE!J33-AE!J13)*1000),"") -> 6.344699687 | H30: =IFERROR(AE!K32/((AE!K23-AE!K33-AE!K13)*1000),"") -> 6.608688577 | I30: =IFERROR(AE!L31/((AE!L22-AE!L32-AE!L12)*1000),"") -> 
A31: Indicador de desempenho financeiro | B31: IN012 | C31: Anual | D31: % | E31: =IFERROR(AE!H31/AE!H27,"") -> 1.385176724 | F31: =IFERROR(AE!I31/AE!I27,"") -> 1.127039522 | G31: =IFERROR(AE!J31/AE!J27,"") -> 1.127359296 | H31: =IFERROR(AE!K31/AE!K27,"") -> 1.204918681 | I31: =IFERROR(AE!L30/AE!L26,"") -> 
A32: Índice de evasão de receitas | B32: IN029 | C32: Anual | D32: % | E32: =IFERROR((AE!H34-AE!H35)/AE!H34,"") -> 0.04059438537 | F32: =IFERROR((AE!I34-AE!I35)/AE!I34,"") -> 0.04287858428 | G32: =IFERROR((AE!J34-AE!J35)/AE!J34,"") -> 0.08207565957 | H32: =IFERROR((AE!K34-AE!K35)/AE!K34,"") -> 0.08330351458 | I32: =IFERROR((AE!L33-AE!L34)/AE!L33,"") -> 
A33: Incidência da despesas de pessoal e de serviço de terceiros nas despesas totais com os serviços | B33: IN007 | C33: Anual | D33: % | E33: =IFERROR((AE!H36+AE!H37)/AE!H27,"") -> 0.3702504329 | F33: =IFERROR((AE!I36+AE!I37)/AE!I27,"") -> 0.295153651 | G33: =IFERROR((AE!J36+AE!J37)/AE!J27,"") -> 0.3345487695 | H33: =IFERROR((AE!K36+AE!K37)/AE!K27,"") -> 0.3079287189 | I33: =IFERROR((AE!L35+AE!L36)/AE!L26,"") -> 
A34: Despesa média anual por empregado | B34: IN008 | C34: Anual | D34: R$/empregados | E34: =IFERROR(AE!H36/AE!H38,"") -> 50941.91512 | F34: =IFERROR(AE!I36/AE!I38,"") -> 54522.49367 | G34: =IFERROR(AE!J36/AE!J38,"") -> 57122.79161 | H34: =IFERROR(AE!K36/AE!K38,"") -> 64837.33614 | I34: =IFERROR(AE!L35/AE!L37,"") -> 
A35: Margem da despesa de exploração | B35: IN030 | C35: Anual | D35: % | E35: =IFERROR(AE!H29/AE!H31,"") -> 0.4624725281 | F35: =IFERROR(AE!I28/AE!I30,"") -> 0.09305137171 | G35: =IFERROR(AE!J28/AE!J30,"") -> 0.08924383304 | H35: =IFERROR(AE!K28/AE!K30,"") -> 0.1003314023 | I35: =IFERROR(AE!L28/AE!L30,"") -> 
A36: Margem da despesa com pessoal próprio | B36: IN031 | C36: Anual | D36: % | E36: =IFERROR(AE!H36/AE!H31,"") -> 0.08914311512 | F36: =IFERROR(AE!I36/AE!I31,"") -> 0.08589319014 | G36: =IFERROR(AE!J36/AE!J31,"") -> 0.09041525443 | H36: =IFERROR(AE!K36/AE!K31,"") -> 0.08665859148 | I36: =IFERROR(AE!L35/AE!L30,"") -> 
A37: Margem da despesa com pessoal próprio total (equivalente) | B37: IN032 | C37: Anual | D37: % | E37: =IFERROR((AE!H36+AE!H37)/AE!H31,"") -> 0.267294726 | F37: =IFERROR((AE!I36+AE!I37)/AE!I31,"") -> 0.2618840291 | G37: =IFERROR((AE!J36+AE!J37)/AE!J31,"") -> 0.2967543451 | H37: =IFERROR((AE!K36+AE!K37)/AE!K31,"") -> 0.2555597516 | I37: =IFERROR((AE!L35+AE!L36)/AE!L30,"") -> 
A38: Margem do serviço da divida | B38: IN033 | C38: Anual | D38: % | E38: =IFERROR((AE!H39+AE!H40)/AE!H31,"") -> 0.1024175156 | F38: =IFERROR((AE!I39+AE!I40)/AE!I31,"") -> 0.2001966759 | G38: =IFERROR((AE!J39+AE!J40)/AE!J31,"") -> 0.2852416705 | H38: =IFERROR((AE!K39+AE!K40)/AE!K31,"") -> 0.2846912663 | I38: =IFERROR((AE!L38+AE!L39)/AE!L30,"") -> 
A39: Margem das outras despesas de exploração | B39: IN034 | C39: Anual | D39: % | E39: =IFERROR(AE!H41/AE!H31,"") -> 0.1415174717 | F39: =IFERROR(AE!I41/AE!I31,"") -> 0.1637523391 | G39: =IFERROR(AE!J41/AE!J31,"") -> 0.1090550182 | H39: =IFERROR(AE!K41/AE!K31,"") -> 0.07177837511 | I39: =IFERROR(AE!L40/AE!L30,"") -> 
A40: Participação da despesa com pessoal próprio nas despesas de exploração | B40: IN035 | C40: Anual | D40: % | E40: =IFERROR(AE!H36/AE!H29,"") -> 0.1927533198 | F40: =IFERROR(AE!I36/AE!I29,"") -> 0.1768602739 | G40: =IFERROR(AE!J36/AE!J29,"") -> 0.1930795652 | H40: =IFERROR(AE!K36/AE!K29,"") -> 0.2218320957 | I40: =IFERROR(AE!L35/AE!L28,"") -> 
A41: Participação da despesa com pessoal total (equivalente) nas despesas de exploração [percentual] | B41: IN036 | C41: Anual | D41: % | E41: =IFERROR((AE!H36+AE!H37)/AE!H29,"") -> 0.5779688732 | F41: =IFERROR((AE!I36+AE!I37)/AE!I29,"") -> 0.5392381056 | G41: =IFERROR((AE!J36+AE!J37)/AE!J29,"") -> 0.6337116483 | H41: =IFERROR((AE!K36+AE!K37)/AE!K29,"") -> 0.6541919769 | I41: =IFERROR((AE!L35+AE!L36)/AE!L28,"") -> 
A42: Participação da despesa com energia elétrica nas despesas de exploração | B42: IN037 | C42: Anual | D42: % | E42: =IFERROR(AE!H43/AE!H29,"") -> 0.05405086367 | F42: =IFERROR(AE!I43/AE!I29,"") -> 0.0573417596 | G42: =IFERROR(AE!J43/AE!J29,"") -> 0.07051646216 | H42: =IFERROR(AE!K43/AE!K29,"") -> 0.08121370153 | I42: =IFERROR(AE!L42/AE!L28,"") -> 
A43: Participação da despesa com produtos químicos nas despesas de exploração | B43: IN038 | C43: Anual | D43: % | E43: =IFERROR(AE!H42/AE!H29,"") -> 0.05727525589 | F43: =IFERROR(AE!I42/AE!I29,"") -> 0.06431893282 | G43: =IFERROR(AE!J42/AE!J29,"") -> 0.05923496576 | H43: =IFERROR(AE!K42/AE!K29,"") -> 0.07688139216 | I43: =IFERROR(AE!L41/AE!L28,"") -> 
A44: Participação das outras despesas na despesa de exploração | B44: IN039 | C44: Anual | D44: % | E44: =IFERROR(AE!H41/AE!H29,"") -> 0.3060018987 | F44: =IFERROR(AE!I41/AE!I29,"") -> 0.3371778776 | G44: =IFERROR(AE!J41/AE!J29,"") -> 0.232884325 | H44: =IFERROR(AE!K41/AE!K29,"") -> 0.1837411283 | I44: =IFERROR(AE!L40/AE!L28,"") -> 
A45: Participação da receita operacional direta de água na receita operacional total | B45: IN040 | C45: Anual | D45: % | E45: =IFERROR((AE!H32+AE!H44)/AE!H34,"") -> 0.6178427826 | F45: =IFERROR((AE!I32+AE!I44)/AE!I34,"") -> 0.6168651157 | G45: =IFERROR((AE!J32+AE!J44)/AE!J34,"") -> 0.6044897577 | H45: =IFERROR((AE!K32+AE!K44)/AE!K34,"") -> 0.573727856 | I45: =IFERROR((AE!L31+AE!L43)/AE!L33,"") -> 
A46: Participação da receita operacional direta de esgoto na receita operacional total | B46: IN041 | C46: Anual | D46: % | E46: =IFERROR((AE!H45+AE!H46)/AE!H34,"") -> 0.3617174924 | F46: =IFERROR((AE!I45+AE!I46)/AE!I34,"") -> 0.3675353567 | G46: =IFERROR((AE!J45+AE!J46)/AE!J34,"") -> 0.3654650857 | H46: =IFERROR((AE!K45+AE!K46)/AE!K34,"") -> 0.4100605976 | I46: =IFERROR((AE!L44+AE!L45)/AE!L33,"") -> 
A47: Participação da receita operacional indireta na receita operacional total | B47: IN042 | C47: Anual | D47: % | E47: =IFERROR((AE!H34-AE!H31)/AE!H34,"") -> 0.02043972503 | F47: =IFERROR((AE!I34-AE!I31)/AE!I34,"") -> 0.01559952762 | G47: =IFERROR((AE!J34-AE!J31)/AE!J34,"") -> 0.03004515656 | H47: =IFERROR((AE!K34-AE!K31)/AE!K34,"") -> 0.01621154639 | I47: =IFERROR((AE!L33-AE!L30)/AE!L33,"") -> 
A48: Dias de faturamento comprometidos com contas a receber | B48: IN054 | C48: Anual | D48: dias | E48: =IFERROR((AE!H47*360)/AE!H31,"") -> 63.13665665 | F48: =IFERROR((AE!I47*360)/AE!I31,"") -> 68.19875953 | G48: =IFERROR((AE!J47*360)/AE!J31,"") -> 74.31653694 | H48: =IFERROR((AE!K47*360)/AE!K31,"") -> 76.31196879 | I48: =IFERROR((AE!L46*360)/AE!L30,"") -> 
A49: Quantidade equivalente de pessoal total | B49: IN018 | C49: Anual | D49: funcionários | E49: =IFERROR(AE!H38+((AE!H37*AE!H38)/AE!H36),"") -> 251.8731475 | F49: =IFERROR(AE!I38+((AE!I37*AE!I38)/AE!I36),"") -> 240.8670381 | G49: =IFERROR(AE!J38+((AE!J37*AE!J38)/AE!J36),"") -> 285.5450464 | H49: =IFERROR(AE!K38+((AE!K37*AE!K38)/AE!K36),"") -> 244.7704148 | I49: =IFERROR(AE!L37+((AE!L36*AE!L37)/AE!L35),"") -> 
A50: Índice de produtividade: economias ativas por pessoal total (equivalente) | B50: IN019 | C50: Anual | D50: economias./empregado.equivalente | E50: =IFERROR((AE!H9+AE!H30)/'Indicadores - Água e esgoto'!E49,"") -> 279.7836955 | F50: =IFERROR((AE!I9+AE!I30)/'Indicadores - Água e esgoto'!F49,"") -> 312.7783718 | G50: =IFERROR((AE!J9+AE!J30)/'Indicadores - Água e esgoto'!G49,"") -> 286.7673631 | H50: =IFERROR((AE!K9+AE!K30)/'Indicadores - Água e esgoto'!H49,"") -> 367.2094117 | I50: =IFERROR((AE!L8+AE!L29)/'Indicadores - Água e esgoto'!I49,"") -> 
A51: Índice de produtividade de pessoal total (equivalente) | B51: IN102 | C51: Anual | D51: ligações/empregados | E51: =IFERROR((AE!H10+AE!H48)/'Indicadores - Água e esgoto'!E49,"") -> 114.5338449 | F51: =IFERROR((AE!I10+AE!I48)/'Indicadores - Água e esgoto'!F49,"") -> 121.926189 | G51: =IFERROR((AE!J10+AE!J48)/'Indicadores - Água e esgoto'!G49,"") -> 104.4388631 | H51: =IFERROR((AE!K10+AE!K48)/'Indicadores - Água e esgoto'!H49,"") -> 125.0559633 | I51: =IFERROR((AE!L9+AE!L47)/'Indicadores - Água e esgoto'!I49,"") -> 
A52: Índice de produtividade: empregados próprios por 1000 ligações de água + esgoto | B52: IN048 | C52: Anual | D52: empregados/mil lig. | E52: =IFERROR(AE!H38/((AE!H10+AE!H48)/1000),"") -> 2.911813644 | F52: =IFERROR(AE!I38/((AE!I10+AE!I48)/1000),"") -> 2.690002724 | G52: =IFERROR(AE!J38/((AE!J10+AE!J48)/1000),"") -> 2.917309369 | H52: =IFERROR(AE!K38/((AE!K10+AE!K48)/1000),"") -> 2.711532179 | I52: =IFERROR(AE!L37/((AE!L9+AE!L47)/1000),"") -> 
A53: Índice de produtividade: economias ativas por pessoal próprio | B53: IN002 | C53: Anual | D53: economia/empregados | E53: =IFERROR((AE!H9+AE!H30)/AE!H38,"") -> 838.9285714 | F53: =IFERROR((AE!I9+AE!I30)/AE!I38,"") -> 953.6455696 | G53: =IFERROR((AE!J9+AE!J30)/AE!J38,"") -> 941.2068966 | H53: =IFERROR((AE!K9+AE!K30)/AE!K38,"") -> 1082.915663 | I53: =IFERROR((AE!L8+AE!L29)/AE!L37,"") -> 
A54: Índice de produtividade: empregados próprios por 1000 ligações de água | B54: IN045 | C54: Anual | D54: empregados/mil lig | E54: =IFERROR((AE!H38/(AE!H10/1000)),"") -> 5.823627288 | F54: =IFERROR((AE!I38/(AE!I10/1000)),"") -> 5.380005448 | G54: =IFERROR((AE!J38/(AE!J10/1000)),"") -> 5.834618738 | H54: =IFERROR((AE!K38/(AE!K10/1000)),"") -> 5.423064358 | I54: =IFERROR((AE!L37/(AE!L9/1000)),"") -> 
A55: Índice de suficiência de caixa | B55: IN101 | C55: Anual | D55: % | E55: =IFERROR(AE!H35/(AE!H29+AE!H49+AE!H50),"") -> 1.727182266 | F55: =IFERROR(AE!I35/(AE!I29+AE!I49+AE!I50),"") -> 1.415700037 | G55: =IFERROR(AE!J35/(AE!J29+AE!J49+AE!J50),"") -> 1.253069204 | H55: =IFERROR(AE!K35/(AE!K29+AE!K49+AE!K50),"") -> 1.37658888 | I55: =IFERROR(AE!L34/(AE!L28+AE!L48+AE!L49),"") -> 
A56: Economias atingidas por paralisações | B56: IN071 | C56: Anual | D56: economias/paralisação | E56: =IFERROR(AE!H51/AE!H52,"") ->  | F56: =IFERROR(AE!I50/AE!I51,"") ->  | G56: =IFERROR(AE!J50/AE!J51,"") ->  | H56: =IFERROR(AE!K50/AE!K51,"") -> 2.00019202 | I56: =IFERROR(AE!L50/AE!L51,"") -> 
A57: Duração média das paralisações | B57: IN072 | C57: Anual | D57: horas/paralisação | E57: =IFERROR(AE!H52/AE!H51,"") -> 
A58: Duração média dos serviços executados | B58: IN083 | C58: Anual | D58: hora/serviço | E58: =IFERROR(AE!H54/AE!H55,"") -> 0.1634205245 | F58: =IFERROR(AE!I54/AE!I55,"") -> 0.1799318905 | G58: =IFERROR(AE!J54/AE!J55,"") -> 0.1938247481 | H58: =IFERROR(AE!K54/AE!K55,"") -> 0.3459877578 | I58: =IFERROR(AE!L53/AE!L54,"") -> 
A59: Índice de conformidade da quantidade de amostras - cloro residual | B59: IN079 | C59: Anual | D59: % | E59: =IFERROR(AE!H56/AE!H57,"") -> 1 | F59: =IFERROR(AE!I56/AE!I57,"") -> 1.058084239 | G59: =IFERROR(AE!J56/AE!J57,"") -> 1.025617774 | H59: =IFERROR(AE!K56/AE!K57,"") -> 1.162094763 | I59: =IFERROR(AE!L55/AE!L56,"") -> 
A60: Incidência das análises de cloro residual fora do padrão | B60: IN075 | C60: Anual | D60: % | E60: =IFERROR(AE!H58/AE!H56,"") -> 0.007019927536 | F60: =IFERROR(AE!I58/AE!I56,"") -> 0.001926163724 | G60: =IFERROR(AE!J58/AE!J56,"") -> 0.003039345712 | H60: =IFERROR(AE!K58/AE!K56,"") -> 0.0003901677721 | I60: =IFERROR(AE!L57/AE!L55,"") -> 
A61: índice de conformidade da quantidade de amostras - turbidez | B61: IN080 | C61: Anual | D61: % | E61: =IFERROR(AE!H59/AE!H60,"") -> 1 | F61: =IFERROR(AE!I59/AE!I60,"") -> 1.058084239 | G61: =IFERROR(AE!J59/AE!J60,"") -> 1.025617774 | H61: =IFERROR(AE!K59/AE!K60,"") -> 1.162094763 | I61: =IFERROR(AE!L58/AE!L59,"") -> 
A62: Incidência das análises de turbidez fora do padrão | B62: IN076 | C62: Anual | D62: % | E62: =IFERROR(AE!H61/AE!H59,"") -> 0.004755434783 | F62: =IFERROR(AE!I61/AE!I59,"") -> 0.0005885500268 | G62: =IFERROR(AE!J61/AE!J59,"") -> 0.001547303271 | H62: =IFERROR(AE!K61/AE!K59,"") -> 0.0008778774873 | I62: =IFERROR(AE!L60/AE!L58,"") -> 
A63: Índice de conformidade da quantidade de amostras - coliformes totais | B63: IN085 | C63: Anual | D63: % | E63: =IFERROR(AE!H62/AE!H63,"") -> 1.066666667 | F63: =IFERROR(AE!I62/AE!I63,"") -> 1.066666667 | G63: =IFERROR(AE!J62/AE!J63,"") -> 1.066666667 | H63: =IFERROR(AE!K62/AE!K63,"") -> 1.066666667 | I63: =IFERROR(AE!L61/AE!L62,"") -> 
A64: Incidência das análises de coliformes totais fora do padrão | B64: IN084 | C64: Anual | D64: % | E64: =IFERROR(AE!H64/AE!H62,"") -> 0 | F64: =IFERROR(AE!I64/AE!I62,"") -> 0 | G64: =IFERROR(AE!J64/AE!J62,"") -> 0 | H64: =IFERROR(AE!K64/AE!K62,"") -> 0 | I64: =IFERROR(AE!L63/AE!L61,"") -> 
A65: Investimentos realizados em abastecimento de água pelo prestados de serviço | B65: FN023 | C65: Anual | D65: R$/ano | E65: =IFERROR(AE!H65,"") -> 2148129.41 | F65: =IFERROR(AE!I65,"") -> 649989.33 | G65: =IFERROR(AE!J65,"") -> 11259907.65 | H65: =IFERROR(AE!K65,"") -> 2604610.26 | I65: =IFERROR(AE!L65,"") -> 0
A66: Investimentos realizados em esgotamento sanitário pelo prestados de serviço | B66: FN024 | C66: Anual | D66: R$/ano | E66: =IFERROR(AE!H66,"") -> 10200207.14 | F66: =IFERROR(AE!I66,"") -> 525351.21 | G66: =IFERROR(AE!J66,"") -> 37168060.79 | H66: =IFERROR(AE!K66,"") -> 16853968.47 | I66: =IFERROR(AE!L65,"") -> 0
A67: Outros investimentos realizados pelo prestador de serviços | B67: FN025 | C67: Anual | D67: R$/ano | E67: =AE!H67 -> 0 | F67: =AE!I67 -> 0 | G67: =AE!J67 -> 0 | H67: =AE!K67 -> 0 | I67: =AE!L66 -> 0
A68: Investimento com recursos próprios | B68: FN030 | C68: Anual | D68: R$/ano | E68: =IFERROR(AE!H68,"") -> 12348336.55 | F68: =IFERROR(AE!I68,"") -> 1175340.54 | G68: =IFERROR(AE!J68,"") -> 0 | H68: =IFERROR(AE!K68,"") -> 0 | I68: =IFERROR(AE!L67,"") -> 0
A69: Investimento com recursos onerosos | B69: FN031 | C69: Anual | D69: R$/ano | E69: =IFERROR(AE!H69,"") -> 0 | F69: =IFERROR(AE!I69,"") -> 0 | G69: =IFERROR(AE!J69,"") -> 48427968.44 | H69: =IFERROR(AE!K69,"") -> 19458578.73 | I69: =IFERROR(AE!L68,"") -> 0
A70: Investimento com recursos não onerosos | B70: FN032 | C70: Anual | D70: R$/ano | E70: =IFERROR(AE!H70,"") -> 0 | F70: =IFERROR(AE!I70,"") -> 0 | G70: =IFERROR(AE!J70,"") -> 0 | H70: =IFERROR(AE!K70,"") -> 0 | I70: =IFERROR(AE!L69,"") -> 0
A71: Investimentos totais | B71: FN033 | C71: Anual | D71: R$/ano | E71: =IFERROR(AE!H71,"") -> 12348336.55 | F71: =IFERROR(AE!I71,"") -> 1175340.54 | G71: =IFERROR(AE!J71,"") -> 48427968.44 | H71: =IFERROR(AE!K71,"") -> 19458578.73 | I71: =IFERROR(AE!L70,"") -> 0
A73: Índice de Coleta de Esgoto | B73: IN015 | C73: Anual | D73: Percentual | E73: =((AE!H73)/(AE!H18))*100 -> 58.95232522 | F73: =((AE!I73)/(AE!I18))*100 -> 60.02832548 | G73: =((AE!J73)/(AE!J18))*100 -> 56.35469531 | H73: =((AE!K73)/(AE!K18))*100 -> 72.37226277
A74: Índice de Tratamento de Esgoto | B74: IN016 | C74: Anual | D74: Percentual | E74: =((AE!H73)/(AE!H74))*100 -> 100 | F74: =((AE!I73)/(AE!I74))*100 -> 100 | G74: =((AE!J73)/(AE!J74))*100 -> 100 | H74: =((AE!K73)/(AE!K74))*100 -> 100
A75: Índice de Atendimento Urbano de Esgoto Referido ao Município Atendido com Água | B75: IN024 | C75: Anual | D75: Percentual | E75: =((AE!H76)/(AE!H8))*100 -> 77.99956425 | F75: =((AE!I76)/(AE!I8))*100 -> 77.99863809 | G75: =((AE!J76)/(AE!J8))*100 -> 80.74706778 | H75: =((AE!K76)/(AE!K8))*100 -> 80.50407371
A76: Índice de Esgoto Tratado Referido à Água Consumida | B76: IN046 | C76: Anual | D76: Percentual | E76: =((AE!H74)/(AE!H18))*100 -> 58.95232522 | F76: =((AE!I74)/(AE!I18))*100 -> 60.02832548 | G76: =((AE!J74)/(AE!J18))*100 -> 56.35469531 | H76: =((AE!K74)/(AE!K18))*100 -> 72.37226277
A77: Índice de Atendimento Urbano de Esgoto Referido ao Município Atendido com Esgoto | B77: IN047 | C77: Anual | D77: Percentual | E77: =((AE!H76)/(AE!H8))*100 -> 77.99956425 | F77: =((AE!I76)/(AE!I8))*100 -> 77.99863809 | G77: =((AE!J76)/(AE!J8))*100 -> 80.74706778 | H77: =((AE!K76)/(AE!K8))*100 -> 80.50407371
A78: Índice de Atendimento Total de Esgoto Referido ao Município Atendido com Água | B78: IN056 | C78: Anual | D78: Percentual | E78: =((AE!H95)/(AE!H5))*100 -> 76.06190858 | F78: =((AE!I95)/(AE!I5))*100 -> 76.06007905 | G78: =((AE!J95)/(AE!J5))*100 -> 78.7405071 | H78: =((AE!K95)/(AE!K5))*100 -> 78.50396507
A79: Tarifa Média de Esgoto | B79: IN006 | C79: Anual | D79: R$/m³ | E79: =(((AE!H45)/(AE!H96-AE!H97))/1000) -> 6.794085615 | F79: =(((AE!I45)/(AE!I96-AE!I97))/1000) -> 6.764710693 | G79: =(((AE!J45)/(AE!J96-AE!J97))/1000) -> 6.806720396 | H79: =(((AE!K45)/(AE!K96-AE!K97))/1000) -> 6.526573591
A80: Índice de perdas por ligação | B80: IN051 | C80: Anual | D80: l/dia/lig. | E80: =IFERROR(((AE!H14+AE!H21-AE!H18-AE!H17)/AE!H10)*(1000000/365),"") -> 251.9753987 | F80: =IFERROR(((AE!I14+AE!I21-AE!I18-AE!I17)/AE!I10)*(1000000/365),"") -> 236.1063948 | G80: =IFERROR(((AE!J14+AE!J21-AE!J18-AE!J17)/AE!J10)*(1000000/365),"") -> 140.50857 | H80: =IFERROR(((AE!K14+AE!K21-AE!K18-AE!K17)/AE!K10)*(1000000/365),"") -> 238.1959517
A81: Extensão da rede de esgoto por ligação | B81: IN021 | C81: Anual | D81: m/lig. | E81: =((AE!H72)/(AE!H75))*1000 -> 22.56892498 | F81: =((AE!I72)/(AE!I75))*1000 -> 21.17505514 | G81: =((AE!J72)/(AE!J75))*1000 -> 25.91719464 | H81: =((AE!K72)/(AE!K75))*1000 -> 20.7031339
A82: Índice de consumo de energia elétrica em sistemas de esgotamento sanitário | B82: IN059 | C82: Anual | D82: kWh/m³ | E82: =(AE!H77)/(AE!H73) -> 0.3370793407 | F82: =(AE!I77)/(AE!I73) -> 0.3255856806 | G82: =(AE!J77)/(AE!J73) -> 0.3280198778 | H82: =(AE!K77)/(AE!K73) -> 0.2908724155
A83: Economias atingidas por intermitências | B83: IN073 | C83: Anual | D83: econ./interrup. | E83: =IFERROR(AE!H78/AE!H79,"") ->  | F83: =IFERROR(AE!I78/AE!I79,"") ->  | G83: =IFERROR(AE!J78/AE!J79,"") ->  | H83: =IFERROR(AE!K78/AE!K79,"") -> 
A84: Duração média das intermitências | B84: IN074 | C84: Anual | D84: horas/interrup. | E84: =IFERROR(AE!H80/AE!H79,"") ->  | F84: =IFERROR(AE!I80/AE!I79,"") ->  | G84: =IFERROR(AE!J80/AE!J79,"") ->  | H84: =IFERROR(AE!K80/AE!K79,"") -> 
A85: Duração média dos reparos de extravasamentos de esgotos | B85: IN077 | C85: Anual | D85: horas/extrav. | E85: =IFERROR(AE!H82/AE!H81,"") -> 0.5508474576 | F85: =IFERROR(AE!I82/AE!I81,"") -> 1.06587963 | G85: =IFERROR(AE!J82/AE!J81,"") -> 1.202 | H85: =IFERROR(AE!K82/AE!K81,"") -> 1.017241379
A86: Extravasamentos de esgotos por extensão de rede | B86: IN082 | C86: Anual | D86: extrav./km | E86: =IFERROR(AE!H81/AE!H72,"") -> 1.117424242 | F86: =IFERROR(AE!I81/AE!I72,"") -> 2.045454545 | G86: =IFERROR(AE!J81/AE!J72,"") -> 1.59181353 | H86: =IFERROR(AE!K81/AE!K72,"") -> 1.596300985
A87: Índice de despesas por consumo de energia elétrica nos sistemas de água e esgotos | B87: IN060 | C87: Anual | D87: R$/kWh | E87: =IFERROR((AE!H43/(AE!H24+AE!H77))*(1/1000),"") -> 0.5801295603 | F87: =IFERROR((AE!I43/(AE!I24+AE!I77))*(1/1000),"") -> 0.5951934357 | G87: =IFERROR((AE!J43/(AE!J24+AE!J77))*(1/1000),"") -> 0.6493785805 | H87: =IFERROR((AE!K43/(AE!K24+AE!K77))*(1/1000),"") -> 0.644870927
A88: Liquidez corrente | B88: IN061 | C88: Anual | D88: - | E88: =IFERROR(AE!H83/AE!H84,"") -> 3.919801571 | F88: =IFERROR(AE!I83/AE!I84,"") -> 0.2625673949 | G88: =IFERROR(AE!J83/AE!J84,"") -> 1.085001611 | H88: =IFERROR(AE!K83/AE!K84,"") -> 0.5407152734
A89: Liquidez geral | B89: IN062 | C89: Anual | D89: - | E89: =IFERROR((AE!H83+AE!H86)/(AE!H85+AE!H84),"") -> 0.2187876853 | F89: =IFERROR((AE!I83+AE!I86)/(AE!I85+AE!I84),"") -> 0.09235218373 | G89: =IFERROR((AE!J83+AE!J86)/(AE!J85+AE!J84),"") -> 0.1687138519 | H89: =IFERROR((AE!K83+AE!K86)/(AE!K85+AE!K84),"") -> 0.1019316155
A90: Grau de endividamento | B90: IN063 | C90: Anual | D90: - | E90: =IFERROR((AE!H85+AE!H84+AE!H88)/AE!H87,"") -> 0.4728593112 | F90: =IFERROR((AE!I85+AE!I84+AE!I88)/AE!I87,"") -> 0.731776264 | G90: =IFERROR((AE!J85+AE!J84+AE!J88)/AE!J87,"") -> 0.8158647827 | H90: =IFERROR((AE!K85+AE!K84+AE!K88)/AE!K87,"") -> 0.8235759865
A91: Margem operacional com depreciação | B91: IN064 | C91: Anual | D91: percentual | E91: =IFERROR((AE!H90/AE!H89)*100,"") -> 48.98579708 | F91: =IFERROR((AE!I90/AE!I89)*100,"") -> 43.45922814 | G91: =IFERROR((AE!J90/AE!J89)*100,"") -> 27.28876968 | H91: =IFERROR((AE!K90/AE!K89)*100,"") -> 27.79652425
A92: Margem operacional sem depreciação | B92: IN068 | C92: Anual | D92: percentual | E92: =IFERROR((AE!H91/AE!H89)*100,"") -> 4.936331728 | F92: =IFERROR((AE!I91/AE!I89)*100,"") -> 8.164186722 | G92: =IFERROR((AE!J91/AE!J89)*100,"") -> 0.6370438343 | H92: =IFERROR((AE!K91/AE!K89)*100,"") -> -9.099694248
A93: Margem líquida com depreciação | B93: IN065 | C93: Anual | D93: percentual | E93: =IFERROR((AE!H92/AE!H89)*100,"") -> 4.936331728 | F93: =IFERROR((AE!I92/AE!I89)*100,"") -> 8.164186722 | G93: =IFERROR((AE!J92/AE!J89)*100,"") -> 0.6370438343 | H93: =IFERROR((AE!K92/AE!K89)*100,"") -> -9.099694248
A94: Margem líquida sem depreciação | B94: IN069 | C94: Anual | D94: percentual | E94: =IFERROR((AE!H93/AE!H89)*100,"") -> 11.20112644 | F94: =IFERROR((AE!I93/AE!I89)*100,"") -> 17.09983903 | G94: =IFERROR((AE!J93/AE!J89)*100,"") -> 11.97501235 | H94: =IFERROR((AE!K93/AE!K89)*100,"") -> 3.588232498
A95: Retorno sobre o patrimônio líquido | B95: IN066 | C95: Anual | D95: percentual | E95: =IFERROR((AE!H92/(AE!H94-AE!H92))*100,"") -> 7.463515473 | F95: =IFERROR((AE!I92/(AE!I94-AE!I92))*100,"") -> 13.6052864 | G95: =IFERROR((AE!J92/(AE!J94-AE!J92))*100,"") -> 1.042087639 | H95: =IFERROR((AE!K92/(AE!K94-AE!K92))*100,"") -> -14.50029031
A96: Composição de exigibilidades | B96: IN067 | C96: Anual | D96: percentual | E96: =IFERROR((AE!H84/(AE!H85+AE!H84))*100,"") -> 4.289919841 | F96: =IFERROR((AE!I84/(AE!I85+AE!I84))*100,"") -> 33.86633737 | G96: =IFERROR((AE!J84/(AE!J85+AE!J84))*100,"") -> 14.01048417 | H96: =IFERROR((AE!K84/(AE!K85+AE!K84))*100,"") -> 16.92472139
A98: Indicador de Universalização em Abastecimento de Água (adaptado de Norma de Referência ANA nº 2) | B98: NdS01 | C98: Anual | D98: Percentual | E98: =IFERROR(((AE!H102+AE!H103)/AE!H108)*100,"") -> 100 | F98: =IFERROR(((AE!I102+AE!I103)/AE!I108)*100,"") -> 100 | G98: =IFERROR(((AE!J102+AE!J103)/AE!J108)*100,"") -> 100 | H98: =IFERROR(((AE!K102+AE!K103)/AE!K108)*100,"") -> 100 | I98: =IFERROR(((AE!L102+AE!L103)/AE!L108)*100,"") -> 
A99: Indicador de Universalização em Coleta de Esgoto (adaptado de Norma de Referência ANA nº 2) | B99: NdS02 | C99: Anual | D99: Percentual | E99: =IFERROR(((AE!H104+AE!H105)/AE!H108)*100,"") -> 63.94512037 | F99: =IFERROR(((AE!I104+AE!I105)/AE!I108)*100,"") -> 65.10747435 | G99: =IFERROR(((AE!J104+AE!J105)/AE!J108)*100,"") -> 79.61747741 | H99: =IFERROR(((AE!K104+AE!K105)/AE!K108)*100,"") -> 78.20297664 | I99: =IFERROR(((AE!L104+AE!L105)/AE!L108)*100,"") -> 
A100: Indicador de Universalização em Tratamento de Esgoto (adaptado de Norma de Referência ANA nº 2) | B100: NdS03 | C100: Anual | D100: Percentual | E100: =IFERROR(((AE!H106+AE!H107)/AE!H108)*100,"") -> 63.94512037 | F100: =IFERROR(((AE!I106+AE!I107)/AE!I108)*100,"") -> 65.10747435 | G100: =IFERROR(((AE!J106+AE!J107)/AE!J108)*100,"") -> 79.61747741 | H100: =IFERROR(((AE!K106+AE!K107)/AE!K108)*100,"") -> 78.20297664 | I100: =IFERROR(((AE!L105+AE!L106)/AE!L107)*100,"") -> 

Sheet AE (hidden)
H3: =IFERROR('Indicadores - Água e esgoto'!A2,"") -> 2017 | I3: =H3+1 -> 2018 | J3: =I3+1 -> 2019 | K3: =J3+1 -> 2020 | L3: =K3+1 -> 2021
A4: AG001 | B4: População total atendida com abastecimento de água | G4: 3 | H4: =IFERROR(HLOOKUP(H$3,'Base de Dados - Água e esgoto'!$H$2:$AB$489,$G4,),"") -> 59667 | I4: =IFERROR(HLOOKUP(I$3,'Base de Dados - Água e esgoto'!$H$2:$AB$489,$G4,),"") -> 61678 | J4: =IFERROR(HLOOKUP(J$3,'Base de Dados - Água e esgoto'!$H$2:$AB$489,$G4,),"") -> 64689 | K4: =IFERROR(HLOOKUP(K$3,'Base de Dados - Água e esgoto'!$H$2:$AB$489,$G4,),"") -> 67338 | L4: =IFERROR(HLOOKUP(L$3,'Base de Dados - Água e esgoto'!$H$2:$AB$489,$G4,),"") -> 0
A5: GE12a | B5: População residente total, segundo o IBGE | G5: 4 | H5: =IFERROR(HLOOKUP(H$3,'Base de Dados - Água e esgoto'!$H$2:$AB$489,$G5,),"") -> 61187 | I5: =IFERROR(HLOOKUP(I$3,'Base de Dados - Água e esgoto'!$H$2:$AB$489,$G5,),"") -> 63250 | J5: =IFERROR(HLOOKUP(J$3,'Base de Dados - Água e esgoto'!$H$2:$AB$489,$G5,),"") -> 65312 | K5: =IFERROR(HLOOKUP(K$3,'Base de Dados - Água e esgoto'!$H$2:$AB$489,$G5,),"") -> 67338 | L5: =IFERROR(HLOOKUP(L$3,'Base de Dados - Água e esgoto'!$H$2:$AB$489,$G5,),"") -> 0
A6: AG026 | B6: População urbana atendida com abastecimento de água | G6: 5 | H6: =IFERROR(HLOOKUP(H$3,'Base de Dados - Água e esgoto'!$H$2:$AB$489,$G6,),"") -> 59667 | I6: =IFERROR(HLOOKUP(I$3,'Base de Dados - Água e esgoto'!$H$2:$AB$489,$G6,),"") -> 61678 | J6: =IFERROR(HLOOKUP(J$3,'Base de Dados - Água e esgoto'!$H$2:$AB$489,$G6,),"") -> 63689 | K6: =IFERROR(HLOOKUP(K$3,'Base de Dados - Água e esgoto'!$H$2:$AB$489,$G6,),"") -> 65665 | L6: =IFERROR(HLOOKUP(L$3,'Base de Dados - Água e esgoto'!$H$2:$AB$489,$G6,),"") -> 0
A7: GE06a | B7: População urbana do(s) município (s) atendido (s) com abastecimento de água | G7: 6 | H7: =IFERROR(HLOOKUP(H$3,'Base de Dados - Água e esgoto'!$H$2:$AB$489,$G7,),"") -> 59667 | I7: =IFERROR(HLOOKUP(I$3,'Base de Dados - Água e esgoto'!$H$2:$AB$489,$G7,),"") -> 61678 | J7: =IFERROR(HLOOKUP(J$3,'Base de Dados - Água e esgoto'!$H$2:$AB$489,$G7,),"") -> 63689 | K7: =IFERROR(HLOOKUP(K$3,'Base de Dados - Água e esgoto'!$H$2:$AB$489,$G7,),"") -> 65665 | L7: =IFERROR(HLOOKUP(L$3,'Base de Dados - Água e esgoto'!$H$2:$AB$489,$G7,),"") -> 0
A8: GE06b | B8: População urbana do(s) município (s) atendido (s) com esgotamento sanitário | G8: 7 | H8: =IFERROR(HLOOKUP(H$3,'Base de Dados - Água e esgoto'!$H$2:$AB$489,$G8,),"") -> 59667 | I8: =IFERROR(HLOOKUP(I$3,'Base de Dados - Água e esgoto'!$H$2:$AB$489,$G8,),"") -> 61678 | J8: =IFERROR(HLOOKUP(J$3,'Base de Dados - Água e esgoto'!$H$2:$AB$489,$G8,),"") -> 63689 | K8: =IFERROR(HLOOKUP(K$3,'Base de Dados - Água e esgoto'!$H$2:$AB$489,$G8,),"") -> 65665 | L8: =IFERROR(HLOOKUP(L$3,'Base de Dados - Água e esgoto'!$H$2:$AB$489,$G8,),"") -> 0
A9: AG003 | B9: Quantidade de economias ativas de água | G9: 8 | H9: =IFERROR(HLOOKUP(H$3,'Base de Dados - Água e esgoto'!$H$2:$AB$489,$G9,),"") -> 43067 | I9: =IFERROR(HLOOKUP(I$3,'Base de Dados - Água e esgoto'!$H$2:$AB$489,$G9,),"") -> 45594 | J9: =IFERROR(HLOOKUP(J$3,'Base de Dados - Água e esgoto'!$H$2:$AB$489,$G9,),"") -> 47792 | K9: =IFERROR(HLOOKUP(K$3,'Base de Dados - Água e esgoto'!$H$2:$AB$489,$G9,),"") -> 50353 | L9: =IFERROR(HLOOKUP(L$3,'Base de Dados - Água e esgoto'!$H$2:$AB$489,$G9,),"") -> 0
A10: AG002 | B10: Quantidade de ligações ativas de água | G10: 9 | H10: =IFERROR(HLOOKUP(H$3,'Base de Dados - Água e esgoto'!$H$2:$AB$489,$G10,),"") -> 14424 | I10: =IFERROR(HLOOKUP(I$3,'Base de Dados - Água e esgoto'!$H$2:$AB$489,$G10,),"") -> 14684 | J10: =IFERROR(HLOOKUP(J$3,'Base de Dados - Água e esgoto'!$H$2:$AB$489,$G10,),"") -> 14911 | K10: =IFERROR(HLOOKUP(K$3,'Base de Dados - Água e esgoto'!$H$2:$AB$489,$G10,),"") -> 15305 | L10: =IFERROR(HLOOKUP(L$3,'Base de Dados - Água e esgoto'!$H$2:$AB$489,$G10,),"") -> 0
A11: AG013 | B11: Quantidade de economias residenciais ativas de água | G11: 10 | H11: =IFERROR(HLOOKUP(H$3,'Base de Dados - Água e esgoto'!$H$2:$AB$489,$G11,),"") -> 38630 | I11: =IFERROR(HLOOKUP(I$3,'Base de Dados - Água e esgoto'!$H$2:$AB$489,$G11,),"") -> 40940 | J11: =IFERROR(HLOOKUP(J$3,'Base de Dados - Água e esgoto'!$H$2:$AB$489,$G11,),"") -> 42821 | K11: =IFERROR(HLOOKUP(K$3,'Base de Dados - Água e esgoto'!$H$2:$AB$489,$G11,),"") -> 45286 | L11: =IFERROR(HLOOKUP(L$3,'Base de Dados - Água e esgoto'!$H$2:$AB$489,$G11,),"") -> 0
A12: AG012 | B12: Volume de água macromedido | G12: 11 | H12: =IFERROR(HLOOKUP(H$3,'Base de Dados - Água e esgoto'!$H$2:$AB$489,$G12,),"") -> 0 | I12: =IFERROR(HLOOKUP(I$3,'Base de Dados - Água e esgoto'!$H$2:$AB$489,$G12,),"") -> 0 | J12: =IFERROR(HLOOKUP(J$3,'Base de Dados - Água e esgoto'!$H$2:$AB$489,$G12,),"") -> 0 | K12: =IFERROR(HLOOKUP(K$3,'Base de Dados - Água e esgoto'!$H$2:$AB$489,$G12,),"") -> 0 | L12: =IFERROR(HLOOKUP(L$3,'Base de Dados - Água e esgoto'!$H$2:$AB$489,$G12,),"") -> 0
A13: AG019 | B13: Volume de água tratada exportada | G13: 12 | H13: =IFERROR(HLOOKUP(H$3,'Base de Dados - Água e esgoto'!$H$2:$AB$489,$G13,),"") -> 0 | I13: =IFERROR(HLOOKUP(I$3,'Base de Dados - Água e esgoto'!$H$2:$AB$489,$G13,),"") -> 0 | J13: =IFERROR(HLOOKUP(J$3,'Base de Dados - Água e esgoto'!$H$2:$AB$489,$G13,),"") -> 0 | K13: =IFERROR(HLOOKUP(K$3,'Base de Dados - Água e esgoto'!$H$2:$AB$489,$G13,),"") -> 0 | L13: =IFERROR(HLOOKUP(L$3,'Base de Dados - Água e esgoto'!$H$2:$AB$489,$G13,),"") -> 0
A14: AG006 | B14: Volume de água produzida | G14: 13 | H14: =IFERROR(HLOOKUP(H$3,'Base de Dados - Água e esgoto'!$H$2:$AB$489,$G14,),"") -> 5752.2 | I14: =IFERROR(HLOOKUP(I$3,'Base de Dados - Água e esgoto'!$H$2:$AB$489,$G14,),"") -> 5876.14 | J14: =IFERROR(HLOOKUP(J$3,'Base de Dados - Água e esgoto'!$H$2:$AB$489,$G14,),"") -> 6163.72 | K14: =IFERROR(HLOOKUP(K$3,'Base de Dados - Água e esgoto'!$H$2:$AB$489,$G14,),"") -> 6810.64 | L14: =IFERROR(HLOOKUP(L$3,'Base de Dados - Água e esgoto'!$H$2:$AB$489,$G14,),"") -> 0
A15: AG004 | B15: Quantidade de ligações ativas de água micromedidas | G15: 14 | H15: =IFERROR(HLOOKUP(H$3,'Base de Dados - Água e esgoto'!$H$2:$AB$489,$G15,),"") -> 14424 | I15: =IFERROR(HLOOKUP(I$3,'Base de Dados - Água e esgoto'!$H$2:$AB$489,$G15,),"") -> 14684 | J15: =IFERROR(HLOOKUP(J$3,'Base de Dados - Água e esgoto'!$H$2:$AB$489,$G15,),"") -> 14911 | K15: =IFERROR(HLOOKUP(K$3,'Base de Dados - Água e esgoto'!$H$2:$AB$489,$G15,),"") -> 15305 | L15: =IFERROR(HLOOKUP(L$3,'Base de Dados - Água e esgoto'!$H$2:$AB$489,$G15,),"") -> 0
A16: AG008 | B16: Volume de água micromedido | G16: 15 | H16: =IFERROR(HLOOKUP(H$3,'Base de Dados - Água e esgoto'!$H$2:$AB$489,$G16,),"") -> 4425.61 | I16: =IFERROR(HLOOKUP(I$3,'Base de Dados - Água e esgoto'!$H$2:$AB$489,$G16,),"") -> 4610.69 | J16: =IFERROR(HLOOKUP(J$3,'Base de Dados - Água e esgoto'!$H$2:$AB$489,$G16,),"") -> 5399 | K16: =IFERROR(HLOOKUP(K$3,'Base de Dados - Água e esgoto'!$H$2:$AB$489,$G16,),"") -> 5480 | L16: =IFERROR(HLOOKUP(L$3,'Base de Dados - Água e esgoto'!$H$2:$AB$489,$G16,),"") -> 0
A17: AG024 | B17: Volume de água de serviços | G17: 16 | H17: =IFERROR(HLOOKUP(H$3,'Base de Dados - Água e esgoto'!$H$2:$AB$489,$G17,),"") -> 0 | I17: =IFERROR(HLOOKUP(I$3,'Base de Dados - Água e esgoto'!$H$2:$AB$489,$G17,),"") -> 0 | J17: =IFERROR(HLOOKUP(J$3,'Base de Dados - Água e esgoto'!$H$2:$AB$489,$G17,),"") -> 0 | K17: =IFERROR(HLOOKUP(K$3,'Base de Dados - Água e esgoto'!$H$2:$AB$489,$G17,),"") -> 0 | L17: =IFERROR(HLOOKUP(L$3,'Base de Dados - Água e esgoto'!$H$2:$AB$489,$G17,),"") -> 0
A18: AG010 | B18: Volume de água consumido | G18: 17 | H18: =IFERROR(HLOOKUP(H$3,'Base de Dados - Água e esgoto'!$H$2:$AB$489,$G18,),"") -> 4425.61 | I18: =IFERROR(HLOOKUP(I$3,'Base de Dados - Água e esgoto'!$H$2:$AB$489,$G18,),"") -> 4610.69 | J18: =IFERROR(HLOOKUP(J$3,'Base de Dados - Água e esgoto'!$H$2:$AB$489,$G18,),"") -> 5399 | K18: =IFERROR(HLOOKUP(K$3,'Base de Dados - Água e esgoto'!$H$2:$AB$489,$G18,),"") -> 5480 | L18: =IFERROR(HLOOKUP(L$3,'Base de Dados - Água e esgoto'!$H$2:$AB$489,$G18,),"") -> 0
A19: AG027 | B19: Volume de água fluoretado | G19: 18 | H19: =IFERROR(HLOOKUP(H$3,'Base de Dados - Água e esgoto'!$H$2:$AB$489,$G19,),"") -> 5752.2 | I19: =IFERROR(HLOOKUP(I$3,'Base de Dados - Água e esgoto'!$H$2:$AB$489,$G19,),"") -> 5876.14 | J19: =IFERROR(HLOOKUP(J$3,'Base de Dados - Água e esgoto'!$H$2:$AB$489,$G19,),"") -> 6163.72 | K19: =IFERROR(HLOOKUP(K$3,'Base de Dados - Água e esgoto'!$H$2:$AB$489,$G19,),"") -> 6810.64 | L19: =IFERROR(HLOOKUP(L$3,'Base de Dados - Água e esgoto'!$H$2:$AB$489,$G19,),"") -> 0
A20: AG006 | B20: Volume de água produzido | G20: 19 | H20: =IFERROR(HLOOKUP(H$3,'Base de Dados - Água e esgoto'!$H$2:$AB$489,$G20,),"") -> 5752.2 | I20: =IFERROR(HLOOKUP(I$3,'Base de Dados - Água e esgoto'!$H$2:$AB$489,$G20,),"") -> 5876.14 | J20: =IFERROR(HLOOKUP(J$3,'Base de Dados - Água e esgoto'!$H$2:$AB$489,$G20,),"") -> 6163.72 | K20: =IFERROR(HLOOKUP(K$3,'Base de Dados - Água e esgoto'!$H$2:$AB$489,$G20,),"") -> 6810.64 | L20: =IFERROR(HLOOKUP(L$3,'Base de Dados - Água e esgoto'!$H$2:$AB$489,$G20,),"") -> 0
A21: AG018 | B21: Volume de água tratada importada | G21: 20 | H21: =IFERROR(HLOOKUP(H$3,'Base de Dados - Água e esgoto'!$H$2:$AB$489,$G21,),"") -> 0 | I21: =IFERROR(HLOOKUP(I$3,'Base de Dados - Água e esgoto'!$H$2:$AB$489,$G21,),"") -> 0 | J21: =IFERROR(HLOOKUP(J$3,'Base de Dados - Água e esgoto'!$H$2:$AB$489,$G21,),"") -> 0 | K21: =IFERROR(HLOOKUP(K$3,'Base de Dados - Água e esgoto'!$H$2:$AB$489,$G21,),"") -> 0 | L21: =IFERROR(HLOOKUP(L$3,'Base de Dados - Água e esgoto'!$H$2:$AB$489,$G21,),"") -> 0
A22: AG014 | B22: Quantidade de economias ativas de água micromedidas | G22: 21 | H22: =IFERROR(HLOOKUP(H$3,'Base de Dados - Água e esgoto'!$H$2:$AB$489,$G22,),"") -> 43067 | I22: =IFERROR(HLOOKUP(I$3,'Base de Dados - Água e esgoto'!$H$2:$AB$489,$G22,),"") -> 45594 | J22: =IFERROR(HLOOKUP(J$3,'Base de Dados - Água e esgoto'!$H$2:$AB$489,$G22,),"") -> 47792 | K22: =IFERROR(HLOOKUP(K$3,'Base de Dados - Água e esgoto'!$H$2:$AB$489,$G22,),"") -> 50353 | L22: =IFERROR(HLOOKUP(L$3,'Base de Dados - Água e esgoto'!$H$2:$AB$489,$G22,),"") -> 0
A23: AG011 | B23: Volume de água faturado | G23: 22 | H23: =IFERROR(HLOOKUP(H$3,'Base de Dados - Água e esgoto'!$H$2:$AB$489,$G23,),"") -> 4425.61 | I23: =IFERROR(HLOOKUP(I$3,'Base de Dados - Água e esgoto'!$H$2:$AB$489,$G23,),"") -> 4610.69 | J23: =IFERROR(HLOOKUP(J$3,'Base de Dados - Água e esgoto'!$H$2:$AB$489,$G23,),"") -> 5399 | K23: =IFERROR(HLOOKUP(K$3,'Base de Dados - Água e esgoto'!$H$2:$AB$489,$G23,),"") -> 5480 | L23: =IFERROR(HLOOKUP(L$3,'Base de Dados - Água e esgoto'!$H$2:$AB$489,$G23,),"") -> 0
A24: AG028 | B24: Consumo total de energia elétrica em sistemas de abastecimento de água | G24: 23 | H24: =IFERROR(HLOOKUP(H$3,'Base de Dados - Água e esgoto'!$H$2:$AB$489,$G24,),"") -> 1188.94 | I24: =IFERROR(HLOOKUP(I$3,'Base de Dados - Água e esgoto'!$H$2:$AB$489,$G24,),"") -> 1445.18 | J24: =IFERROR(HLOOKUP(J$3,'Base de Dados - Água e esgoto'!$H$2:$AB$489,$G24,),"") -> 1796.99 | K24: =IFERROR(HLOOKUP(K$3,'Base de Dados - Água e esgoto'!$H$2:$AB$489,$G24,),"") -> 1901.57 | L24: =IFERROR(HLOOKUP(L$3,'Base de Dados - Água e esgoto'!$H$2:$AB$489,$G24,),"") -> 0
A25: AG005 | B25: Extensão da rede de água | G25: 24 | H25: =IFERROR(HLOOKUP(H$3,'Base de Dados - Água e esgoto'!$H$2:$AB$489,$G25,),"") -> 283.38 | I25: =IFERROR(HLOOKUP(I$3,'Base de Dados - Água e esgoto'!$H$2:$AB$489,$G25,),"") -> 284.45 | J25: =IFERROR(HLOOKUP(J$3,'Base de Dados - Água e esgoto'!$H$2:$AB$489,$G25,),"") -> 291.17 | K25: =IFERROR(HLOOKUP(K$3,'Base de Dados - Água e esgoto'!$H$2:$AB$489,$G25,),"") -> 296.54 | L25: =IFERROR(HLOOKUP(L$3,'Base de Dados - Água e esgoto'!$H$2:$AB$489,$G25,),"") -> 0
A26: AG021 | B26: Quantidade de ligações totais de água | G26: 25 | H26: =IFERROR(HLOOKUP(H$3,'Base de Dados - Água e esgoto'!$H$2:$AB$489,$G26,),"") -> 14424 | I26: =IFERROR(HLOOKUP(I$3,'Base de Dados - Água e esgoto'!$H$2:$AB$489,$G26,),"") -> 14684 | J26: =IFERROR(HLOOKUP(J$3,'Base de Dados - Água e esgoto'!$H$2:$AB$489,$G26,),"") -> 14911 | K26: =IFERROR(HLOOKUP(K$3,'Base de Dados - Água e esgoto'!$H$2:$AB$489,$G26,),"") -> 15355 | L26: =IFERROR(HLOOKUP(L$3,'Base de Dados - Água e esgoto'!$H$2:$AB$489,$G26,),"") -> 0
A27: FN017 | B27: Despesas totais com os serviços | G27: 26 | H27: =IFERROR(HLOOKUP(H$3,'Base de Dados - Água e esgoto'!$H$2:$AB$489,$G27,),"") -> 34654653.61 | I27: =IFERROR(HLOOKUP(I$3,'Base de Dados - Água e esgoto'!$H$2:$AB$489,$G27,),"") -> 44494355.79 | J27: =IFERROR(HLOOKUP(J$3,'Base de Dados - Água e esgoto'!$H$2:$AB$489,$G27,),"") -> 48755612.54 | K27: =IFERROR(HLOOKUP(K$3,'Base de Dados - Água e esgoto'!$H$2:$AB$489,$G27,),"") -> 51538751.3 | L27: =IFERROR(HLOOKUP(L$3,'Base de Dados - Água e esgoto'!$H$2:$AB$489,$G27,),"") -> 0
A28: ES007 | B28: Volume total faturado de esgoto | G28: 27 | H28: =IFERROR(HLOOKUP(H$3,'Base de Dados - Água e esgoto'!$H$2:$AB$489,$G28,),"") -> 2609 | I28: =IFERROR(HLOOKUP(I$3,'Base de Dados - Água e esgoto'!$H$2:$AB$489,$G28,),"") -> 2767.72 | J28: =IFERROR(HLOOKUP(J$3,'Base de Dados - Água e esgoto'!$H$2:$AB$489,$G28,),"") -> 3042.59 | K28: =IFERROR(HLOOKUP(K$3,'Base de Dados - Água e esgoto'!$H$2:$AB$489,$G28,),"") -> 3966 | L28: =IFERROR(HLOOKUP(L$3,'Base de Dados - Água e esgoto'!$H$2:$AB$489,$G28,),"") -> 0
A29: FN015 | B29: Despesas de exploração | G29: 28 | H29: =IFERROR(HLOOKUP(H$3,'Base de Dados - Água e esgoto'!$H$2:$AB$489,$G29,),"") -> 22199985.32 | I29: =IFERROR(HLOOKUP(I$3,'Base de Dados - Água e esgoto'!$H$2:$AB$489,$G29,),"") -> 24354123.76 | J29: =IFERROR(HLOOKUP(J$3,'Base de Dados - Água e esgoto'!$H$2:$AB$489,$G29,),"") -> 25739041.13 | K29: =IFERROR(HLOOKUP(K$3,'Base de Dados - Água e esgoto'!$H$2:$AB$489,$G29,),"") -> 24259333.99 | L29: =IFERROR(HLOOKUP(L$3,'Base de Dados - Água e esgoto'!$H$2:$AB$489,$G29,),"") -> 0
A30: ES003 | B30: Quantidade de economias ativas de esgoto | G30: 29 | H30: =IFERROR(HLOOKUP(H$3,'Base de Dados - Água e esgoto'!$H$2:$AB$489,$G30,),"") -> 27403 | I30: =IFERROR(HLOOKUP(I$3,'Base de Dados - Água e esgoto'!$H$2:$AB$489,$G30,),"") -> 29744 | J30: =IFERROR(HLOOKUP(J$3,'Base de Dados - Água e esgoto'!$H$2:$AB$489,$G30,),"") -> 34093 | K30: =IFERROR(HLOOKUP(K$3,'Base de Dados - Água e esgoto'!$H$2:$AB$489,$G30,),"") -> 39529 | L30: =IFERROR(HLOOKUP(L$3,'Base de Dados - Água e esgoto'!$H$2:$AB$489,$G30,),"") -> 0
A31: FN001 | B31: Receita Operacional direta total | G31: 30 | H31: =IFERROR(HLOOKUP(H$3,'Base de Dados - Água e esgoto'!$H$2:$AB$489,$G31,),"") -> 48002819.56 | I31: =IFERROR(HLOOKUP(I$3,'Base de Dados - Água e esgoto'!$H$2:$AB$489,$G31,),"") -> 50146897.48 | J31: =IFERROR(HLOOKUP(J$3,'Base de Dados - Água e esgoto'!$H$2:$AB$489,$G31,),"") -> 54965093.02 | K31: =IFERROR(HLOOKUP(K$3,'Base de Dados - Água e esgoto'!$H$2:$AB$489,$G31,),"") -> 62100004.26 | L31: =IFERROR(HLOOKUP(L$3,'Base de Dados - Água e esgoto'!$H$2:$AB$489,$G31,),"") -> 0
A32: FN002 | B32: Receita operacional direta de água (R$/ano) | G32: 31 | H32: =IFERROR(HLOOKUP(H$3,'Base de Dados - Água e esgoto'!$H$2:$AB$489,$G32,),"") -> 30277050.19 | I32: =IFERROR(HLOOKUP(I$3,'Base de Dados - Água e esgoto'!$H$2:$AB$489,$G32,),"") -> 31424072.4 | J32: =IFERROR(HLOOKUP(J$3,'Base de Dados - Água e esgoto'!$H$2:$AB$489,$G32,),"") -> 34255033.61 | K32: =IFERROR(HLOOKUP(K$3,'Base de Dados - Água e esgoto'!$H$2:$AB$489,$G32,),"") -> 36215613.4 | L32: =IFERROR(HLOOKUP(L$3,'Base de Dados - Água e esgoto'!$H$2:$AB$489,$G32,),"") -> 0
A33: AG017 | B33: Volume de água bruta exportado | G33: 32 | H33: =IFERROR(HLOOKUP(H$3,'Base de Dados - Água e esgoto'!$H$2:$AB$489,$G33,),"") -> 0 | I33: =IFERROR(HLOOKUP(I$3,'Base de Dados - Água e esgoto'!$H$2:$AB$489,$G33,),"") -> 0 | J33: =IFERROR(HLOOKUP(J$3,'Base de Dados - Água e esgoto'!$H$2:$AB$489,$G33,),"") -> 0 | K33: =IFERROR(HLOOKUP(K$3,'Base de Dados - Água e esgoto'!$H$2:$AB$489,$G33,),"") -> 0 | L33: =IFERROR(HLOOKUP(L$3,'Base de Dados - Água e esgoto'!$H$2:$AB$489,$G33,),"") -> 0
B34: Receita operacional total | G34: 33 | H34: =IFERROR(HLOOKUP(H$3,'Base de Dados - Água e esgoto'!$H$2:$AB$489,$G34,),"") -> 49004457.19 | I34: =IFERROR(HLOOKUP(I$3,'Base de Dados - Água e esgoto'!$H$2:$AB$489,$G34,),"") -> 50941561.78 | J34: =IFERROR(HLOOKUP(J$3,'Base de Dados - Água e esgoto'!$H$2:$AB$489,$G34,),"") -> 56667682.41 | K34: =IFERROR(HLOOKUP(K$3,'Base de Dados - Água e esgoto'!$H$2:$AB$489,$G34,),"") -> 63123331.07 | L34: =IFERROR(HLOOKUP(L$3,'Base de Dados - Água e esgoto'!$H$2:$AB$489,$G34,),"") -> 0
A35: FN006 | B35: Arrecadação total | G35: 34 | H35: =IFERROR(HLOOKUP(H$3,'Base de Dados - Água e esgoto'!$H$2:$AB$489,$G35,),"") -> 47015151.37 | I35: =IFERROR(HLOOKUP(I$3,'Base de Dados - Água e esgoto'!$H$2:$AB$489,$G35,),"") -> 48757259.73 | J35: =IFERROR(HLOOKUP(J$3,'Base de Dados - Água e esgoto'!$H$2:$AB$489,$G35,),"") -> 52016645 | K35: =IFERROR(HLOOKUP(K$3,'Base de Dados - Água e esgoto'!$H$2:$AB$489,$G35,),"") -> 57864935.74 | L35: =IFERROR(HLOOKUP(L$3,'Base de Dados - Água e esgoto'!$H$2:$AB$489,$G35,),"") -> 0
A36: FN010 | B36: Despesas com pessoal próprio | G36: 35 | H36: =IFERROR(HLOOKUP(H$3,'Base de Dados - Água e esgoto'!$H$2:$AB$489,$G36,),"") -> 4279120.87 | I36: =IFERROR(HLOOKUP(I$3,'Base de Dados - Água e esgoto'!$H$2:$AB$489,$G36,),"") -> 4307277 | J36: =IFERROR(HLOOKUP(J$3,'Base de Dados - Água e esgoto'!$H$2:$AB$489,$G36,),"") -> 4969682.87 | K36: =IFERROR(HLOOKUP(K$3,'Base de Dados - Água e esgoto'!$H$2:$AB$489,$G36,),"") -> 5381498.9 | L36: =IFERROR(HLOOKUP(L$3,'Base de Dados - Água e esgoto'!$H$2:$AB$489,$G36,),"") -> 0
A37: FN014 | B37: Despesas com serviços de terceiros | G37: 36 | H37: =IFERROR(HLOOKUP(H$3,'Base de Dados - Água e esgoto'!$H$2:$AB$489,$G37,),"") -> 8551779.63 | I37: =IFERROR(HLOOKUP(I$3,'Base de Dados - Água e esgoto'!$H$2:$AB$489,$G37,),"") -> 8825394.56 | J37: =IFERROR(HLOOKUP(J$3,'Base de Dados - Água e esgoto'!$H$2:$AB$489,$G37,),"") -> 11341447.31 | K37: =IFERROR(HLOOKUP(K$3,'Base de Dados - Água e esgoto'!$H$2:$AB$489,$G37,),"") -> 10488762.76 | L37: =IFERROR(HLOOKUP(L$3,'Base de Dados - Água e esgoto'!$H$2:$AB$489,$G37,),"") -> 0
A38: FM026 | B38: Quantidade total de empregados próprios | G38: 37 | H38: =IFERROR(HLOOKUP(H$3,'Base de Dados - Água e esgoto'!$H$2:$AB$489,$G38,),"") -> 84 | I38: =IFERROR(HLOOKUP(I$3,'Base de Dados - Água e esgoto'!$H$2:$AB$489,$G38,),"") -> 79 | J38: =IFERROR(HLOOKUP(J$3,'Base de Dados - Água e esgoto'!$H$2:$AB$489,$G38,),"") -> 87 | K38: =IFERROR(HLOOKUP(K$3,'Base de Dados - Água e esgoto'!$H$2:$AB$489,$G38,),"") -> 83 | L38: =IFERROR(HLOOKUP(L$3,'Base de Dados - Água e esgoto'!$H$2:$AB$489,$G38,),"") -> 0
A39: FN035 | B39: Despesas com juros e encargos do serviço da dívida | G39: 38 | H39: =IFERROR(HLOOKUP(H$3,'Base de Dados - Água e esgoto'!$H$2:$AB$489,$G39,),"") -> 4916329.52 | I39: =IFERROR(HLOOKUP(I$3,'Base de Dados - Água e esgoto'!$H$2:$AB$489,$G39,),"") -> 10039242.18 | J39: =IFERROR(HLOOKUP(J$3,'Base de Dados - Água e esgoto'!$H$2:$AB$489,$G39,),"") -> 15678334.95 | K39: =IFERROR(HLOOKUP(K$3,'Base de Dados - Água e esgoto'!$H$2:$AB$489,$G39,),"") -> 17679328.85 | L39: =IFERROR(HLOOKUP(L$3,'Base de Dados - Água e esgoto'!$H$2:$AB$489,$G39,),"") -> 0
A40: FN034 | B40: Despesas com amortização do serviço da dívida | G40: 39 | H40: =IFERROR(HLOOKUP(H$3,'Base de Dados - Água e esgoto'!$H$2:$AB$489,$G40,),"") -> 0 | I40: =IFERROR(HLOOKUP(I$3,'Base de Dados - Água e esgoto'!$H$2:$AB$489,$G40,),"") -> 0 | J40: =IFERROR(HLOOKUP(J$3,'Base de Dados - Água e esgoto'!$H$2:$AB$489,$G40,),"") -> 0 | K40: =IFERROR(HLOOKUP(K$3,'Base de Dados - Água e esgoto'!$H$2:$AB$489,$G40,),"") -> 0 | L40: =IFERROR(HLOOKUP(L$3,'Base de Dados - Água e esgoto'!$H$2:$AB$489,$G40,),"") -> 0
A41: FN027 | B41: Outras despesas de exploração | G41: 40 | H41: =IFERROR(HLOOKUP(H$3,'Base de Dados - Água e esgoto'!$H$2:$AB$489,$G41,),"") -> 6793237.66 | I41: =IFERROR(HLOOKUP(I$3,'Base de Dados - Água e esgoto'!$H$2:$AB$489,$G41,),"") -> 8211671.76 | J41: =IFERROR(HLOOKUP(J$3,'Base de Dados - Água e esgoto'!$H$2:$AB$489,$G41,),"") -> 5994219.22 | K41: =IFERROR(HLOOKUP(K$3,'Base de Dados - Água e esgoto'!$H$2:$AB$489,$G41,),"") -> 4457437.4 | L41: =IFERROR(HLOOKUP(L$3,'Base de Dados - Água e esgoto'!$H$2:$AB$489,$G41,),"") -> 0
A42: FN011 | B42: Despesas com produtos químicos | G42: 41 | H42: =IFERROR(HLOOKUP(H$3,'Base de Dados - Água e esgoto'!$H$2:$AB$489,$G42,),"") -> 1271509.84 | I42: =IFERROR(HLOOKUP(I$3,'Base de Dados - Água e esgoto'!$H$2:$AB$489,$G42,),"") -> 1566431.25 | J42: =IFERROR(HLOOKUP(J$3,'Base de Dados - Água e esgoto'!$H$2:$AB$489,$G42,),"") -> 1524651.22 | K42: =IFERROR(HLOOKUP(K$3,'Base de Dados - Água e esgoto'!$H$2:$AB$489,$G42,),"") -> 1865091.37 | L42: =IFERROR(HLOOKUP(L$3,'Base de Dados - Água e esgoto'!$H$2:$AB$489,$G42,),"") -> 0
A43: FN013 | B43: Despesas com energia elétrica | G43: 42 | H43: =IFERROR(HLOOKUP(H$3,'Base de Dados - Água e esgoto'!$H$2:$AB$489,$G43,),"") -> 1199928.38 | I43: =IFERROR(HLOOKUP(I$3,'Base de Dados - Água e esgoto'!$H$2:$AB$489,$G43,),"") -> 1396508.31 | J43: =IFERROR(HLOOKUP(J$3,'Base de Dados - Água e esgoto'!$H$2:$AB$489,$G43,),"") -> 1815026.12 | K43: =IFERROR(HLOOKUP(K$3,'Base de Dados - Água e esgoto'!$H$2:$AB$489,$G43,),"") -> 1970190.31 | L43: =IFERROR(HLOOKUP(L$3,'Base de Dados - Água e esgoto'!$H$2:$AB$489,$G43,),"") -> 0
A44: FN007 | B44: Receita operacional direta de água exportada | G44: 43 | H44: =IFERROR(HLOOKUP(H$3,'Base de Dados - Água e esgoto'!$H$2:$AB$489,$G44,),"") -> 0 | I44: =IFERROR(HLOOKUP(I$3,'Base de Dados - Água e esgoto'!$H$2:$AB$489,$G44,),"") -> 0 | J44: =IFERROR(HLOOKUP(J$3,'Base de Dados - Água e esgoto'!$H$2:$AB$489,$G44,),"") -> 0 | K44: =IFERROR(HLOOKUP(K$3,'Base de Dados - Água e esgoto'!$H$2:$AB$489,$G44,),"") -> 0 | L44: =IFERROR(HLOOKUP(L$3,'Base de Dados - Água e esgoto'!$H$2:$AB$489,$G44,),"") -> 0
A45: FN003 | B45: Receita operacional direta de esgoto | G45: 44 | H45: =IFERROR(HLOOKUP(H$3,'Base de Dados - Água e esgoto'!$H$2:$AB$489,$G45,),"") -> 17725769.37 | I45: =IFERROR(HLOOKUP(I$3,'Base de Dados - Água e esgoto'!$H$2:$AB$489,$G45,),"") -> 18722825.08 | J45: =IFERROR(HLOOKUP(J$3,'Base de Dados - Água e esgoto'!$H$2:$AB$489,$G45,),"") -> 20710059.41 | K45: =IFERROR(HLOOKUP(K$3,'Base de Dados - Água e esgoto'!$H$2:$AB$489,$G45,),"") -> 25884390.86 | L45: =IFERROR(HLOOKUP(L$3,'Base de Dados - Água e esgoto'!$H$2:$AB$489,$G45,),"") -> 0
A46: FN038 | B46: Receita operacional direta de esgoto bruto importado | G46: 45 | H46: =IFERROR(HLOOKUP(H$3,'Base de Dados - Água e esgoto'!$H$2:$AB$489,$G46,),"") -> 0 | I46: =IFERROR(HLOOKUP(I$3,'Base de Dados - Água e esgoto'!$H$2:$AB$489,$G46,),"") -> 0 | J46: =IFERROR(HLOOKUP(J$3,'Base de Dados - Água e esgoto'!$H$2:$AB$489,$G46,),"") -> 0 | K46: =IFERROR(HLOOKUP(K$3,'Base de Dados - Água e esgoto'!$H$2:$AB$489,$G46,),"") -> 0 | L46: =IFERROR(HLOOKUP(L$3,'Base de Dados - Água e esgoto'!$H$2:$AB$489,$G46,),"") -> 0
A47: FN008 | B47: Crédito de contas a receber | G47: 46 | H47: =IFERROR(HLOOKUP(H$3,'Base de Dados - Água e esgoto'!$H$2:$AB$489,$G47,),"") -> 8418715.38 | I47: =IFERROR(HLOOKUP(I$3,'Base de Dados - Água e esgoto'!$H$2:$AB$489,$G47,),"") -> 9499878.34 | J47: =IFERROR(HLOOKUP(J$3,'Base de Dados - Água e esgoto'!$H$2:$AB$489,$G47,),"") -> 11346709.35 | K47: =IFERROR(HLOOKUP(K$3,'Base de Dados - Água e esgoto'!$H$2:$AB$489,$G47,),"") -> 13163815.52 | L47: =IFERROR(HLOOKUP(L$3,'Base de Dados - Água e esgoto'!$H$2:$AB$489,$G47,),"") -> 0
A48: AG002 | B48: Quantidade de ligações ativas de esgoto | G48: 47 | H48: =IFERROR(HLOOKUP(H$3,'Base de Dados - Água e esgoto'!$H$2:$AB$489,$G48,),"") -> 14424 | I48: =IFERROR(HLOOKUP(I$3,'Base de Dados - Água e esgoto'!$H$2:$AB$489,$G48,),"") -> 14684 | J48: =IFERROR(HLOOKUP(J$3,'Base de Dados - Água e esgoto'!$H$2:$AB$489,$G48,),"") -> 14911 | K48: =IFERROR(HLOOKUP(K$3,'Base de Dados - Água e esgoto'!$H$2:$AB$489,$G48,),"") -> 15305 | L48: =IFERROR(HLOOKUP(L$3,'Base de Dados - Água e esgoto'!$H$2:$AB$489,$G48,),"") -> 0
A49: FN016 | B49: Despesas totais com serviço da dívida | G49: 48 | H49: =IFERROR(HLOOKUP(H$3,'Base de Dados - Água e esgoto'!$H$2:$AB$489,$G49,),"") -> 4916329.52 | I49: =IFERROR(HLOOKUP(I$3,'Base de Dados - Água e esgoto'!$H$2:$AB$489,$G49,),"") -> 10039424.18 | J49: =IFERROR(HLOOKUP(J$3,'Base de Dados - Água e esgoto'!$H$2:$AB$489,$G49,),"") -> 15678334.95 | K49: =IFERROR(HLOOKUP(K$3,'Base de Dados - Água e esgoto'!$H$2:$AB$489,$G49,),"") -> 17679328.85 | L49: =IFERROR(HLOOKUP(L$3,'Base de Dados - Água e esgoto'!$H$2:$AB$489,$G49,),"") -> 0
A50: FN021 | B50: Despesas fiscais ou tributárias não computadas na DEX | G50: 49 | H50: =IFERROR(HLOOKUP(H$3,'Base de Dados - Água e esgoto'!$H$2:$AB$489,$G50,),"") -> 104408.94 | I50: =IFERROR(HLOOKUP(I$3,'Base de Dados - Água e esgoto'!$H$2:$AB$489,$G50,),"") -> 46840.88 | J50: =IFERROR(HLOOKUP(J$3,'Base de Dados - Água e esgoto'!$H$2:$AB$489,$G50,),"") -> 94014.39 | K50: =IFERROR(HLOOKUP(K$3,'Base de Dados - Água e esgoto'!$H$2:$AB$489,$G50,),"") -> 96353.25 | L50: =IFERROR(HLOOKUP(L$3,'Base de Dados - Água e esgoto'!$H$2:$AB$489,$G50,),"") -> 0
A51: QD004 | B51: Quantidades de economias ativas atingidas por paralisações | G51: 50 | H51: =IFERROR(HLOOKUP(H$3,'Base de Dados - Água e esgoto'!$H$2:$AB$489,$G51,),"") -> 0 | I51: =IFERROR(HLOOKUP(I$3,'Base de Dados - Água e esgoto'!$H$2:$AB$489,$G51,),"") -> - | J51: =IFERROR(HLOOKUP(J$3,'Base de Dados - Água e esgoto'!$H$2:$AB$489,$G51,),"") -> 0 | K51: =IFERROR(HLOOKUP(K$3,'Base de Dados - Água e esgoto'!$H$2:$AB$489,$G51,),"") -> 48172 | L51: =IFERROR(HLOOKUP(L$3,'Base de Dados - Água e esgoto'!$H$2:$AB$489,$G51,),"") -> 0
A52: QD002 | B52: Quantidade de paralisações | G52: 51 | H52: =IFERROR(HLOOKUP(H$3,'Base de Dados - Água e esgoto'!$H$2:$AB$489,$G52,),"") -> 0 | I52: =IFERROR(HLOOKUP(I$3,'Base de Dados - Água e esgoto'!$H$2:$AB$489,$G52,),"") -> 0 | J52: =IFERROR(HLOOKUP(J$3,'Base de Dados - Água e esgoto'!$H$2:$AB$489,$G52,),"") -> 0 | K52: =IFERROR(HLOOKUP(K$3,'Base de Dados - Água e esgoto'!$H$2:$AB$489,$G52,),"") -> 7 | L52: =IFERROR(HLOOKUP(L$3,'Base de Dados - Água e esgoto'!$H$2:$AB$489,$G52,),"") -> 0
A53: QD003 | B53: Duração das paralisações | G53: 52 | H53: =IFERROR(HLOOKUP(H$3,'Base de Dados - Água e esgoto'!$H$2:$AB$489,$G53,),"") -> 0 | I53: =IFERROR(HLOOKUP(I$3,'Base de Dados - Água e esgoto'!$H$2:$AB$489,$G53,),"") -> 0 | J53: =IFERROR(HLOOKUP(J$3,'Base de Dados - Água e esgoto'!$H$2:$AB$489,$G53,),"") -> 0 | K53: =IFERROR(HLOOKUP(K$3,'Base de Dados - Água e esgoto'!$H$2:$AB$489,$G53,),"") -> 59 | L53: =IFERROR(HLOOKUP(L$3,'Base de Dados - Água e esgoto'!$H$2:$AB$489,$G53,),"") -> 0
A54: QD025 | B54: Tempo de execução do serviço | G54: 53 | H54: =IFERROR(HLOOKUP(H$3,'Base de Dados - Água e esgoto'!$H$2:$AB$489,$G54,),"") -> 7409.65 | I54: =IFERROR(HLOOKUP(I$3,'Base de Dados - Água e esgoto'!$H$2:$AB$489,$G54,),"") -> 7581.97 | J54: =IFERROR(HLOOKUP(J$3,'Base de Dados - Água e esgoto'!$H$2:$AB$489,$G54,),"") -> 10712.5 | K54: =IFERROR(HLOOKUP(K$3,'Base de Dados - Água e esgoto'!$H$2:$AB$489,$G54,),"") -> 16505 | L54: =IFERROR(HLOOKUP(L$3,'Base de Dados - Água e esgoto'!$H$2:$AB$489,$G54,),"") -> 0
A55: QD024 | B55: Quantidade de serviços executados | G55: 54 | H55: =IFERROR(HLOOKUP(H$3,'Base de Dados - Água e esgoto'!$H$2:$AB$489,$G55,),"") -> 45341 | I55: =IFERROR(HLOOKUP(I$3,'Base de Dados - Água e esgoto'!$H$2:$AB$489,$G55,),"") -> 42138 | J55: =IFERROR(HLOOKUP(J$3,'Base de Dados - Água e esgoto'!$H$2:$AB$489,$G55,),"") -> 55269 | K55: =IFERROR(HLOOKUP(K$3,'Base de Dados - Água e esgoto'!$H$2:$AB$489,$G55,),"") -> 47704 | L55: =IFERROR(HLOOKUP(L$3,'Base de Dados - Água e esgoto'!$H$2:$AB$489,$G55,),"") -> 0
A56: QD006 | B56: Quantidade de amostras analisadas para aferição de cloro residual | G56: 55 | H56: =IFERROR(HLOOKUP(H$3,'Base de Dados - Água e esgoto'!$H$2:$AB$489,$G56,),"") -> 17664 | I56: =IFERROR(HLOOKUP(I$3,'Base de Dados - Água e esgoto'!$H$2:$AB$489,$G56,),"") -> 18690 | J56: =IFERROR(HLOOKUP(J$3,'Base de Dados - Água e esgoto'!$H$2:$AB$489,$G56,),"") -> 18096 | K56: =IFERROR(HLOOKUP(K$3,'Base de Dados - Água e esgoto'!$H$2:$AB$489,$G56,),"") -> 20504 | L56: =IFERROR(HLOOKUP(L$3,'Base de Dados - Água e esgoto'!$H$2:$AB$489,$G56,),"") -> 0
A57: QD020 | B57: Quantidade mínima de amostras obrigatórias para análises de cloro residual | G57: 56 | H57: =IFERROR(HLOOKUP(H$3,'Base de Dados - Água e esgoto'!$H$2:$AB$489,$G57,),"") -> 17664 | I57: =IFERROR(HLOOKUP(I$3,'Base de Dados - Água e esgoto'!$H$2:$AB$489,$G57,),"") -> 17664 | J57: =IFERROR(HLOOKUP(J$3,'Base de Dados - Água e esgoto'!$H$2:$AB$489,$G57,),"") -> 17644 | K57: =IFERROR(HLOOKUP(K$3,'Base de Dados - Água e esgoto'!$H$2:$AB$489,$G57,),"") -> 17644 | L57: =IFERROR(HLOOKUP(L$3,'Base de Dados - Água e esgoto'!$H$2:$AB$489,$G57,),"") -> 0
A58: QD007 | B58: Quantidade de amostras para análise de cloro residual com resultado fora do padrão | G58: 57 | H58: =IFERROR(HLOOKUP(H$3,'Base de Dados - Água e esgoto'!$H$2:$AB$489,$G58,),"") -> 124 | I58: =IFERROR(HLOOKUP(I$3,'Base de Dados - Água e esgoto'!$H$2:$AB$489,$G58,),"") -> 36 | J58: =IFERROR(HLOOKUP(J$3,'Base de Dados - Água e esgoto'!$H$2:$AB$489,$G58,),"") -> 55 | K58: =IFERROR(HLOOKUP(K$3,'Base de Dados - Água e esgoto'!$H$2:$AB$489,$G58,),"") -> 8 | L58: =IFERROR(HLOOKUP(L$3,'Base de Dados - Água e esgoto'!$H$2:$AB$489,$G58,),"") -> 0
A59: QD008 | B59: Quantidade de amostras analisadas para aferição de turbidez | G59: 58 | H59: =IFERROR(HLOOKUP(H$3,'Base de Dados - Água e esgoto'!$H$2:$AB$489,$G59,),"") -> 17664 | I59: =IFERROR(HLOOKUP(I$3,'Base de Dados - Água e esgoto'!$H$2:$AB$489,$G59,),"") -> 18690 | J59: =IFERROR(HLOOKUP(J$3,'Base de Dados - Água e esgoto'!$H$2:$AB$489,$G59,),"") -> 18096 | K59: =IFERROR(HLOOKUP(K$3,'Base de Dados - Água e esgoto'!$H$2:$AB$489,$G59,),"") -> 20504 | L59: =IFERROR(HLOOKUP(L$3,'Base de Dados - Água e esgoto'!$H$2:$AB$489,$G59,),"") -> 0
A60: QD019 | B60: Quantidade mínima de amostras obrigatórias para análises de turbidez | G60: 59 | H60: =IFERROR(HLOOKUP(H$3,'Base de Dados - Água e esgoto'!$H$2:$AB$489,$G60,),"") -> 17664 | I60: =IFERROR(HLOOKUP(I$3,'Base de Dados - Água e esgoto'!$H$2:$AB$489,$G60,),"") -> 17664 | J60: =IFERROR(HLOOKUP(J$3,'Base de Dados - Água e esgoto'!$H$2:$AB$489,$G60,),"") -> 17644 | K60: =IFERROR(HLOOKUP(K$3,'Base de Dados - Água e esgoto'!$H$2:$AB$489,$G60,),"") -> 17644 | L60: =IFERROR(HLOOKUP(L$3,'Base de Dados - Água e esgoto'!$H$2:$AB$489,$G60,),"") -> 0
A61: QD009 | B61: Quantidade de amostras para análise de turbidez com resultado fora do padrão | G61: 60 | H61: =IFERROR(HLOOKUP(H$3,'Base de Dados - Água e esgoto'!$H$2:$AB$489,$G61,),"") -> 84 | I61: =IFERROR(HLOOKUP(I$3,'Base de Dados - Água e esgoto'!$H$2:$AB$489,$G61,),"") -> 11 | J61: =IFERROR(HLOOKUP(J$3,'Base de Dados - Água e esgoto'!$H$2:$AB$489,$G61,),"") -> 28 | K61: =IFERROR(HLOOKUP(K$3,'Base de Dados - Água e esgoto'!$H$2:$AB$489,$G61,),"") -> 18 | L61: =IFERROR(HLOOKUP(L$3,'Base de Dados - Água e esgoto'!$H$2:$AB$489,$G61,),"") -> 0
A62: QD026 | B62: Quantidade de amostras analisadas para aferição de coliformes totais | G62: 61 | H62: =IFERROR(HLOOKUP(H$3,'Base de Dados - Água e esgoto'!$H$2:$AB$489,$G62,),"") -> 1344 | I62: =IFERROR(HLOOKUP(I$3,'Base de Dados - Água e esgoto'!$H$2:$AB$489,$G62,),"") -> 1344 | J62: =IFERROR(HLOOKUP(J$3,'Base de Dados - Água e esgoto'!$H$2:$AB$489,$G62,),"") -> 1344 | K62: =IFERROR(HLOOKUP(K$3,'Base de Dados - Água e esgoto'!$H$2:$AB$489,$G62,),"") -> 1344 | L62: =IFERROR(HLOOKUP(L$3,'Base de Dados - Água e esgoto'!$H$2:$AB$489,$G62,),"") -> 0
A63: QD028 | B63: Quantidade mínima de amostra obrigatórias para coliforme totais | G63: 62 | H63: =IFERROR(HLOOKUP(H$3,'Base de Dados - Água e esgoto'!$H$2:$AB$489,$G63,),"") -> 1260 | I63: =IFERROR(HLOOKUP(I$3,'Base de Dados - Água e esgoto'!$H$2:$AB$489,$G63,),"") -> 1260 | J63: =IFERROR(HLOOKUP(J$3,'Base de Dados - Água e esgoto'!$H$2:$AB$489,$G63,),"") -> 1260 | K63: =IFERROR(HLOOKUP(K$3,'Base de Dados - Água e esgoto'!$H$2:$AB$489,$G63,),"") -> 1260 | L63: =IFERROR(HLOOKUP(L$3,'Base de Dados - Água e esgoto'!$H$2:$AB$489,$G63,),"") -> 0
A64: QD027 | B64: Quantidade de amostras para análise de coliformes totais com resultados fora do padrão | G64: 63 | H64: =IFERROR(HLOOKUP(H$3,'Base de Dados - Água e esgoto'!$H$2:$AB$489,$G64,),"") -> 0 | I64: =IFERROR(HLOOKUP(I$3,'Base de Dados - Água e esgoto'!$H$2:$AB$489,$G64,),"") -> 0 | J64: =IFERROR(HLOOKUP(J$3,'Base de Dados - Água e esgoto'!$H$2:$AB$489,$G64,),"") -> 0 | K64: =IFERROR(HLOOKUP(K$3,'Base de Dados - Água e esgoto'!$H$2:$AB$489,$G64,),"") -> 0 | L64: =IFERROR(HLOOKUP(L$3,'Base de Dados - Água e esgoto'!$H$2:$AB$489,$G64,),"") -> 0
A65: FN023 | B65: Investimentos realizados em abastecimento de água pelo prestados de serviço | G65: 64 | H65: =IFERROR(HLOOKUP(H$3,'Base de Dados - Água e esgoto'!$H$2:$AB$489,$G65,),"") -> 2148129.41 | I65: =IFERROR(HLOOKUP(I$3,'Base de Dados - Água e esgoto'!$H$2:$AB$489,$G65,),"") -> 649989.33 | J65: =IFERROR(HLOOKUP(J$3,'Base de Dados - Água e esgoto'!$H$2:$AB$489,$G65,),"") -> 11259907.65 | K65: =IFERROR(HLOOKUP(K$3,'Base de Dados - Água e esgoto'!$H$2:$AB$489,$G65,),"") -> 2604610.26 | L65: =IFERROR(HLOOKUP(L$3,'Base de Dados - Água e esgoto'!$H$2:$AB$489,$G65,),"") -> 0
A66: FN024 | B66: Investimentos realizados em esgotamento sanitário pelo prestados de serviço | G66: 65 | H66: =IFERROR(HLOOKUP(H$3,'Base de Dados - Água e esgoto'!$H$2:$AB$489,$G66,),"") -> 10200207.14 | I66: =IFERROR(HLOOKUP(I$3,'Base de Dados - Água e esgoto'!$H$2:$AB$489,$G66,),"") -> 525351.21 | J66: =IFERROR(HLOOKUP(J$3,'Base de Dados - Água e esgoto'!$H$2:$AB$489,$G66,),"") -> 37168060.79 | K66: =IFERROR(HLOOKUP(K$3,'Base de Dados - Água e esgoto'!$H$2:$AB$489,$G66,),"") -> 16853968.47 | L66: =IFERROR(HLOOKUP(L$3,'Base de Dados - Água e esgoto'!$H$2:$AB$489,$G66,),"") -> 0
A67: FN025 | B67: Outros investimentos realizados pelo prestador de serviços | G67: 66 | H67: =IFERROR(HLOOKUP(H$3,'Base de Dados - Água e esgoto'!$H$2:$AB$489,$G67,),"") -> 0 | I67: =IFERROR(HLOOKUP(I$3,'Base de Dados - Água e esgoto'!$H$2:$AB$489,$G67,),"") -> 0 | J67: =IFERROR(HLOOKUP(J$3,'Base de Dados - Água e esgoto'!$H$2:$AB$489,$G67,),"") -> 0 | K67: =IFERROR(HLOOKUP(K$3,'Base de Dados - Água e esgoto'!$H$2:$AB$489,$G67,),"") -> 0 | L67: =IFERROR(HLOOKUP(L$3,'Base de Dados - Água e esgoto'!$H$2:$AB$489,$G67,),"") -> 0
A68: FN030 | B68: Investimento com recurso próprio realizado pelo prestador de serviço | G68: 67 | H68: =IFERROR(HLOOKUP(H$3,'Base de Dados - Água e esgoto'!$H$2:$AB$489,$G68,),"") -> 12348336.55 | I68: =IFERROR(HLOOKUP(I$3,'Base de Dados - Água e esgoto'!$H$2:$AB$489,$G68,),"") -> 1175340.54 | J68: =IFERROR(HLOOKUP(J$3,'Base de Dados - Água e esgoto'!$H$2:$AB$489,$G68,),"") -> 0 | K68: =IFERROR(HLOOKUP(K$3,'Base de Dados - Água e esgoto'!$H$2:$AB$489,$G68,),"") -> 0 | L68: =IFERROR(HLOOKUP(L$3,'Base de Dados - Água e esgoto'!$H$2:$AB$489,$G68,),"") -> 0
A69: FN031 | B69: Investimento com recursos onerosos realizado pelo prestador de serviço | G69: 68 | H69: =IFERROR(HLOOKUP(H$3,'Base de Dados - Água e esgoto'!$H$2:$AB$489,$G69,),"") -> 0 | I69: =IFERROR(HLOOKUP(I$3,'Base de Dados - Água e esgoto'!$H$2:$AB$489,$G69,),"") -> 0 | J69: =IFERROR(HLOOKUP(J$3,'Base de Dados - Água e esgoto'!$H$2:$AB$489,$G69,),"") -> 48427968.44 | K69: =IFERROR(HLOOKUP(K$3,'Base de Dados - Água e esgoto'!$H$2:$AB$489,$G69,),"") -> 19458578.73 | L69: =IFERROR(HLOOKUP(L$3,'Base de Dados - Água e esgoto'!$H$2:$AB$489,$G69,),"") -> 0
A70: FN032 | B70: Investimento com recursos não onerosos realizado pelo prestador de serviço | G70: 69 | H70: =IFERROR(HLOOKUP(H$3,'Base de Dados - Água e esgoto'!$H$2:$AB$489,$G70,),"") -> 0 | I70: =IFERROR(HLOOKUP(I$3,'Base de Dados - Água e esgoto'!$H$2:$AB$489,$G70,),"") -> 0 | J70: =IFERROR(HLOOKUP(J$3,'Base de Dados - Água e esgoto'!$H$2:$AB$489,$G70,),"") -> 0 | K70: =IFERROR(HLOOKUP(K$3,'Base de Dados - Água e esgoto'!$H$2:$AB$489,$G70,),"") -> 0 | L70: =IFERROR(HLOOKUP(L$3,'Base de Dados - Água e esgoto'!$H$2:$AB$489,$G70,),"") -> 0
A71: FN033 | B71: Investimentos totais realizado pelo prestador de serviços | G71: 70 | H71: =IFERROR(HLOOKUP(H$3,'Base de Dados - Água e esgoto'!$H$2:$AB$489,$G71,),"") -> 12348336.55 | I71: =IFERROR(HLOOKUP(I$3,'Base de Dados - Água e esgoto'!$H$2:$AB$489,$G71,),"") -> 1175340.54 | J71: =IFERROR(HLOOKUP(J$3,'Base de Dados - Água e esgoto'!$H$2:$AB$489,$G71,),"") -> 48427968.44 | K71: =IFERROR(HLOOKUP(K$3,'Base de Dados - Água e esgoto'!$H$2:$AB$489,$G71,),"") -> 19458578.73 | L71: =IFERROR(HLOOKUP(L$3,'Base de Dados - Água e esgoto'!$H$2:$AB$489,$G71,),"") -> 0
A72: ES004 | B72: Extensão da rede de esgotos | G72: 71 | H72: =IFERROR(HLOOKUP(H$3,'Base de Dados - Água e esgoto'!$H$2:$AB$489,$G72,),"") -> 105.6 | I72: =IFERROR(HLOOKUP(I$3,'Base de Dados - Água e esgoto'!$H$2:$AB$489,$G72,),"") -> 105.6 | J72: =IFERROR(HLOOKUP(J$3,'Base de Dados - Água e esgoto'!$H$2:$AB$489,$G72,),"") -> 175.9 | K72: =IFERROR(HLOOKUP(K$3,'Base de Dados - Água e esgoto'!$H$2:$AB$489,$G72,),"") -> 181.67 | L72: =IFERROR(HLOOKUP(L$3,'Base de Dados - Água e esgoto'!$H$2:$AB$489,$G72,),"") -> 0
A73: ES005 | B73: Volume de esgotos coletado | G73: 72 | H73: =IFERROR(HLOOKUP(H$3,'Base de Dados - Água e esgoto'!$H$2:$AB$489,$G73,),"") -> 2609 | I73: =IFERROR(HLOOKUP(I$3,'Base de Dados - Água e esgoto'!$H$2:$AB$489,$G73,),"") -> 2767.72 | J73: =IFERROR(HLOOKUP(J$3,'Base de Dados - Água e esgoto'!$H$2:$AB$489,$G73,),"") -> 3042.59 | K73: =IFERROR(HLOOKUP(K$3,'Base de Dados - Água e esgoto'!$H$2:$AB$489,$G73,),"") -> 3966 | L73: =IFERROR(HLOOKUP(L$3,'Base de Dados - Água e esgoto'!$H$2:$AB$489,$G73,),"") -> 0
A74: ES006 | B74: Volume de esgotos Tratado | G74: 73 | H74: =IFERROR(HLOOKUP(H$3,'Base de Dados - Água e esgoto'!$H$2:$AB$489,$G74,),"") -> 2609 | I74: =IFERROR(HLOOKUP(I$3,'Base de Dados - Água e esgoto'!$H$2:$AB$489,$G74,),"") -> 2767.72 | J74: =IFERROR(HLOOKUP(J$3,'Base de Dados - Água e esgoto'!$H$2:$AB$489,$G74,),"") -> 3042.59 | K74: =IFERROR(HLOOKUP(K$3,'Base de Dados - Água e esgoto'!$H$2:$AB$489,$G74,),"") -> 3966 | L74: =IFERROR(HLOOKUP(L$3,'Base de Dados - Água e esgoto'!$H$2:$AB$489,$G74,),"") -> 0
A75: ES009 | B75: Quantidade de ligações totais de esgotos | G75: 74 | H75: =IFERROR(HLOOKUP(H$3,'Base de Dados - Água e esgoto'!$H$2:$AB$489,$G75,),"") -> 4679 | I75: =IFERROR(HLOOKUP(I$3,'Base de Dados - Água e esgoto'!$H$2:$AB$489,$G75,),"") -> 4987 | J75: =IFERROR(HLOOKUP(J$3,'Base de Dados - Água e esgoto'!$H$2:$AB$489,$G75,),"") -> 6787 | K75: =IFERROR(HLOOKUP(K$3,'Base de Dados - Água e esgoto'!$H$2:$AB$489,$G75,),"") -> 8775 | L75: =IFERROR(HLOOKUP(L$3,'Base de Dados - Água e esgoto'!$H$2:$AB$489,$G75,),"") -> 0
A76: ES026 | B76: População urbana atendida com esgoto sanitário | G76: 75 | H76: =IFERROR(HLOOKUP(H$3,'Base de Dados - Água e esgoto'!$H$2:$AB$489,$G76,),"") -> 46540 | I76: =IFERROR(HLOOKUP(I$3,'Base de Dados - Água e esgoto'!$H$2:$AB$489,$G76,),"") -> 48108 | J76: =IFERROR(HLOOKUP(J$3,'Base de Dados - Água e esgoto'!$H$2:$AB$489,$G76,),"") -> 51427 | K76: =IFERROR(HLOOKUP(K$3,'Base de Dados - Água e esgoto'!$H$2:$AB$489,$G76,),"") -> 52863 | L76: =IFERROR(HLOOKUP(L$3,'Base de Dados - Água e esgoto'!$H$2:$AB$489,$G76,),"") -> 0
A77: ES028 | B77: Consumo total de energia elétrica nos sistemas de esgotos | G77: 76 | H77: =IFERROR(HLOOKUP(H$3,'Base de Dados - Água e esgoto'!$H$2:$AB$489,$G77,),"") -> 879.44 | I77: =IFERROR(HLOOKUP(I$3,'Base de Dados - Água e esgoto'!$H$2:$AB$489,$G77,),"") -> 901.13 | J77: =IFERROR(HLOOKUP(J$3,'Base de Dados - Água e esgoto'!$H$2:$AB$489,$G77,),"") -> 998.03 | K77: =IFERROR(HLOOKUP(K$3,'Base de Dados - Água e esgoto'!$H$2:$AB$489,$G77,),"") -> 1153.6 | L77: =IFERROR(HLOOKUP(L$3,'Base de Dados - Água e esgoto'!$H$2:$AB$489,$G77,),"") -> 0
A78: QD015 | B78: Quantidade de economias ativas atingidas por interrupções sistemáticas | G78: 77 | H78: =IFERROR(HLOOKUP(H$3,'Base de Dados - Água e esgoto'!$H$2:$AB$489,$G78,),"") -> 0 | I78: =IFERROR(HLOOKUP(I$3,'Base de Dados - Água e esgoto'!$H$2:$AB$489,$G78,),"") -> 0 | J78: =IFERROR(HLOOKUP(J$3,'Base de Dados - Água e esgoto'!$H$2:$AB$489,$G78,),"") -> 0 | K78: =IFERROR(HLOOKUP(K$3,'Base de Dados - Água e esgoto'!$H$2:$AB$489,$G78,),"") -> 0 | L78: =IFERROR(HLOOKUP(L$3,'Base de Dados - Água e esgoto'!$H$2:$AB$489,$G78,),"") -> 0
A79: QD021 | B79: Quantidade de interrupções sistemáticas | G79: 78 | H79: =IFERROR(HLOOKUP(H$3,'Base de Dados - Água e esgoto'!$H$2:$AB$489,$G79,),"") -> 0 | I79: =IFERROR(HLOOKUP(I$3,'Base de Dados - Água e esgoto'!$H$2:$AB$489,$G79,),"") -> 0 | J79: =IFERROR(HLOOKUP(J$3,'Base de Dados - Água e esgoto'!$H$2:$AB$489,$G79,),"") -> 0 | K79: =IFERROR(HLOOKUP(K$3,'Base de Dados - Água e esgoto'!$H$2:$AB$489,$G79,),"") -> 0 | L79: =IFERROR(HLOOKUP(L$3,'Base de Dados - Água e esgoto'!$H$2:$AB$489,$G79,),"") -> 0
A80: QD022 | B80: Duração das interrupções sistemáticas | G80: 79 | H80: =IFERROR(HLOOKUP(H$3,'Base de Dados - Água e esgoto'!$H$2:$AB$489,$G80,),"") -> 0 | I80: =IFERROR(HLOOKUP(I$3,'Base de Dados - Água e esgoto'!$H$2:$AB$489,$G80,),"") -> 0 | J80: =IFERROR(HLOOKUP(J$3,'Base de Dados - Água e esgoto'!$H$2:$AB$489,$G80,),"") -> 0 | K80: =IFERROR(HLOOKUP(K$3,'Base de Dados - Água e esgoto'!$H$2:$AB$489,$G80,),"") -> 0 | L80: =IFERROR(HLOOKUP(L$3,'Base de Dados - Água e esgoto'!$H$2:$AB$489,$G80,),"") -> 0
A81: QD011 | B81: Quantidades de extravasamentos de esgotos registrados | G81: 80 | H81: =IFERROR(HLOOKUP(H$3,'Base de Dados - Água e esgoto'!$H$2:$AB$489,$G81,),"") -> 118 | I81: =IFERROR(HLOOKUP(I$3,'Base de Dados - Água e esgoto'!$H$2:$AB$489,$G81,),"") -> 216 | J81: =IFERROR(HLOOKUP(J$3,'Base de Dados - Água e esgoto'!$H$2:$AB$489,$G81,),"") -> 280 | K81: =IFERROR(HLOOKUP(K$3,'Base de Dados - Água e esgoto'!$H$2:$AB$489,$G81,),"") -> 290 | L81: =IFERROR(HLOOKUP(L$3,'Base de Dados - Água e esgoto'!$H$2:$AB$489,$G81,),"") -> 0
A82: QD012 | B82: Duração dos extravasamentos registrados | G82: 81 | H82: =IFERROR(HLOOKUP(H$3,'Base de Dados - Água e esgoto'!$H$2:$AB$489,$G82,),"") -> 65 | I82: =IFERROR(HLOOKUP(I$3,'Base de Dados - Água e esgoto'!$H$2:$AB$489,$G82,),"") -> 230.23 | J82: =IFERROR(HLOOKUP(J$3,'Base de Dados - Água e esgoto'!$H$2:$AB$489,$G82,),"") -> 336.56 | K82: =IFERROR(HLOOKUP(K$3,'Base de Dados - Água e esgoto'!$H$2:$AB$489,$G82,),"") -> 295 | L82: =IFERROR(HLOOKUP(L$3,'Base de Dados - Água e esgoto'!$H$2:$AB$489,$G82,),"") -> 0
A83: BL001 | B83: Ativo circulante | G83: 82 | H83: =IFERROR(HLOOKUP(H$3,'Base de Dados - Água e esgoto'!$H$2:$AB$489,$G83,),"") -> 9482 | I83: =IFERROR(HLOOKUP(I$3,'Base de Dados - Água e esgoto'!$H$2:$AB$489,$G83,),"") -> 8425 | J83: =IFERROR(HLOOKUP(J$3,'Base de Dados - Água e esgoto'!$H$2:$AB$489,$G83,),"") -> 23576 | K83: =IFERROR(HLOOKUP(K$3,'Base de Dados - Água e esgoto'!$H$2:$AB$489,$G83,),"") -> 14469 | L83: =IFERROR(HLOOKUP(L$3,'Base de Dados - Água e esgoto'!$H$2:$AB$489,$G83,),"") -> 0
A84: BL005 | B84: Passivo circulante | G84: 83 | H84: =IFERROR(HLOOKUP(H$3,'Base de Dados - Água e esgoto'!$H$2:$AB$489,$G84,),"") -> 2419 | I84: =IFERROR(HLOOKUP(I$3,'Base de Dados - Água e esgoto'!$H$2:$AB$489,$G84,),"") -> 32087 | J84: =IFERROR(HLOOKUP(J$3,'Base de Dados - Água e esgoto'!$H$2:$AB$489,$G84,),"") -> 21729 | K84: =IFERROR(HLOOKUP(K$3,'Base de Dados - Água e esgoto'!$H$2:$AB$489,$G84,),"") -> 26759 | L84: =IFERROR(HLOOKUP(L$3,'Base de Dados - Água e esgoto'!$H$2:$AB$489,$G84,),"") -> 0
A85: BL003 | B85: Exigível a longo prazo | G85: 84 | H85: =IFERROR(HLOOKUP(H$3,'Base de Dados - Água e esgoto'!$H$2:$AB$489,$G85,),"") -> 53969 | I85: =IFERROR(HLOOKUP(I$3,'Base de Dados - Água e esgoto'!$H$2:$AB$489,$G85,),"") -> 62659 | J85: =IFERROR(HLOOKUP(J$3,'Base de Dados - Água e esgoto'!$H$2:$AB$489,$G85,),"") -> 133362 | K85: =IFERROR(HLOOKUP(K$3,'Base de Dados - Água e esgoto'!$H$2:$AB$489,$G85,),"") -> 131347 | L85: =IFERROR(HLOOKUP(L$3,'Base de Dados - Água e esgoto'!$H$2:$AB$489,$G85,),"") -> 0
A86: BL010 | B86: Realizável a longo prazo | G86: 85 | H86: =IFERROR(HLOOKUP(H$3,'Base de Dados - Água e esgoto'!$H$2:$AB$489,$G86,),"") -> 2855 | I86: =IFERROR(HLOOKUP(I$3,'Base de Dados - Água e esgoto'!$H$2:$AB$489,$G86,),"") -> 325 | J86: =IFERROR(HLOOKUP(J$3,'Base de Dados - Água e esgoto'!$H$2:$AB$489,$G86,),"") -> 2590 | K86: =IFERROR(HLOOKUP(K$3,'Base de Dados - Água e esgoto'!$H$2:$AB$489,$G86,),"") -> 1647 | L86: =IFERROR(HLOOKUP(L$3,'Base de Dados - Água e esgoto'!$H$2:$AB$489,$G86,),"") -> 0
A87: BL002 | B87: Ativo total | G87: 86 | H87: =IFERROR(HLOOKUP(H$3,'Base de Dados - Água e esgoto'!$H$2:$AB$489,$G87,),"") -> 119249 | I87: =IFERROR(HLOOKUP(I$3,'Base de Dados - Água e esgoto'!$H$2:$AB$489,$G87,),"") -> 129474 | J87: =IFERROR(HLOOKUP(J$3,'Base de Dados - Água e esgoto'!$H$2:$AB$489,$G87,),"") -> 190094 | K87: =IFERROR(HLOOKUP(K$3,'Base de Dados - Água e esgoto'!$H$2:$AB$489,$G87,),"") -> 191975 | L87: =IFERROR(HLOOKUP(L$3,'Base de Dados - Água e esgoto'!$H$2:$AB$489,$G87,),"") -> 0
A88: BL008 | B88: Resultado de exercícios futuros | G88: 87 | H88: =IFERROR(HLOOKUP(H$3,'Base de Dados - Água e esgoto'!$H$2:$AB$489,$G88,),"") -> 0 | I88: =IFERROR(HLOOKUP(I$3,'Base de Dados - Água e esgoto'!$H$2:$AB$489,$G88,),"") -> 0 | J88: =IFERROR(HLOOKUP(J$3,'Base de Dados - Água e esgoto'!$H$2:$AB$489,$G88,),"") -> 0 | K88: =IFERROR(HLOOKUP(K$3,'Base de Dados - Água e esgoto'!$H$2:$AB$489,$G88,),"") -> 0 | L88: =IFERROR(HLOOKUP(L$3,'Base de Dados - Água e esgoto'!$H$2:$AB$489,$G88,),"") -> 0
A89: BL007 | B89: Receita operacional | G89: 88 | H89: =IFERROR(HLOOKUP(H$3,'Base de Dados - Água e esgoto'!$H$2:$AB$489,$G89,),"") -> 49004 | I89: =IFERROR(HLOOKUP(I$3,'Base de Dados - Água e esgoto'!$H$2:$AB$489,$G89,),"") -> 50942 | J89: =IFERROR(HLOOKUP(J$3,'Base de Dados - Água e esgoto'!$H$2:$AB$489,$G89,),"") -> 56668 | K89: =IFERROR(HLOOKUP(K$3,'Base de Dados - Água e esgoto'!$H$2:$AB$489,$G89,),"") -> 63123 | L89: =IFERROR(HLOOKUP(L$3,'Base de Dados - Água e esgoto'!$H$2:$AB$489,$G89,),"") -> 0
A90: BL009 | B90: Resultado operacional com depreciação | G90: 89 | H90: =IFERROR(HLOOKUP(H$3,'Base de Dados - Água e esgoto'!$H$2:$AB$489,$G90,),"") -> 24005 | I90: =IFERROR(HLOOKUP(I$3,'Base de Dados - Água e esgoto'!$H$2:$AB$489,$G90,),"") -> 22139 | J90: =IFERROR(HLOOKUP(J$3,'Base de Dados - Água e esgoto'!$H$2:$AB$489,$G90,),"") -> 15464 | K90: =IFERROR(HLOOKUP(K$3,'Base de Dados - Água e esgoto'!$H$2:$AB$489,$G90,),"") -> 17546 | L90: =IFERROR(HLOOKUP(L$3,'Base de Dados - Água e esgoto'!$H$2:$AB$489,$G90,),"") -> 0
A91: BL012 | B91: Resultado operacional sem depreciação | G91: 90 | H91: =IFERROR(HLOOKUP(H$3,'Base de Dados - Água e esgoto'!$H$2:$AB$489,$G91,),"") -> 2419 | I91: =IFERROR(HLOOKUP(I$3,'Base de Dados - Água e esgoto'!$H$2:$AB$489,$G91,),"") -> 4159 | J91: =IFERROR(HLOOKUP(J$3,'Base de Dados - Água e esgoto'!$H$2:$AB$489,$G91,),"") -> 361 | K91: =IFERROR(HLOOKUP(K$3,'Base de Dados - Água e esgoto'!$H$2:$AB$489,$G91,),"") -> -5744 | L91: =IFERROR(HLOOKUP(L$3,'Base de Dados - Água e esgoto'!$H$2:$AB$489,$G91,),"") -> 0
A92: BL004 | B92: Lucro líquido com depreciação | G92: 91 | H92: =IFERROR(HLOOKUP(H$3,'Base de Dados - Água e esgoto'!$H$2:$AB$489,$G92,),"") -> 2419 | I92: =IFERROR(HLOOKUP(I$3,'Base de Dados - Água e esgoto'!$H$2:$AB$489,$G92,),"") -> 4159 | J92: =IFERROR(HLOOKUP(J$3,'Base de Dados - Água e esgoto'!$H$2:$AB$489,$G92,),"") -> 361 | K92: =IFERROR(HLOOKUP(K$3,'Base de Dados - Água e esgoto'!$H$2:$AB$489,$G92,),"") -> -5744 | L92: =IFERROR(HLOOKUP(L$3,'Base de Dados - Água e esgoto'!$H$2:$AB$489,$G92,),"") -> 0
A93: BL011 | B93: Lucro líquido sem depreciação | G93: 92 | H93: =IFERROR(HLOOKUP(H$3,'Base de Dados - Água e esgoto'!$H$2:$AB$489,$G93,),"") -> 5489 | I93: =IFERROR(HLOOKUP(I$3,'Base de Dados - Água e esgoto'!$H$2:$AB$489,$G93,),"") -> 8711 | J93: =IFERROR(HLOOKUP(J$3,'Base de Dados - Água e esgoto'!$H$2:$AB$489,$G93,),"") -> 6786 | K93: =IFERROR(HLOOKUP(K$3,'Base de Dados - Água e esgoto'!$H$2:$AB$489,$G93,),"") -> 2265 | L93: =IFERROR(HLOOKUP(L$3,'Base de Dados - Água e esgoto'!$H$2:$AB$489,$G93,),"") -> 0
A94: BL006 | B94: Patrimônio líquido | G94: 93 | H94: =IFERROR(HLOOKUP(H$3,'Base de Dados - Água e esgoto'!$H$2:$AB$489,$G94,),"") -> 34830 | I94: =IFERROR(HLOOKUP(I$3,'Base de Dados - Água e esgoto'!$H$2:$AB$489,$G94,),"") -> 34728 | J94: =IFERROR(HLOOKUP(J$3,'Base de Dados - Água e esgoto'!$H$2:$AB$489,$G94,),"") -> 35003 | K94: =IFERROR(HLOOKUP(K$3,'Base de Dados - Água e esgoto'!$H$2:$AB$489,$G94,),"") -> 33869 | L94: =IFERROR(HLOOKUP(L$3,'Base de Dados - Água e esgoto'!$H$2:$AB$489,$G94,),"") -> 0
A95: ES001 | B95: Polulação total atendida com esgotamento sanitário | G95: 94 | H95: =IFERROR(HLOOKUP(H$3,'Base de Dados - Água e esgoto'!$H$2:$AB$489,$G95,),"") -> 46540 | I95: =IFERROR(HLOOKUP(I$3,'Base de Dados - Água e esgoto'!$H$2:$AB$489,$G95,),"") -> 48108 | J95: =IFERROR(HLOOKUP(J$3,'Base de Dados - Água e esgoto'!$H$2:$AB$489,$G95,),"") -> 51427 | K95: =IFERROR(HLOOKUP(K$3,'Base de Dados - Água e esgoto'!$H$2:$AB$489,$G95,),"") -> 52863 | L95: =IFERROR(HLOOKUP(L$3,'Base de Dados - Água e esgoto'!$H$2:$AB$489,$G95,),"") -> 0
A96: ES007 | B96: Volume de esgoto faturado | G96: 95 | H96: =IFERROR(HLOOKUP(H$3,'Base de Dados - Água e esgoto'!$H$2:$AB$489,$G96,),"") -> 2609 | I96: =IFERROR(HLOOKUP(I$3,'Base de Dados - Água e esgoto'!$H$2:$AB$489,$G96,),"") -> 2767.72 | J96: =IFERROR(HLOOKUP(J$3,'Base de Dados - Água e esgoto'!$H$2:$AB$489,$G96,),"") -> 3042.59 | K96: =IFERROR(HLOOKUP(K$3,'Base de Dados - Água e esgoto'!$H$2:$AB$489,$G96,),"") -> 3966 | L96: =IFERROR(HLOOKUP(L$3,'Base de Dados - Água e esgoto'!$H$2:$AB$489,$G96,),"") -> 0
A97: ES013 | B97: Volume de esgoto bruto importado | G97: 96 | H97: =IFERROR(HLOOKUP(H$3,'Base de Dados - Água e esgoto'!$H$2:$AB$489,$G97,),"") -> 0 | I97: =IFERROR(HLOOKUP(I$3,'Base de Dados - Água e esgoto'!$H$2:$AB$489,$G97,),"") -> 0 | J97: =IFERROR(HLOOKUP(J$3,'Base de Dados - Água e esgoto'!$H$2:$AB$489,$G97,),"") -> 0 | K97: =IFERROR(HLOOKUP(K$3,'Base de Dados - Água e esgoto'!$H$2:$AB$489,$G97,),"") -> 0 | L97: =IFERROR(HLOOKUP(L$3,'Base de Dados - Água e esgoto'!$H$2:$AB$489,$G97,),"") -> 0
A98: ES008 | B98: Quantidade de economias residenciais ativas de esgotos | G98: 97 | H98: =IFERROR(HLOOKUP(H$3,'Base de Dados - Água e esgoto'!$H$2:$AB$489,$G98,),"") -> 24702 | I98: =IFERROR(HLOOKUP(I$3,'Base de Dados - Água e esgoto'!$H$2:$AB$489,$G98,),"") -> 26655 | J98: =IFERROR(HLOOKUP(J$3,'Base de Dados - Água e esgoto'!$H$2:$AB$489,$G98,),"") -> 34093 | K98: =IFERROR(HLOOKUP(K$3,'Base de Dados - Água e esgoto'!$H$2:$AB$489,$G98,),"") -> 0 | L98: =IFERROR(HLOOKUP(L$3,'Base de Dados - Água e esgoto'!$H$2:$AB$489,$G98,),"") -> 0
G99: 98 | H99: =IFERROR(HLOOKUP(H$3,'Base de Dados - Água e esgoto'!$H$2:$AB$489,$G99,),"") -> 0 | I99: =IFERROR(HLOOKUP(I$3,'Base de Dados - Água e esgoto'!$H$2:$AB$489,$G99,),"") -> 0 | J99: =IFERROR(HLOOKUP(J$3,'Base de Dados - Água e esgoto'!$H$2:$AB$489,$G99,),"") -> 0 | K99: =IFERROR(HLOOKUP(K$3,'Base de Dados - Água e esgoto'!$H$2:$AB$489,$G99,),"") -> 0 | L99: =IFERROR(HLOOKUP(L$3,'Base de Dados - Água e esgoto'!$H$2:$AB$489,$G99,),"") -> 0
G100: 99 | H100: =IFERROR(HLOOKUP(H$3,'Base de Dados - Água e esgoto'!$H$2:$AB$489,$G100,),"") -> 0 | I100: =IFERROR(HLOOKUP(I$3,'Base de Dados - Água e esgoto'!$H$2:$AB$489,$G100,),"") -> 0 | J100: =IFERROR(HLOOKUP(J$3,'Base de Dados - Água e esgoto'!$H$2:$AB$489,$G100,),"") -> 0 | K100: =IFERROR(HLOOKUP(K$3,'Base de Dados - Água e esgoto'!$H$2:$AB$489,$G100,),"") -> 0 | L100: =IFERROR(HLOOKUP(L$3,'Base de Dados - Água e esgoto'!$H$2:$AB$489,$G100,),"") -> 0
G101: 100 | H101: =IFERROR(HLOOKUP(H$3,'Base de Dados - Água e esgoto'!$H$2:$AB$489,$G101,),"") -> 0 | I101: =IFERROR(HLOOKUP(I$3,'Base de Dados - Água e esgoto'!$H$2:$AB$489,$G101,),"") -> 0 | J101: =IFERROR(HLOOKUP(J$3,'Base de Dados - Água e esgoto'!$H$2:$AB$489,$G101,),"") -> 0 | K101: =IFERROR(HLOOKUP(K$3,'Base de Dados - Água e esgoto'!$H$2:$AB$489,$G101,),"") -> 0 | L101: =IFERROR(HLOOKUP(L$3,'Base de Dados - Água e esgoto'!$H$2:$AB$489,$G101,),"") -> 0
B102: Quantidade de economias residenciais ativas de água (similar ao SNIS AG013) | G102: 101 | H102: =IFERROR(HLOOKUP(H$3,'Base de Dados - Água e esgoto'!$H$2:$AB$489,$G102,),"") -> 38630 | I102: =IFERROR(HLOOKUP(I$3,'Base de Dados - Água e esgoto'!$H$2:$AB$489,$G102,),"") -> 40940 | J102: =IFERROR(HLOOKUP(J$3,'Base de Dados - Água e esgoto'!$H$2:$AB$489,$G102,),"") -> 42821 | K102: =IFERROR(HLOOKUP(K$3,'Base de Dados - Água e esgoto'!$H$2:$AB$489,$G102,),"") -> 45286 | L102: =IFERROR(HLOOKUP(L$3,'Base de Dados - Água e esgoto'!$H$2:$AB$489,$G102,),"") -> 0
B103: Quantidade de economias residenciais inativas de água | G103: 102 | H103: =IFERROR(HLOOKUP(H$3,'Base de Dados - Água e esgoto'!$H$2:$AB$489,$G103,),"") -> 0 | I103: =IFERROR(HLOOKUP(I$3,'Base de Dados - Água e esgoto'!$H$2:$AB$489,$G103,),"") -> 0 | J103: =IFERROR(HLOOKUP(J$3,'Base de Dados - Água e esgoto'!$H$2:$AB$489,$G103,),"") -> 0 | K103: =IFERROR(HLOOKUP(K$3,'Base de Dados - Água e esgoto'!$H$2:$AB$489,$G103,),"") -> 0 | L103: =IFERROR(HLOOKUP(L$3,'Base de Dados - Água e esgoto'!$H$2:$AB$489,$G103,),"") -> 0
B104: Quantidade de economias residenciais ativas com coleta de esgoto (similar ao SNIS ES008) | G104: 103 | H104: =IFERROR(HLOOKUP(H$3,'Base de Dados - Água e esgoto'!$H$2:$AB$489,$G104,),"") -> 24702 | I104: =IFERROR(HLOOKUP(I$3,'Base de Dados - Água e esgoto'!$H$2:$AB$489,$G104,),"") -> 26655 | J104: =IFERROR(HLOOKUP(J$3,'Base de Dados - Água e esgoto'!$H$2:$AB$489,$G104,),"") -> 34093 | K104: =IFERROR(HLOOKUP(K$3,'Base de Dados - Água e esgoto'!$H$2:$AB$489,$G104,),"") -> 35415 | L104: =IFERROR(HLOOKUP(L$3,'Base de Dados - Água e esgoto'!$H$2:$AB$489,$G104,),"") -> 0
B105: Quantidade de economias residenciais inativas com coleta de esgoto | G105: 104 | H105: =IFERROR(HLOOKUP(H$3,'Base de Dados - Água e esgoto'!$H$2:$AB$489,$G105,),"") -> 0 | I105: =IFERROR(HLOOKUP(I$3,'Base de Dados - Água e esgoto'!$H$2:$AB$489,$G105,),"") -> 0 | J105: =IFERROR(HLOOKUP(J$3,'Base de Dados - Água e esgoto'!$H$2:$AB$489,$G105,),"") -> 0 | K105: =IFERROR(HLOOKUP(K$3,'Base de Dados - Água e esgoto'!$H$2:$AB$489,$G105,),"") -> 0 | L105: =IFERROR(HLOOKUP(L$3,'Base de Dados - Água e esgoto'!$H$2:$AB$489,$G105,),"") -> 0
B106: Quantidade de economias residenciais ativas com tratamento de esgoto (similar ao SNIS ES008) | G106: 105 | H106: =IFERROR(HLOOKUP(H$3,'Base de Dados - Água e esgoto'!$H$2:$AB$489,$G106,),"") -> 24702 | I106: =IFERROR(HLOOKUP(I$3,'Base de Dados - Água e esgoto'!$H$2:$AB$489,$G106,),"") -> 26655 | J106: =IFERROR(HLOOKUP(J$3,'Base de Dados - Água e esgoto'!$H$2:$AB$489,$G106,),"") -> 34093 | K106: =IFERROR(HLOOKUP(K$3,'Base de Dados - Água e esgoto'!$H$2:$AB$489,$G106,),"") -> 35415 | L106: =IFERROR(HLOOKUP(L$3,'Base de Dados - Água e esgoto'!$H$2:$AB$489,$G106,),"") -> 0
B107: Quantidade de economias residenciais inativas com tratamento de esgoto | G107: 106 | H107: =IFERROR(HLOOKUP(H$3,'Base de Dados - Água e esgoto'!$H$2:$AB$489,$G107,),"") -> 0 | I107: =IFERROR(HLOOKUP(I$3,'Base de Dados - Água e esgoto'!$H$2:$AB$489,$G107,),"") -> 0 | J107: =IFERROR(HLOOKUP(J$3,'Base de Dados - Água e esgoto'!$H$2:$AB$489,$G107,),"") -> 0 | K107: =IFERROR(HLOOKUP(K$3,'Base de Dados - Água e esgoto'!$H$2:$AB$489,$G107,),"") -> 0 | L107: =IFERROR(HLOOKUP(L$3,'Base de Dados - Água e esgoto'!$H$2:$AB$489,$G107,),"") -> 0
B108: Quantidade total de domicílios residenciais existentes na área de abrangência do Prestador de Serviços (adotado similar a AG013) | G108: 107 | H108: =IFERROR(HLOOKUP(H$3,'Base de Dados - Água e esgoto'!$H$2:$AB$489,$G108,),"") -> 38630 | I108: =IFERROR(HLOOKUP(I$3,'Base de Dados - Água e esgoto'!$H$2:$AB$489,$G108,),"") -> 40940 | J108: =IFERROR(HLOOKUP(J$3,'Base de Dados - Água e esgoto'!$H$2:$AB$489,$G108,),"") -> 42821 | K108: =IFERROR(HLOOKUP(K$3,'Base de Dados - Água e esgoto'!$H$2:$AB$489,$G108,),"") -> 45286
G109: 108 | H109: =IFERROR(HLOOKUP(H$3,'Base de Dados - Água e esgoto'!$H$2:$AB$489,$G109,),"") -> 0 | I109: =IFERROR(HLOOKUP(I$3,'Base de Dados - Água e esgoto'!$H$2:$AB$489,$G109,),"") -> 0 | J109: =IFERROR(HLOOKUP(J$3,'Base de Dados - Água e esgoto'!$H$2:$AB$489,$G109,),"") -> 0 | K109: =IFERROR(HLOOKUP(K$3,'Base de Dados - Água e esgoto'!$H$2:$AB$489,$G109,),"") -> 0
G110: 109 | H110: =IFERROR(HLOOKUP(H$3,'Base de Dados - Água e esgoto'!$H$2:$AB$489,$G110,),"") -> 0 | I110: =IFERROR(HLOOKUP(I$3,'Base de Dados - Água e esgoto'!$H$2:$AB$489,$G110,),"") -> 0 | J110: =IFERROR(HLOOKUP(J$3,'Base de Dados - Água e esgoto'!$H$2:$AB$489,$G110,),"") -> 0 | K110: =IFERROR(HLOOKUP(K$3,'Base de Dados - Água e esgoto'!$H$2:$AB$489,$G110,),"") -> 0
G111: 110 | H111: =IFERROR(HLOOKUP(H$3,'Base de Dados - Água e esgoto'!$H$2:$AB$489,$G111,),"") -> 0 | I111: =IFERROR(HLOOKUP(I$3,'Base de Dados - Água e esgoto'!$H$2:$AB$489,$G111,),"") -> 0 | J111: =IFERROR(HLOOKUP(J$3,'Base de Dados - Água e esgoto'!$H$2:$AB$489,$G111,),"") -> 0 | K111: =IFERROR(HLOOKUP(K$3,'Base de Dados - Água e esgoto'!$H$2:$AB$489,$G111,),"") -> 0
G112: 111 | H112: =IFERROR(HLOOKUP(H$3,'Base de Dados - Água e esgoto'!$H$2:$AB$489,$G112,),"") -> 0 | I112: =IFERROR(HLOOKUP(I$3,'Base de Dados - Água e esgoto'!$H$2:$AB$489,$G112,),"") -> 0 | J112: =IFERROR(HLOOKUP(J$3,'Base de Dados - Água e esgoto'!$H$2:$AB$489,$G112,),"") -> 0 | K112: =IFERROR(HLOOKUP(K$3,'Base de Dados - Água e esgoto'!$H$2:$AB$489,$G112,),"") -> 0
G113: 112 | H113: =IFERROR(HLOOKUP(H$3,'Base de Dados - Água e esgoto'!$H$2:$AB$489,$G113,),"") -> 0 | I113: =IFERROR(HLOOKUP(I$3,'Base de Dados - Água e esgoto'!$H$2:$AB$489,$G113,),"") -> 0 | J113: =IFERROR(HLOOKUP(J$3,'Base de Dados - Água e esgoto'!$H$2:$AB$489,$G113,),"") -> 0 | K113: =IFERROR(HLOOKUP(K$3,'Base de Dados - Água e esgoto'!$H$2:$AB$489,$G113,),"") -> 0
G114: 113 | H114: =IFERROR(HLOOKUP(H$3,'Base de Dados - Água e esgoto'!$H$2:$AB$489,$G114,),"") -> 0 | I114: =IFERROR(HLOOKUP(I$3,'Base de Dados - Água e esgoto'!$H$2:$AB$489,$G114,),"") -> 0 | J114: =IFERROR(HLOOKUP(J$3,'Base de Dados - Água e esgoto'!$H$2:$AB$489,$G114,),"") -> 0 | K114: =IFERROR(HLOOKUP(K$3,'Base de Dados - Água e esgoto'!$H$2:$AB$489,$G114,),"") -> 0
G115: 114 | H115: =IFERROR(HLOOKUP(H$3,'Base de Dados - Água e esgoto'!$H$2:$AB$489,$G115,),"") -> 0 | I115: =IFERROR(HLOOKUP(I$3,'Base de Dados - Água e esgoto'!$H$2:$AB$489,$G115,),"") -> 0 | J115: =IFERROR(HLOOKUP(J$3,'Base de Dados - Água e esgoto'!$H$2:$AB$489,$G115,),"") -> 0 | K115: =IFERROR(HLOOKUP(K$3,'Base de Dados - Água e esgoto'!$H$2:$AB$489,$G115,),"") -> 0
G116: 115 | H116: =IFERROR(HLOOKUP(H$3,'Base de Dados - Água e esgoto'!$H$2:$AB$489,$G116,),"") -> 0 | I116: =IFERROR(HLOOKUP(I$3,'Base de Dados - Água e esgoto'!$H$2:$AB$489,$G116,),"") -> 0 | J116: =IFERROR(HLOOKUP(J$3,'Base de Dados - Água e esgoto'!$H$2:$AB$489,$G116,),"") -> 0 | K116: =IFERROR(HLOOKUP(K$3,'Base de Dados - Água e esgoto'!$H$2:$AB$489,$G116,),"") -> 0
G117: 116 | H117: =IFERROR(HLOOKUP(H$3,'Base de Dados - Água e esgoto'!$H$2:$AB$489,$G117,),"") -> 0 | I117: =IFERROR(HLOOKUP(I$3,'Base de Dados - Água e esgoto'!$H$2:$AB$489,$G117,),"") -> 0 | J117: =IFERROR(HLOOKUP(J$3,'Base de Dados - Água e esgoto'!$H$2:$AB$489,$G117,),"") -> 0 | K117: =IFERROR(HLOOKUP(K$3,'Base de Dados - Água e esgoto'!$H$2:$AB$489,$G117,),"") -> 0
G118: 117 | H118: =IFERROR(HLOOKUP(H$3,'Base de Dados - Água e esgoto'!$H$2:$AB$489,$G118,),"") -> 0 | I118: =IFERROR(HLOOKUP(I$3,'Base de Dados - Água e esgoto'!$H$2:$AB$489,$G118,),"") -> 0 | J118: =IFERROR(HLOOKUP(J$3,'Base de Dados - Água e esgoto'!$H$2:$AB$489,$G118,),"") -> 0 | K118: =IFERROR(HLOOKUP(K$3,'Base de Dados - Água e esgoto'!$H$2:$AB$489,$G118,),"") -> 0
G119: 118 | H119: =IFERROR(HLOOKUP(H$3,'Base de Dados - Água e esgoto'!$H$2:$AB$489,$G119,),"") -> 0 | I119: =IFERROR(HLOOKUP(I$3,'Base de Dados - Água e esgoto'!$H$2:$AB$489,$G119,),"") -> 0 | J119: =IFERROR(HLOOKUP(J$3,'Base de Dados - Água e esgoto'!$H$2:$AB$489,$G119,),"") -> 0 | K119: =IFERROR(HLOOKUP(K$3,'Base de Dados - Água e esgoto'!$H$2:$AB$489,$G119,),"") -> 0
G120: 119 | H120: =IFERROR(HLOOKUP(H$3,'Base de Dados - Água e esgoto'!$H$2:$AB$489,$G120,),"") -> 0 | I120: =IFERROR(HLOOKUP(I$3,'Base de Dados - Água e esgoto'!$H$2:$AB$489,$G120,),"") -> 0 | J120: =IFERROR(HLOOKUP(J$3,'Base de Dados - Água e esgoto'!$H$2:$AB$489,$G120,),"") -> 0 | K120: =IFERROR(HLOOKUP(K$3,'Base de Dados - Água e esgoto'!$H$2:$AB$489,$G120,),"") -> 0
G121: 120 | H121: =IFERROR(HLOOKUP(H$3,'Base de Dados - Água e esgoto'!$H$2:$AB$489,$G121,),"") -> 0 | I121: =IFERROR(HLOOKUP(I$3,'Base de Dados - Água e esgoto'!$H$2:$AB$489,$G121,),"") -> 0 | J121: =IFERROR(HLOOKUP(J$3,'Base de Dados - Água e esgoto'!$H$2:$AB$489,$G121,),"") -> 0 | K121: =IFERROR(HLOOKUP(K$3,'Base de Dados - Água e esgoto'!$H$2:$AB$489,$G121,),"") -> 0
G122: 121 | H122: =IFERROR(HLOOKUP(H$3,'Base de Dados - Água e esgoto'!$H$2:$AB$489,$G122,),"") -> 0 | I122: =IFERROR(HLOOKUP(I$3,'Base de Dados - Água e esgoto'!$H$2:$AB$489,$G122,),"") -> 0 | J122: =IFERROR(HLOOKUP(J$3,'Base de Dados - Água e esgoto'!$H$2:$AB$489,$G122,),"") -> 0 | K122: =IFERROR(HLOOKUP(K$3,'Base de Dados - Água e esgoto'!$H$2:$AB$489,$G122,),"") -> 0
G123: 122 | H123: =IFERROR(HLOOKUP(H$3,'Base de Dados - Água e esgoto'!$H$2:$AB$489,$G123,),"") -> 0 | I123: =IFERROR(HLOOKUP(I$3,'Base de Dados - Água e esgoto'!$H$2:$AB$489,$G123,),"") -> 0 | J123: =IFERROR(HLOOKUP(J$3,'Base de Dados - Água e esgoto'!$H$2:$AB$489,$G123,),"") -> 0 | K123: =IFERROR(HLOOKUP(K$3,'Base de Dados - Água e esgoto'!$H$2:$AB$489,$G123,),"") -> 0
G124: 123 | H124: =IFERROR(HLOOKUP(H$3,'Base de Dados - Água e esgoto'!$H$2:$AB$489,$G124,),"") -> 0 | I124: =IFERROR(HLOOKUP(I$3,'Base de Dados - Água e esgoto'!$H$2:$AB$489,$G124,),"") -> 0 | J124: =IFERROR(HLOOKUP(J$3,'Base de Dados - Água e esgoto'!$H$2:$AB$489,$G124,),"") -> 0 | K124: =IFERROR(HLOOKUP(K$3,'Base de Dados - Água e esgoto'!$H$2:$AB$489,$G124,),"") -> 0
G125: 124 | H125: =IFERROR(HLOOKUP(H$3,'Base de Dados - Água e esgoto'!$H$2:$AB$489,$G125,),"") -> 0 | I125: =IFERROR(HLOOKUP(I$3,'Base de Dados - Água e esgoto'!$H$2:$AB$489,$G125,),"") -> 0 | J125: =IFERROR(HLOOKUP(J$3,'Base de Dados - Água e esgoto'!$H$2:$AB$489,$G125,),"") -> 0 | K125: =IFERROR(HLOOKUP(K$3,'Base de Dados - Água e esgoto'!$H$2:$AB$489,$G125,),"") -> 0
G126: 125 | H126: =IFERROR(HLOOKUP(H$3,'Base de Dados - Água e esgoto'!$H$2:$AB$489,$G126,),"") -> 0 | I126: =IFERROR(HLOOKUP(I$3,'Base de Dados - Água e esgoto'!$H$2:$AB$489,$G126,),"") -> 0 | J126: =IFERROR(HLOOKUP(J$3,'Base de Dados - Água e esgoto'!$H$2:$AB$489,$G126,),"") -> 0 | K126: =IFERROR(HLOOKUP(K$3,'Base de Dados - Água e esgoto'!$H$2:$AB$489,$G126,),"") -> 0
G127: 126 | H127: =IFERROR(HLOOKUP(H$3,'Base de Dados - Água e esgoto'!$H$2:$AB$489,$G127,),"") -> 0 | I127: =IFERROR(HLOOKUP(I$3,'Base de Dados - Água e esgoto'!$H$2:$AB$489,$G127,),"") -> 0 | J127: =IFERROR(HLOOKUP(J$3,'Base de Dados - Água e esgoto'!$H$2:$AB$489,$G127,),"") -> 0 | K127: =IFERROR(HLOOKUP(K$3,'Base de Dados - Água e esgoto'!$H$2:$AB$489,$G127,),"") -> 0
G128: 127 | H128: =IFERROR(HLOOKUP(H$3,'Base de Dados - Água e esgoto'!$H$2:$AB$489,$G128,),"") -> 0 | I128: =IFERROR(HLOOKUP(I$3,'Base de Dados - Água e esgoto'!$H$2:$AB$489,$G128,),"") -> 0 | J128: =IFERROR(HLOOKUP(J$3,'Base de Dados - Água e esgoto'!$H$2:$AB$489,$G128,),"") -> 0 | K128: =IFERROR(HLOOKUP(K$3,'Base de Dados - Água e esgoto'!$H$2:$AB$489,$G128,),"") -> 0
G129: 128 | H129: =IFERROR(HLOOKUP(H$3,'Base de Dados - Água e esgoto'!$H$2:$AB$489,$G129,),"") -> 0 | I129: =IFERROR(HLOOKUP(I$3,'Base de Dados - Água e esgoto'!$H$2:$AB$489,$G129,),"") -> 0 | J129: =IFERROR(HLOOKUP(J$3,'Base de Dados - Água e esgoto'!$H$2:$AB$489,$G129,),"") -> 0 | K129: =IFERROR(HLOOKUP(K$3,'Base de Dados - Água e esgoto'!$H$2:$AB$489,$G129,),"") -> 0
G130: 129 | H130: =IFERROR(HLOOKUP(H$3,'Base de Dados - Água e esgoto'!$H$2:$AB$489,$G130,),"") -> 0 | I130: =IFERROR(HLOOKUP(I$3,'Base de Dados - Água e esgoto'!$H$2:$AB$489,$G130,),"") -> 0 | J130: =IFERROR(HLOOKUP(J$3,'Base de Dados - Água e esgoto'!$H$2:$AB$489,$G130,),"") -> 0 | K130: =IFERROR(HLOOKUP(K$3,'Base de Dados - Água e esgoto'!$H$2:$AB$489,$G130,),"") -> 0
G131: 130 | H131: =IFERROR(HLOOKUP(H$3,'Base de Dados - Água e esgoto'!$H$2:$AB$489,$G131,),"") -> 0 | I131: =IFERROR(HLOOKUP(I$3,'Base de Dados - Água e esgoto'!$H$2:$AB$489,$G131,),"") -> 0 | J131: =IFERROR(HLOOKUP(J$3,'Base de Dados - Água e esgoto'!$H$2:$AB$489,$G131,),"") -> 0 | K131: =IFERROR(HLOOKUP(K$3,'Base de Dados - Água e esgoto'!$H$2:$AB$489,$G131,),"") -> 0
G132: 131 | H132: =IFERROR(HLOOKUP(H$3,'Base de Dados - Água e esgoto'!$H$2:$AB$489,$G132,),"") -> 0 | I132: =IFERROR(HLOOKUP(I$3,'Base de Dados - Água e esgoto'!$H$2:$AB$489,$G132,),"") -> 0 | J132: =IFERROR(HLOOKUP(J$3,'Base de Dados - Água e esgoto'!$H$2:$AB$489,$G132,),"") -> 0 | K132: =IFERROR(HLOOKUP(K$3,'Base de Dados - Água e esgoto'!$H$2:$AB$489,$G132,),"") -> 0
G133: 132 | H133: =IFERROR(HLOOKUP(H$3,'Base de Dados - Água e esgoto'!$H$2:$AB$489,$G133,),"") -> 0 | I133: =IFERROR(HLOOKUP(I$3,'Base de Dados - Água e esgoto'!$H$2:$AB$489,$G133,),"") -> 0 | J133: =IFERROR(HLOOKUP(J$3,'Base de Dados - Água e esgoto'!$H$2:$AB$489,$G133,),"") -> 0 | K133: =IFERROR(HLOOKUP(K$3,'Base de Dados - Água e esgoto'!$H$2:$AB$489,$G133,),"") -> 0
G134: 133 | H134: =IFERROR(HLOOKUP(H$3,'Base de Dados - Água e esgoto'!$H$2:$AB$489,$G134,),"") -> 0 | I134: =IFERROR(HLOOKUP(I$3,'Base de Dados - Água e esgoto'!$H$2:$AB$489,$G134,),"") -> 0 | J134: =IFERROR(HLOOKUP(J$3,'Base de Dados - Água e esgoto'!$H$2:$AB$489,$G134,),"") -> 0 | K134: =IFERROR(HLOOKUP(K$3,'Base de Dados - Água e esgoto'!$H$2:$AB$489,$G134,),"") -> 0
G135: 134 | H135: =IFERROR(HLOOKUP(H$3,'Base de Dados - Água e esgoto'!$H$2:$AB$489,$G135,),"") -> 0 | I135: =IFERROR(HLOOKUP(I$3,'Base de Dados - Água e esgoto'!$H$2:$AB$489,$G135,),"") -> 0 | J135: =IFERROR(HLOOKUP(J$3,'Base de Dados - Água e esgoto'!$H$2:$AB$489,$G135,),"") -> 0 | K135: =IFERROR(HLOOKUP(K$3,'Base de Dados - Água e esgoto'!$H$2:$AB$489,$G135,),"") -> 0
G136: 135 | H136: =IFERROR(HLOOKUP(H$3,'Base de Dados - Água e esgoto'!$H$2:$AB$489,$G136,),"") -> 0 | I136: =IFERROR(HLOOKUP(I$3,'Base de Dados - Água e esgoto'!$H$2:$AB$489,$G136,),"") -> 0 | J136: =IFERROR(HLOOKUP(J$3,'Base de Dados - Água e esgoto'!$H$2:$AB$489,$G136,),"") -> 0 | K136: =IFERROR(HLOOKUP(K$3,'Base de Dados - Água e esgoto'!$H$2:$AB$489,$G136,),"") -> 0
G137: 136 | H137: =IFERROR(HLOOKUP(H$3,'Base de Dados - Água e esgoto'!$H$2:$AB$489,$G137,),"") -> 0 | I137: =IFERROR(HLOOKUP(I$3,'Base de Dados - Água e esgoto'!$H$2:$AB$489,$G137,),"") -> 0 | J137: =IFERROR(HLOOKUP(J$3,'Base de Dados - Água e esgoto'!$H$2:$AB$489,$G137,),"") -> 0 | K137: =IFERROR(HLOOKUP(K$3,'Base de Dados - Água e esgoto'!$H$2:$AB$489,$G137,),"") -> 0
G138: 137 | H138: =IFERROR(HLOOKUP(H$3,'Base de Dados - Água e esgoto'!$H$2:$AB$489,$G138,),"") -> 0 | I138: =IFERROR(HLOOKUP(I$3,'Base de Dados - Água e esgoto'!$H$2:$AB$489,$G138,),"") -> 0 | J138: =IFERROR(HLOOKUP(J$3,'Base de Dados - Água e esgoto'!$H$2:$AB$489,$G138,),"") -> 0 | K138: =IFERROR(HLOOKUP(K$3,'Base de Dados - Água e esgoto'!$H$2:$AB$489,$G138,),"") -> 0
G139: 138 | H139: =IFERROR(HLOOKUP(H$3,'Base de Dados - Água e esgoto'!$H$2:$AB$489,$G139,),"") -> 0 | I139: =IFERROR(HLOOKUP(I$3,'Base de Dados - Água e esgoto'!$H$2:$AB$489,$G139,),"") -> 0 | J139: =IFERROR(HLOOKUP(J$3,'Base de Dados - Água e esgoto'!$H$2:$AB$489,$G139,),"") -> 0 | K139: =IFERROR(HLOOKUP(K$3,'Base de Dados - Água e esgoto'!$H$2:$AB$489,$G139,),"") -> 0
G140: 139 | H140: =IFERROR(HLOOKUP(H$3,'Base de Dados - Água e esgoto'!$H$2:$AB$489,$G140,),"") -> 0 | I140: =IFERROR(HLOOKUP(I$3,'Base de Dados - Água e esgoto'!$H$2:$AB$489,$G140,),"") -> 0 | J140: =IFERROR(HLOOKUP(J$3,'Base de Dados - Água e esgoto'!$H$2:$AB$489,$G140,),"") -> 0 | K140: =IFERROR(HLOOKUP(K$3,'Base de Dados - Água e esgoto'!$H$2:$AB$489,$G140,),"") -> 0
G141: 140 | H141: =IFERROR(HLOOKUP(H$3,'Base de Dados - Água e esgoto'!$H$2:$AB$489,$G141,),"") -> 0 | I141: =IFERROR(HLOOKUP(I$3,'Base de Dados - Água e esgoto'!$H$2:$AB$489,$G141,),"") -> 0 | J141: =IFERROR(HLOOKUP(J$3,'Base de Dados - Água e esgoto'!$H$2:$AB$489,$G141,),"") -> 0 | K141: =IFERROR(HLOOKUP(K$3,'Base de Dados - Água e esgoto'!$H$2:$AB$489,$G141,),"") -> 0
G142: 141 | H142: =IFERROR(HLOOKUP(H$3,'Base de Dados - Água e esgoto'!$H$2:$AB$489,$G142,),"") -> 0 | I142: =IFERROR(HLOOKUP(I$3,'Base de Dados - Água e esgoto'!$H$2:$AB$489,$G142,),"") -> 0 | J142: =IFERROR(HLOOKUP(J$3,'Base de Dados - Água e esgoto'!$H$2:$AB$489,$G142,),"") -> 0 | K142: =IFERROR(HLOOKUP(K$3,'Base de Dados - Água e esgoto'!$H$2:$AB$489,$G142,),"") -> 0
G143: 142 | H143: =IFERROR(HLOOKUP(H$3,'Base de Dados - Água e esgoto'!$H$2:$AB$489,$G143,),"") -> 0 | I143: =IFERROR(HLOOKUP(I$3,'Base de Dados - Água e esgoto'!$H$2:$AB$489,$G143,),"") -> 0 | J143: =IFERROR(HLOOKUP(J$3,'Base de Dados - Água e esgoto'!$H$2:$AB$489,$G143,),"") -> 0 | K143: =IFERROR(HLOOKUP(K$3,'Base de Dados - Água e esgoto'!$H$2:$AB$489,$G143,),"") -> 0
G144: 143 | H144: =IFERROR(HLOOKUP(H$3,'Base de Dados - Água e esgoto'!$H$2:$AB$489,$G144,),"") -> 0 | I144: =IFERROR(HLOOKUP(I$3,'Base de Dados - Água e esgoto'!$H$2:$AB$489,$G144,),"") -> 0 | J144: =IFERROR(HLOOKUP(J$3,'Base de Dados - Água e esgoto'!$H$2:$AB$489,$G144,),"") -> 0 | K144: =IFERROR(HLOOKUP(K$3,'Base de Dados - Água e esgoto'!$H$2:$AB$489,$G144,),"") -> 0
G145: 144 | H145: =IFERROR(HLOOKUP(H$3,'Base de Dados - Água e esgoto'!$H$2:$AB$489,$G145,),"") -> 0 | I145: =IFERROR(HLOOKUP(I$3,'Base de Dados - Água e esgoto'!$H$2:$AB$489,$G145,),"") -> 0 | J145: =IFERROR(HLOOKUP(J$3,'Base de Dados - Água e esgoto'!$H$2:$AB$489,$G145,),"") -> 0 | K145: =IFERROR(HLOOKUP(K$3,'Base de Dados - Água e esgoto'!$H$2:$AB$489,$G145,),"") -> 0
G146: 145 | H146: =IFERROR(HLOOKUP(H$3,'Base de Dados - Água e esgoto'!$H$2:$AB$489,$G146,),"") -> 0 | I146: =IFERROR(HLOOKUP(I$3,'Base de Dados - Água e esgoto'!$H$2:$AB$489,$G146,),"") -> 0 | J146: =IFERROR(HLOOKUP(J$3,'Base de Dados - Água e esgoto'!$H$2:$AB$489,$G146,),"") -> 0 | K146: =IFERROR(HLOOKUP(K$3,'Base de Dados - Água e esgoto'!$H$2:$AB$489,$G146,),"") -> 0
G147: 146 | H147: =IFERROR(HLOOKUP(H$3,'Base de Dados - Água e esgoto'!$H$2:$AB$489,$G147,),"") -> 0 | I147: =IFERROR(HLOOKUP(I$3,'Base de Dados - Água e esgoto'!$H$2:$AB$489,$G147,),"") -> 0 | J147: =IFERROR(HLOOKUP(J$3,'Base de Dados - Água e esgoto'!$H$2:$AB$489,$G147,),"") -> 0 | K147: =IFERROR(HLOOKUP(K$3,'Base de Dados - Água e esgoto'!$H$2:$AB$489,$G147,),"") -> 0
G148: 147 | H148: =IFERROR(HLOOKUP(H$3,'Base de Dados - Água e esgoto'!$H$2:$AB$489,$G148,),"") -> 0 | I148: =IFERROR(HLOOKUP(I$3,'Base de Dados - Água e esgoto'!$H$2:$AB$489,$G148,),"") -> 0 | J148: =IFERROR(HLOOKUP(J$3,'Base de Dados - Água e esgoto'!$H$2:$AB$489,$G148,),"") -> 0 | K148: =IFERROR(HLOOKUP(K$3,'Base de Dados - Água e esgoto'!$H$2:$AB$489,$G148,),"") -> 0
G149: 148 | H149: =IFERROR(HLOOKUP(H$3,'Base de Dados - Água e esgoto'!$H$2:$AB$489,$G149,),"") -> 0 | I149: =IFERROR(HLOOKUP(I$3,'Base de Dados - Água e esgoto'!$H$2:$AB$489,$G149,),"") -> 0 | J149: =IFERROR(HLOOKUP(J$3,'Base de Dados - Água e esgoto'!$H$2:$AB$489,$G149,),"") -> 0 | K149: =IFERROR(HLOOKUP(K$3,'Base de Dados - Água e esgoto'!$H$2:$AB$489,$G149,),"") -> 0
G150: 149 | H150: =IFERROR(HLOOKUP(H$3,'Base de Dados - Água e esgoto'!$H$2:$AB$489,$G150,),"") -> 0 | I150: =IFERROR(HLOOKUP(I$3,'Base de Dados - Água e esgoto'!$H$2:$AB$489,$G150,),"") -> 0 | J150: =IFERROR(HLOOKUP(J$3,'Base de Dados - Água e esgoto'!$H$2:$AB$489,$G150,),"") -> 0 | K150: =IFERROR(HLOOKUP(K$3,'Base de Dados - Água e esgoto'!$H$2:$AB$489,$G150,),"") -> 0

Sheet Base de Dados - Água e esgoto
B2: Dados | C2: Frequência | D2: Descrição | E2: Unidade de medida | F2: Fonte de dados | G2: Responsável pela geração e fonte de dados | H2: 2017 | I2: 2018 | J2: 2019 | K2: 2020 | L2: 2021 | M2: 2022 | N2: 2023 | O2: 2024 | P2: 2025 | Q2: 2026 | R2: 2027 | S2: 2028 | T2: 2029 | U2: 2030 | V2: 2031 | W2: 2032 | X2: 2033 | Y2: 2034 | Z2: 2035 | AA2: 2036 | AB2: 2037 | AC2: 2038 | AD2: 2039 | AE2: 2040 | AF2: 2041 | AG2: 2042 | AH2: 2043 | AI2: 2044 | AJ2: 2045 | AK2: 2046 | AL2: 2047 | AM2: 2048 | AN2: 2049 | AO2: 2050 | AP2: 2051 | AQ2: 2052 | AR2: 2053 | AS2: 2054 | AT2: 2055 | AU2: 2056 | AV2: 2057 | AW2: 2058 | AX2: 2059 | AY2: 2060 | AZ2: 2061
A4: AG001 | B4: População total atendida com abastecimento de água | C4: Anual | D4: Valor da soma das populações urbana e rural -sedes municipais e localidades- atendidas com abastecimento de água pelo prestador de serviços, no último dia do ano de referência. Corresponde à população que é efetivamente atendida com os serviços. | E4: habitantes | F4: Sistema Nacional de Informações Saneamento - (SNIS/2020) | G4: Prestador de serviço | H4: 59667 | I4: 61678 | J4: 64689 | K4: 67338
A5: GE12a | B5: População residente total, segundo o IBGE | C5: Anual | D5: Valor da soma das populações totais residentes (urbanas e rurais) dos municípios – sedes municipais e localidades – em que o prestador de serviços atua com serviços de abastecimento de água . Inclui tanto a população beneficiada quanto a que não é beneficiada com os serviços. | E5: habitantes | F5: Sistema Nacional de Informações Saneamento - (SNIS/2020) | G5: Prestador de serviço | H5: 61187 | I5: 63250 | J5: 65312 | K5: 67338
A6: AG026 | B6: População urbana atendida com abastecimento de água | C6: Anual | D6: Valor da população urbana atendida com abastecimento de água pelo prestador de serviços, no último dia do ano de referência. Corresponde à população urbana que é efetivamente atendida com os serviços. | E6: habitantes | F6: Sistema Nacional de Informações Saneamento - (SNIS/2020) | G6: Prestador de serviço | H6: 59667 | I6: 61678 | J6: 63689 | K6: 65665
A7: GE06a | B7: População urbana do(s) município (s) atendido (s) com abastecimento de água | C7: Anual | D7: Valor da soma das populações urbanas residentes dos municípios em que o prestador de serviços atua com serviços de abastecimento de água. Inclui tanto a população beneficiada quanto a que não é beneficiada com os serviços. | E7: habitantes | F7: Sistema Nacional de Informações Saneamento - (SNIS/2020) | G7: Prestador de serviço | H7: 59667 | I7: 61678 | J7: 63689 | K7: 65665
A8: GE06b | B8: População urbana do(s) município (s) atendido (s) com esgotamento sanitário | C8: Anual | D8: Valor da soma das populações urbanas residentes nos municípios em que o prestador de serviços atua com serviços de esgotamento sanitário (aplica-se aos dados agregados da amostra de prestadores de serviços). | E8: habitantes | F8: Sistema Nacional de Informações Saneamento - (SNIS/2020) | G8: Prestador de serviço | H8: 59667 | I8: 61678 | J8: 63689 | K8: 65665
A9: AG003 | B9: Quantidade de economias ativas de água | C9: Anual | D9: Quantidade de economias ativas de água, que estavam em pleno funcionamento no último dia do ano de referência. (No caso dessa informação, o calculo considera a média aritmética ((dezembro / ano interior + dezembro / ano de referencia) / 2) | E9: Economias | F9: Sistema Nacional de Informações Saneamento - (SNIS/2020) | G9: Prestador de serviço | H9: 43067 | I9: 45594 | J9: 47792 | K9: 50353
A10: AG002 | B10: Quantidade de ligações ativas de água | C10: Anual | D10: Quantidade de ligações ativas de água à rede pública, providas ou não de hidrômetro, que estavam em pleno funcionamento no último dia do ano de referência. (No caso dessa informação, o calculo considera a média aritmética ((dezembro / ano interior + dezembro / ano de referencia) / 2) | E10: Ligações | F10: Sistema Nacional de Informações Saneamento - (SNIS/2020) | G10: Prestador de serviço | H10: 14424 | I10: 14684 | J10: 14911 | K10: 15305
A11: AG013 | B11: Quantidade de economias residenciais ativas de água | C11: Anual | D11: Quantidade de economias residenciais ativas de água, que estavam em pleno funcionamento no último dia do ano de referência. (No caso dessa informação, o calculo considera a média aritmética ((dezembro / ano interior + dezembro / ano de referencia) / 2) | E11: Economias | F11: Sistema Nacional de Informações Saneamento - (SNIS/2020) | G11: Prestador de serviço | H11: 38630 | I11: 40940 | J11: 42821 | K11: 45286
A12: AG012 | B12: Volume de água macromedido | C12: Anual | D12: Valor da soma dos volumes anuais de água medidos por meio de macromedidores permanentes: na(s) saída(s) da(s) ETA(s), da(s) UTS(s) e do(s) poço(s), bem como no(s) ponto(s) de entrada de água tratada importada , se existirem. | E12: 1000m3/ano | F12: Sistema Nacional de Informações Saneamento - (SNIS/2020) | G12: Prestador de serviço | H12: 0 | I12: 0 | J12: 0 | K12: 0
A13: AG019 | B13: Volume de água tratada exportada | C13: Anual | D13: Volume anual de água potável, previamente tratada (em ETA(s) ou em UTS(s) , transferido para outros agentes distribuidores. | E13: 1000m3/ano | F13: Sistema Nacional de Informações Saneamento - (SNIS/2020) | G13: Prestador de serviço | H13: 0 | I13: 0 | J13: 0 | K13: 0
A14: AG006 | B14: Volume de água produzida | C14: Anual | D14: Volume de água produzido mais o volume importado, com a subtração do volume tratado exportado | E14: 1000m3/ano | F14: Sistema Nacional de Informações Saneamento - (SNIS/2020) | G14: Prestador de serviço | H14: 5752.2 | I14: 5876.14 | J14: 6163.72 | K14: 6810.64
A15: AG004 | B15: Quantidade de ligações ativas de água micromedidas | C15: Anual | D15: Quantidade de ligações ativas de água, providas de hidrômetro, que estavam em pleno funcionamento no último dia do ano de referência (No caso dessa informação, o calculo considera a média aritmética ((dezembro / ano interior + dezembro / ano de referencia) / 2) | E15: Ligações | F15: Sistema Nacional de Informações Saneamento - (SNIS/2020) | G15: Prestador de serviço | H15: 14424 | I15: 14684 | J15: 14911 | K15: 15305
A16: AG008 | B16: Volume de água micromedido | C16: Anual | D16: Volume anual de água medido pelos hidrômetros instalados nas ligações ativas de água | E16: 1000m3/ano | F16: Sistema Nacional de Informações Saneamento - (SNIS/2020) | G16: Prestador de serviço | H16: 4425.61 | I16: 4610.69 | J16: 5399 | K16: 5480
A17: AG024 | B17: Volume de água de serviços | C17: Anual | D17: Valor da soma dos volumes anuais de água usados para atividades operacionais e especiais, acrescido do volume de água recuperado. As águas de lavagem das ETA(s) ou UTS(s) não devem ser consideradas. | E17: 1000m3/ano | F17: Sistema Nacional de Informações Saneamento - (SNIS/2020) | G17: Prestador de serviço | H17: 0 | I17: 0 | J17: 0 | K17: 0
A18: AG010 | B18: Volume de água consumido | C18: Anual | D18: Volume anual de água consumido por todos os usuários, compreendendo o volume micromedido, o volume de consumo estimado para as ligações desprovidas de hidrômetro ou com hidrômetro parado, acrescido do volume de água tratada exportado para outro prestador de serviços. | E18: 1000m3/ano | F18: Sistema Nacional de Informações Saneamento - (SNIS/2020) | G18: Prestador de serviço | H18: 4425.61 | I18: 4610.69 | J18: 5399 | K18: 5480
A19: AG027 | B19: Volume de água fluoretado | C19: Anual | D19: Volume anual de água submetida a fluoretação, compreendendo a água captada pelo prestador de serviços e a água bruta importada, ambas tratadas na(s) unidade(s) de tratamento do prestador de serviços, medido ou estimado na(s) saída(s) da(s) ETA(s) ou UTS(s). | E19: 1000m3/ano | F19: Sistema Nacional de Informações Saneamento - (SNIS/2020) | G19: Prestador de serviço | H19: 5752.2 | I19: 5876.14 | J19: 6163.72 | K19: 6810.64
A20: AG006 | B20: Volume de água produzido | C20: Anual | D20: Volume anual de água disponível para consumo, compreendendo a água captada pelo prestador de serviços e a água bruta importada, ambas tratadas na(s) unidade(s) de tratamento do prestador de serviços, medido ou estimado na(s) saída(s) da(s) ETA(s) ou UTS(s). Inclui também os volumes de água captada pelo prestador de serviços ou de água bruta importada, que sejam disponibilizados para consumo sem tratamento, medidos na(s) respectiva(s) entrada(s) do sistema de distribuição. | E20: 1000m3/ano | F20: Sistema Nacional de Informações Saneamento - (SNIS/2020) | G20: Prestador de serviço | H20: 5752.2 | I20: 5876.14 | J20: 6163.72 | K20: 6810.64
A21: AG018 | B21: Volume de água tratada importada | C21: Anual | D21: Volume anual de água potável, previamente tratada (em ETA(s) ou em UTS(s)), recebido de outros agentes fornecedores. | E21: 1000m3/ano | F21: Sistema Nacional de Informações Saneamento - (SNIS/2020) | G21: Prestador de serviço | H21: 0 | I21: 0 | J21: 0 | K21: 0
A22: AG014 | B22: Quantidade de economias ativas de água micromedidas | C22: Anual | D22: Quantidade de economias ativas de água, cujas respectivas ligações são providas de hidrômetro, que estavam em pleno funcionamento no último dia do ano de referência. | E22: Economias | F22: Sistema Nacional de Informações Saneamento - (SNIS/2020) | G22: Prestador de serviço | H22: 43067 | I22: 45594 | J22: 47792 | K22: 50353
A23: AG011 | B23: Volume de água faturado | C23: Anual | D23: Volume anual de água debitado ao total de economias (medidas e não medidas), para fins de faturamento. Inclui o volume de água tratada exportado para outro prestador de serviços. | E23: 1000m3/ano | F23: Sistema Nacional de Informações Saneamento - (SNIS/2020) | G23: Prestador de serviço | H23: 4425.61 | I23: 4610.69 | J23: 5399 | K23: 5480
A24: AG028 | B24: Consumo total de energia elétrica em sistemas de abastecimento de água | C24: Anual | D24: Quantidade anual de energia elétrica consumida nos sistemas de abastecimento de água, incluindo todas as unidades que compõem os sistemas, desde as operacionais até as administrativas | E24: 1000kWh/ano | F24: Sistema Nacional de Informações Saneamento - (SNIS/2020) | G24: Prestador de serviço | H24: 1188.94 | I24: 1445.18 | J24: 1796.99 | K24: 1901.57
A25: AG005 | B25: Extensão da rede de água | C25: Anual | D25: Comprimento total da malha de distribuição de água, incluindo adutoras, subadutoras e redes distribuidoras e excluindo ramais prediais, operada pelo prestador de serviços, no último dia do ano de referência. (No caso dessa informação, o calculo considera a média aritmética ((dezembro / ano interior + dezembro / ano de referencia) / 2) | E25: km | F25: Sistema Nacional de Informações Saneamento - (SNIS/2020) | G25: Prestador de serviço | H25: 283.38 | I25: 284.45 | J25: 291.17 | K25: 296.54
A26: AG021 | B26: Quantidade de ligações totais de água | C26: Anual | D26: Quantidade de ligações totais (ativas e inativas) de água à rede pública, providas ou não de hidrômetro, existente no último dia do ano de referência. | E26: Ligações | F26: Sistema Nacional de Informações Saneamento - (SNIS/2020) | G26: Prestador de serviço | H26: 14424 | I26: 14684 | J26: 14911 | K26: 15355
A27: FN017 | B27: Despesas totais com os serviços | C27: Anual | D27: Valor anual total do conjunto das despesas realizadas para a prestação dos serviços, compreendendo Despesas de Exploração (DEX), Despesas com Juros e encargos das Dívidas (incluindo as despesas decorrentes de variações monetárias e cambiais), Despesas com Depreciação, Amortização do Ativo Diferido e Provisão para Devedores Duvidosos, Despesas Fiscais ou Tributárias não Computadas na DEX, mas que compõem a DTS, além de Outras Despesas com os Serviços. | E27: R$/ano | F27: Sistema Nacional de Informações Saneamento - (SNIS/2020) | G27: Prestador de serviço | H27: 34654653.61 | I27: 44494355.79 | J27: 48755612.54 | K27: 51538751.3
A28: ES007 | B28: Volume total faturado de esgoto | C28: Anual | D28: Volume anual de esgoto debitado ao total de economias, para fins de faturamento. | E28: 1000m3/ano | F28: Sistema Nacional de Informações Saneamento - (SNIS/2020) | G28: Prestador de serviço | H28: 2609 | I28: 2767.72 | J28: 3042.59 | K28: 3966
A29: FN015 | B29: Despesas de exploração | C29: Anual | D29: Valor anual das despesas realizadas para a exploração dos serviços, compreendendo Despesas com Pessoal, Produtos Químicos, Energia Elétrica, Serviços de Terceiros, Água Importada, Esgoto Exportado, Despesas Fiscais ou Tributárias computadas na DEX, além de Outras Despesas de Exploração | E29: R$/ano | F29: Sistema Nacional de Informações Saneamento - (SNIS/2020) | G29: Prestador de serviço | H29: 22199985.32 | I29: 24354123.76 | J29: 25739041.13 | K29: 24259333.99
A30: ES003 | B30: Quantidade de economias ativas de esgoto | C30: Anual | D30: Quantidade de economias ativas de esgoto, que estavam em pleno funcionamento no último dia do ano de referência. (No caso dessa informação, o calculo considera a média aritmética ((dezembro / ano interior + dezembro / ano de referencia) / 2) | E30: Economias | F30: Sistema Nacional de Informações Saneamento - (SNIS/2020) | G30: Prestador de serviço | H30: 27403 | I30: 29744 | J30: 34093 | K30: 39529
A31: FN001 | B31: Receita Operacional direta total | C31: Anual | D31: Valor faturado anual decorrente das atividades-fim do prestador de serviços, resultante da exclusiva aplicação de tarifas e/ou taxas. Resultado da soma da Receita Operacional Direta de Água, Receita Operacional Direta de Esgoto, Receita Operacional Direta de Água Exportada e Receita Operacional Direta de Esgoto Bruto Importado | E31: R$/ano | F31: Sistema Nacional de Informações Saneamento - (SNIS/2020) | G31: Prestador de serviço | H31: 48002819.56 | I31: 50146897.48 | J31: 54965093.02 | K31: 62100004.26
A32: FN002 | B32: Receita operacional direta de água (R$/ano) | C32: Anual | D32: Valor faturado anual decorrente da prestação do serviço de abastecimento de água, resultante exclusivamente da aplicação de tarifas e/ou taxas, excluídos os valores decorrentes da venda de água exportada no atacado (bruta ou tratada) | E32: R$/ano | F32: Sistema Nacional de Informações Saneamento - (SNIS/2020) | G32: Prestador de serviço | H32: 30277050.19 | I32: 31424072.4 | J32: 34255033.61 | K32: 36215613.4
A33: AG017 | B33: Volume de água bruta exportado | C33: Anual | D33: Volume anual de água bruta transferido para outros agentes distribuidores, sem qualquer tratamento. | E33: 1000m3/ano | F33: Sistema Nacional de Informações Saneamento - (SNIS/2020) | G33: Prestador de serviço | H33: 0 | I33: 0 | J33: 0 | K33: 0
A34: FN005 | B34: Receita operacional total | C34: Anual | D34: Valor faturado anual decorrente das atividades-fim do prestador de serviços. Resultado da soma da Receita Operacional Direta [Água, Esgoto, Água Exportada e Esgoto Importado] e da Receita Operacional Indireta | E34: R$/ano | F34: Sistema Nacional de Informações Saneamento - (SNIS/2020) | G34: Prestador de serviço | H34: 49004457.19 | I34: 50941561.78 | J34: 56667682.41 | K34: 63123331.07
A35: FN006 | B35: Arrecadação total | C35: Anual | D35: Valor anual efetivamente arrecadado de todas as receitas operacionais, diretamente nos caixas do prestador de serviços ou por meio de terceiros autorizados | E35: R$/ano | F35: Sistema Nacional de Informações Saneamento - (SNIS/2020) | G35: Prestador de serviço | H35: 47015151.37 | I35: 48757259.73 | J35: 52016645 | K35: 57864935.74
A36: FN010 | B36: Despesas com pessoal próprio | C36: Anual | D36: Valor anual das despesas realizadas com empregados (inclusive diretores, mandatários, entre outros), correspondendo à soma de ordenados e salários, gratificações, encargos sociais (exceto PIS/PASEP e COFINS), pagamento a inativos e demais benefícios concedidos, tais como auxílio-alimentação, valetransporte, planos de saúde e previdência privada. | E36: R$/ano | F36: Sistema Nacional de Informações Saneamento - (SNIS/2020) | G36: Prestador de serviço | H36: 4279120.87 | I36: 4307277 | J36: 4969682.87 | K36: 5381498.9
A37: FN014 | B37: Despesas com serviços de terceiros | C37: Anual | D37: Valor anual das despesas realizadas com serviços executados por terceiros. Deve-se levar em consideração somente despesas com mão de obra. Não se incluem as despesas com energia elétrica e com aluguel de veículos, máquinas equipamentos | E37: R$/ano | F37: Sistema Nacional de Informações Saneamento - (SNIS/2020) | G37: Prestador de serviço | H37: 8551779.63 | I37: 8825394.56 | J37: 11341447.31 | K37: 10488762.76
A38: FM026 | B38: Quantidade total de empregados próprios | C38: Anual | D38: Quantidade de empregados, sejam funcionários do prestador de serviços, dirigentes ou outros, postos permanentemente – e com ônus – à disposição do prestador de serviços, ao final do ano de referência. (No caso dessa informação, o calculo considera a média aritmética ((dezembro / ano interior + dezembro / ano de referencia) / 2) | E38: Empregados | F38: Sistema Nacional de Informações Saneamento - (SNIS/2020) | G38: Prestador de serviço | H38: 84 | I38: 79 | J38: 87 | K38: 83
A39: FN035 | B39: Despesas com juros e encargos do serviço da dívida | C39: Anual | D39: Valor anual correspondente à soma das despesas realizadas com juros e encargos do serviço da dívida mais as variações monetárias e cambiais pagas no ano. | E39: R$/ano | F39: Sistema Nacional de Informações Saneamento - (SNIS/2020) | G39: Prestador de serviço | H39: 4916329.52 | I39: 10039242.18 | J39: 15678334.95 | K39: 17679328.85
A40: FN034 | B40: Despesas com amortização do serviço da dívida | C40: Anual | D40: Valor anual das despesas realizadas com pagamento das amortizações do serviço da dívida decorrentes de empréstimos e financiamentos (obras, debêntures e captações de recursos no mercado). | E40: R$/ano | F40: Sistema Nacional de Informações Saneamento - (SNIS/2020) | G40: Prestador de serviço | H40: 0 | I40: 0 | J40: 0 | K40: 0
A41: FN027 | B41: Outras despesas de exploração | C41: Anual | D41: Valor anual realizado como parte das Despesas de Exploração que não são computadas nas categorias de Despesas com Pessoal, Produtos Químicos, Energia Elétrica, Serviços de Terceiros, Água Importada, Esgoto Exportado e Despesas Fiscais e Tributárias Computadas na DEX. | E41: R$/ano | F41: Sistema Nacional de Informações Saneamento - (SNIS/2020) | G41: Prestador de serviço | H41: 6793237.66 | I41: 8211671.76 | J41: 5994219.22 | K41: 4457437.4
A42: FN011 | B42: Despesas com produtos químicos | C42: Anual | D42: Valor anual das despesas realizadas com energia elétrica (força e luz) nos sistemas de abastecimento de água e de esgotamento sanitário, incluindo todas as unidades do prestador de serviços, desde as operacionais até as administrativas. | E42: R$/ano | F42: Sistema Nacional de Informações Saneamento - (SNIS/2020) | G42: Prestador de serviço | H42: 1271509.84 | I42: 1566431.25 | J42: 1524651.22 | K42: 1865091.37
A43: FN013 | B43: Despesas com energia elétrica | C43: Anual | D43: Valor anual das despesas realizadas com a aquisição de produtos químicos destinados aos sistemas de tratamento de água e de esgoto e nas análises de amostras de água ou de esgotos. | E43: R$/ano | F43: Sistema Nacional de Informações Saneamento - (SNIS/2020) | G43: Prestador de serviço | H43: 1199928.38 | I43: 1396508.31 | J43: 1815026.12 | K43: 1970190.31
A44: FN007 | B44: Receita operacional direta de água exportada | C44: Anual | D44: Valor faturado anual decorrente da venda de água, bruta ou tratada, exportada no atacado para outros agentes distribuidores. | E44: R$/ano | F44: Sistema Nacional de Informações Saneamento - (SNIS/2020) | G44: Prestador de serviço | H44: 0 | I44: 0 | J44: 0 | K44: 0
A45: FN003 | B45: Receita operacional direta de esgoto | C45: Anual | D45: Valor faturado anual decorrente da prestação do serviço de esgotamento sanitário, resultante exclusivamente da Aplicação de tarifas e/ou taxas, excluídos osvalores decorrentes da importação de esgotos | E45: R$/ano | F45: Sistema Nacional de Informações Saneamento - (SNIS/2020) | G45: Prestador de serviço | H45: 17725769.37 | I45: 18722825.08 | J45: 20710059.41 | K45: 25884390.86
A46: FN038 | B46: Receita operacional direta de esgoto bruto importado | C46: Anual | D46: Valor faturado anual decorrente do recebimento de esgoto bruto de outro(s) agente(s). Corresponde à receita resultante da aplicação de tarifas especiais ou valores estabelecidos em contratos especiais. | E46: R$/ano | F46: Sistema Nacional de Informações Saneamento - (SNIS/2020) | G46: Prestador de serviço | H46: 0 | I46: 0 | J46: 0 | K46: 0
A47: FN008 | B47: Crédito de contas a receber | C47: Anual | D47: Saldo bruto acumulado dos valores a receber, considerando o último dia do ano de referência, em decorrência do faturamento dos serviços de água e esgoto (receita operacional direta) e dos outros serviços, tais como ligações, religações, conservação e reparo de hidrômetros (receita operacional indireta). | E47: R$/ano | F47: Sistema Nacional de Informações Saneamento - (SNIS/2020) | G47: Prestador de serviço | H47: 8418715.38 | I47: 9499878.34 | J47: 11346709.35 | K47: 13163815.52
A48: AG002 | B48: Quantidade de ligações ativas de esgoto | C48: Anual | D48: Quantidade de ligações ativas de esgoto à rede pública, que estavam em pleno funcionamento no último dia do ano de referência. | E48: Ligações | F48: Sistema Nacional de Informações Saneamento - (SNIS/2020) | G48: Prestador de serviço | H48: 14424 | I48: 14684 | J48: 14911 | K48: 15305
A49: FN016 | B49: Despesas totais com serviço da dívida | C49: Anual | D49: Valor anual das despesas realizadas com o pagamento total do serviço da dívida, correspondendo ao resultado da soma do valor dos juros e encargos mais as variações monetárias e cambiais e o valor das amortizações. | E49: R$/ano | F49: Sistema Nacional de Informações Saneamento - (SNIS/2020) | G49: Prestador de serviço | H49: 4916329.52 | I49: 10039424.18 | J49: 15678334.95 | K49: 17679328.85
A50: FN021 | B50: Despesas fiscais ou tributárias não computadas na DEX | C50: Anual | D50: Valor anual das despesas realizadas não computadas nas despesas de exploração, mas que compõem as despesas totais com os serviços, tais como imposto de renda e contribuição social sobre o lucro. | E50: R$/ano | F50: Sistema Nacional de Informações Saneamento - (SNIS/2020) | G50: Prestador de serviço | H50: 104408.94 | I50: 46840.88 | J50: 94014.39 | K50: 96353.25
A51: QD004 | B51: Quantidades de economias ativas atingidas por paralisações | C51: Anual | D51: Quantidade total anual, inclusive repetições, de economias ativas atingidas por paralisações no sistema de distribuição de água. Devem ser somadas somente as economias ativas atingidas por paralisações que, individualmente, tiveram duração igual ou superior a seis horas. | E51: economias/ano | F51: Sistema Nacional de Informações Saneamento - (SNIS/2020) | G51: Prestador de serviço | H51: 0 | I51: - | J51: 0 | K51: 48172
A52: QD002 | B52: Quantidade de paralisações | C52: Anual | D52: Quantidade de vezes, no ano, inclusive repetições, em que ocorreram paralisações no sistema de distribuição de água. Devem ser somadas somente as paralisações que, individualmente, tiveram duração igual ou superior a seis horas. | E52: Paralisações/ano | F52: Sistema Nacional de Informações Saneamento - (SNIS/2020) | G52: Prestador de serviço | H52: 0 | I52: 0 | J52: 0 | K52: 7
A53: QD003 | B53: Duração das paralisações | C53: Anual | D53: Quantidade de horas, no ano, em que ocorreram paralisações no sistema de distribuição de água. Devem ser somadas somente as durações de paralisações que, individualmente, foram iguais ou superiores a seis horas. | E53: Horas/ano | F53: Sistema Nacional de Informações Saneamento - (SNIS/2020) | G53: Prestador de serviço | H53: 0 | I53: 0 | J53: 0 | K53: 59
A54: QD025 | B54: Tempo de execução do serviço | C54: Anual | D54: Quantidade total anual de horas despendida no conjunto de ações para execução dos serviços, desde a primeira reclamação ou solicitação até a conclusão do serviço. | E54: Horas/ano | F54: Sistema Nacional de Informações Saneamento - (SNIS/2020) | G54: Prestador de serviço | H54: 7409.65 | I54: 7581.97 | J54: 10712.5 | K54: 16505
A55: QD024 | B55: Quantidade de serviços executados | C55: Anual | D55: Quantidade total anual de serviços executados no(s) sistema(s) de abastecimento de água e de esgotamento sanitário relativa às reclamações ou solicitações feitas. | E55: Serviço/ano | F55: Sistema Nacional de Informações Saneamento - (SNIS/2020) | G55: Prestador de serviço | H55: 45341 | I55: 42138 | J55: 55269 | K55: 47704
A56: QD006 | B56: Quantidade de amostras analisadas para aferição de cloro residual | C56: Anual | D56: Quantidade total anual de amostras coletadas na(s) saída(s) da(s) unidade(s) de tratamento e no sistema de distribuição de água (reservatórios e redes), para aferição do teor de cloro residual livre na água. | E56: Amostras/ano | F56: Sistema Nacional de Informações Saneamento - (SNIS/2020) | G56: Prestador de serviço | H56: 17664 | I56: 18690 | J56: 18096 | K56: 20504
A57: QD020 | B57: Quantidade mínima de amostras obrigatórias para análises de cloro residual | C57: Anual | D57: Quantidade mínima anual de amostras obrigatórias a coletar na(s) saída(s) da(s) unidade(s) de tratamento e no sistema de distribuição de água (reservatórios e redes) para aferição do teor de cloro residual livre na água, determinada pela Portaria Consolidada n. 05/2017 do Ministério da Saúde. | E57: Amostras/ano | F57: Sistema Nacional de Informações Saneamento - (SNIS/2020) | G57: Prestador de serviço | H57: 17664 | I57: 17664 | J57: 17644 | K57: 17644
A58: QD007 | B58: Quantidade de amostras para análise de cloro residual com resultado fora do padrão | C58: Anual | D58: Quantidade total anual de amostras coletadas na(s) saída(s) da(s) unidade(s) de tratamento e no sistema de distribuição de água (reservatórios e redes), para aferição do teor de cloro residual livre na água, cujo resultado da análise ficou fora do padrão determinado pela Portaria Consolidada n. 05/2017/MS | E58: Amostras/ano | F58: Sistema Nacional de Informações Saneamento - (SNIS/2020) | G58: Prestador de serviço | H58: 124 | I58: 36 | J58: 55 | K58: 8
A59: QD008 | B59: Quantidade de amostras analisadas para aferição de turbidez | C59: Anual | D59: Quantidade total anual de amostras coletadas na(s) saída(s) da(s) unidade(s) de tratamento e no sistema de distribuição de água (reservatórios e redes), para aferição do teor de turbidez da água | E59: Amostras/ano | F59: Sistema Nacional de Informações Saneamento - (SNIS/2020) | G59: Prestador de serviço | H59: 17664 | I59: 18690 | J59: 18096 | K59: 20504
A60: QD019 | B60: Quantidade mínima de amostras obrigatórias para análises de turbidez | C60: Anual | D60: Quantidade mínima anual de amostras obrigatórias a coletar na(s) saída(s) da(s) unidade(s) de tratamento e no sistema de distribuição de água (reservatórios e redes) para aferição do teor de turbidez da água, determinada pela Portaria Consolidada n. 05/2017/MS. | E60: Amostras | F60: Sistema Nacional de Informações Saneamento - (SNIS/2020) | G60: Prestador de serviço | H60: 17664 | I60: 17664 | J60: 17644 | K60: 17644
A61: QD009 | B61: Quantidade de amostras para análise de turbidez com resultado fora do padrão | C61: Anual | D61: Quantidade total anual de amostras coletadas na(s) saída(s) da(s) unidade(s) de tratamento e no sistema de distribuição de água (reservatórios e redes), para aferição do teor de turbidez da água, cujo resultado da análise ficou fora do padrão determinado pela Portaria Consolidada n. 05/2017/MS. | E61: Amostras | F61: Sistema Nacional de Informações Saneamento - (SNIS/2020) | G61: Prestador de serviço | H61: 84 | I61: 11 | J61: 28 | K61: 18
A62: QD026 | B62: Quantidade de amostras analisadas para aferição de coliformes totais | C62: Anual | D62: Quantidade total anual de amostras coletadas na(s) saída(s) da(s) unidade(s) de tratamento e no sistema de distribuição de água (reservatórios e redes), para aferição do teor de coliformes totais. | E62: Amostras | F62: Sistema Nacional de Informações Saneamento - (SNIS/2020) | G62: Prestador de serviço | H62: 1344 | I62: 1344 | J62: 1344 | K62: 1344
A63: QD028 | B63: Quantidade mínima de amostra obrigatórias para coliforme totais | C63: Anual | D63: Quantidade mínima anual de amostras obrigatórias a coletar na(s) saída(s) da(s) unidade(s) de tratamento e no sistema de distribuição de água (reservatórios e redes), para aferição do teor de coliformes totais presentes na água, determinada pela Portaria Consolidada n. 05/2017 do Ministério da Saúde. | E63: Amostras | F63: Sistema Nacional de Informações Saneamento - (SNIS/2020) | G63: Prestador de serviço | H63: 1260 | I63: 1260 | J63: 1260 | K63: 1260
A64: QD027 | B64: Quantidade de amostras para análise de coliformes totais com resultados fora do padrão | C64: Anual | D64: Quantidade total anual de amostras coletadas na(s) saída(s) da(s) unidade(s) de tratamento e na rede de distribuição de água, para aferição do teor de coliformes totais, cujo resultado da análise ficou fora do padrão determinado pela Portaria Consolidada n. 05/2017/MS. | E64: Amostras | F64: Sistema Nacional de Informações Saneamento - (SNIS/2020) | G64: Prestador de serviço | H64: 0 | I64: 0 | J64: 0 | K64: 0
A65: FN023 | B65: Investimentos realizados em abastecimento de água pelo prestados de serviço | C65: Anual | D65: Valor do investimento realizado no ano de referência, diretamente ou por meio de contratos celebrados pelo próprio prestador de serviços, em equipamentos e instalações incorporados ao(s) sistema(s) de abastecimento de água, contabilizado em Obras em Andamento, no Ativo Imobilizado ou no Ativo Intangível. | E65: R$/ano | F65: Sistema Nacional de Informações Saneamento - (SNIS/2020) | G65: Prestador de serviço | H65: 2148129.41 | I65: 649989.33 | J65: 11259907.65 | K65: 2604610.26
A66: FN024 | B66: Investimentos realizados em esgotamento sanitário pelo prestados de serviço | C66: Anual | D66: Valor do investimento realizado no ano de referência, diretamente ou por meio de contratos celebrados pelo próprio prestador de serviços, em equipamentos e instalações incorporados ao(s) sistema(s) de esgotamento sanitário, contabilizado em Obras em Andamento, no Ativo Imobilizado ou no Ativo Intangível. | E66: R$/ano | F66: Sistema Nacional de Informações Saneamento - (SNIS/2020) | G66: Prestador de serviço | H66: 10200207.14 | I66: 525351.21 | J66: 37168060.79 | K66: 16853968.47
A67: FN025 | B67: Outros investimentos realizados pelo prestador de serviços | C67: Anual | D67: Valor do investimento realizado no ano de referência, diretamente ou por meio de contratos celebrados pelo próprio prestador de serviços, em aquisição de bens de uso geral, equipamentos e instalações, não contabilizado nos investimentos realizados em abastecimento de água ou em esgotamento sanitário. | E67: R$/ano | F67: Sistema Nacional de Informações Saneamento - (SNIS/2020) | G67: Prestador de serviço | H67: 0 | I67: 0 | J67: 0 | K67: 0
A68: FN030 | B68: Investimento com recurso próprio realizado pelo prestador de serviço | C68: Anual | D68: Valor do investimento realizado no ano de referência, diretamente ou por meio de contratos celebrados pelo próprio prestador de serviços, pago com seus recursos próprios oriundos da cobrança dos serviços, de receitas não operacionais, de integralização ou de adiantamento para futuro aumento de capital pelos acionistas ou de captações no mercado decorrentes da venda de ações, feito no sistema de abastecimento de água e de esgotamento sanitário. | E68: R$/ano | F68: Sistema Nacional de Informações Saneamento - (SNIS/2020) | G68: Prestador de serviço | H68: 12348336.55 | I68: 1175340.54 | J68: 0 | K68: 0
A69: FN031 | B69: Investimento com recursos onerosos realizado pelo prestador de serviço | C69: Anual | D69: Valor do investimento realizado no ano de referência, diretamente ou por meio de contratos celebrados pelo próprio prestador de serviços, pago com recursos de empréstimo tomados junto à CAIXA, BNDES ou outros agentes financeiros (oriundos do FGTS, FAT ou outras fontes) e também empréstimos de financiamentos externos (BID, BIRD e outros), retornáveis por meio de amortizações, juros e outros encargos, incluindo-se ainda captações decorrentes da venda e posterior recompra de debêntures vinculadas a investimentos pré-estabelecidos, feito no(s) sistema(s) de abastecimento de água, de esgotamento sanitário ou em outros investimentos relacionados aos serviços de água e esgotos, além de Despesas Capitalizáveis | E69: R$/ano | F69: Sistema Nacional de Informações Saneamento - (SNIS/2020) | G69: Prestador de serviço | H69: 0 | I69: 0 | J69: 48427968.44 | K69: 19458578.73
A70: FN032 | B70: Investimento com recursos não onerosos realizado pelo prestador de serviço | C70: Anual | D70: Valor do investimento realizado no ano de referência, diretamente ou por meio de contratos celebrados pelo próprio prestador de serviços, pago com recursos não reembolsáveis (oriundos do Orçamento Geral da União - OGU -, orçamentos do Estado, Distrito Federal ou Município, ou de outras fontes, como por exemplo: doações, investimentos pagos pelos usuários), que não oneram o serviço da dívida, também denominados recursos a fundo perdido, feito no(s) sistema(s) de abastecimento de água, de esgotamento sanitário ou em outros investimentos relacionados aos serviços de água e esgotos, além de Despesas Capitalizáveis. | E70: R$/ano | F70: Sistema Nacional de Informações Saneamento - (SNIS/2020) | G70: Prestador de serviço | H70: 0 | I70: 0 | J70: 0 | K70: 0
A71: FN033 | B71: Investimentos totais realizado pelo prestador de serviços | C71: Anual | D71: Valor dos investimentos totais realizados no ano de referência, diretamente ou por meio de contratos celebrados pelo próprio prestador de serviços, pagos com recursos próprios, onerosos e não onerosos feitos no(s) sistema(s) de abastecimento de água, de esgotamento sanitário ou em outros investimentos relacionados aos serviços de água e esgotos, além de Despesas Capitalizáveis. | E71: R$/ano | F71: Sistema Nacional de Informações Saneamento - (SNIS/2020) | G71: Prestador de serviço | H71: 12348336.55 | I71: 1175340.54 | J71: 48427968.44 | K71: 19458578.73
A72: ES004 | B72: Extensão da rede de esgotos | C72: Anual | D72: Comprimento total da malha de coleta de esgoto, incluindo redes de coleta, coletores tronco e interceptores e excluindo ramais prediais e emissários de recalque, operada pelo prestador de serviços, | E72: Km | F72: Sistema Nacional de Informações Saneamento - (SNIS/2020) | G72: Prestador de serviço | H72: 105.6 | I72: 105.6 | J72: 175.9 | K72: 181.67
A73: ES005 | B73: Volume de esgotos coletado | C73: Anual | D73: Volume anual de esgoto lançado na rede coletora. Em geral é considerado como sendo de 80% a 85% do volume de água consumido na mesma economia. | E73: 1.000 m³/ano. | F73: Sistema Nacional de Informações Saneamento - (SNIS/2020) | G73: Prestador de serviço | H73: 2609 | I73: 2767.72 | J73: 3042.59 | K73: 3966
A74: ES006 | B74: Volume de esgotos Tratado | C74: Anual | D74: Volume anual de esgoto coletado na área de atuação do prestador de serviços e que foi submetido a tratamento, medido ou estimado na(s) entrada(s) da(s) ETE(s). | E74: 1.000 m³/ano. | F74: Sistema Nacional de Informações Saneamento - (SNIS/2020) | G74: Prestador de serviço | H74: 2609 | I74: 2767.72 | J74: 3042.59 | K74: 3966
A75: ES009 | B75: Quantidade de ligações totais de esgotos | C75: Anual | D75: Quantidade de ligações totais (ativas e inativas) de esgotos à rede pública, existentes no último dia do ano de referência. | E75: Ligações | F75: Sistema Nacional de Informações Saneamento - (SNIS/2020) | G75: Prestador de serviço | H75: 4679 | I75: 4987 | J75: 6787 | K75: 8775
A76: ES026 | B76: População urbana atendida com esgoto sanitário | C76: Anual | D76: Valor da população urbana beneficiada com esgotamento sanitário pelo prestador de serviços, no último dia do ano de referência. Corresponde à população urbana que é efetivamente atendida com os serviços. | E76: habitantes | F76: Sistema Nacional de Informações Saneamento - (SNIS/2020) | G76: Prestador de serviço | H76: 46540 | I76: 48108 | J76: 51427 | K76: 52863
A77: ES028 | B77: Consumo total de energia elétrica nos sistemas de esgotos | C77: Anual | D77: Quantidade anual de energia elétrica consumida nos sistemas de esgotamento sanitário, incluindo todas as unidades que compõem os sistemas, desde as operacionais até as administrativas. | E77: 1.000 kWh/ano. | F77: Sistema Nacional de Informações Saneamento - (SNIS/2020) | G77: Prestador de serviço | H77: 879.44 | I77: 901.13 | J77: 998.03 | K77: 1153.6
A78: QD015 | B78: Quantidade de economias ativas atingidas por interrupções sistemáticas | C78: Anual | D78: Quantidade total anual, inclusive repetições, de economias ativas atingidas por interrupções sistemáticas no sistema de distribuição de água decorrentes de intermitências prolongadas. | E78: Economias/ano. | F78: Sistema Nacional de Informações Saneamento - (SNIS/2020) | G78: Prestador de serviço | H78: 0 | I78: 0 | J78: 0 | K78: 0
A79: QD021 | B79: Quantidade de interrupções sistemáticas | C79: Anual | D79: Quantidade de vezes, no ano, inclusive repetições, em que ocorreram interrupções sistemáticas no sistema de distribuição de água, provocando intermitências prolongadas no abastecimento. | E79: Interrupções/ano. | F79: Sistema Nacional de Informações Saneamento - (SNIS/2020) | G79: Prestador de serviço | H79: 0 | I79: 0 | J79: 0 | K79: 0
A80: QD022 | B80: Duração das interrupções sistemáticas | C80: Anual | D80: Quantidade de horas, no ano, em que ocorreram interrupções sistemáticas no sistema de distribuição de água provocando intermitências prolongadas. | E80: Horas/ano. | F80: Sistema Nacional de Informações Saneamento - (SNIS/2020) | G80: Prestador de serviço | H80: 0 | I80: 0 | J80: 0 | K80: 0
A81: QD011 | B81: Quantidades de extravasamentos de esgotos registrados | C81: Anual | D81: Quantidade de vezes no ano, inclusive repetições, em que foram registrados extravasamentos na rede de coleta de esgotos. | E81: Extravasamentos/ano. | F81: Sistema Nacional de Informações Saneamento - (SNIS/2020) | G81: Prestador de serviço | H81: 118 | I81: 216 | J81: 280 | K81: 290
A82: QD012 | B82: Duração dos extravasamentos registrados | C82: Anual | D82: Quantidade de horas, no ano, despendida no conjunto de ações para solução dos problemas de extravasamentos na rede de coleta de esgotos, desde a primeira reclamação junto ao prestador de serviços até a conclusão do reparo. | E82: Horas/ano. | F82: Sistema Nacional de Informações Saneamento - (SNIS/2020) | G82: Prestador de serviço | H82: 65 | I82: 230.23 | J82: 336.56 | K82: 295
A83: BL001 | B83: Ativo circulante | C83: Anual | D83: Valor anual das disponibilidades, contas a receber, depósitos judiciais, almoxarifado de operação, impostos a recuperar e outros créditos a receber. | E83: 1.000 R$/ano. | F83: Sistema Nacional de Informações Saneamento - (SNIS/2020) | G83: Prestador de serviço | H83: 9482 | I83: 8425 | J83: 23576 | K83: 14469
A84: BL005 | B84: Passivo circulante | C84: Anual | D84: Valor anual das obrigações no exercício subsequente, referente a empréstimos e financiamentos, empreiteiros e fornecedores, tributos e contribuições sociais, cauções a restituir, provisões e outros. | E84: 1.000 R$/ano. | F84: Sistema Nacional de Informações Saneamento - (SNIS/2020) | G84: Prestador de serviço | H84: 2419 | I84: 32087 | J84: 21729 | K84: 26759
A85: BL003 | B85: Exigível a longo prazo | C85: Anual | D85: Valor anual das obrigações com vencimentos após o exercício subsequente, referentes a: empréstimos e financiamentos, empreiteiros e fornecedores, provisões para contingências, tributos e contribuições sociais, planos de aposentadoria e outros. | E85: 1.000 R$/ano. | F85: Sistema Nacional de Informações Saneamento - (SNIS/2020) | G85: Prestador de serviço | H85: 53969 | I85: 62659 | J85: 133362 | K85: 131347
A86: BL010 | B86: Realizável a longo prazo | C86: Anual | D86: Valor anual dos direitos realizáveis após o exercício subsequente, decorrentes de créditos com clientes, indenizações a receber, depósitos judiciais, contas a receber de acionistas, impostos e contribuições diferidos, créditos com coligadas, com controladas e outros. | E86: 1.000 R$/ano. | F86: Sistema Nacional de Informações Saneamento - (SNIS/2020) | G86: Prestador de serviço | H86: 2855 | I86: 325 | J86: 2590 | K86: 1647
A87: BL002 | B87: Ativo total | C87: Anual | D87: Valor anual da soma das contas do Ativo Circulante, Ativo Realizável de Longo Prazo e Ativo Permanente. | E87: 1.000 R$/ano. | F87: Sistema Nacional de Informações Saneamento - (SNIS/2020) | G87: Prestador de serviço | H87: 119249 | I87: 129474 | J87: 190094 | K87: 191975
A88: BL008 | B88: Resultado de exercícios futuros | C88: Anual | D88: Valor anual da diferença entre as receitas e despesas correspondentes a exercícios futuros. | E88: 1.000 R$/ano. | F88: Sistema Nacional de Informações Saneamento - (SNIS/2020) | G88: Prestador de serviço | H88: 0 | I88: 0 | J88: 0 | K88: 0
A89: BL007 | B89: Receita operacional | C89: Anual | D89: Valor anual da receita faturada referente a produção e distribuição de água e a coleta, tratamento e disposição final de esgotos, assim como as receitas indiretas de outros serviços prestados. | E89: 1.000 R$/ano. | F89: Sistema Nacional de Informações Saneamento - (SNIS/2020) | G89: Prestador de serviço | H89: 49004 | I89: 50942 | J89: 56668 | K89: 63123
A90: BL009 | B90: Resultado operacional com depreciação | C90: Anual | D90: Valor anual resultante da diferença entre as receitas operacionais e as despesas de operação e manutenção, as despesas comerciais, as despesas administrativas, as despesas tributárias ou fiscais e as despesas de depreciação. | E90: 1.000 R$/ano. | F90: Sistema Nacional de Informações Saneamento - (SNIS/2020) | G90: Prestador de serviço | H90: 24005 | I90: 22139 | J90: 15464 | K90: 17546
A91: BL012 | B91: Resultado operacional sem depreciação | C91: Anual | D91: Valor anual resultante da diferença entre as receitas operacionais e as despesas de operação e manutenção, as despesas comerciais, as despesas administrativas e as despesas tributárias ou fiscais. | E91: 1.000 R$/ano. | F91: Sistema Nacional de Informações Saneamento - (SNIS/2020) | G91: Prestador de serviço | H91: 2419 | I91: 4159 | J91: 361 | K91: -5744
A92: BL004 | B92: Lucro líquido com depreciação | C92: Anual | D92: Valor anual do resultado do exercício (lucro ou prejuízo), depois de deduzido o resultado não operacional, o imposto de renda, a contribuição social e as despesas de depreciação. | E92: 1.000 R$/ano. | F92: Sistema Nacional de Informações Saneamento - (SNIS/2020) | G92: Prestador de serviço | H92: 2419 | I92: 4159 | J92: 361 | K92: -5744
A93: BL011 | B93: Lucro líquido sem depreciação | C93: Anual | D93: Valor anual do resultado líquido do exercício (lucro ou prejuízo), depois de deduzido o resultado não operacional, o imposto de renda e a contribuição social, sem deduzir as despesas de depreciação. | E93: 1.000 R$/ano. | F93: Sistema Nacional de Informações Saneamento - (SNIS/2020) | G93: Prestador de serviço | H93: 5489 | I93: 8711 | J93: 6786 | K93: 2265
A94: BL006 | B94: Patrimônio líquido | C94: Anual | D94: Valor anual pertencente aos acionistas, composto pelo Capital Social Realizado, Reservas de Capital, Reservas de Reavaliação, Reserva de Lucro e Lucros ou Prejuízos Acumulados. | E94: 1.000 R$/ano. | F94: Sistema Nacional de Informações Saneamento - (SNIS/2020) | G94: Prestador de serviço | H94: 34830 | I94: 34728 | J94: 35003 | K94: 33869
A95: ES001 | B95: Polulação total atendida com esgotamento sanitário | C95: Anual | D95: População total atendida com esgotamento sanitário pelo prestador de serviços, no último dia do ano de referência. Corresponde à população urbana que é efetivamente atendida com os serviços acrescida de outras populações atendidas localizadas em áreas não consideradas urbanas. | E95: Habitantes | F95: Sistema Nacional de Informações Saneamento - (SNIS/2020) | G95: Prestador de serviço | H95: 46540 | I95: 48108 | J95: 51427 | K95: 52863
A96: ES007 | B96: Volume de esgoto faturado | C96: Anual | D96: Volume anual de esgoto debitado ao total de economias, para fins de faturamento. Em geral é considerado como sendo um percentual do volume de água faturado na mesma economia. | E96: 1.000 m³/ano. | F96: Sistema Nacional de Informações Saneamento - (SNIS/2020) | G96: Prestador de serviço | H96: 2609 | I96: 2767.72 | J96: 3042.59 | K96: 3966
A97: ES013 | B97: Volume de esgoto bruto importado | C97: Anual | D97: Volume de esgoto bruto recebido de outro(s) agente(s). A receita com a importação do esgoto deve estar computada na informação FN038. | E97: 1.000 m³/ano. | F97: Sistema Nacional de Informações Saneamento - (SNIS/2020) | G97: Prestador de serviço | H97: 0 | I97: 0 | J97: 0 | K97: 0
A98: ES008 | B98: Quantidade de economias residenciais ativas de esgotos | C98: Anual | D98: Quantidade de economias residenciais ativas de esgotos, que estavam em pleno funcionamento no último dia do ano de referência. | E98: Economias | F98: Sistema Nacional de Informações Saneamento - (SNIS/2020) | G98: Prestador de serviço | H98: 24702 | I98: 26655 | J98: 34093
B102: Quantidade de economias residenciais ativas de água (similar ao SNIS AG013) | C102: Anual | D102: Quantidade total de economias residenciais na área de abrangência do Prestador de Serviços, cadastradas pelo prestador, com ligação ativa à rede pública de abastecimento de água, no período de referência. Considera-se que uma economia residencial é equivalente a um domicílio. | E102: Economias | F102: Sistema Nacional de Informações Saneamento - (SNIS/2020) | G102: Prestador de serviço | H102: 38630 | I102: 40940 | J102: 42821 | K102: 45286 | M102: 51547
B103: Quantidade de economias residenciais inativas de água | C103: Anual | D103: Quantidade total de economias residenciais na área de abrangência do Prestador de Serviços, cadastradas pelo prestador, com ligação inativa à rede pública de abastecimento de água, no período de referência. Considera-se que uma economia residencial é equivalente a um domicílio. | E103: Economias | F103: Prestador de serviço | G103: Prestador de serviço | H103: 0 | I103: 0 | J103: 0 | K103: 0 | M103: 0
B104: Quantidade de economias residenciais ativas com coleta de esgoto (similar ao SNIS ES008) | C104: Anual | D104: Quantidade total de economias residenciais na área de abrangência do Prestador de Serviços, cadastradas pelo prestador, com ligação ativa à rede pública de coleta de esgoto, no período de referência. Considera-se que uma economia residencial é equivalente a um domicílio. | E104: Economias | F104: Sistema Nacional de Informações Saneamento - (SNIS/2020) | G104: Prestador de serviço | H104: 24702 | I104: 26655 | J104: 34093 | K104: 35415 | M104: 40357
B105: Quantidade de economias residenciais inativas com coleta de esgoto | C105: Anual | D105: Quantidade total de economias residenciais na área de abrangência do Prestador de Serviços, cadastradas pelo prestador, com ligação inativa à rede pública de coleta de esgoto, no período de referência. Considera-se que uma economia residencial é equivalente a um domicílio. | E105: Economias | F105: Prestador de serviço | G105: Prestador de serviço | H105: 0 | I105: 0 | J105: 0 | K105: 0 | M105: 0
B106: Quantidade de economias residenciais ativas com tratamento de esgoto (similar ao SNIS ES008) | C106: Anual | D106: Quantidade total de economias residenciais na área de abrangência do Prestador de Serviços, cadastradas pelo prestador, com ligação ativa à rede pública de coleta de esgoto conectada a uma unidade de tratamento de esgoto, no período de referência. Considera-se que uma economia residencial é equivalente a um domicílio. | E106: Economias | F106: Sistema Nacional de Informações Saneamento - (SNIS/2020) | G106: Prestador de serviço | H106: =H98 -> 24702 | I106: =I98 -> 26655 | J106: 34093 | K106: 35415 | M106: 40357
B107: Quantidade de economias residenciais inativas com tratamento de esgoto | C107: Anual | D107: Quantidade total de economias residenciais na área de abrangência do Prestador de Serviços, cadastradas pelo prestador, com ligação inativa à rede pública de coleta de esgoto conectada a uma unidade de tratamento de esgoto, no período de referência. Considera-se que uma economia residencial é equivalente a um domicílio. | E107: Economias | F107: Prestador de serviço | G107: Prestador de serviço | H107: 0 | I107: 0 | J107: 0 | K107: 0 | M107: 0
B108: Quantidade total de domicílios residenciais existentes na área de abrangência do Prestador de Serviços (adotado similar a AG013) | C108: Anual | D108: Quantidade total de domicílios residenciais existentes na área de abrangência do Prestador de Serviços, independentemente do atendimento da rede pública de abastecimento de água e/ou coleta de esgoto conectada a uma unidade de tratamento de esgoto, no período de referência. | E108: domicílios | F108: SNIS, Prefeitura Municipal, IBGE Cidades, Celesc | G108: Prestador de serviço | H108: 38630 | I108: 40940 | J108: 42821 | K108: 45286 | M108: 51547

Sheet Gráficos - Água e esgoto
A1: Gráficos dos indicadores de Água e Esgoto

Sheet Indicadores - Drenagem
A1: INÍCIO PERÍODO
A2: 2019
A3: Indicador | B3: Código | C3: Frequência de atualização | D3: Expresso em | E3: =A2 -> 2019 | F3: =E3+1 -> 2020 | G3: =F3+1 -> 2021 | H3: =G3+1 -> 2022 | I3: =H3+1 -> 2023
A5: Percepção de Usuário sobre a Qualidade dos Serviços de Drenagem | C5: Anual | D5: Ocorrências/ano | E5: =IFERROR(ID!G3,"") -> 10 | F5: =IFERROR(ID!H3,"") -> 2 | G5: =IFERROR(ID!I3,"") -> 0 | H5: =IFERROR(ID!J3,"") -> 0 | I5: =IFERROR(ID!K3,"") -> 0
A6: Cadastro da Rede Existente | C6: Anual | D6: % | E6: =IFERROR(ID!G4/ID!G5,"") -> 1.666666667 | F6: =IFERROR(ID!H4/ID!H5,"") -> 0.75 | G6: =IFERROR(ID!I4/ID!I5,"") ->  | H6: =IFERROR(ID!J4/ID!J5,"") ->  | I6: =IFERROR(ID!K4/ID!K5,"") -> 
A7: Cobertura do Sistema de Drenagem Superficial | C7: Anual | D7: % | E7: =IFERROR(ID!G6/ID!G7,"") ->  | F7: =IFERROR(ID!H6/ID!H7,"") ->  | G7: =IFERROR(ID!I6/ID!I7,"") ->  | H7: =IFERROR(ID!J6/ID!J7,"") ->  | I7: =IFERROR(ID!K6/ID!K7,"") -> 
A8: Cobertura do Sistema de Drenagem Subterrânea | C8: Anual | D8: % | E8: =IFERROR(ID!G8/ID!G9,"") ->  | F8: =IFERROR(ID!H8/ID!H9,"") ->  | G8: =IFERROR(ID!I8/ID!I9,"") ->  | H8: =IFERROR(ID!J8/ID!J9,"") ->  | I8: =IFERROR(ID!K8/ID!K9,"") -> 
A9: Inspeção de Bocas de Lobo | C9: Anual | D9: % | E9: =IFERROR(ID!G10/ID!G11,"") ->  | F9: =IFERROR(ID!H10/ID!H11,"") ->  | G9: =IFERROR(ID!I10/ID!I11,"") ->  | H9: =IFERROR(ID!J10/ID!J11,"") ->  | I9: =IFERROR(ID!K10/ID!K11,"") -> 
A10: Limpeza de Bocas de Lobo | C10: Anual | D10: % | E10: =IFERROR(ID!G12/ID!G13,"") ->  | F10: =IFERROR(ID!H12/ID!H13,"") ->  | G10: =IFERROR(ID!I12/ID!I13,"") ->  | H10: =IFERROR(ID!J12/ID!J13,"") ->  | I10: =IFERROR(ID!K12/ID!K13,"") -> 
A11: Manutenção de Bocas de Lobo | C11: Anual | D11: % | E11: =IFERROR(ID!G14/ID!G15,"") ->  | F11: =IFERROR(ID!H14/ID!H15,"") ->  | G11: =IFERROR(ID!I14/ID!I15,"") ->  | H11: =IFERROR(ID!J14/ID!J15,"") ->  | I11: =IFERROR(ID!K14/ID!K15,"") -> 
A12: Inspeção do Sistema de Microdrenagem | C12: Anual | D12: % | E12: =IFERROR(ID!G16/ID!G17,"") ->  | F12: =IFERROR(ID!H16/ID!H17,"") ->  | G12: =IFERROR(ID!I16/ID!I17,"") ->  | H12: =IFERROR(ID!J16/ID!J17,"") ->  | I12: =IFERROR(ID!K16/ID!K17,"") -> 
A13: Limpeza da Microdrenagem | C13: Anual | D13: % | E13: =IFERROR(ID!G18/ID!G19,"") ->  | F13: =IFERROR(ID!H18/ID!H19,"") ->  | G13: =IFERROR(ID!I18/ID!I19,"") ->  | H13: =IFERROR(ID!J18/ID!J19,"") ->  | I13: =IFERROR(ID!K18/ID!K19,"") -> 
A14: Manutenção da Microdrenagem | C14: Anual | D14: % | E14: =IFERROR(ID!G20/ID!G21,"") ->  | F14: =IFERROR(ID!H20/ID!H21,"") ->  | G14: =IFERROR(ID!I20/ID!I21,"") ->  | H14: =IFERROR(ID!J20/ID!J21,"") ->  | I14: =IFERROR(ID!K20/ID!K21,"") -> 
A15: Inspeção do Sistema de Macrodrenagem | C15: Anual | D15: % | E15: =IFERROR(ID!G22/ID!G23,"") ->  | F15: =IFERROR(ID!H22/ID!H23,"") ->  | G15: =IFERROR(ID!I22/ID!I23,"") ->  | H15: =IFERROR(ID!J22/ID!J23,"") ->  | I15: =IFERROR(ID!K22/ID!K23,"") -> 
C16: Anual | D16: km/ano | E16: =IFERROR(ID!G24,"") -> 0 | F16: =IFERROR(ID!H24,"") -> 0 | G16: =IFERROR(ID!I24,"") -> 0 | H16: =IFERROR(ID!J24,"") -> 0 | I16: =IFERROR(ID!K24,"") -> 0
A17: Limpeza de Macrodrenagem | C17: Anual | D17: % | E17: =IFERROR(ID!G25/ID!G26,"") ->  | F17: =IFERROR(ID!H25/ID!H26,"") ->  | G17: =IFERROR(ID!I25/ID!I26,"") ->  | H17: =IFERROR(ID!J25/ID!J26,"") ->  | I17: =IFERROR(ID!K25/ID!K26,"") -> 
A18: Manutenção da Macrodrenagem | C18: Anual | D18: % | E18: =IFERROR(ID!G27/ID!G28,"") ->  | F18: =IFERROR(ID!H27/ID!H28,"") ->  | G18: =IFERROR(ID!I27/ID!I28,"") ->  | H18: =IFERROR(ID!J27/ID!J28,"") ->  | I18: =IFERROR(ID!K27/ID!K28,"") -> 
A19: Incidência de Alagamentos no Município | C19: Anual | D19: Ocorrências/ano | E19: =IFERROR(ID!G29,"") -> 0 | F19: =IFERROR(ID!H29,"") -> 0 | G19: =IFERROR(ID!I29,"") -> 0 | H19: =IFERROR(ID!J29,"") -> 0 | I19: =IFERROR(ID!K29,"") -> 0
C20: Anual | D20: km/ano | E20: =IFERROR(ID!G30,"") -> 0 | F20: =IFERROR(ID!H30,"") -> 0 | G20: =IFERROR(ID!I30,"") -> 0 | H20: =IFERROR(ID!J30,"") -> 0 | I20: =IFERROR(ID!K30,"") -> 0
A21: Parcela de área urbana em relação à área total | B21: IN042 | C21: Anual | D21: % | E21: =IFERROR((ID!G32/ID!G31)*100,"") ->  | F21: =IFERROR((ID!H32/ID!H31)*100,"") ->  | G21: =IFERROR((ID!I32/ID!I31)*100,"") ->  | H21: =IFERROR((ID!J32/ID!J31)*100,"") ->  | I21: =IFERROR((ID!K32/ID!K31)*100,"") -> 
A22: Densidade Demográfica na Área Urbana | B22: IN043 | C22: Anual | D22: pessoas/ha | E22: =IFERROR((ID!G33/(ID!G32*100)),"") ->  | F22: =IFERROR((ID!H33/(ID!H32*100)),"") ->  | G22: =IFERROR((ID!I33/(ID!I32*100)),"") ->  | H22: =IFERROR((ID!J33/(ID!J32*100)),"") ->  | I22: =IFERROR((ID!K33/(ID!K32*100)),"") -> 
A23: Densidade de Domicílios na Área Urbana | B23: IN044 | C23: Anual | D23: domicílio/ha | E23: =IFERROR((ID!G34/(ID!G32*100)),"") ->  | F23: =IFERROR((ID!H34/(ID!H32*100)),"") ->  | G23: =IFERROR((ID!I34/(ID!I32*100)),"") ->  | H23: =IFERROR((ID!J34/(ID!J32*100)),"") ->  | I23: =IFERROR((ID!K34/(ID!K32*100)),"") -> 
A24: Participação do Pessoal Próprio Sobre o Total de Pessoal Alocado nos Serviços de Drenagem e Manejo das Águas Pluviais Urbanas | B24: IN001 | C24: Anual | D24: % | E24: =IFERROR((ID!G35/ID!G36)*100,"") ->  | F24: =IFERROR((ID!H35/ID!H36)*100,"") ->  | G24: =IFERROR((ID!I35/ID!I36)*100,"") ->  | H24: =IFERROR((ID!J35/ID!J36)*100,"") ->  | I24: =IFERROR((ID!K35/ID!K36)*100,"") -> 
A25: Receita Operacional Média do Serviço por Unidades Tributadas | B25: IN006 | C25: Anual | D25: R$/imóveis tributados ano | E25: =IFERROR(ID!G38/ID!G37,"") ->  | F25: =IFERROR(ID!H38/ID!H37,"") ->  | G25: =IFERROR(ID!I38/ID!I37,"") ->  | H25: =IFERROR(ID!J38/ID!J37,"") ->  | I25: =IFERROR(ID!K38/ID!K37,"") -> 
A26: Participação da Despesa Total dos Serviços de Drenagem e Manejo das Águas Pluviais Urbanas na Despesa Total do Município | B26: IN010 | C26: Anual | D26: % | E26: =IFERROR((ID!G40/ID!G39)*100,"") ->  | F26: =IFERROR((ID!H40/ID!H39)*100,"") ->  | G26: =IFERROR((ID!I40/ID!I39)*100,"") ->  | H26: =IFERROR((ID!J40/ID!J39)*100,"") ->  | I26: =IFERROR((ID!K40/ID!K39)*100,"") -> 
A27: Diferença relativa entre despesas e receitas de Drenagem e Manejo de Águas Pluviais urbanas | B27: IN050 | C27: Anual | D27: % | E27: =IFERROR(((ID!G41-ID!G40)/ID!G41)*100,"") ->  | F27: =IFERROR(((ID!H41-ID!H40)/ID!H41)*100,"") ->  | G27: =IFERROR(((ID!I41-ID!I40)/ID!I41)*100,"") ->  | H27: =IFERROR(((ID!J41-ID!J40)/ID!J41)*100,"") ->  | I27: =IFERROR(((ID!K41-ID!K40)/ID!K41)*100,"") -> 
A28: Investimentos totais desembolsados em relação aos investimentos totais contratados | B28: IN054 | C28: Anual | D28: % | E28: =IFERROR(ID!G43/ID!G42,"") ->  | F28: =IFERROR(ID!H43/ID!H42,"") ->  | G28: =IFERROR(ID!I43/ID!I42,"") ->  | H28: =IFERROR(ID!J43/ID!J42,"") ->  | I28: =IFERROR(ID!K43/ID!K42,"") -> 
A29: Taxa Média Praticada para os Serviços de Drenagem e Manejo das Águas Pluviais Urbanas | B29: IN005 | C29: Anual | D29: R$/imóveis ano | E29: =IFERROR(ID!G38/ID!G44,"") ->  | F29: =IFERROR(ID!H38/ID!H44,"") ->  | G29: =IFERROR(ID!I38/ID!I44,"") ->  | H29: =IFERROR(ID!J38/ID!J44,"") ->  | I29: =IFERROR(ID!K38/ID!K44,"") -> 
A30: Despesa Média Praticada para os Serviços de Drenagem e Manejo das Águas Pluviais Urbanas | B30: IN009 | C30: Anual | D30: R$/imóveis ano | E30: =IFERROR(ID!G40/ID!G44,"") ->  | F30: =IFERROR(ID!H40/ID!H44,"") ->  | G30: =IFERROR(ID!I40/ID!I44,"") ->  | H30: =IFERROR(ID!J40/ID!J44,"") ->  | I30: =IFERROR(ID!K40/ID!K44,"") -> 
A31: Despesa per capita com serviços de Drenagem e Manejo das Águas Pluviais Urbanas | B31: IN048 | C31: Anual | D31: FN016 / GE006 | E31: =IFERROR(ID!G40/ID!G33,"") ->  | F31: =IFERROR(ID!H40/ID!H33,"") ->  | G31: =IFERROR(ID!I40/ID!I33,"") ->  | H31: =IFERROR(ID!J40/ID!J33,"") ->  | I31: =IFERROR(ID!K40/ID!K33,"") -> 
A32: Investimento per capita em drenagem e Manejo de Águas Pluviais Urbanas | B32: IN049 | C32: Anual | D32: R$/habitante ano | E32: =IFERROR(ID!G42/ID!G33,"") ->  | F32: =IFERROR(ID!H42/ID!H33,"") ->  | G32: =IFERROR(ID!I42/ID!I33,"") ->  | H32: =IFERROR(ID!J42/ID!J33,"") ->  | I32: =IFERROR(ID!K42/ID!K33,"") -> 
A33: Desembolso de investimentos per capta | B33: IN053 | C33: Anual | D33: R$/habitante ano | E33: =IFERROR(ID!G43/ID!G33,"") ->  | F33: =IFERROR(ID!H43/ID!H33,"") ->  | G33: =IFERROR(ID!I43/ID!I33,"") ->  | H33: =IFERROR(ID!J43/ID!J33,"") ->  | I33: =IFERROR(ID!K43/ID!K33,"") -> 
A34: Taxa de Cobertura de Pavimentação e Meio-Fio na Área Urbana do Município | B34: IN020 | C34: Anual | D34: % | E34: =IFERROR((ID!G46/ID!G45)*100,"") ->  | F34: =IFERROR((ID!H46/ID!H45)*100,"") ->  | G34: =IFERROR((ID!I46/ID!I45)*100,"") ->  | H34: =IFERROR((ID!J46/ID!J45)*100,"") ->  | I34: =IFERROR((ID!K46/ID!K45)*100,"") -> 
A35: Taxa de cobertura de vias públicas com redes ou canais pluviais subterrâneos na área urbana | B35: IN021 | C35: Anual | D35: % | E35: =IFERROR((ID!G47/ID!G45)*100,"") ->  | F35: =IFERROR((ID!H47/ID!H45)*100,"") ->  | G35: =IFERROR((ID!I47/ID!I45)*100,"") ->  | H35: =IFERROR((ID!J47/ID!J45)*100,"") ->  | I35: =IFERROR((ID!K47/ID!K45)*100,"") -> 
A36: Parcela de Cursos d’Água Naturais Perenes em Área Urbana com Parques Lineares | B36: IN025 | C36: Anual | D36: % | E36: =IFERROR((ID!G49/ID!G48)*100,"") ->  | F36: =IFERROR((ID!H49/ID!H48)*100,"") ->  | G36: =IFERROR((ID!I49/ID!I48)*100,"") ->  | H36: =IFERROR((ID!J49/ID!J48)*100,"") ->  | I36: =IFERROR((ID!K49/ID!K48)*100,"") -> 
A37: Parcela de Cursos d’Água Naturais Perenes com Canalização Aberta | B37: IN026 | C37: Anual | D37: % | E37: =IFERROR((ID!G50/ID!G48)*100,"") ->  | F37: =IFERROR((ID!H50/ID!H48)*100,"") ->  | G37: =IFERROR((ID!I50/ID!I48)*100,"") ->  | H37: =IFERROR((ID!J50/ID!J48)*100,"") ->  | I37: =IFERROR((ID!K50/ID!K48)*100,"") -> 
A38: Parcela de Cursos d’Água Naturais Perenes com Canalização Fechada | B38: IN027 | C38: Anual | D38: % | E38: =IFERROR((ID!G51/ID!G48)*100,"") ->  | F38: =IFERROR((ID!H51/ID!H48)*100,"") ->  | G38: =IFERROR((ID!I51/ID!I48)*100,"") ->  | H38: =IFERROR((ID!J51/ID!J48)*100,"") ->  | I38: =IFERROR((ID!K51/ID!K48)*100,"") -> 
A39: Parcela de Cursos d’Água Naturais Perenes com Diques | B39: IN029 | C39: Anual | D39: % | E39: =IFERROR((ID!G52/ID!G48)*100,"") ->  | F39: =IFERROR((ID!H52/ID!H48)*100,"") ->  | G39: =IFERROR((ID!I52/ID!I48)*100,"") ->  | H39: =IFERROR((ID!J52/ID!J48)*100,"") ->  | I39: =IFERROR((ID!K52/ID!K48)*100,"") -> 
A40: Volume de reservação de águas pluviais por unidade de área urbana | B40: IN035 | C40: Anual | D40: m³/km² | E40: =IFERROR(ID!G53/ID!G32,"") ->  | F40: =IFERROR(ID!H53/ID!H32,"") ->  | G40: =IFERROR(ID!I53/ID!I32,"") ->  | H40: =IFERROR(ID!J53/ID!J32,"") ->  | I40: =IFERROR(ID!K53/ID!K32,"") -> 
A41: Densidade de captações de águas pluviais na área urbana | B41: IN051 | C41: Anual | D41: un/km² | E41: =IFERROR((ID!G54+ID!G55)/ID!G32,"") ->  | F41: =IFERROR((ID!H54+ID!H55)/ID!H32,"") ->  | G41: =IFERROR((ID!I54+ID!I55)/ID!I32,"") ->  | H41: =IFERROR((ID!J54+ID!J55)/ID!J32,"") ->  | I41: =IFERROR((ID!K54+ID!K55)/ID!K32,"") -> 
A42: Parcela de Domicílios em Situação de Risco de Inundação | B42: IN040 | C42: Anual | D42: % | E42: =IFERROR((ID!G56/ID!G34)*100,"") ->  | F42: =IFERROR((ID!H56/ID!H34)*100,"") ->  | G42: =IFERROR((ID!I56/ID!I34)*100,"") ->  | H42: =IFERROR((ID!J56/ID!J34)*100,"") ->  | I42: =IFERROR((ID!K56/ID!K34)*100,"") -> 
A43: Parcela da População Impactada por Eventos Hidrológicos | B43: IN041 | C43: Anual | D43: % | E43: =IFERROR(((ID!G57+ID!G58)/ID!G33)*100,"") ->  | F43: =IFERROR(((ID!H57+ID!H58)/ID!H33)*100,"") ->  | G43: =IFERROR(((ID!I57+ID!I58)/ID!I33)*100,"") ->  | H43: =IFERROR(((ID!J57+ID!J58)/ID!J33)*100,"") ->  | I43: =IFERROR(((ID!K57+ID!K58)/ID!K33)*100,"") -> 
A44: Índice de Óbitos | B44: IN046 | C44: Anual | D44: obi. /〖10〗^5 hab | E44: =IFERROR(((ID!G59+ID!G60)*(10^5))/ID!G33,"") ->  | F44: =IFERROR(((ID!H59+ID!H60)*(10^5))/ID!H33,"") ->  | G44: =IFERROR(((ID!I59+ID!I60)*(10^5))/ID!I33,"") ->  | H44: =IFERROR(((ID!J59+ID!J60)*(10^5))/ID!J33,"") ->  | I44: =IFERROR(((ID!K59+ID!K60)*(10^5))/ID!K33,"") -> 
A45: Habitantes Realocados em Decorrência de Eventos Hidrológicos | B45: IN047 | C45: Anual | D45: pes. /〖10〗^5 hab | E45: =IFERROR(((ID!G62+ID!G63)/ID!G61)*(10^5),"") ->  | F45: =IFERROR(((ID!H62+ID!H63)/ID!H61)*(10^5),"") ->  | G45: =IFERROR(((ID!I62+ID!I63)/ID!I61)*(10^5),"") ->  | H45: =IFERROR(((ID!J62+ID!J63)/ID!J61)*(10^5),"") ->  | I45: =IFERROR(((ID!K62+ID!K63)/ID!K61)*(10^5),"") -> 

Sheet RE (hidden)
A1: Dados | B1: Frequência | C1: Descrição | D1: Unidade de medida | E1: Fonte de dados | F1: Responsável pela geração dos dados | H1: Ano | I1: Ano | J1: Ano | L1: Ano
H2: ='Indicadores - Resíduos'!E3 -> 2019 | I2: ='Indicadores - Resíduos'!F3 -> 2020 | J2: ='Indicadores - Resíduos'!G3 -> 2021 | K2: ='Indicadores - Resíduos'!H3 -> 2022 | L2: ='Indicadores - Resíduos'!I3 -> 2023
A3: Frequência da coleta domiciliar | B3: Anual | C3: Número de dias que acontece a coleta seletiva nos bairros | D3: dias | E3: Diretoria de resíduos | F3: Diretoria de resíduos | G3: 2 | H3: =HLOOKUP(H$2,'Base de Dados - Resíduos'!$G$3:$AW$1048576,$G3,) -> 3 vezes e 6 vezes | I3: =HLOOKUP(I$2,'Base de Dados - Resíduos'!$G$3:$AW$1048576,$G3,) -> 0 | J3: =HLOOKUP(J$2,'Base de Dados - Resíduos'!$G$3:$AW$1048576,$G3,) -> 0 | K3: =HLOOKUP(K$2,'Base de Dados - Resíduos'!$G$3:$AW$1048576,$G3,) -> 0 | L3: =HLOOKUP(L$2,'Base de Dados - Resíduos'!$G$3:$AW$1048576,$G3,) -> 0
A4: Rurb | B4: Anual | C4: Número de residências atendidas pela coleta convencional na área urbana | D4: Unidade | E4: Diretoria de resíduos | F4: Diretoria de resíduos | G4: 3 | H4: =HLOOKUP(H$2,'Base de Dados - Resíduos'!$G$3:$AW$1048576,$G4,) -> 48424 | I4: =HLOOKUP(I$2,'Base de Dados - Resíduos'!$G$3:$AW$1048576,$G4,) -> 0 | J4: =HLOOKUP(J$2,'Base de Dados - Resíduos'!$G$3:$AW$1048576,$G4,) -> 0 | K4: =HLOOKUP(K$2,'Base de Dados - Resíduos'!$G$3:$AW$1048576,$G4,) -> 0 | L4: =HLOOKUP(L$2,'Base de Dados - Resíduos'!$G$3:$AW$1048576,$G4,) -> 0
A5: Rurbana | B5: Anual | C5: Número total de residências na área urbana | D5: Unidade | E5: IBGE ou Projeção de população (PSBM) | F5: Diretoria de resíduos | G5: 4 | H5: =HLOOKUP(H$2,'Base de Dados - Resíduos'!$G$3:$AW$1048576,$G5,) -> 48424 | I5: =HLOOKUP(I$2,'Base de Dados - Resíduos'!$G$3:$AW$1048576,$G5,) -> 0 | J5: =HLOOKUP(J$2,'Base de Dados - Resíduos'!$G$3:$AW$1048576,$G5,) -> 0 | K5: =HLOOKUP(K$2,'Base de Dados - Resíduos'!$G$3:$AW$1048576,$G5,) -> 0 | L5: =HLOOKUP(L$2,'Base de Dados - Resíduos'!$G$3:$AW$1048576,$G5,) -> 0
A6: Rru | B6: Anual | C6: Número de residências atendidas pela coleta convencional na área rural | D6: Unidade | E6: Diretoria de resíduos | F6: Diretoria de resíduos | G6: 5 | H6: =HLOOKUP(H$2,'Base de Dados - Resíduos'!$G$3:$AW$1048576,$G6,) -> 736 | I6: =HLOOKUP(I$2,'Base de Dados - Resíduos'!$G$3:$AW$1048576,$G6,) -> 0 | J6: =HLOOKUP(J$2,'Base de Dados - Resíduos'!$G$3:$AW$1048576,$G6,) -> 0 | K6: =HLOOKUP(K$2,'Base de Dados - Resíduos'!$G$3:$AW$1048576,$G6,) -> 0 | L6: =HLOOKUP(L$2,'Base de Dados - Resíduos'!$G$3:$AW$1048576,$G6,) -> 0
A7: Rrural | B7: Anual | C7: Número total de residências na área rural | D7: Unidade | E7: IBGE ou Projeção de população (PSBM) | F7: Diretoria de resíduos | G7: 6 | H7: =HLOOKUP(H$2,'Base de Dados - Resíduos'!$G$3:$AW$1048576,$G7,) -> 878 | I7: =HLOOKUP(I$2,'Base de Dados - Resíduos'!$G$3:$AW$1048576,$G7,) -> 0 | J7: =HLOOKUP(J$2,'Base de Dados - Resíduos'!$G$3:$AW$1048576,$G7,) -> 0 | K7: =HLOOKUP(K$2,'Base de Dados - Resíduos'!$G$3:$AW$1048576,$G7,) -> 0 | L7: =HLOOKUP(L$2,'Base de Dados - Resíduos'!$G$3:$AW$1048576,$G7,) -> 0
A8: Rtot | B8: Semestral | C8: Número de residências totais atendidas pela coleta convencional | D8: Unidade | E8: Diretoria de resíduos | F8: Diretoria de resíduos | G8: 7 | H8: =HLOOKUP(H$2,'Base de Dados - Resíduos'!$G$3:$AW$1048576,$G8,) -> 0 | I8: =HLOOKUP(I$2,'Base de Dados - Resíduos'!$G$3:$AW$1048576,$G8,) -> 0 | J8: =HLOOKUP(J$2,'Base de Dados - Resíduos'!$G$3:$AW$1048576,$G8,) -> 0 | K8: =HLOOKUP(K$2,'Base de Dados - Resíduos'!$G$3:$AW$1048576,$G8,) -> 0 | L8: =HLOOKUP(L$2,'Base de Dados - Resíduos'!$G$3:$AW$1048576,$G8,) -> 0
A9: Rtotal | B9: Anual / Semestral | C9: Número total de residências no município | D9: Unidade | E9: IBGE ou Projeção de população (PSBM) | F9: Diretoria de resíduos | G9: 8 | H9: =HLOOKUP(H$2,'Base de Dados - Resíduos'!$G$3:$AW$1048576,$G9,) -> 49302 | I9: =HLOOKUP(I$2,'Base de Dados - Resíduos'!$G$3:$AW$1048576,$G9,) -> 0 | J9: =HLOOKUP(J$2,'Base de Dados - Resíduos'!$G$3:$AW$1048576,$G9,) -> 0 | K9: =HLOOKUP(K$2,'Base de Dados - Resíduos'!$G$3:$AW$1048576,$G9,) -> 0 | L9: =HLOOKUP(L$2,'Base de Dados - Resíduos'!$G$3:$AW$1048576,$G9,) -> 0
A10: Mtotal (mensal) | B10: Mensal | C10: Massa total de resíduos coletada mensalmente | D10: toneladas | E10: Diretoria de resíduos | F10: Diretoria de resíduos | G10: 9 | H10: =HLOOKUP(H$2,'Base de Dados - Resíduos'!$G$3:$AW$1048576,$G10,) -> 0 | I10: =HLOOKUP(I$2,'Base de Dados - Resíduos'!$G$3:$AW$1048576,$G10,) -> 0 | J10: =HLOOKUP(J$2,'Base de Dados - Resíduos'!$G$3:$AW$1048576,$G10,) -> 0 | K10: =HLOOKUP(K$2,'Base de Dados - Resíduos'!$G$3:$AW$1048576,$G10,) -> 0 | L10: =HLOOKUP(L$2,'Base de Dados - Resíduos'!$G$3:$AW$1048576,$G10,) -> 0
A11: Ptotal | B11: Anual | C11: População total do município | D11: habitantes | E11: IBGE ou Projeção de população (PSBM) | F11: Diretoria de resíduos | G11: 10 | H11: =HLOOKUP(H$2,'Base de Dados - Resíduos'!$G$3:$AW$1048576,$G11,) -> 157544 | I11: =HLOOKUP(I$2,'Base de Dados - Resíduos'!$G$3:$AW$1048576,$G11,) -> 0 | J11: =HLOOKUP(J$2,'Base de Dados - Resíduos'!$G$3:$AW$1048576,$G11,) -> 0 | K11: =HLOOKUP(K$2,'Base de Dados - Resíduos'!$G$3:$AW$1048576,$G11,) -> 0 | L11: =HLOOKUP(L$2,'Base de Dados - Resíduos'!$G$3:$AW$1048576,$G11,) -> 0
A12: Nfun | B12: Semestral | C12: Número total de funcionários que trabalha na coleta de resíduos sólidos urbanos | D12: - | E12: Empresa responsável pela operação da coleta de resíduos sólidos urbanos | F12: Diretoria de resíduos | G12: 11 | H12: =HLOOKUP(H$2,'Base de Dados - Resíduos'!$G$3:$AW$1048576,$G12,) -> 51 | I12: =HLOOKUP(I$2,'Base de Dados - Resíduos'!$G$3:$AW$1048576,$G12,) -> 0 | J12: =HLOOKUP(J$2,'Base de Dados - Resíduos'!$G$3:$AW$1048576,$G12,) -> 0 | K12: =HLOOKUP(K$2,'Base de Dados - Resíduos'!$G$3:$AW$1048576,$G12,) -> 0 | L12: =HLOOKUP(L$2,'Base de Dados - Resíduos'!$G$3:$AW$1048576,$G12,) -> 0
A13: Ptotal (atendida) | B13: Anual / Semestral | C13: População total atendida pela coleta convencional | D13: habitantes | E13: Diretoria de resíduos | F13: Diretoria de resíduos | G13: 12 | H13: =HLOOKUP(H$2,'Base de Dados - Resíduos'!$G$3:$AW$1048576,$G13,) -> 157089 | I13: =HLOOKUP(I$2,'Base de Dados - Resíduos'!$G$3:$AW$1048576,$G13,) -> 0 | J13: =HLOOKUP(J$2,'Base de Dados - Resíduos'!$G$3:$AW$1048576,$G13,) -> 0 | K13: =HLOOKUP(K$2,'Base de Dados - Resíduos'!$G$3:$AW$1048576,$G13,) -> 0 | L13: =HLOOKUP(L$2,'Base de Dados - Resíduos'!$G$3:$AW$1048576,$G13,) -> 0
A14: Vtotal (anual) | B14: Anual | C14: Valor gasto no serviço de coleta convencional dos resíduos sólidos urbanos | D14: R$ | E14: Semasa | F14: Diretoria de resíduos | G14: 13 | H14: =HLOOKUP(H$2,'Base de Dados - Resíduos'!$G$3:$AW$1048576,$G14,) -> 0 | I14: =HLOOKUP(I$2,'Base de Dados - Resíduos'!$G$3:$AW$1048576,$G14,) -> 0 | J14: =HLOOKUP(J$2,'Base de Dados - Resíduos'!$G$3:$AW$1048576,$G14,) -> 0 | K14: =HLOOKUP(K$2,'Base de Dados - Resíduos'!$G$3:$AW$1048576,$G14,) -> 0 | L14: =HLOOKUP(L$2,'Base de Dados - Resíduos'!$G$3:$AW$1048576,$G14,) -> 0
A15: Mtotal (anual) | B15: Anual | C15: Massa total de resíduos sólidos urbanos coletada anualmente | D15: toneladas | E15: Empresa responsável pela operação do Aterro sanitário | F15: Diretoria de resíduos | G15: 14 | H15: =HLOOKUP(H$2,'Base de Dados - Resíduos'!$G$3:$AW$1048576,$G15,) -> 0 | I15: =HLOOKUP(I$2,'Base de Dados - Resíduos'!$G$3:$AW$1048576,$G15,) -> 0 | J15: =HLOOKUP(J$2,'Base de Dados - Resíduos'!$G$3:$AW$1048576,$G15,) -> 0 | K15: =HLOOKUP(K$2,'Base de Dados - Resíduos'!$G$3:$AW$1048576,$G15,) -> 0 | L15: =HLOOKUP(L$2,'Base de Dados - Resíduos'!$G$3:$AW$1048576,$G15,) -> 0
A16: Vtotal (coleta) | B16: Anual | C16: Valor total gasto com a coleta seletiva | D16: R$ | E16: Semasa | F16: Diretoria de resíduos | G16: 15 | H16: =HLOOKUP(H$2,'Base de Dados - Resíduos'!$G$3:$AW$1048576,$G16,) -> 817408.17 | I16: =HLOOKUP(I$2,'Base de Dados - Resíduos'!$G$3:$AW$1048576,$G16,) -> 0 | J16: =HLOOKUP(J$2,'Base de Dados - Resíduos'!$G$3:$AW$1048576,$G16,) -> 0 | K16: =HLOOKUP(K$2,'Base de Dados - Resíduos'!$G$3:$AW$1048576,$G16,) -> 0 | L16: =HLOOKUP(L$2,'Base de Dados - Resíduos'!$G$3:$AW$1048576,$G16,) -> 0
A17: Vtotal (manejo dos RSU) | B17: Anual | C17: Valor total gasto com o manejo dos RSU | D17: R$ | E17: Semasa | F17: Diretoria de resíduos | G17: 16 | H17: =HLOOKUP(H$2,'Base de Dados - Resíduos'!$G$3:$AW$1048576,$G17,) -> 0 | I17: =HLOOKUP(I$2,'Base de Dados - Resíduos'!$G$3:$AW$1048576,$G17,) -> 0 | J17: =HLOOKUP(J$2,'Base de Dados - Resíduos'!$G$3:$AW$1048576,$G17,) -> 0 | K17: =HLOOKUP(K$2,'Base de Dados - Resíduos'!$G$3:$AW$1048576,$G17,) -> 0 | L17: =HLOOKUP(L$2,'Base de Dados - Resíduos'!$G$3:$AW$1048576,$G17,) -> 0
A18: Custo da disposição final dos RSU | B18: Anual | C18: Valor gasto com a disposição final dos resíduos sólidos urbanos | D18: R$ | E18: Semasa | F18: Diretoria de resíduos | G18: 17 | H18: =HLOOKUP(H$2,'Base de Dados - Resíduos'!$G$3:$AW$1048576,$G18,) -> 0 | I18: =HLOOKUP(I$2,'Base de Dados - Resíduos'!$G$3:$AW$1048576,$G18,) -> 0 | J18: =HLOOKUP(J$2,'Base de Dados - Resíduos'!$G$3:$AW$1048576,$G18,) -> 0 | K18: =HLOOKUP(K$2,'Base de Dados - Resíduos'!$G$3:$AW$1048576,$G18,) -> 0 | L18: =HLOOKUP(L$2,'Base de Dados - Resíduos'!$G$3:$AW$1048576,$G18,) -> 0
A19: Mtotal (RSS) | B19: Anual / Mensal | C19: Massa total de resíduos de serviço de saúde coletada | D19: quilogramas | E19: Empresa terceirizada para realizar a coleta dos RSS | F19: Diretoria de resíduos | G19: 18 | H19: =HLOOKUP(H$2,'Base de Dados - Resíduos'!$G$3:$AW$1048576,$G19,) -> 0 | I19: =HLOOKUP(I$2,'Base de Dados - Resíduos'!$G$3:$AW$1048576,$G19,) -> 0 | J19: =HLOOKUP(J$2,'Base de Dados - Resíduos'!$G$3:$AW$1048576,$G19,) -> 0 | K19: =HLOOKUP(K$2,'Base de Dados - Resíduos'!$G$3:$AW$1048576,$G19,) -> 0 | L19: =HLOOKUP(L$2,'Base de Dados - Resíduos'!$G$3:$AW$1048576,$G19,) -> 0
A20: Vtotal (RSS) | B20: Anual | C20: Valor gasto com manejo dos resíduos de serviço de saúde | D20: R$ | E20: Semasa | F20: Diretoria de resíduos | G20: 19 | H20: =HLOOKUP(H$2,'Base de Dados - Resíduos'!$G$3:$AW$1048576,$G20,) -> 0 | I20: =HLOOKUP(I$2,'Base de Dados - Resíduos'!$G$3:$AW$1048576,$G20,) -> 0 | J20: =HLOOKUP(J$2,'Base de Dados - Resíduos'!$G$3:$AW$1048576,$G20,) -> 0 | K20: =HLOOKUP(K$2,'Base de Dados - Resíduos'!$G$3:$AW$1048576,$G20,) -> 0 | L20: =HLOOKUP(L$2,'Base de Dados - Resíduos'!$G$3:$AW$1048576,$G20,) -> 0
A21: Nfun (varrição) | B21: Anual | C21: Número de funcionários do serviço de varrição | D21: funcionários | E21: Secretaria de Serviços Públicos e Meio Ambiente | F21: Diretoria de resíduos | G21: 20 | H21: =HLOOKUP(H$2,'Base de Dados - Resíduos'!$G$3:$AW$1048576,$G21,) -> 31 | I21: =HLOOKUP(I$2,'Base de Dados - Resíduos'!$G$3:$AW$1048576,$G21,) -> 0 | J21: =HLOOKUP(J$2,'Base de Dados - Resíduos'!$G$3:$AW$1048576,$G21,) -> 0 | K21: =HLOOKUP(K$2,'Base de Dados - Resíduos'!$G$3:$AW$1048576,$G21,) -> 0 | L21: =HLOOKUP(L$2,'Base de Dados - Resíduos'!$G$3:$AW$1048576,$G21,) -> 0
A22: P (urbana) | B22: Anual | C22: População total da área urbana | D22: habitantes | E22: IBGE ou Projeção de população (PSBM) | F22: Diretoria de resíduos | G22: 21 | H22: =HLOOKUP(H$2,'Base de Dados - Resíduos'!$G$3:$AW$1048576,$G22,) -> 154740 | I22: =HLOOKUP(I$2,'Base de Dados - Resíduos'!$G$3:$AW$1048576,$G22,) -> 0 | J22: =HLOOKUP(J$2,'Base de Dados - Resíduos'!$G$3:$AW$1048576,$G22,) -> 0 | K22: =HLOOKUP(K$2,'Base de Dados - Resíduos'!$G$3:$AW$1048576,$G22,) -> 0 | L22: =HLOOKUP(L$2,'Base de Dados - Resíduos'!$G$3:$AW$1048576,$G22,) -> 0
A23: Nfun (capinação) | B23: Anual | C23: Número de funcionários do serviço de capinação | D23: funcionários | E23: Secretaria de Serviços Públicos e Meio Ambiente | F23: Diretoria de resíduos | G23: 22 | H23: =HLOOKUP(H$2,'Base de Dados - Resíduos'!$G$3:$AW$1048576,$G23,) -> 123 | I23: =HLOOKUP(I$2,'Base de Dados - Resíduos'!$G$3:$AW$1048576,$G23,) -> 0 | J23: =HLOOKUP(J$2,'Base de Dados - Resíduos'!$G$3:$AW$1048576,$G23,) -> 0 | K23: =HLOOKUP(K$2,'Base de Dados - Resíduos'!$G$3:$AW$1048576,$G23,) -> 0 | L23: =HLOOKUP(L$2,'Base de Dados - Resíduos'!$G$3:$AW$1048576,$G23,) -> 0
A24: EI (km de vias limpas) | B24: Anual / Semestral | C24: Extensão total das vias contempladas pelo serviço de varrição | D24: km | E24: Secretaria de Serviços Públicos e Meio Ambiente | F24: Diretoria de resíduos | G24: 23 | H24: =HLOOKUP(H$2,'Base de Dados - Resíduos'!$G$3:$AW$1048576,$G24,) -> 0 | I24: =HLOOKUP(I$2,'Base de Dados - Resíduos'!$G$3:$AW$1048576,$G24,) -> 0 | J24: =HLOOKUP(J$2,'Base de Dados - Resíduos'!$G$3:$AW$1048576,$G24,) -> 0 | K24: =HLOOKUP(K$2,'Base de Dados - Resíduos'!$G$3:$AW$1048576,$G24,) -> 0 | L24: =HLOOKUP(L$2,'Base de Dados - Resíduos'!$G$3:$AW$1048576,$G24,) -> 0
A25: E (km de vias pavimentadas) | B25: Anual | C25: Extensão total das vias municipais pavimentadas no município | D25: km | E25: Secretaria de Obras e Planejamento | F25: Secretaria de Planejamento e Obras | G25: 24 | H25: =HLOOKUP(H$2,'Base de Dados - Resíduos'!$G$3:$AW$1048576,$G25,) -> 0 | I25: =HLOOKUP(I$2,'Base de Dados - Resíduos'!$G$3:$AW$1048576,$G25,) -> 0 | J25: =HLOOKUP(J$2,'Base de Dados - Resíduos'!$G$3:$AW$1048576,$G25,) -> 0 | K25: =HLOOKUP(K$2,'Base de Dados - Resíduos'!$G$3:$AW$1048576,$G25,) -> 0 | L25: =HLOOKUP(L$2,'Base de Dados - Resíduos'!$G$3:$AW$1048576,$G25,) -> 0
A26: Vtotal (varrição) | B26: Anual / Semestral | C26: Valor total gasto com o serviço de varrição | D26: R$ | E26: Secretaria de Administração e Fazenda | F26: Diretoria de resíduos | G26: 25 | H26: =HLOOKUP(H$2,'Base de Dados - Resíduos'!$G$3:$AW$1048576,$G26,) -> 0 | I26: =HLOOKUP(I$2,'Base de Dados - Resíduos'!$G$3:$AW$1048576,$G26,) -> 0 | J26: =HLOOKUP(J$2,'Base de Dados - Resíduos'!$G$3:$AW$1048576,$G26,) -> 0 | K26: =HLOOKUP(K$2,'Base de Dados - Resíduos'!$G$3:$AW$1048576,$G26,) -> 0 | L26: =HLOOKUP(L$2,'Base de Dados - Resíduos'!$G$3:$AW$1048576,$G26,) -> 0
A27: R (atendida) | B27: Anual | C27: Número de residências atendidas pela coleta seletiva | D27: unidade | E27: Diretoria de resíduos | F27: Diretoria de resíduos | G27: 26 | H27: =HLOOKUP(H$2,'Base de Dados - Resíduos'!$G$3:$AW$1048576,$G27,) -> 43366 | I27: =HLOOKUP(I$2,'Base de Dados - Resíduos'!$G$3:$AW$1048576,$G27,) -> 0 | J27: =HLOOKUP(J$2,'Base de Dados - Resíduos'!$G$3:$AW$1048576,$G27,) -> 0 | K27: =HLOOKUP(K$2,'Base de Dados - Resíduos'!$G$3:$AW$1048576,$G27,) -> 0 | L27: =HLOOKUP(L$2,'Base de Dados - Resíduos'!$G$3:$AW$1048576,$G27,) -> 0
A28: T (recicláveis coletado) | B28: Anual / Mensal | C28: Massa total dos materiais recicláveis coletada | D28: toneladas | E28: Diretoria de resíduos | F28: Diretoria de resíduos | G28: 27 | H28: =HLOOKUP(H$2,'Base de Dados - Resíduos'!$G$3:$AW$1048576,$G28,) -> 0 | I28: =HLOOKUP(I$2,'Base de Dados - Resíduos'!$G$3:$AW$1048576,$G28,) -> 0 | J28: =HLOOKUP(J$2,'Base de Dados - Resíduos'!$G$3:$AW$1048576,$G28,) -> 0 | K28: =HLOOKUP(K$2,'Base de Dados - Resíduos'!$G$3:$AW$1048576,$G28,) -> 0 | L28: =HLOOKUP(L$2,'Base de Dados - Resíduos'!$G$3:$AW$1048576,$G28,) -> 0
A29: Mrtotal (diária) | B29: Anual | C29: Massa diária total dos materiais recicláveis | D29: toneladas | E29: Diretoria de resíduos | F29: Diretoria de resíduos | G29: 28 | H29: =HLOOKUP(H$2,'Base de Dados - Resíduos'!$G$3:$AW$1048576,$G29,) -> 0 | I29: =HLOOKUP(I$2,'Base de Dados - Resíduos'!$G$3:$AW$1048576,$G29,) -> 0 | J29: =HLOOKUP(J$2,'Base de Dados - Resíduos'!$G$3:$AW$1048576,$G29,) -> 0 | K29: =HLOOKUP(K$2,'Base de Dados - Resíduos'!$G$3:$AW$1048576,$G29,) -> 0 | L29: =HLOOKUP(L$2,'Base de Dados - Resíduos'!$G$3:$AW$1048576,$G29,) -> 0
A30: Ptotal (atendida) | B30: Anual | C30: População total atendida pela coleta seletiva | D30: habitantes | E30: Diretoria de resíduos | F30: Diretoria de resíduos | G30: 29 | H30: =HLOOKUP(H$2,'Base de Dados - Resíduos'!$G$3:$AW$1048576,$G30,) -> 138607 | I30: =HLOOKUP(I$2,'Base de Dados - Resíduos'!$G$3:$AW$1048576,$G30,) -> 0 | J30: =HLOOKUP(J$2,'Base de Dados - Resíduos'!$G$3:$AW$1048576,$G30,) -> 0 | K30: =HLOOKUP(K$2,'Base de Dados - Resíduos'!$G$3:$AW$1048576,$G30,) -> 0 | L30: =HLOOKUP(L$2,'Base de Dados - Resíduos'!$G$3:$AW$1048576,$G30,) -> 0
A31: V (pago) | B31: Anual | C31: Valor total pago pela coleta dos materiais recicláveis | D31: R$ | E31: Semasa | F31: Diretoria de resíduos | G31: 30 | H31: =HLOOKUP(H$2,'Base de Dados - Resíduos'!$G$3:$AW$1048576,$G31,) -> 817408.17 | I31: =HLOOKUP(I$2,'Base de Dados - Resíduos'!$G$3:$AW$1048576,$G31,) -> 0 | J31: =HLOOKUP(J$2,'Base de Dados - Resíduos'!$G$3:$AW$1048576,$G31,) -> 0 | K31: =HLOOKUP(K$2,'Base de Dados - Resíduos'!$G$3:$AW$1048576,$G31,) -> 0 | L31: =HLOOKUP(L$2,'Base de Dados - Resíduos'!$G$3:$AW$1048576,$G31,) -> 0
A32: V (arrecadado) | B32: Anual | C32: Valor arrecadado pelo município com a cobrança do serviço de manejo dos resíduos sólidos urbanos | D32: R$ | E32: Semasa | F32: Diretoria de resíduos | G32: 31 | H32: =HLOOKUP(H$2,'Base de Dados - Resíduos'!$G$3:$AW$1048576,$G32,) -> 11909523.86 | I32: =HLOOKUP(I$2,'Base de Dados - Resíduos'!$G$3:$AW$1048576,$G32,) -> 0 | J32: =HLOOKUP(J$2,'Base de Dados - Resíduos'!$G$3:$AW$1048576,$G32,) -> 0 | K32: =HLOOKUP(K$2,'Base de Dados - Resíduos'!$G$3:$AW$1048576,$G32,) -> 0 | L32: =HLOOKUP(L$2,'Base de Dados - Resíduos'!$G$3:$AW$1048576,$G32,) -> 0
A33: O (ocorrências anual) | B33: Anual | C33: Indica o número de ocorrências de disposição irregular/clandestina | D33: - | E33: Secretaria de Serviços Públicos e Meio Ambiente | F33: Diretoria de resíduos | G33: 32 | H33: =HLOOKUP(H$2,'Base de Dados - Resíduos'!$G$3:$AW$1048576,$G33,) -> 0 | I33: =HLOOKUP(I$2,'Base de Dados - Resíduos'!$G$3:$AW$1048576,$G33,) -> 0 | J33: =HLOOKUP(J$2,'Base de Dados - Resíduos'!$G$3:$AW$1048576,$G33,) -> 0 | K33: =HLOOKUP(K$2,'Base de Dados - Resíduos'!$G$3:$AW$1048576,$G33,) -> 0 | L33: =HLOOKUP(L$2,'Base de Dados - Resíduos'!$G$3:$AW$1048576,$G33,) -> 0
A34: Método de disposição final | B34: Anual | C34: Local de destinação final dos resíduos sólidos urbanos | D34: Aterro sanitário / aterro controlado / lixão | E34: Diretoria de resíduos | F34: Diretoria de resíduos | G34: 33 | H34: =HLOOKUP(H$2,'Base de Dados - Resíduos'!$G$3:$AW$1048576,$G34,) -> Aterro Sanitário | I34: =HLOOKUP(I$2,'Base de Dados - Resíduos'!$G$3:$AW$1048576,$G34,) -> 0 | J34: =HLOOKUP(J$2,'Base de Dados - Resíduos'!$G$3:$AW$1048576,$G34,) -> 0 | K34: =HLOOKUP(K$2,'Base de Dados - Resíduos'!$G$3:$AW$1048576,$G34,) -> 0 | L34: =HLOOKUP(L$2,'Base de Dados - Resíduos'!$G$3:$AW$1048576,$G34,) -> 0
A35: Existência de licença ambiental no local de disposição final | B35: Anual | C35: Existência de licença ambiental no Aterro sanitário | D35: Sim /Não | E35: Administrador do local de disposição final | F35: Diretoria de resíduos | G35: 34 | H35: =HLOOKUP(H$2,'Base de Dados - Resíduos'!$G$3:$AW$1048576,$G35,) -> Sim | I35: =HLOOKUP(I$2,'Base de Dados - Resíduos'!$G$3:$AW$1048576,$G35,) -> 0 | J35: =HLOOKUP(J$2,'Base de Dados - Resíduos'!$G$3:$AW$1048576,$G35,) -> 0 | K35: =HLOOKUP(K$2,'Base de Dados - Resíduos'!$G$3:$AW$1048576,$G35,) -> 0 | L35: =HLOOKUP(L$2,'Base de Dados - Resíduos'!$G$3:$AW$1048576,$G35,) -> 0
A36: Existência de balança | B36: Anual | C36: Existência de balança no aterro sanitário | D36: Sim /Não | E36: Administrador do local de disposição final | F36: Diretoria de resíduos | G36: 35 | H36: =HLOOKUP(H$2,'Base de Dados - Resíduos'!$G$3:$AW$1048576,$G36,) -> Sim | I36: =HLOOKUP(I$2,'Base de Dados - Resíduos'!$G$3:$AW$1048576,$G36,) -> 0 | J36: =HLOOKUP(J$2,'Base de Dados - Resíduos'!$G$3:$AW$1048576,$G36,) -> 0 | K36: =HLOOKUP(K$2,'Base de Dados - Resíduos'!$G$3:$AW$1048576,$G36,) -> 0 | L36: =HLOOKUP(L$2,'Base de Dados - Resíduos'!$G$3:$AW$1048576,$G36,) -> 0
A37: Coleta diferenciada de resíduos de serviço de saúde (RSS) | B37: Semestral | C37: Existência de coleta específica para os resíduos de serviço de saúde | D37: Sim /Não | E37: Diretoria de resíduos | F37: Diretoria de resíduos | G37: 36 | H37: =HLOOKUP(H$2,'Base de Dados - Resíduos'!$G$3:$AW$1048576,$G37,) -> 0 | I37: =HLOOKUP(I$2,'Base de Dados - Resíduos'!$G$3:$AW$1048576,$G37,) -> 0 | J37: =HLOOKUP(J$2,'Base de Dados - Resíduos'!$G$3:$AW$1048576,$G37,) -> 0 | K37: =HLOOKUP(K$2,'Base de Dados - Resíduos'!$G$3:$AW$1048576,$G37,) -> 0 | L37: =HLOOKUP(L$2,'Base de Dados - Resíduos'!$G$3:$AW$1048576,$G37,) -> 0
A38: Coleta diferenciada dos resíduos de construção civil (RCC) | B38: Semestral | C38: Existência de programa de coleta de resíduos de construção e demolição | D38: Sim /Não | E38: Diretoria de resíduos | F38: Diretoria de resíduos | G38: 37 | H38: =HLOOKUP(H$2,'Base de Dados - Resíduos'!$G$3:$AW$1048576,$G38,) -> 0 | I38: =HLOOKUP(I$2,'Base de Dados - Resíduos'!$G$3:$AW$1048576,$G38,) -> 0 | J38: =HLOOKUP(J$2,'Base de Dados - Resíduos'!$G$3:$AW$1048576,$G38,) -> 0 | K38: =HLOOKUP(K$2,'Base de Dados - Resíduos'!$G$3:$AW$1048576,$G38,) -> 0 | L38: =HLOOKUP(L$2,'Base de Dados - Resíduos'!$G$3:$AW$1048576,$G38,) -> 0
A39: POP_URB | C39: População urbana do município (Fonte: IBGE) | G39: 38 | H39: =HLOOKUP(H$2,'Base de Dados - Resíduos'!$G$3:$AW$1048576,$G39,) -> 0 | I39: =HLOOKUP(I$2,'Base de Dados - Resíduos'!$G$3:$AW$1048576,$G39,) -> 0 | J39: =HLOOKUP(J$2,'Base de Dados - Resíduos'!$G$3:$AW$1048576,$G39,) -> 0 | K39: =HLOOKUP(K$2,'Base de Dados - Resíduos'!$G$3:$AW$1048576,$G39,) -> 0 | L39: =HLOOKUP(L$2,'Base de Dados - Resíduos'!$G$3:$AW$1048576,$G39,) -> 0
A40: TB013 | C40: Quantidade de trabalhadores de agentes públicos envolvidos nos serviços de manejo de RSU | G40: 39 | H40: =HLOOKUP(H$2,'Base de Dados - Resíduos'!$G$3:$AW$1048576,$G40,) -> 0 | I40: =HLOOKUP(I$2,'Base de Dados - Resíduos'!$G$3:$AW$1048576,$G40,) -> 0 | J40: =HLOOKUP(J$2,'Base de Dados - Resíduos'!$G$3:$AW$1048576,$G40,) -> 0 | K40: =HLOOKUP(K$2,'Base de Dados - Resíduos'!$G$3:$AW$1048576,$G40,) -> 0 | L40: =HLOOKUP(L$2,'Base de Dados - Resíduos'!$G$3:$AW$1048576,$G40,) -> 0
A41: TB014 | C41: Quantidade de trabalhadores de agentes privados envolvidos nos serviços de manejo de RSU | G41: 40 | H41: =HLOOKUP(H$2,'Base de Dados - Resíduos'!$G$3:$AW$1048576,$G41,) -> 0 | I41: =HLOOKUP(I$2,'Base de Dados - Resíduos'!$G$3:$AW$1048576,$G41,) -> 0 | J41: =HLOOKUP(J$2,'Base de Dados - Resíduos'!$G$3:$AW$1048576,$G41,) -> 0 | K41: =HLOOKUP(K$2,'Base de Dados - Resíduos'!$G$3:$AW$1048576,$G41,) -> 0 | L41: =HLOOKUP(L$2,'Base de Dados - Resíduos'!$G$3:$AW$1048576,$G41,) -> 0
A42: TB016 | C42: Existência de frente de trabalho temporária | G42: 41 | H42: =HLOOKUP(H$2,'Base de Dados - Resíduos'!$G$3:$AW$1048576,$G42,) -> 0 | I42: =HLOOKUP(I$2,'Base de Dados - Resíduos'!$G$3:$AW$1048576,$G42,) -> 0 | J42: =HLOOKUP(J$2,'Base de Dados - Resíduos'!$G$3:$AW$1048576,$G42,) -> 0 | K42: =HLOOKUP(K$2,'Base de Dados - Resíduos'!$G$3:$AW$1048576,$G42,) -> 0 | L42: =HLOOKUP(L$2,'Base de Dados - Resíduos'!$G$3:$AW$1048576,$G42,) -> 0
A43: FN220 | C43: Despesa total com serviços de manejo de RSU | G43: 42 | H43: =HLOOKUP(H$2,'Base de Dados - Resíduos'!$G$3:$AW$1048576,$G43,) -> 0 | I43: =HLOOKUP(I$2,'Base de Dados - Resíduos'!$G$3:$AW$1048576,$G43,) -> 0 | J43: =HLOOKUP(J$2,'Base de Dados - Resíduos'!$G$3:$AW$1048576,$G43,) -> 0 | K43: =HLOOKUP(K$2,'Base de Dados - Resíduos'!$G$3:$AW$1048576,$G43,) -> 0 | L43: =HLOOKUP(L$2,'Base de Dados - Resíduos'!$G$3:$AW$1048576,$G43,) -> 0
A44: FN223 | C44: Despesa Corrente da Prefeitura durante o ano com TODOS os serviços do município (saúde, educação, pagamento de pessoal, etc.) | G44: 43 | H44: =HLOOKUP(H$2,'Base de Dados - Resíduos'!$G$3:$AW$1048576,$G44,) -> 0 | I44: =HLOOKUP(I$2,'Base de Dados - Resíduos'!$G$3:$AW$1048576,$G44,) -> 0 | J44: =HLOOKUP(J$2,'Base de Dados - Resíduos'!$G$3:$AW$1048576,$G44,) -> 0 | K44: =HLOOKUP(K$2,'Base de Dados - Resíduos'!$G$3:$AW$1048576,$G44,) -> 0 | L44: =HLOOKUP(L$2,'Base de Dados - Resíduos'!$G$3:$AW$1048576,$G44,) -> 0
A45: FN219 | C45: Despesa com agentes privados executores de serviços de manejo de RSU | G45: 44 | H45: =HLOOKUP(H$2,'Base de Dados - Resíduos'!$G$3:$AW$1048576,$G45,) -> 0 | I45: =HLOOKUP(I$2,'Base de Dados - Resíduos'!$G$3:$AW$1048576,$G45,) -> 0 | J45: =HLOOKUP(J$2,'Base de Dados - Resíduos'!$G$3:$AW$1048576,$G45,) -> 0 | K45: =HLOOKUP(K$2,'Base de Dados - Resíduos'!$G$3:$AW$1048576,$G45,) -> 0 | L45: =HLOOKUP(L$2,'Base de Dados - Resíduos'!$G$3:$AW$1048576,$G45,) -> 0
A46: FN222 | C46: Receita arrecadada com taxas e tarifas referentes à gestão e manejo de RSU | G46: 45 | H46: =HLOOKUP(H$2,'Base de Dados - Resíduos'!$G$3:$AW$1048576,$G46,) -> 0 | I46: =HLOOKUP(I$2,'Base de Dados - Resíduos'!$G$3:$AW$1048576,$G46,) -> 0 | J46: =HLOOKUP(J$2,'Base de Dados - Resíduos'!$G$3:$AW$1048576,$G46,) -> 0 | K46: =HLOOKUP(K$2,'Base de Dados - Resíduos'!$G$3:$AW$1048576,$G46,) -> 0 | L46: =HLOOKUP(L$2,'Base de Dados - Resíduos'!$G$3:$AW$1048576,$G46,) -> 0
A47: TB011 | C47: Quantidade de empregados administrativos dos agentes públicos | G47: 46 | H47: =HLOOKUP(H$2,'Base de Dados - Resíduos'!$G$3:$AW$1048576,$G47,) -> 0 | I47: =HLOOKUP(I$2,'Base de Dados - Resíduos'!$G$3:$AW$1048576,$G47,) -> 0 | J47: =HLOOKUP(J$2,'Base de Dados - Resíduos'!$G$3:$AW$1048576,$G47,) -> 0 | K47: =HLOOKUP(K$2,'Base de Dados - Resíduos'!$G$3:$AW$1048576,$G47,) -> 0 | L47: =HLOOKUP(L$2,'Base de Dados - Resíduos'!$G$3:$AW$1048576,$G47,) -> 0
A48: TB012 | C48: Quantidade de empregados administrativos dos agentes privados | G48: 47 | H48: =HLOOKUP(H$2,'Base de Dados - Resíduos'!$G$3:$AW$1048576,$G48,) -> 0 | I48: =HLOOKUP(I$2,'Base de Dados - Resíduos'!$G$3:$AW$1048576,$G48,) -> 0 | J48: =HLOOKUP(J$2,'Base de Dados - Resíduos'!$G$3:$AW$1048576,$G48,) -> 0 | K48: =HLOOKUP(K$2,'Base de Dados - Resíduos'!$G$3:$AW$1048576,$G48,) -> 0 | L48: =HLOOKUP(L$2,'Base de Dados - Resíduos'!$G$3:$AW$1048576,$G48,) -> 0
A49: CO165 | C49: População urbana atendida pelo serviço de coleta domiciliar direta, ou seja, porta a porta | G49: 48 | H49: =HLOOKUP(H$2,'Base de Dados - Resíduos'!$G$3:$AW$1048576,$G49,) -> 0 | I49: =HLOOKUP(I$2,'Base de Dados - Resíduos'!$G$3:$AW$1048576,$G49,) -> 0 | J49: =HLOOKUP(J$2,'Base de Dados - Resíduos'!$G$3:$AW$1048576,$G49,) -> 0 | K49: =HLOOKUP(K$2,'Base de Dados - Resíduos'!$G$3:$AW$1048576,$G49,) -> 0 | L49: =HLOOKUP(L$2,'Base de Dados - Resíduos'!$G$3:$AW$1048576,$G49,) -> 0
A50: CO116 | C50: Quantidade de RDO e RPU coletada pelo agente público | G50: 49 | H50: =HLOOKUP(H$2,'Base de Dados - Resíduos'!$G$3:$AW$1048576,$G50,) -> 0 | I50: =HLOOKUP(I$2,'Base de Dados - Resíduos'!$G$3:$AW$1048576,$G50,) -> 0 | J50: =HLOOKUP(J$2,'Base de Dados - Resíduos'!$G$3:$AW$1048576,$G50,) -> 0 | K50: =HLOOKUP(K$2,'Base de Dados - Resíduos'!$G$3:$AW$1048576,$G50,) -> 0 | L50: =HLOOKUP(L$2,'Base de Dados - Resíduos'!$G$3:$AW$1048576,$G50,) -> 0
A51: CO117 | C51: Quantidade de RDO e RPU coletada pelos agentes privados | G51: 50 | H51: =HLOOKUP(H$2,'Base de Dados - Resíduos'!$G$3:$AW$1048576,$G51,) -> 0 | I51: =HLOOKUP(I$2,'Base de Dados - Resíduos'!$G$3:$AW$1048576,$G51,) -> 0 | J51: =HLOOKUP(J$2,'Base de Dados - Resíduos'!$G$3:$AW$1048576,$G51,) -> 0 | K51: =HLOOKUP(K$2,'Base de Dados - Resíduos'!$G$3:$AW$1048576,$G51,) -> 0 | L51: =HLOOKUP(L$2,'Base de Dados - Resíduos'!$G$3:$AW$1048576,$G51,) -> 0
A52: CO142 | C52: Quantidade de RDO e RPU coletada por outros agentes executores | G52: 51 | H52: =HLOOKUP(H$2,'Base de Dados - Resíduos'!$G$3:$AW$1048576,$G52,) -> 0 | I52: =HLOOKUP(I$2,'Base de Dados - Resíduos'!$G$3:$AW$1048576,$G52,) -> 0 | J52: =HLOOKUP(J$2,'Base de Dados - Resíduos'!$G$3:$AW$1048576,$G52,) -> 0 | K52: =HLOOKUP(K$2,'Base de Dados - Resíduos'!$G$3:$AW$1048576,$G52,) -> 0 | L52: =HLOOKUP(L$2,'Base de Dados - Resíduos'!$G$3:$AW$1048576,$G52,) -> 0
A53: CS048 | C53: Qtd. recolhida na coleta seletiva executada por associações ou cooperativas de catadores COM parceria/apoio da Prefeitura? | G53: 52 | H53: =HLOOKUP(H$2,'Base de Dados - Resíduos'!$G$3:$AW$1048576,$G53,) -> 0 | I53: =HLOOKUP(I$2,'Base de Dados - Resíduos'!$G$3:$AW$1048576,$G53,) -> 0 | J53: =HLOOKUP(J$2,'Base de Dados - Resíduos'!$G$3:$AW$1048576,$G53,) -> 0 | K53: =HLOOKUP(K$2,'Base de Dados - Resíduos'!$G$3:$AW$1048576,$G53,) -> 0 | L53: =HLOOKUP(L$2,'Base de Dados - Resíduos'!$G$3:$AW$1048576,$G53,) -> 0
A54: TB001 | C54: Quantidade de coletadores e motoristas de agentes públicos, alocados no serviço de coleta de RDO e RPU | G54: 53 | H54: =HLOOKUP(H$2,'Base de Dados - Resíduos'!$G$3:$AW$1048576,$G54,) -> 0 | I54: =HLOOKUP(I$2,'Base de Dados - Resíduos'!$G$3:$AW$1048576,$G54,) -> 0 | J54: =HLOOKUP(J$2,'Base de Dados - Resíduos'!$G$3:$AW$1048576,$G54,) -> 0 | K54: =HLOOKUP(K$2,'Base de Dados - Resíduos'!$G$3:$AW$1048576,$G54,) -> 0 | L54: =HLOOKUP(L$2,'Base de Dados - Resíduos'!$G$3:$AW$1048576,$G54,) -> 0
A55: TB002 | C55: Quantidade de coletadores e motoristas de agentes públicos, alocados no serviço de coleta de RDO e RPU | G55: 54 | H55: =HLOOKUP(H$2,'Base de Dados - Resíduos'!$G$3:$AW$1048576,$G55,) -> 0 | I55: =HLOOKUP(I$2,'Base de Dados - Resíduos'!$G$3:$AW$1048576,$G55,) -> 0 | J55: =HLOOKUP(J$2,'Base de Dados - Resíduos'!$G$3:$AW$1048576,$G55,) -> 0 | K55: =HLOOKUP(K$2,'Base de Dados - Resíduos'!$G$3:$AW$1048576,$G55,) -> 0 | L55: =HLOOKUP(L$2,'Base de Dados - Resíduos'!$G$3:$AW$1048576,$G55,) -> 0
A56: CO108 | C56: Quantidade de RDO coletada pelo agente público | G56: 55 | H56: =HLOOKUP(H$2,'Base de Dados - Resíduos'!$G$3:$AW$1048576,$G56,) -> 0 | I56: =HLOOKUP(I$2,'Base de Dados - Resíduos'!$G$3:$AW$1048576,$G56,) -> 0 | J56: =HLOOKUP(J$2,'Base de Dados - Resíduos'!$G$3:$AW$1048576,$G56,) -> 0 | K56: =HLOOKUP(K$2,'Base de Dados - Resíduos'!$G$3:$AW$1048576,$G56,) -> 0 | L56: =HLOOKUP(L$2,'Base de Dados - Resíduos'!$G$3:$AW$1048576,$G56,) -> 0
A57: CO109 | C57: Quantidade de RDO coletada pelos agentes privados | G57: 56 | H57: =HLOOKUP(H$2,'Base de Dados - Resíduos'!$G$3:$AW$1048576,$G57,) -> 0 | I57: =HLOOKUP(I$2,'Base de Dados - Resíduos'!$G$3:$AW$1048576,$G57,) -> 0 | J57: =HLOOKUP(J$2,'Base de Dados - Resíduos'!$G$3:$AW$1048576,$G57,) -> 0 | K57: =HLOOKUP(K$2,'Base de Dados - Resíduos'!$G$3:$AW$1048576,$G57,) -> 0 | L57: =HLOOKUP(L$2,'Base de Dados - Resíduos'!$G$3:$AW$1048576,$G57,) -> 0
A58: CO112 | C58: Quantidade de RPU coletada pelo agente público | G58: 57 | H58: =HLOOKUP(H$2,'Base de Dados - Resíduos'!$G$3:$AW$1048576,$G58,) -> 0 | I58: =HLOOKUP(I$2,'Base de Dados - Resíduos'!$G$3:$AW$1048576,$G58,) -> 0 | J58: =HLOOKUP(J$2,'Base de Dados - Resíduos'!$G$3:$AW$1048576,$G58,) -> 0 | K58: =HLOOKUP(K$2,'Base de Dados - Resíduos'!$G$3:$AW$1048576,$G58,) -> 0 | L58: =HLOOKUP(L$2,'Base de Dados - Resíduos'!$G$3:$AW$1048576,$G58,) -> 0
A59: CO113 | C59: Quantidade de RPU coletada pelos agentes privados | G59: 58 | H59: =HLOOKUP(H$2,'Base de Dados - Resíduos'!$G$3:$AW$1048576,$G59,) -> 0 | I59: =HLOOKUP(I$2,'Base de Dados - Resíduos'!$G$3:$AW$1048576,$G59,) -> 0 | J59: =HLOOKUP(J$2,'Base de Dados - Resíduos'!$G$3:$AW$1048576,$G59,) -> 0 | K59: =HLOOKUP(K$2,'Base de Dados - Resíduos'!$G$3:$AW$1048576,$G59,) -> 0 | L59: =HLOOKUP(L$2,'Base de Dados - Resíduos'!$G$3:$AW$1048576,$G59,) -> 0
A60: CO140 | C60: Quantidade de RDO coletada por outros agentes executores, exceto coop. ou associações de catadores | G60: 59 | H60: =HLOOKUP(H$2,'Base de Dados - Resíduos'!$G$3:$AW$1048576,$G60,) -> 0 | I60: =HLOOKUP(I$2,'Base de Dados - Resíduos'!$G$3:$AW$1048576,$G60,) -> 0 | J60: =HLOOKUP(J$2,'Base de Dados - Resíduos'!$G$3:$AW$1048576,$G60,) -> 0 | K60: =HLOOKUP(K$2,'Base de Dados - Resíduos'!$G$3:$AW$1048576,$G60,) -> 0 | L60: =HLOOKUP(L$2,'Base de Dados - Resíduos'!$G$3:$AW$1048576,$G60,) -> 0
A61: CO141 | C61: Quantidade de RPU coletada por outros agentes executores, exceto coop. ou associações de catadores | G61: 60 | H61: =HLOOKUP(H$2,'Base de Dados - Resíduos'!$G$3:$AW$1048576,$G61,) -> 0 | I61: =HLOOKUP(I$2,'Base de Dados - Resíduos'!$G$3:$AW$1048576,$G61,) -> 0 | J61: =HLOOKUP(J$2,'Base de Dados - Resíduos'!$G$3:$AW$1048576,$G61,) -> 0 | K61: =HLOOKUP(K$2,'Base de Dados - Resíduos'!$G$3:$AW$1048576,$G61,) -> 0 | L61: =HLOOKUP(L$2,'Base de Dados - Resíduos'!$G$3:$AW$1048576,$G61,) -> 0
A62: CO164 | C62: População total atendida no município | G62: 61 | H62: =HLOOKUP(H$2,'Base de Dados - Resíduos'!$G$3:$AW$1048576,$G62,) -> 0 | I62: =HLOOKUP(I$2,'Base de Dados - Resíduos'!$G$3:$AW$1048576,$G62,) -> 0 | J62: =HLOOKUP(J$2,'Base de Dados - Resíduos'!$G$3:$AW$1048576,$G62,) -> 0 | K62: =HLOOKUP(K$2,'Base de Dados - Resíduos'!$G$3:$AW$1048576,$G62,) -> 0 | L62: =HLOOKUP(L$2,'Base de Dados - Resíduos'!$G$3:$AW$1048576,$G62,) -> 0
A63: CS050 | C63: População urbana do município atendida com a coleta seletiva do tipo porta a porta executada pela Prefeitura (ou SLU | G63: 62 | H63: =HLOOKUP(H$2,'Base de Dados - Resíduos'!$G$3:$AW$1048576,$G63,) -> 0 | I63: =HLOOKUP(I$2,'Base de Dados - Resíduos'!$G$3:$AW$1048576,$G63,) -> 0 | J63: =HLOOKUP(J$2,'Base de Dados - Resíduos'!$G$3:$AW$1048576,$G63,) -> 0 | K63: =HLOOKUP(K$2,'Base de Dados - Resíduos'!$G$3:$AW$1048576,$G63,) -> 0 | L63: =HLOOKUP(L$2,'Base de Dados - Resíduos'!$G$3:$AW$1048576,$G63,) -> 0
A64: CS009 | C64: Quantidade total de materiais recicláveis recuperados | G64: 63 | H64: =HLOOKUP(H$2,'Base de Dados - Resíduos'!$G$3:$AW$1048576,$G64,) -> 0 | I64: =HLOOKUP(I$2,'Base de Dados - Resíduos'!$G$3:$AW$1048576,$G64,) -> 0 | J64: =HLOOKUP(J$2,'Base de Dados - Resíduos'!$G$3:$AW$1048576,$G64,) -> 0 | K64: =HLOOKUP(K$2,'Base de Dados - Resíduos'!$G$3:$AW$1048576,$G64,) -> 0 | L64: =HLOOKUP(L$2,'Base de Dados - Resíduos'!$G$3:$AW$1048576,$G64,) -> 0
A65: CC013 | C65: Pela Prefeitura Municipal ou empresa contratada por ela | G65: 64 | H65: =HLOOKUP(H$2,'Base de Dados - Resíduos'!$G$3:$AW$1048576,$G65,) -> 0 | I65: =HLOOKUP(I$2,'Base de Dados - Resíduos'!$G$3:$AW$1048576,$G65,) -> 0 | J65: =HLOOKUP(J$2,'Base de Dados - Resíduos'!$G$3:$AW$1048576,$G65,) -> 0 | K65: =HLOOKUP(K$2,'Base de Dados - Resíduos'!$G$3:$AW$1048576,$G65,) -> 0 | L65: =HLOOKUP(L$2,'Base de Dados - Resíduos'!$G$3:$AW$1048576,$G65,) -> 0
A66: CC014 | C66: Por empresas especializadas ("caçambeiros") ou autônomos contratados pelo gerador | G66: 65 | H66: =HLOOKUP(H$2,'Base de Dados - Resíduos'!$G$3:$AW$1048576,$G66,) -> 0 | I66: =HLOOKUP(I$2,'Base de Dados - Resíduos'!$G$3:$AW$1048576,$G66,) -> 0 | J66: =HLOOKUP(J$2,'Base de Dados - Resíduos'!$G$3:$AW$1048576,$G66,) -> 0 | K66: =HLOOKUP(K$2,'Base de Dados - Resíduos'!$G$3:$AW$1048576,$G66,) -> 0 | L66: =HLOOKUP(L$2,'Base de Dados - Resíduos'!$G$3:$AW$1048576,$G66,) -> 0
A67: CC015 | C67: Pelo próprio gerador | G67: 66 | H67: =HLOOKUP(H$2,'Base de Dados - Resíduos'!$G$3:$AW$1048576,$G67,) -> 0 | I67: =HLOOKUP(I$2,'Base de Dados - Resíduos'!$G$3:$AW$1048576,$G67,) -> 0 | J67: =HLOOKUP(J$2,'Base de Dados - Resíduos'!$G$3:$AW$1048576,$G67,) -> 0 | K67: =HLOOKUP(K$2,'Base de Dados - Resíduos'!$G$3:$AW$1048576,$G67,) -> 0 | L67: =HLOOKUP(L$2,'Base de Dados - Resíduos'!$G$3:$AW$1048576,$G67,) -> 0
A68: CS026 | C68: Qtd. total recolhida pelos 4 agentes executores da coleta seletiva acima mencionados | G68: 67 | H68: =HLOOKUP(H$2,'Base de Dados - Resíduos'!$G$3:$AW$1048576,$G68,) -> 0 | I68: =HLOOKUP(I$2,'Base de Dados - Resíduos'!$G$3:$AW$1048576,$G68,) -> 0 | J68: =HLOOKUP(J$2,'Base de Dados - Resíduos'!$G$3:$AW$1048576,$G68,) -> 0 | K68: =HLOOKUP(K$2,'Base de Dados - Resíduos'!$G$3:$AW$1048576,$G68,) -> 0 | L68: =HLOOKUP(L$2,'Base de Dados - Resíduos'!$G$3:$AW$1048576,$G68,) -> 0
A69: CS010 | C69: Quantidade de Papel e papelão recicláveis recuperados | G69: 68 | H69: =HLOOKUP(H$2,'Base de Dados - Resíduos'!$G$3:$AW$1048576,$G69,) -> 0 | I69: =HLOOKUP(I$2,'Base de Dados - Resíduos'!$G$3:$AW$1048576,$G69,) -> 0 | J69: =HLOOKUP(J$2,'Base de Dados - Resíduos'!$G$3:$AW$1048576,$G69,) -> 0 | K69: =HLOOKUP(K$2,'Base de Dados - Resíduos'!$G$3:$AW$1048576,$G69,) -> 0 | L69: =HLOOKUP(L$2,'Base de Dados - Resíduos'!$G$3:$AW$1048576,$G69,) -> 0
A70: CS011 | C70: Quantidade de Plásticos recicláveis recuperados | G70: 69 | H70: =HLOOKUP(H$2,'Base de Dados - Resíduos'!$G$3:$AW$1048576,$G70,) -> 0 | I70: =HLOOKUP(I$2,'Base de Dados - Resíduos'!$G$3:$AW$1048576,$G70,) -> 0 | J70: =HLOOKUP(J$2,'Base de Dados - Resíduos'!$G$3:$AW$1048576,$G70,) -> 0 | K70: =HLOOKUP(K$2,'Base de Dados - Resíduos'!$G$3:$AW$1048576,$G70,) -> 0 | L70: =HLOOKUP(L$2,'Base de Dados - Resíduos'!$G$3:$AW$1048576,$G70,) -> 0
A71: CS012 | C71: Quantidade de Metais recicláveis recuperados | G71: 70 | H71: =HLOOKUP(H$2,'Base de Dados - Resíduos'!$G$3:$AW$1048576,$G71,) -> 0 | I71: =HLOOKUP(I$2,'Base de Dados - Resíduos'!$G$3:$AW$1048576,$G71,) -> 0 | J71: =HLOOKUP(J$2,'Base de Dados - Resíduos'!$G$3:$AW$1048576,$G71,) -> 0 | K71: =HLOOKUP(K$2,'Base de Dados - Resíduos'!$G$3:$AW$1048576,$G71,) -> 0 | L71: =HLOOKUP(L$2,'Base de Dados - Resíduos'!$G$3:$AW$1048576,$G71,) -> 0
A72: CS013 | C72: Quantidade de Vidros recicláveis recuperados | G72: 71 | H72: =HLOOKUP(H$2,'Base de Dados - Resíduos'!$G$3:$AW$1048576,$G72,) -> 0 | I72: =HLOOKUP(I$2,'Base de Dados - Resíduos'!$G$3:$AW$1048576,$G72,) -> 0 | J72: =HLOOKUP(J$2,'Base de Dados - Resíduos'!$G$3:$AW$1048576,$G72,) -> 0 | K72: =HLOOKUP(K$2,'Base de Dados - Resíduos'!$G$3:$AW$1048576,$G72,) -> 0 | L72: =HLOOKUP(L$2,'Base de Dados - Resíduos'!$G$3:$AW$1048576,$G72,) -> 0
A73: CS014 | C73: Quantidade de Outros materiais recicláveis recuperados (exceto pneus e eletrônicos) | G73: 72 | H73: =HLOOKUP(H$2,'Base de Dados - Resíduos'!$G$3:$AW$1048576,$G73,) -> 0 | I73: =HLOOKUP(I$2,'Base de Dados - Resíduos'!$G$3:$AW$1048576,$G73,) -> 0 | J73: =HLOOKUP(J$2,'Base de Dados - Resíduos'!$G$3:$AW$1048576,$G73,) -> 0 | K73: =HLOOKUP(K$2,'Base de Dados - Resíduos'!$G$3:$AW$1048576,$G73,) -> 0 | L73: =HLOOKUP(L$2,'Base de Dados - Resíduos'!$G$3:$AW$1048576,$G73,) -> 0
A74: RS044 | C74: Quantidade total de RSS coletada pelos agentes executores | G74: 73 | H74: =HLOOKUP(H$2,'Base de Dados - Resíduos'!$G$3:$AW$1048576,$G74,) -> 0 | I74: =HLOOKUP(I$2,'Base de Dados - Resíduos'!$G$3:$AW$1048576,$G74,) -> 0 | J74: =HLOOKUP(J$2,'Base de Dados - Resíduos'!$G$3:$AW$1048576,$G74,) -> 0 | K74: =HLOOKUP(K$2,'Base de Dados - Resíduos'!$G$3:$AW$1048576,$G74,) -> 0 | L74: =HLOOKUP(L$2,'Base de Dados - Resíduos'!$G$3:$AW$1048576,$G74,) -> 0
A75: TB004 | C75: Quantidade de varredores de agentes privados, alocados no serviço de varrição | G75: 74 | H75: =HLOOKUP(H$2,'Base de Dados - Resíduos'!$G$3:$AW$1048576,$G75,) -> 0 | I75: =HLOOKUP(I$2,'Base de Dados - Resíduos'!$G$3:$AW$1048576,$G75,) -> 0 | J75: =HLOOKUP(J$2,'Base de Dados - Resíduos'!$G$3:$AW$1048576,$G75,) -> 0 | K75: =HLOOKUP(K$2,'Base de Dados - Resíduos'!$G$3:$AW$1048576,$G75,) -> 0 | L75: =HLOOKUP(L$2,'Base de Dados - Resíduos'!$G$3:$AW$1048576,$G75,) -> 0
A76: TB003 | C76: Quantidade de varredores dos agentes públicos, alocados no serviço de varrição | G76: 75 | H76: =HLOOKUP(H$2,'Base de Dados - Resíduos'!$G$3:$AW$1048576,$G76,) -> 0 | I76: =HLOOKUP(I$2,'Base de Dados - Resíduos'!$G$3:$AW$1048576,$G76,) -> 0 | J76: =HLOOKUP(J$2,'Base de Dados - Resíduos'!$G$3:$AW$1048576,$G76,) -> 0 | K76: =HLOOKUP(K$2,'Base de Dados - Resíduos'!$G$3:$AW$1048576,$G76,) -> 0 | L76: =HLOOKUP(L$2,'Base de Dados - Resíduos'!$G$3:$AW$1048576,$G76,) -> 0
A77: VA011 | C77: Por empresas contratadas (Km varridos) | G77: 76 | H77: =HLOOKUP(H$2,'Base de Dados - Resíduos'!$G$3:$AW$1048576,$G77,) -> 0 | I77: =HLOOKUP(I$2,'Base de Dados - Resíduos'!$G$3:$AW$1048576,$G77,) -> 0 | J77: =HLOOKUP(J$2,'Base de Dados - Resíduos'!$G$3:$AW$1048576,$G77,) -> 0 | K77: =HLOOKUP(K$2,'Base de Dados - Resíduos'!$G$3:$AW$1048576,$G77,) -> 0 | L77: =HLOOKUP(L$2,'Base de Dados - Resíduos'!$G$3:$AW$1048576,$G77,) -> 0
A78: VA039 | C78: Extensão total de sarjetas varridas pelos executores (Km varridos) | G78: 77 | H78: =HLOOKUP(H$2,'Base de Dados - Resíduos'!$G$3:$AW$1048576,$G78,) -> 0 | I78: =HLOOKUP(I$2,'Base de Dados - Resíduos'!$G$3:$AW$1048576,$G78,) -> 0 | J78: =HLOOKUP(J$2,'Base de Dados - Resíduos'!$G$3:$AW$1048576,$G78,) -> 0 | K78: =HLOOKUP(K$2,'Base de Dados - Resíduos'!$G$3:$AW$1048576,$G78,) -> 0 | L78: =HLOOKUP(L$2,'Base de Dados - Resíduos'!$G$3:$AW$1048576,$G78,) -> 0
A79: FN212 | C79: Despesa dos agentes públicos com o serviço de varrição | G79: 78 | H79: =HLOOKUP(H$2,'Base de Dados - Resíduos'!$G$3:$AW$1048576,$G79,) -> 0 | I79: =HLOOKUP(I$2,'Base de Dados - Resíduos'!$G$3:$AW$1048576,$G79,) -> 0 | J79: =HLOOKUP(J$2,'Base de Dados - Resíduos'!$G$3:$AW$1048576,$G79,) -> 0 | K79: =HLOOKUP(K$2,'Base de Dados - Resíduos'!$G$3:$AW$1048576,$G79,) -> 0 | L79: =HLOOKUP(L$2,'Base de Dados - Resíduos'!$G$3:$AW$1048576,$G79,) -> 0
A80: FN2013 | C80: Despesa com empresas contratadas para o serviço de varrição | G80: 79 | H80: =HLOOKUP(H$2,'Base de Dados - Resíduos'!$G$3:$AW$1048576,$G80,) -> 0 | I80: =HLOOKUP(I$2,'Base de Dados - Resíduos'!$G$3:$AW$1048576,$G80,) -> 0 | J80: =HLOOKUP(J$2,'Base de Dados - Resíduos'!$G$3:$AW$1048576,$G80,) -> 0 | K80: =HLOOKUP(K$2,'Base de Dados - Resíduos'!$G$3:$AW$1048576,$G80,) -> 0 | L80: =HLOOKUP(L$2,'Base de Dados - Resíduos'!$G$3:$AW$1048576,$G80,) -> 0
A81: TB005 | C81: Quantidade de empregados dos agentes públicos envolvidos com os serviços de capina e roçada | G81: 80 | H81: =HLOOKUP(H$2,'Base de Dados - Resíduos'!$G$3:$AW$1048576,$G81,) -> 0 | I81: =HLOOKUP(I$2,'Base de Dados - Resíduos'!$G$3:$AW$1048576,$G81,) -> 0 | J81: =HLOOKUP(J$2,'Base de Dados - Resíduos'!$G$3:$AW$1048576,$G81,) -> 0 | K81: =HLOOKUP(K$2,'Base de Dados - Resíduos'!$G$3:$AW$1048576,$G81,) -> 0 | L81: =HLOOKUP(L$2,'Base de Dados - Resíduos'!$G$3:$AW$1048576,$G81,) -> 0
A82: TB006 | C82: Quantidade de empregados dos agentes privados envolvidos com os serviços de capina e roçada | G82: 81 | H82: =HLOOKUP(H$2,'Base de Dados - Resíduos'!$G$3:$AW$1048576,$G82,) -> 0 | I82: =HLOOKUP(I$2,'Base de Dados - Resíduos'!$G$3:$AW$1048576,$G82,) -> 0 | J82: =HLOOKUP(J$2,'Base de Dados - Resíduos'!$G$3:$AW$1048576,$G82,) -> 0 | K82: =HLOOKUP(K$2,'Base de Dados - Resíduos'!$G$3:$AW$1048576,$G82,) -> 0 | L82: =HLOOKUP(L$2,'Base de Dados - Resíduos'!$G$3:$AW$1048576,$G82,) -> 0
G83: 82 | H83: =HLOOKUP(H$2,'Base de Dados - Resíduos'!$G$3:$AW$1048576,$G83,) -> 0 | I83: =HLOOKUP(I$2,'Base de Dados - Resíduos'!$G$3:$AW$1048576,$G83,) -> 0 | J83: =HLOOKUP(J$2,'Base de Dados - Resíduos'!$G$3:$AW$1048576,$G83,) -> 0 | K83: =HLOOKUP(K$2,'Base de Dados - Resíduos'!$G$3:$AW$1048576,$G83,) -> 0 | L83: =HLOOKUP(L$2,'Base de Dados - Resíduos'!$G$3:$AW$1048576,$G83,) -> 0
G84: 83 | H84: =HLOOKUP(H$2,'Base de Dados - Resíduos'!$G$3:$AW$1048576,$G84,) -> 0 | I84: =HLOOKUP(I$2,'Base de Dados - Resíduos'!$G$3:$AW$1048576,$G84,) -> 0 | J84: =HLOOKUP(J$2,'Base de Dados - Resíduos'!$G$3:$AW$1048576,$G84,) -> 0 | K84: =HLOOKUP(K$2,'Base de Dados - Resíduos'!$G$3:$AW$1048576,$G84,) -> 0 | L84: =HLOOKUP(L$2,'Base de Dados - Resíduos'!$G$3:$AW$1048576,$G84,) -> 0
G85: 84 | H85: =HLOOKUP(H$2,'Base de Dados - Resíduos'!$G$3:$AW$1048576,$G85,) -> 0 | I85: =HLOOKUP(I$2,'Base de Dados - Resíduos'!$G$3:$AW$1048576,$G85,) -> 0 | J85: =HLOOKUP(J$2,'Base de Dados - Resíduos'!$G$3:$AW$1048576,$G85,) -> 0 | K85: =HLOOKUP(K$2,'Base de Dados - Resíduos'!$G$3:$AW$1048576,$G85,) -> 0 | L85: =HLOOKUP(L$2,'Base de Dados - Resíduos'!$G$3:$AW$1048576,$G85,) -> 0
G86: 85 | H86: =HLOOKUP(H$2,'Base de Dados - Resíduos'!$G$3:$AW$1048576,$G86,) -> 0 | I86: =HLOOKUP(I$2,'Base de Dados - Resíduos'!$G$3:$AW$1048576,$G86,) -> 0 | J86: =HLOOKUP(J$2,'Base de Dados - Resíduos'!$G$3:$AW$1048576,$G86,) -> 0 | K86: =HLOOKUP(K$2,'Base de Dados - Resíduos'!$G$3:$AW$1048576,$G86,) -> 0 | L86: =HLOOKUP(L$2,'Base de Dados - Resíduos'!$G$3:$AW$1048576,$G86,) -> 0
G87: 86 | H87: =HLOOKUP(H$2,'Base de Dados - Resíduos'!$G$3:$AW$1048576,$G87,) -> 0 | I87: =HLOOKUP(I$2,'Base de Dados - Resíduos'!$G$3:$AW$1048576,$G87,) -> 0 | J87: =HLOOKUP(J$2,'Base de Dados - Resíduos'!$G$3:$AW$1048576,$G87,) -> 0 | K87: =HLOOKUP(K$2,'Base de Dados - Resíduos'!$G$3:$AW$1048576,$G87,) -> 0 | L87: =HLOOKUP(L$2,'Base de Dados - Resíduos'!$G$3:$AW$1048576,$G87,) -> 0
G88: 87 | H88: =HLOOKUP(H$2,'Base de Dados - Resíduos'!$G$3:$AW$1048576,$G88,) -> 0 | I88: =HLOOKUP(I$2,'Base de Dados - Resíduos'!$G$3:$AW$1048576,$G88,) -> 0 | J88: =HLOOKUP(J$2,'Base de Dados - Resíduos'!$G$3:$AW$1048576,$G88,) -> 0 | K88: =HLOOKUP(K$2,'Base de Dados - Resíduos'!$G$3:$AW$1048576,$G88,) -> 0 | L88: =HLOOKUP(L$2,'Base de Dados - Resíduos'!$G$3:$AW$1048576,$G88,) -> 0
G89: 88 | H89: =HLOOKUP(H$2,'Base de Dados - Resíduos'!$G$3:$AW$1048576,$G89,) -> 0 | I89: =HLOOKUP(I$2,'Base de Dados - Resíduos'!$G$3:$AW$1048576,$G89,) -> 0 | J89: =HLOOKUP(J$2,'Base de Dados - Resíduos'!$G$3:$AW$1048576,$G89,) -> 0 | K89: =HLOOKUP(K$2,'Base de Dados - Resíduos'!$G$3:$AW$1048576,$G89,) -> 0 | L89: =HLOOKUP(L$2,'Base de Dados - Resíduos'!$G$3:$AW$1048576,$G89,) -> 0
G90: 89 | H90: =HLOOKUP(H$2,'Base de Dados - Resíduos'!$G$3:$AW$1048576,$G90,) -> 0 | I90: =HLOOKUP(I$2,'Base de Dados - Resíduos'!$G$3:$AW$1048576,$G90,) -> 0 | J90: =HLOOKUP(J$2,'Base de Dados - Resíduos'!$G$3:$AW$1048576,$G90,) -> 0 | K90: =HLOOKUP(K$2,'Base de Dados - Resíduos'!$G$3:$AW$1048576,$G90,) -> 0 | L90: =HLOOKUP(L$2,'Base de Dados - Resíduos'!$G$3:$AW$1048576,$G90,) -> 0
G91: 90 | H91: =HLOOKUP(H$2,'Base de Dados - Resíduos'!$G$3:$AW$1048576,$G91,) -> 0 | I91: =HLOOKUP(I$2,'Base de Dados - Resíduos'!$G$3:$AW$1048576,$G91,) -> 0 | J91: =HLOOKUP(J$2,'Base de Dados - Resíduos'!$G$3:$AW$1048576,$G91,) -> 0 | K91: =HLOOKUP(K$2,'Base de Dados - Resíduos'!$G$3:$AW$1048576,$G91,) -> 0 | L91: =HLOOKUP(L$2,'Base de Dados - Resíduos'!$G$3:$AW$1048576,$G91,) -> 0
G92: 91 | H92: =HLOOKUP(H$2,'Base de Dados - Resíduos'!$G$3:$AW$1048576,$G92,) -> 0 | I92: =HLOOKUP(I$2,'Base de Dados - Resíduos'!$G$3:$AW$1048576,$G92,) -> 0 | J92: =HLOOKUP(J$2,'Base de Dados - Resíduos'!$G$3:$AW$1048576,$G92,) -> 0 | K92: =HLOOKUP(K$2,'Base de Dados - Resíduos'!$G$3:$AW$1048576,$G92,) -> 0 | L92: =HLOOKUP(L$2,'Base de Dados - Resíduos'!$G$3:$AW$1048576,$G92,) -> 0
G93: 92 | H93: =HLOOKUP(H$2,'Base de Dados - Resíduos'!$G$3:$AW$1048576,$G93,) -> 0 | I93: =HLOOKUP(I$2,'Base de Dados - Resíduos'!$G$3:$AW$1048576,$G93,) -> 0 | J93: =HLOOKUP(J$2,'Base de Dados - Resíduos'!$G$3:$AW$1048576,$G93,) -> 0 | K93: =HLOOKUP(K$2,'Base de Dados - Resíduos'!$G$3:$AW$1048576,$G93,) -> 0 | L93: =HLOOKUP(L$2,'Base de Dados - Resíduos'!$G$3:$AW$1048576,$G93,) -> 0
G94: 93 | H94: =HLOOKUP(H$2,'Base de Dados - Resíduos'!$G$3:$AW$1048576,$G94,) -> 0 | I94: =HLOOKUP(I$2,'Base de Dados - Resíduos'!$G$3:$AW$1048576,$G94,) -> 0 | J94: =HLOOKUP(J$2,'Base de Dados - Resíduos'!$G$3:$AW$1048576,$G94,) -> 0 | K94: =HLOOKUP(K$2,'Base de Dados - Resíduos'!$G$3:$AW$1048576,$G94,) -> 0 | L94: =HLOOKUP(L$2,'Base de Dados - Resíduos'!$G$3:$AW$1048576,$G94,) -> 0
G95: 94 | H95: =HLOOKUP(H$2,'Base de Dados - Resíduos'!$G$3:$AW$1048576,$G95,) -> 0 | I95: =HLOOKUP(I$2,'Base de Dados - Resíduos'!$G$3:$AW$1048576,$G95,) -> 0 | J95: =HLOOKUP(J$2,'Base de Dados - Resíduos'!$G$3:$AW$1048576,$G95,) -> 0 | K95: =HLOOKUP(K$2,'Base de Dados - Resíduos'!$G$3:$AW$1048576,$G95,) -> 0 | L95: =HLOOKUP(L$2,'Base de Dados - Resíduos'!$G$3:$AW$1048576,$G95,) -> 0
G96: 95 | H96: =HLOOKUP(H$2,'Base de Dados - Resíduos'!$G$3:$AW$1048576,$G96,) -> 0 | I96: =HLOOKUP(I$2,'Base de Dados - Resíduos'!$G$3:$AW$1048576,$G96,) -> 0 | J96: =HLOOKUP(J$2,'Base de Dados - Resíduos'!$G$3:$AW$1048576,$G96,) -> 0 | K96: =HLOOKUP(K$2,'Base de Dados - Resíduos'!$G$3:$AW$1048576,$G96,) -> 0 | L96: =HLOOKUP(L$2,'Base de Dados - Resíduos'!$G$3:$AW$1048576,$G96,) -> 0
G97: 96 | H97: =HLOOKUP(H$2,'Base de Dados - Resíduos'!$G$3:$AW$1048576,$G97,) -> 0 | I97: =HLOOKUP(I$2,'Base de Dados - Resíduos'!$G$3:$AW$1048576,$G97,) -> 0 | J97: =HLOOKUP(J$2,'Base de Dados - Resíduos'!$G$3:$AW$1048576,$G97,) -> 0 | K97: =HLOOKUP(K$2,'Base de Dados - Resíduos'!$G$3:$AW$1048576,$G97,) -> 0 | L97: =HLOOKUP(L$2,'Base de Dados - Resíduos'!$G$3:$AW$1048576,$G97,) -> 0
G98: 97 | H98: =HLOOKUP(H$2,'Base de Dados - Resíduos'!$G$3:$AW$1048576,$G98,) -> 0 | I98: =HLOOKUP(I$2,'Base de Dados - Resíduos'!$G$3:$AW$1048576,$G98,) -> 0 | J98: =HLOOKUP(J$2,'Base de Dados - Resíduos'!$G$3:$AW$1048576,$G98,) -> 0 | K98: =HLOOKUP(K$2,'Base de Dados - Resíduos'!$G$3:$AW$1048576,$G98,) -> 0 | L98: =HLOOKUP(L$2,'Base de Dados - Resíduos'!$G$3:$AW$1048576,$G98,) -> 0
G99: 98 | H99: =HLOOKUP(H$2,'Base de Dados - Resíduos'!$G$3:$AW$1048576,$G99,) -> 0 | I99: =HLOOKUP(I$2,'Base de Dados - Resíduos'!$G$3:$AW$1048576,$G99,) -> 0 | J99: =HLOOKUP(J$2,'Base de Dados - Resíduos'!$G$3:$AW$1048576,$G99,) -> 0 | K99: =HLOOKUP(K$2,'Base de Dados - Resíduos'!$G$3:$AW$1048576,$G99,) -> 0 | L99: =HLOOKUP(L$2,'Base de Dados - Resíduos'!$G$3:$AW$1048576,$G99,) -> 0
G100: 99 | H100: =HLOOKUP(H$2,'Base de Dados - Resíduos'!$G$3:$AW$1048576,$G100,) -> 0 | I100: =HLOOKUP(I$2,'Base de Dados - Resíduos'!$G$3:$AW$1048576,$G100,) -> 0 | J100: =HLOOKUP(J$2,'Base de Dados - Resíduos'!$G$3:$AW$1048576,$G100,) -> 0 | K100: =HLOOKUP(K$2,'Base de Dados - Resíduos'!$G$3:$AW$1048576,$G100,) -> 0 | L100: =HLOOKUP(L$2,'Base de Dados - Resíduos'!$G$3:$AW$1048576,$G100,) -> 0
G101: 100 | H101: =HLOOKUP(H$2,'Base de Dados - Resíduos'!$G$3:$AW$1048576,$G101,) -> 0 | I101: =HLOOKUP(I$2,'Base de Dados - Resíduos'!$G$3:$AW$1048576,$G101,) -> 0 | J101: =HLOOKUP(J$2,'Base de Dados - Resíduos'!$G$3:$AW$1048576,$G101,) -> 0 | K101: =HLOOKUP(K$2,'Base de Dados - Resíduos'!$G$3:$AW$1048576,$G101,) -> 0 | L101: =HLOOKUP(L$2,'Base de Dados - Resíduos'!$G$3:$AW$1048576,$G101,) -> 0
G102: 101 | H102: =HLOOKUP(H$2,'Base de Dados - Resíduos'!$G$3:$AW$1048576,$G102,) -> 0 | I102: =HLOOKUP(I$2,'Base de Dados - Resíduos'!$G$3:$AW$1048576,$G102,) -> 0 | J102: =HLOOKUP(J$2,'Base de Dados - Resíduos'!$G$3:$AW$1048576,$G102,) -> 0 | K102: =HLOOKUP(K$2,'Base de Dados - Resíduos'!$G$3:$AW$1048576,$G102,) -> 0 | L102: =HLOOKUP(L$2,'Base de Dados - Resíduos'!$G$3:$AW$1048576,$G102,) -> 0
G103: 102 | H103: =HLOOKUP(H$2,'Base de Dados - Resíduos'!$G$3:$AW$1048576,$G103,) -> 0 | I103: =HLOOKUP(I$2,'Base de Dados - Resíduos'!$G$3:$AW$1048576,$G103,) -> 0 | J103: =HLOOKUP(J$2,'Base de Dados - Resíduos'!$G$3:$AW$1048576,$G103,) -> 0 | K103: =HLOOKUP(K$2,'Base de Dados - Resíduos'!$G$3:$AW$1048576,$G103,) -> 0 | L103: =HLOOKUP(L$2,'Base de Dados - Resíduos'!$G$3:$AW$1048576,$G103,) -> 0
G104: 103 | H104: =HLOOKUP(H$2,'Base de Dados - Resíduos'!$G$3:$AW$1048576,$G104,) -> 0 | I104: =HLOOKUP(I$2,'Base de Dados - Resíduos'!$G$3:$AW$1048576,$G104,) -> 0 | J104: =HLOOKUP(J$2,'Base de Dados - Resíduos'!$G$3:$AW$1048576,$G104,) -> 0 | K104: =HLOOKUP(K$2,'Base de Dados - Resíduos'!$G$3:$AW$1048576,$G104,) -> 0 | L104: =HLOOKUP(L$2,'Base de Dados - Resíduos'!$G$3:$AW$1048576,$G104,) -> 0
G105: 104 | H105: =HLOOKUP(H$2,'Base de Dados - Resíduos'!$G$3:$AW$1048576,$G105,) -> 0 | I105: =HLOOKUP(I$2,'Base de Dados - Resíduos'!$G$3:$AW$1048576,$G105,) -> 0 | J105: =HLOOKUP(J$2,'Base de Dados - Resíduos'!$G$3:$AW$1048576,$G105,) -> 0 | K105: =HLOOKUP(K$2,'Base de Dados - Resíduos'!$G$3:$AW$1048576,$G105,) -> 0 | L105: =HLOOKUP(L$2,'Base de Dados - Resíduos'!$G$3:$AW$1048576,$G105,) -> 0
G106: 105 | H106: =HLOOKUP(H$2,'Base de Dados - Resíduos'!$G$3:$AW$1048576,$G106,) -> 0 | I106: =HLOOKUP(I$2,'Base de Dados - Resíduos'!$G$3:$AW$1048576,$G106,) -> 0 | J106: =HLOOKUP(J$2,'Base de Dados - Resíduos'!$G$3:$AW$1048576,$G106,) -> 0 | K106: =HLOOKUP(K$2,'Base de Dados - Resíduos'!$G$3:$AW$1048576,$G106,) -> 0 | L106: =HLOOKUP(L$2,'Base de Dados - Resíduos'!$G$3:$AW$1048576,$G106,) -> 0
G107: 106 | H107: =HLOOKUP(H$2,'Base de Dados - Resíduos'!$G$3:$AW$1048576,$G107,) -> 0 | I107: =HLOOKUP(I$2,'Base de Dados - Resíduos'!$G$3:$AW$1048576,$G107,) -> 0 | J107: =HLOOKUP(J$2,'Base de Dados - Resíduos'!$G$3:$AW$1048576,$G107,) -> 0 | K107: =HLOOKUP(K$2,'Base de Dados - Resíduos'!$G$3:$AW$1048576,$G107,) -> 0 | L107: =HLOOKUP(L$2,'Base de Dados - Resíduos'!$G$3:$AW$1048576,$G107,) -> 0
G108: 107 | H108: =HLOOKUP(H$2,'Base de Dados - Resíduos'!$G$3:$AW$1048576,$G108,) -> 0 | I108: =HLOOKUP(I$2,'Base de Dados - Resíduos'!$G$3:$AW$1048576,$G108,) -> 0 | J108: =HLOOKUP(J$2,'Base de Dados - Resíduos'!$G$3:$AW$1048576,$G108,) -> 0 | K108: =HLOOKUP(K$2,'Base de Dados - Resíduos'!$G$3:$AW$1048576,$G108,) -> 0 | L108: =HLOOKUP(L$2,'Base de Dados - Resíduos'!$G$3:$AW$1048576,$G108,) -> 0
G109: 108 | H109: =HLOOKUP(H$2,'Base de Dados - Resíduos'!$G$3:$AW$1048576,$G109,) -> 0 | I109: =HLOOKUP(I$2,'Base de Dados - Resíduos'!$G$3:$AW$1048576,$G109,) -> 0 | J109: =HLOOKUP(J$2,'Base de Dados - Resíduos'!$G$3:$AW$1048576,$G109,) -> 0 | K109: =HLOOKUP(K$2,'Base de Dados - Resíduos'!$G$3:$AW$1048576,$G109,) -> 0 | L109: =HLOOKUP(L$2,'Base de Dados - Resíduos'!$G$3:$AW$1048576,$G109,) -> 0
G110: 109 | H110: =HLOOKUP(H$2,'Base de Dados - Resíduos'!$G$3:$AW$1048576,$G110,) -> 0 | I110: =HLOOKUP(I$2,'Base de Dados - Resíduos'!$G$3:$AW$1048576,$G110,) -> 0 | J110: =HLOOKUP(J$2,'Base de Dados - Resíduos'!$G$3:$AW$1048576,$G110,) -> 0 | K110: =HLOOKUP(K$2,'Base de Dados - Resíduos'!$G$3:$AW$1048576,$G110,) -> 0 | L110: =HLOOKUP(L$2,'Base de Dados - Resíduos'!$G$3:$AW$1048576,$G110,) -> 0
G111: 110 | H111: =HLOOKUP(H$2,'Base de Dados - Resíduos'!$G$3:$AW$1048576,$G111,) -> 0 | I111: =HLOOKUP(I$2,'Base de Dados - Resíduos'!$G$3:$AW$1048576,$G111,) -> 0 | J111: =HLOOKUP(J$2,'Base de Dados - Resíduos'!$G$3:$AW$1048576,$G111,) -> 0 | K111: =HLOOKUP(K$2,'Base de Dados - Resíduos'!$G$3:$AW$1048576,$G111,) -> 0 | L111: =HLOOKUP(L$2,'Base de Dados - Resíduos'!$G$3:$AW$1048576,$G111,) -> 0
G112: 111 | H112: =HLOOKUP(H$2,'Base de Dados - Resíduos'!$G$3:$AW$1048576,$G112,) -> 0 | I112: =HLOOKUP(I$2,'Base de Dados - Resíduos'!$G$3:$AW$1048576,$G112,) -> 0 | J112: =HLOOKUP(J$2,'Base de Dados - Resíduos'!$G$3:$AW$1048576,$G112,) -> 0 | K112: =HLOOKUP(K$2,'Base de Dados - Resíduos'!$G$3:$AW$1048576,$G112,) -> 0 | L112: =HLOOKUP(L$2,'Base de Dados - Resíduos'!$G$3:$AW$1048576,$G112,) -> 0
G113: 112 | H113: =HLOOKUP(H$2,'Base de Dados - Resíduos'!$G$3:$AW$1048576,$G113,) -> 0 | I113: =HLOOKUP(I$2,'Base de Dados - Resíduos'!$G$3:$AW$1048576,$G113,) -> 0 | J113: =HLOOKUP(J$2,'Base de Dados - Resíduos'!$G$3:$AW$1048576,$G113,) -> 0 | K113: =HLOOKUP(K$2,'Base de Dados - Resíduos'!$G$3:$AW$1048576,$G113,) -> 0 | L113: =HLOOKUP(L$2,'Base de Dados - Resíduos'!$G$3:$AW$1048576,$G113,) -> 0
G114: 113 | H114: =HLOOKUP(H$2,'Base de Dados - Resíduos'!$G$3:$AW$1048576,$G114,) -> 0 | I114: =HLOOKUP(I$2,'Base de Dados - Resíduos'!$G$3:$AW$1048576,$G114,) -> 0 | J114: =HLOOKUP(J$2,'Base de Dados - Resíduos'!$G$3:$AW$1048576,$G114,) -> 0 | K114: =HLOOKUP(K$2,'Base de Dados - Resíduos'!$G$3:$AW$1048576,$G114,) -> 0 | L114: =HLOOKUP(L$2,'Base de Dados - Resíduos'!$G$3:$AW$1048576,$G114,) -> 0
G115: 114 | H115: =HLOOKUP(H$2,'Base de Dados - Resíduos'!$G$3:$AW$1048576,$G115,) -> 0 | I115: =HLOOKUP(I$2,'Base de Dados - Resíduos'!$G$3:$AW$1048576,$G115,) -> 0 | J115: =HLOOKUP(J$2,'Base de Dados - Resíduos'!$G$3:$AW$1048576,$G115,) -> 0 | K115: =HLOOKUP(K$2,'Base de Dados - Resíduos'!$G$3:$AW$1048576,$G115,) -> 0 | L115: =HLOOKUP(L$2,'Base de Dados - Resíduos'!$G$3:$AW$1048576,$G115,) -> 0
G116: 115 | H116: =HLOOKUP(H$2,'Base de Dados - Resíduos'!$G$3:$AW$1048576,$G116,) -> 0 | I116: =HLOOKUP(I$2,'Base de Dados - Resíduos'!$G$3:$AW$1048576,$G116,) -> 0 | J116: =HLOOKUP(J$2,'Base de Dados - Resíduos'!$G$3:$AW$1048576,$G116,) -> 0 | K116: =HLOOKUP(K$2,'Base de Dados - Resíduos'!$G$3:$AW$1048576,$G116,) -> 0 | L116: =HLOOKUP(L$2,'Base de Dados - Resíduos'!$G$3:$AW$1048576,$G116,) -> 0
G117: 116 | H117: =HLOOKUP(H$2,'Base de Dados - Resíduos'!$G$3:$AW$1048576,$G117,) -> 0 | I117: =HLOOKUP(I$2,'Base de Dados - Resíduos'!$G$3:$AW$1048576,$G117,) -> 0 | J117: =HLOOKUP(J$2,'Base de Dados - Resíduos'!$G$3:$AW$1048576,$G117,) -> 0 | K117: =HLOOKUP(K$2,'Base de Dados - Resíduos'!$G$3:$AW$1048576,$G117,) -> 0 | L117: =HLOOKUP(L$2,'Base de Dados - Resíduos'!$G$3:$AW$1048576,$G117,) -> 0
G118: 117 | H118: =HLOOKUP(H$2,'Base de Dados - Resíduos'!$G$3:$AW$1048576,$G118,) -> 0 | I118: =HLOOKUP(I$2,'Base de Dados - Resíduos'!$G$3:$AW$1048576,$G118,) -> 0 | J118: =HLOOKUP(J$2,'Base de Dados - Resíduos'!$G$3:$AW$1048576,$G118,) -> 0 | K118: =HLOOKUP(K$2,'Base de Dados - Resíduos'!$G$3:$AW$1048576,$G118,) -> 0 | L118: =HLOOKUP(L$2,'Base de Dados - Resíduos'!$G$3:$AW$1048576,$G118,) -> 0
G119: 118 | H119: =HLOOKUP(H$2,'Base de Dados - Resíduos'!$G$3:$AW$1048576,$G119,) -> 0 | I119: =HLOOKUP(I$2,'Base de Dados - Resíduos'!$G$3:$AW$1048576,$G119,) -> 0 | J119: =HLOOKUP(J$2,'Base de Dados - Resíduos'!$G$3:$AW$1048576,$G119,) -> 0 | K119: =HLOOKUP(K$2,'Base de Dados - Resíduos'!$G$3:$AW$1048576,$G119,) -> 0 | L119: =HLOOKUP(L$2,'Base de Dados - Resíduos'!$G$3:$AW$1048576,$G119,) -> 0
G120: 119 | H120: =HLOOKUP(H$2,'Base de Dados - Resíduos'!$G$3:$AW$1048576,$G120,) -> 0 | I120: =HLOOKUP(I$2,'Base de Dados - Resíduos'!$G$3:$AW$1048576,$G120,) -> 0 | J120: =HLOOKUP(J$2,'Base de Dados - Resíduos'!$G$3:$AW$1048576,$G120,) -> 0 | K120: =HLOOKUP(K$2,'Base de Dados - Resíduos'!$G$3:$AW$1048576,$G120,) -> 0 | L120: =HLOOKUP(L$2,'Base de Dados - Resíduos'!$G$3:$AW$1048576,$G120,) -> 0
G121: 120 | H121: =HLOOKUP(H$2,'Base de Dados - Resíduos'!$G$3:$AW$1048576,$G121,) -> 0 | I121: =HLOOKUP(I$2,'Base de Dados - Resíduos'!$G$3:$AW$1048576,$G121,) -> 0 | J121: =HLOOKUP(J$2,'Base de Dados - Resíduos'!$G$3:$AW$1048576,$G121,) -> 0 | K121: =HLOOKUP(K$2,'Base de Dados - Resíduos'!$G$3:$AW$1048576,$G121,) -> 0 | L121: =HLOOKUP(L$2,'Base de Dados - Resíduos'!$G$3:$AW$1048576,$G121,) -> 0
G122: 121 | H122: =HLOOKUP(H$2,'Base de Dados - Resíduos'!$G$3:$AW$1048576,$G122,) -> 0 | I122: =HLOOKUP(I$2,'Base de Dados - Resíduos'!$G$3:$AW$1048576,$G122,) -> 0 | J122: =HLOOKUP(J$2,'Base de Dados - Resíduos'!$G$3:$AW$1048576,$G122,) -> 0 | K122: =HLOOKUP(K$2,'Base de Dados - Resíduos'!$G$3:$AW$1048576,$G122,) -> 0 | L122: =HLOOKUP(L$2,'Base de Dados - Resíduos'!$G$3:$AW$1048576,$G122,) -> 0
G123: 122 | H123: =HLOOKUP(H$2,'Base de Dados - Resíduos'!$G$3:$AW$1048576,$G123,) -> 0 | I123: =HLOOKUP(I$2,'Base de Dados - Resíduos'!$G$3:$AW$1048576,$G123,) -> 0 | J123: =HLOOKUP(J$2,'Base de Dados - Resíduos'!$G$3:$AW$1048576,$G123,) -> 0 | K123: =HLOOKUP(K$2,'Base de Dados - Resíduos'!$G$3:$AW$1048576,$G123,) -> 0 | L123: =HLOOKUP(L$2,'Base de Dados - Resíduos'!$G$3:$AW$1048576,$G123,) -> 0
G124: 123 | H124: =HLOOKUP(H$2,'Base de Dados - Resíduos'!$G$3:$AW$1048576,$G124,) -> 0 | I124: =HLOOKUP(I$2,'Base de Dados - Resíduos'!$G$3:$AW$1048576,$G124,) -> 0 | J124: =HLOOKUP(J$2,'Base de Dados - Resíduos'!$G$3:$AW$1048576,$G124,) -> 0 | K124: =HLOOKUP(K$2,'Base de Dados - Resíduos'!$G$3:$AW$1048576,$G124,) -> 0 | L124: =HLOOKUP(L$2,'Base de Dados - Resíduos'!$G$3:$AW$1048576,$G124,) -> 0
G125: 124 | H125: =HLOOKUP(H$2,'Base de Dados - Resíduos'!$G$3:$AW$1048576,$G125,) -> 0 | I125: =HLOOKUP(I$2,'Base de Dados - Resíduos'!$G$3:$AW$1048576,$G125,) -> 0 | J125: =HLOOKUP(J$2,'Base de Dados - Resíduos'!$G$3:$AW$1048576,$G125,) -> 0 | K125: =HLOOKUP(K$2,'Base de Dados - Resíduos'!$G$3:$AW$1048576,$G125,) -> 0 | L125: =HLOOKUP(L$2,'Base de Dados - Resíduos'!$G$3:$AW$1048576,$G125,) -> 0
G126: 125 | H126: =HLOOKUP(H$2,'Base de Dados - Resíduos'!$G$3:$AW$1048576,$G126,) -> 0 | I126: =HLOOKUP(I$2,'Base de Dados - Resíduos'!$G$3:$AW$1048576,$G126,) -> 0 | J126: =HLOOKUP(J$2,'Base de Dados - Resíduos'!$G$3:$AW$1048576,$G126,) -> 0 | K126: =HLOOKUP(K$2,'Base de Dados - Resíduos'!$G$3:$AW$1048576,$G126,) -> 0 | L126: =HLOOKUP(L$2,'Base de Dados - Resíduos'!$G$3:$AW$1048576,$G126,) -> 0
G127: 126 | H127: =HLOOKUP(H$2,'Base de Dados - Resíduos'!$G$3:$AW$1048576,$G127,) -> 0 | I127: =HLOOKUP(I$2,'Base de Dados - Resíduos'!$G$3:$AW$1048576,$G127,) -> 0 | J127: =HLOOKUP(J$2,'Base de Dados - Resíduos'!$G$3:$AW$1048576,$G127,) -> 0 | K127: =HLOOKUP(K$2,'Base de Dados - Resíduos'!$G$3:$AW$1048576,$G127,) -> 0 | L127: =HLOOKUP(L$2,'Base de Dados - Resíduos'!$G$3:$AW$1048576,$G127,) -> 0
G128: 127 | H128: =HLOOKUP(H$2,'Base de Dados - Resíduos'!$G$3:$AW$1048576,$G128,) -> 0 | I128: =HLOOKUP(I$2,'Base de Dados - Resíduos'!$G$3:$AW$1048576,$G128,) -> 0 | J128: =HLOOKUP(J$2,'Base de Dados - Resíduos'!$G$3:$AW$1048576,$G128,) -> 0 | K128: =HLOOKUP(K$2,'Base de Dados - Resíduos'!$G$3:$AW$1048576,$G128,) -> 0 | L128: =HLOOKUP(L$2,'Base de Dados - Resíduos'!$G$3:$AW$1048576,$G128,) -> 0
G129: 128 | H129: =HLOOKUP(H$2,'Base de Dados - Resíduos'!$G$3:$AW$1048576,$G129,) -> 0 | I129: =HLOOKUP(I$2,'Base de Dados - Resíduos'!$G$3:$AW$1048576,$G129,) -> 0 | J129: =HLOOKUP(J$2,'Base de Dados - Resíduos'!$G$3:$AW$1048576,$G129,) -> 0 | K129: =HLOOKUP(K$2,'Base de Dados - Resíduos'!$G$3:$AW$1048576,$G129,) -> 0 | L129: =HLOOKUP(L$2,'Base de Dados - Resíduos'!$G$3:$AW$1048576,$G129,) -> 0
G130: 129 | H130: =HLOOKUP(H$2,'Base de Dados - Resíduos'!$G$3:$AW$1048576,$G130,) -> 0 | I130: =HLOOKUP(I$2,'Base de Dados - Resíduos'!$G$3:$AW$1048576,$G130,) -> 0 | J130: =HLOOKUP(J$2,'Base de Dados - Resíduos'!$G$3:$AW$1048576,$G130,) -> 0 | K130: =HLOOKUP(K$2,'Base de Dados - Resíduos'!$G$3:$AW$1048576,$G130,) -> 0 | L130: =HLOOKUP(L$2,'Base de Dados - Resíduos'!$G$3:$AW$1048576,$G130,) -> 0
G131: 130 | H131: =HLOOKUP(H$2,'Base de Dados - Resíduos'!$G$3:$AW$1048576,$G131,) -> 0 | I131: =HLOOKUP(I$2,'Base de Dados - Resíduos'!$G$3:$AW$1048576,$G131,) -> 0 | J131: =HLOOKUP(J$2,'Base de Dados - Resíduos'!$G$3:$AW$1048576,$G131,) -> 0 | K131: =HLOOKUP(K$2,'Base de Dados - Resíduos'!$G$3:$AW$1048576,$G131,) -> 0 | L131: =HLOOKUP(L$2,'Base de Dados - Resíduos'!$G$3:$AW$1048576,$G131,) -> 0
G132: 131 | H132: =HLOOKUP(H$2,'Base de Dados - Resíduos'!$G$3:$AW$1048576,$G132,) -> 0 | I132: =HLOOKUP(I$2,'Base de Dados - Resíduos'!$G$3:$AW$1048576,$G132,) -> 0 | J132: =HLOOKUP(J$2,'Base de Dados - Resíduos'!$G$3:$AW$1048576,$G132,) -> 0 | K132: =HLOOKUP(K$2,'Base de Dados - Resíduos'!$G$3:$AW$1048576,$G132,) -> 0 | L132: =HLOOKUP(L$2,'Base de Dados - Resíduos'!$G$3:$AW$1048576,$G132,) -> 0
G133: 132 | H133: =HLOOKUP(H$2,'Base de Dados - Resíduos'!$G$3:$AW$1048576,$G133,) -> 0 | I133: =HLOOKUP(I$2,'Base de Dados - Resíduos'!$G$3:$AW$1048576,$G133,) -> 0 | J133: =HLOOKUP(J$2,'Base de Dados - Resíduos'!$G$3:$AW$1048576,$G133,) -> 0 | K133: =HLOOKUP(K$2,'Base de Dados - Resíduos'!$G$3:$AW$1048576,$G133,) -> 0 | L133: =HLOOKUP(L$2,'Base de Dados - Resíduos'!$G$3:$AW$1048576,$G133,) -> 0
G134: 133 | H134: =HLOOKUP(H$2,'Base de Dados - Resíduos'!$G$3:$AW$1048576,$G134,) -> 0 | I134: =HLOOKUP(I$2,'Base de Dados - Resíduos'!$G$3:$AW$1048576,$G134,) -> 0 | J134: =HLOOKUP(J$2,'Base de Dados - Resíduos'!$G$3:$AW$1048576,$G134,) -> 0 | K134: =HLOOKUP(K$2,'Base de Dados - Resíduos'!$G$3:$AW$1048576,$G134,) -> 0 | L134: =HLOOKUP(L$2,'Base de Dados - Resíduos'!$G$3:$AW$1048576,$G134,) -> 0
G135: 134 | H135: =HLOOKUP(H$2,'Base de Dados - Resíduos'!$G$3:$AW$1048576,$G135,) -> 0 | I135: =HLOOKUP(I$2,'Base de Dados - Resíduos'!$G$3:$AW$1048576,$G135,) -> 0 | J135: =HLOOKUP(J$2,'Base de Dados - Resíduos'!$G$3:$AW$1048576,$G135,) -> 0 | K135: =HLOOKUP(K$2,'Base de Dados - Resíduos'!$G$3:$AW$1048576,$G135,) -> 0 | L135: =HLOOKUP(L$2,'Base de Dados - Resíduos'!$G$3:$AW$1048576,$G135,) -> 0
G136: 135 | H136: =HLOOKUP(H$2,'Base de Dados - Resíduos'!$G$3:$AW$1048576,$G136,) -> 0 | I136: =HLOOKUP(I$2,'Base de Dados - Resíduos'!$G$3:$AW$1048576,$G136,) -> 0 | J136: =HLOOKUP(J$2,'Base de Dados - Resíduos'!$G$3:$AW$1048576,$G136,) -> 0 | K136: =HLOOKUP(K$2,'Base de Dados - Resíduos'!$G$3:$AW$1048576,$G136,) -> 0 | L136: =HLOOKUP(L$2,'Base de Dados - Resíduos'!$G$3:$AW$1048576,$G136,) -> 0
G137: 136 | H137: =HLOOKUP(H$2,'Base de Dados - Resíduos'!$G$3:$AW$1048576,$G137,) -> 0 | I137: =HLOOKUP(I$2,'Base de Dados - Resíduos'!$G$3:$AW$1048576,$G137,) -> 0 | J137: =HLOOKUP(J$2,'Base de Dados - Resíduos'!$G$3:$AW$1048576,$G137,) -> 0 | K137: =HLOOKUP(K$2,'Base de Dados - Resíduos'!$G$3:$AW$1048576,$G137,) -> 0 | L137: =HLOOKUP(L$2,'Base de Dados - Resíduos'!$G$3:$AW$1048576,$G137,) -> 0
G138: 137 | H138: =HLOOKUP(H$2,'Base de Dados - Resíduos'!$G$3:$AW$1048576,$G138,) -> 0 | I138: =HLOOKUP(I$2,'Base de Dados - Resíduos'!$G$3:$AW$1048576,$G138,) -> 0 | J138: =HLOOKUP(J$2,'Base de Dados - Resíduos'!$G$3:$AW$1048576,$G138,) -> 0 | K138: =HLOOKUP(K$2,'Base de Dados - Resíduos'!$G$3:$AW$1048576,$G138,) -> 0 | L138: =HLOOKUP(L$2,'Base de Dados - Resíduos'!$G$3:$AW$1048576,$G138,) -> 0
G139: 138 | H139: =HLOOKUP(H$2,'Base de Dados - Resíduos'!$G$3:$AW$1048576,$G139,) -> 0 | I139: =HLOOKUP(I$2,'Base de Dados - Resíduos'!$G$3:$AW$1048576,$G139,) -> 0 | J139: =HLOOKUP(J$2,'Base de Dados - Resíduos'!$G$3:$AW$1048576,$G139,) -> 0 | K139: =HLOOKUP(K$2,'Base de Dados - Resíduos'!$G$3:$AW$1048576,$G139,) -> 0 | L139: =HLOOKUP(L$2,'Base de Dados - Resíduos'!$G$3:$AW$1048576,$G139,) -> 0
G140: 139 | H140: =HLOOKUP(H$2,'Base de Dados - Resíduos'!$G$3:$AW$1048576,$G140,) -> 0 | I140: =HLOOKUP(I$2,'Base de Dados - Resíduos'!$G$3:$AW$1048576,$G140,) -> 0 | J140: =HLOOKUP(J$2,'Base de Dados - Resíduos'!$G$3:$AW$1048576,$G140,) -> 0 | K140: =HLOOKUP(K$2,'Base de Dados - Resíduos'!$G$3:$AW$1048576,$G140,) -> 0 | L140: =HLOOKUP(L$2,'Base de Dados - Resíduos'!$G$3:$AW$1048576,$G140,) -> 0
G141: 140 | H141: =HLOOKUP(H$2,'Base de Dados - Resíduos'!$G$3:$AW$1048576,$G141,) -> 0 | I141: =HLOOKUP(I$2,'Base de Dados - Resíduos'!$G$3:$AW$1048576,$G141,) -> 0 | J141: =HLOOKUP(J$2,'Base de Dados - Resíduos'!$G$3:$AW$1048576,$G141,) -> 0 | K141: =HLOOKUP(K$2,'Base de Dados - Resíduos'!$G$3:$AW$1048576,$G141,) -> 0 | L141: =HLOOKUP(L$2,'Base de Dados - Resíduos'!$G$3:$AW$1048576,$G141,) -> 0
G142: 141 | H142: =HLOOKUP(H$2,'Base de Dados - Resíduos'!$G$3:$AW$1048576,$G142,) -> 0 | I142: =HLOOKUP(I$2,'Base de Dados - Resíduos'!$G$3:$AW$1048576,$G142,) -> 0 | J142: =HLOOKUP(J$2,'Base de Dados - Resíduos'!$G$3:$AW$1048576,$G142,) -> 0 | K142: =HLOOKUP(K$2,'Base de Dados - Resíduos'!$G$3:$AW$1048576,$G142,) -> 0 | L142: =HLOOKUP(L$2,'Base de Dados - Resíduos'!$G$3:$AW$1048576,$G142,) -> 0
G143: 142 | H143: =HLOOKUP(H$2,'Base de Dados - Resíduos'!$G$3:$AW$1048576,$G143,) -> 0 | I143: =HLOOKUP(I$2,'Base de Dados - Resíduos'!$G$3:$AW$1048576,$G143,) -> 0 | J143: =HLOOKUP(J$2,'Base de Dados - Resíduos'!$G$3:$AW$1048576,$G143,) -> 0 | K143: =HLOOKUP(K$2,'Base de Dados - Resíduos'!$G$3:$AW$1048576,$G143,) -> 0 | L143: =HLOOKUP(L$2,'Base de Dados - Resíduos'!$G$3:$AW$1048576,$G143,) -> 0
G144: 143 | H144: =HLOOKUP(H$2,'Base de Dados - Resíduos'!$G$3:$AW$1048576,$G144,) -> 0 | I144: =HLOOKUP(I$2,'Base de Dados - Resíduos'!$G$3:$AW$1048576,$G144,) -> 0 | J144: =HLOOKUP(J$2,'Base de Dados - Resíduos'!$G$3:$AW$1048576,$G144,) -> 0 | K144: =HLOOKUP(K$2,'Base de Dados - Resíduos'!$G$3:$AW$1048576,$G144,) -> 0 | L144: =HLOOKUP(L$2,'Base de Dados - Resíduos'!$G$3:$AW$1048576,$G144,) -> 0
G145: 144 | H145: =HLOOKUP(H$2,'Base de Dados - Resíduos'!$G$3:$AW$1048576,$G145,) -> 0 | I145: =HLOOKUP(I$2,'Base de Dados - Resíduos'!$G$3:$AW$1048576,$G145,) -> 0 | J145: =HLOOKUP(J$2,'Base de Dados - Resíduos'!$G$3:$AW$1048576,$G145,) -> 0 | K145: =HLOOKUP(K$2,'Base de Dados - Resíduos'!$G$3:$AW$1048576,$G145,) -> 0 | L145: =HLOOKUP(L$2,'Base de Dados - Resíduos'!$G$3:$AW$1048576,$G145,) -> 0
G146: 145 | H146: =HLOOKUP(H$2,'Base de Dados - Resíduos'!$G$3:$AW$1048576,$G146,) -> 0 | I146: =HLOOKUP(I$2,'Base de Dados - Resíduos'!$G$3:$AW$1048576,$G146,) -> 0 | J146: =HLOOKUP(J$2,'Base de Dados - Resíduos'!$G$3:$AW$1048576,$G146,) -> 0 | K146: =HLOOKUP(K$2,'Base de Dados - Resíduos'!$G$3:$AW$1048576,$G146,) -> 0 | L146: =HLOOKUP(L$2,'Base de Dados - Resíduos'!$G$3:$AW$1048576,$G146,) -> 0
G147: 146 | H147: =HLOOKUP(H$2,'Base de Dados - Resíduos'!$G$3:$AW$1048576,$G147,) -> 0 | I147: =HLOOKUP(I$2,'Base de Dados - Resíduos'!$G$3:$AW$1048576,$G147,) -> 0 | J147: =HLOOKUP(J$2,'Base de Dados - Resíduos'!$G$3:$AW$1048576,$G147,) -> 0 | K147: =HLOOKUP(K$2,'Base de Dados - Resíduos'!$G$3:$AW$1048576,$G147,) -> 0 | L147: =HLOOKUP(L$2,'Base de Dados - Resíduos'!$G$3:$AW$1048576,$G147,) -> 0
G148: 147 | H148: =HLOOKUP(H$2,'Base de Dados - Resíduos'!$G$3:$AW$1048576,$G148,) -> 0 | I148: =HLOOKUP(I$2,'Base de Dados - Resíduos'!$G$3:$AW$1048576,$G148,) -> 0 | J148: =HLOOKUP(J$2,'Base de Dados - Resíduos'!$G$3:$AW$1048576,$G148,) -> 0 | K148: =HLOOKUP(K$2,'Base de Dados - Resíduos'!$G$3:$AW$1048576,$G148,) -> 0 | L148: =HLOOKUP(L$2,'Base de Dados - Resíduos'!$G$3:$AW$1048576,$G148,) -> 0
G149: 148 | H149: =HLOOKUP(H$2,'Base de Dados - Resíduos'!$G$3:$AW$1048576,$G149,) -> 0 | I149: =HLOOKUP(I$2,'Base de Dados - Resíduos'!$G$3:$AW$1048576,$G149,) -> 0 | J149: =HLOOKUP(J$2,'Base de Dados - Resíduos'!$G$3:$AW$1048576,$G149,) -> 0 | K149: =HLOOKUP(K$2,'Base de Dados - Resíduos'!$G$3:$AW$1048576,$G149,) -> 0 | L149: =HLOOKUP(L$2,'Base de Dados - Resíduos'!$G$3:$AW$1048576,$G149,) -> 0
G150: 149 | H150: =HLOOKUP(H$2,'Base de Dados - Resíduos'!$G$3:$AW$1048576,$G150,) -> 0 | I150: =HLOOKUP(I$2,'Base de Dados - Resíduos'!$G$3:$AW$1048576,$G150,) -> 0 | J150: =HLOOKUP(J$2,'Base de Dados - Resíduos'!$G$3:$AW$1048576,$G150,) -> 0 | K150: =HLOOKUP(K$2,'Base de Dados - Resíduos'!$G$3:$AW$1048576,$G150,) -> 0 | L150: =HLOOKUP(L$2,'Base de Dados - Resíduos'!$G$3:$AW$1048576,$G150,) -> 0
G151: 150 | H151: =HLOOKUP(H$2,'Base de Dados - Resíduos'!$G$3:$AW$1048576,$G151,) -> 0 | I151: =HLOOKUP(I$2,'Base de Dados - Resíduos'!$G$3:$AW$1048576,$G151,) -> 0 | J151: =HLOOKUP(J$2,'Base de Dados - Resíduos'!$G$3:$AW$1048576,$G151,) -> 0 | K151: =HLOOKUP(K$2,'Base de Dados - Resíduos'!$G$3:$AW$1048576,$G151,) -> 0 | L151: =HLOOKUP(L$2,'Base de Dados - Resíduos'!$G$3:$AW$1048576,$G151,) -> 0
G152: 151 | H152: =HLOOKUP(H$2,'Base de Dados - Resíduos'!$G$3:$AW$1048576,$G152,) -> 0 | I152: =HLOOKUP(I$2,'Base de Dados - Resíduos'!$G$3:$AW$1048576,$G152,) -> 0 | J152: =HLOOKUP(J$2,'Base de Dados - Resíduos'!$G$3:$AW$1048576,$G152,) -> 0 | K152: =HLOOKUP(K$2,'Base de Dados - Resíduos'!$G$3:$AW$1048576,$G152,) -> 0 | L152: =HLOOKUP(L$2,'Base de Dados - Resíduos'!$G$3:$AW$1048576,$G152,) -> 0
G153: 152 | H153: =HLOOKUP(H$2,'Base de Dados - Resíduos'!$G$3:$AW$1048576,$G153,) -> 0 | I153: =HLOOKUP(I$2,'Base de Dados - Resíduos'!$G$3:$AW$1048576,$G153,) -> 0 | J153: =HLOOKUP(J$2,'Base de Dados - Resíduos'!$G$3:$AW$1048576,$G153,) -> 0 | K153: =HLOOKUP(K$2,'Base de Dados - Resíduos'!$G$3:$AW$1048576,$G153,) -> 0 | L153: =HLOOKUP(L$2,'Base de Dados - Resíduos'!$G$3:$AW$1048576,$G153,) -> 0
G154: 153 | H154: =HLOOKUP(H$2,'Base de Dados - Resíduos'!$G$3:$AW$1048576,$G154,) -> 0 | I154: =HLOOKUP(I$2,'Base de Dados - Resíduos'!$G$3:$AW$1048576,$G154,) -> 0 | J154: =HLOOKUP(J$2,'Base de Dados - Resíduos'!$G$3:$AW$1048576,$G154,) -> 0 | K154: =HLOOKUP(K$2,'Base de Dados - Resíduos'!$G$3:$AW$1048576,$G154,) -> 0 | L154: =HLOOKUP(L$2,'Base de Dados - Resíduos'!$G$3:$AW$1048576,$G154,) -> 0
G155: 154 | H155: =HLOOKUP(H$2,'Base de Dados - Resíduos'!$G$3:$AW$1048576,$G155,) -> 0 | I155: =HLOOKUP(I$2,'Base de Dados - Resíduos'!$G$3:$AW$1048576,$G155,) -> 0 | J155: =HLOOKUP(J$2,'Base de Dados - Resíduos'!$G$3:$AW$1048576,$G155,) -> 0 | K155: =HLOOKUP(K$2,'Base de Dados - Resíduos'!$G$3:$AW$1048576,$G155,) -> 0 | L155: =HLOOKUP(L$2,'Base de Dados - Resíduos'!$G$3:$AW$1048576,$G155,) -> 0
G156: 155 | H156: =HLOOKUP(H$2,'Base de Dados - Resíduos'!$G$3:$AW$1048576,$G156,) -> 0 | I156: =HLOOKUP(I$2,'Base de Dados - Resíduos'!$G$3:$AW$1048576,$G156,) -> 0 | J156: =HLOOKUP(J$2,'Base de Dados - Resíduos'!$G$3:$AW$1048576,$G156,) -> 0 | K156: =HLOOKUP(K$2,'Base de Dados - Resíduos'!$G$3:$AW$1048576,$G156,) -> 0 | L156: =HLOOKUP(L$2,'Base de Dados - Resíduos'!$G$3:$AW$1048576,$G156,) -> 0
G157: 156 | H157: =HLOOKUP(H$2,'Base de Dados - Resíduos'!$G$3:$AW$1048576,$G157,) -> 0 | I157: =HLOOKUP(I$2,'Base de Dados - Resíduos'!$G$3:$AW$1048576,$G157,) -> 0 | J157: =HLOOKUP(J$2,'Base de Dados - Resíduos'!$G$3:$AW$1048576,$G157,) -> 0 | K157: =HLOOKUP(K$2,'Base de Dados - Resíduos'!$G$3:$AW$1048576,$G157,) -> 0 | L157: =HLOOKUP(L$2,'Base de Dados - Resíduos'!$G$3:$AW$1048576,$G157,) -> 0
G158: 157 | H158: =HLOOKUP(H$2,'Base de Dados - Resíduos'!$G$3:$AW$1048576,$G158,) -> 0 | I158: =HLOOKUP(I$2,'Base de Dados - Resíduos'!$G$3:$AW$1048576,$G158,) -> 0 | J158: =HLOOKUP(J$2,'Base de Dados - Resíduos'!$G$3:$AW$1048576,$G158,) -> 0 | K158: =HLOOKUP(K$2,'Base de Dados - Resíduos'!$G$3:$AW$1048576,$G158,) -> 0 | L158: =HLOOKUP(L$2,'Base de Dados - Resíduos'!$G$3:$AW$1048576,$G158,) -> 0
G159: 158 | H159: =HLOOKUP(H$2,'Base de Dados - Resíduos'!$G$3:$AW$1048576,$G159,) -> 0 | I159: =HLOOKUP(I$2,'Base de Dados - Resíduos'!$G$3:$AW$1048576,$G159,) -> 0 | J159: =HLOOKUP(J$2,'Base de Dados - Resíduos'!$G$3:$AW$1048576,$G159,) -> 0 | K159: =HLOOKUP(K$2,'Base de Dados - Resíduos'!$G$3:$AW$1048576,$G159,) -> 0 | L159: =HLOOKUP(L$2,'Base de Dados - Resíduos'!$G$3:$AW$1048576,$G159,) -> 0
G160: 159 | H160: =HLOOKUP(H$2,'Base de Dados - Resíduos'!$G$3:$AW$1048576,$G160,) -> 0 | I160: =HLOOKUP(I$2,'Base de Dados - Resíduos'!$G$3:$AW$1048576,$G160,) -> 0 | J160: =HLOOKUP(J$2,'Base de Dados - Resíduos'!$G$3:$AW$1048576,$G160,) -> 0 | K160: =HLOOKUP(K$2,'Base de Dados - Resíduos'!$G$3:$AW$1048576,$G160,) -> 0 | L160: =HLOOKUP(L$2,'Base de Dados - Resíduos'!$G$3:$AW$1048576,$G160,) -> 0
G161: 160 | H161: =HLOOKUP(H$2,'Base de Dados - Resíduos'!$G$3:$AW$1048576,$G161,) -> 0 | I161: =HLOOKUP(I$2,'Base de Dados - Resíduos'!$G$3:$AW$1048576,$G161,) -> 0 | J161: =HLOOKUP(J$2,'Base de Dados - Resíduos'!$G$3:$AW$1048576,$G161,) -> 0 | K161: =HLOOKUP(K$2,'Base de Dados - Resíduos'!$G$3:$AW$1048576,$G161,) -> 0 | L161: =HLOOKUP(L$2,'Base de Dados - Resíduos'!$G$3:$AW$1048576,$G161,) -> 0
G162: 161 | H162: =HLOOKUP(H$2,'Base de Dados - Resíduos'!$G$3:$AW$1048576,$G162,) -> 0 | I162: =HLOOKUP(I$2,'Base de Dados - Resíduos'!$G$3:$AW$1048576,$G162,) -> 0 | J162: =HLOOKUP(J$2,'Base de Dados - Resíduos'!$G$3:$AW$1048576,$G162,) -> 0 | K162: =HLOOKUP(K$2,'Base de Dados - Resíduos'!$G$3:$AW$1048576,$G162,) -> 0 | L162: =HLOOKUP(L$2,'Base de Dados - Resíduos'!$G$3:$AW$1048576,$G162,) -> 0
G163: 162 | H163: =HLOOKUP(H$2,'Base de Dados - Resíduos'!$G$3:$AW$1048576,$G163,) -> 0 | I163: =HLOOKUP(I$2,'Base de Dados - Resíduos'!$G$3:$AW$1048576,$G163,) -> 0 | J163: =HLOOKUP(J$2,'Base de Dados - Resíduos'!$G$3:$AW$1048576,$G163,) -> 0 | K163: =HLOOKUP(K$2,'Base de Dados - Resíduos'!$G$3:$AW$1048576,$G163,) -> 0 | L163: =HLOOKUP(L$2,'Base de Dados - Resíduos'!$G$3:$AW$1048576,$G163,) -> 0
G164: 163 | H164: =HLOOKUP(H$2,'Base de Dados - Resíduos'!$G$3:$AW$1048576,$G164,) -> 0 | I164: =HLOOKUP(I$2,'Base de Dados - Resíduos'!$G$3:$AW$1048576,$G164,) -> 0 | J164: =HLOOKUP(J$2,'Base de Dados - Resíduos'!$G$3:$AW$1048576,$G164,) -> 0 | K164: =HLOOKUP(K$2,'Base de Dados - Resíduos'!$G$3:$AW$1048576,$G164,) -> 0 | L164: =HLOOKUP(L$2,'Base de Dados - Resíduos'!$G$3:$AW$1048576,$G164,) -> 0
G165: 164 | H165: =HLOOKUP(H$2,'Base de Dados - Resíduos'!$G$3:$AW$1048576,$G165,) -> 0 | I165: =HLOOKUP(I$2,'Base de Dados - Resíduos'!$G$3:$AW$1048576,$G165,) -> 0 | J165: =HLOOKUP(J$2,'Base de Dados - Resíduos'!$G$3:$AW$1048576,$G165,) -> 0 | K165: =HLOOKUP(K$2,'Base de Dados - Resíduos'!$G$3:$AW$1048576,$G165,) -> 0 | L165: =HLOOKUP(L$2,'Base de Dados - Resíduos'!$G$3:$AW$1048576,$G165,) -> 0
G166: 165 | H166: =HLOOKUP(H$2,'Base de Dados - Resíduos'!$G$3:$AW$1048576,$G166,) -> 0 | I166: =HLOOKUP(I$2,'Base de Dados - Resíduos'!$G$3:$AW$1048576,$G166,) -> 0 | J166: =HLOOKUP(J$2,'Base de Dados - Resíduos'!$G$3:$AW$1048576,$G166,) -> 0 | K166: =HLOOKUP(K$2,'Base de Dados - Resíduos'!$G$3:$AW$1048576,$G166,) -> 0 | L166: =HLOOKUP(L$2,'Base de Dados - Resíduos'!$G$3:$AW$1048576,$G166,) -> 0
G167: 166 | H167: =HLOOKUP(H$2,'Base de Dados - Resíduos'!$G$3:$AW$1048576,$G167,) -> 0 | I167: =HLOOKUP(I$2,'Base de Dados - Resíduos'!$G$3:$AW$1048576,$G167,) -> 0 | J167: =HLOOKUP(J$2,'Base de Dados - Resíduos'!$G$3:$AW$1048576,$G167,) -> 0 | K167: =HLOOKUP(K$2,'Base de Dados - Resíduos'!$G$3:$AW$1048576,$G167,) -> 0 | L167: =HLOOKUP(L$2,'Base de Dados - Resíduos'!$G$3:$AW$1048576,$G167,) -> 0
G168: 167 | H168: =HLOOKUP(H$2,'Base de Dados - Resíduos'!$G$3:$AW$1048576,$G168,) -> 0 | I168: =HLOOKUP(I$2,'Base de Dados - Resíduos'!$G$3:$AW$1048576,$G168,) -> 0 | J168: =HLOOKUP(J$2,'Base de Dados - Resíduos'!$G$3:$AW$1048576,$G168,) -> 0 | K168: =HLOOKUP(K$2,'Base de Dados - Resíduos'!$G$3:$AW$1048576,$G168,) -> 0 | L168: =HLOOKUP(L$2,'Base de Dados - Resíduos'!$G$3:$AW$1048576,$G168,) -> 0
G169: 168 | H169: =HLOOKUP(H$2,'Base de Dados - Resíduos'!$G$3:$AW$1048576,$G169,) -> 0 | I169: =HLOOKUP(I$2,'Base de Dados - Resíduos'!$G$3:$AW$1048576,$G169,) -> 0 | J169: =HLOOKUP(J$2,'Base de Dados - Resíduos'!$G$3:$AW$1048576,$G169,) -> 0 | K169: =HLOOKUP(K$2,'Base de Dados - Resíduos'!$G$3:$AW$1048576,$G169,) -> 0 | L169: =HLOOKUP(L$2,'Base de Dados - Resíduos'!$G$3:$AW$1048576,$G169,) -> 0
G170: 169 | H170: =HLOOKUP(H$2,'Base de Dados - Resíduos'!$G$3:$AW$1048576,$G170,) -> 0 | I170: =HLOOKUP(I$2,'Base de Dados - Resíduos'!$G$3:$AW$1048576,$G170,) -> 0 | J170: =HLOOKUP(J$2,'Base de Dados - Resíduos'!$G$3:$AW$1048576,$G170,) -> 0 | K170: =HLOOKUP(K$2,'Base de Dados - Resíduos'!$G$3:$AW$1048576,$G170,) -> 0 | L170: =HLOOKUP(L$2,'Base de Dados - Resíduos'!$G$3:$AW$1048576,$G170,) -> 0
G171: 170 | H171: =HLOOKUP(H$2,'Base de Dados - Resíduos'!$G$3:$AW$1048576,$G171,) -> 0 | I171: =HLOOKUP(I$2,'Base de Dados - Resíduos'!$G$3:$AW$1048576,$G171,) -> 0 | J171: =HLOOKUP(J$2,'Base de Dados - Resíduos'!$G$3:$AW$1048576,$G171,) -> 0 | K171: =HLOOKUP(K$2,'Base de Dados - Resíduos'!$G$3:$AW$1048576,$G171,) -> 0 | L171: =HLOOKUP(L$2,'Base de Dados - Resíduos'!$G$3:$AW$1048576,$G171,) -> 0
G172: 171 | H172: =HLOOKUP(H$2,'Base de Dados - Resíduos'!$G$3:$AW$1048576,$G172,) -> 0 | I172: =HLOOKUP(I$2,'Base de Dados - Resíduos'!$G$3:$AW$1048576,$G172,) -> 0 | J172: =HLOOKUP(J$2,'Base de Dados - Resíduos'!$G$3:$AW$1048576,$G172,) -> 0 | K172: =HLOOKUP(K$2,'Base de Dados - Resíduos'!$G$3:$AW$1048576,$G172,) -> 0 | L172: =HLOOKUP(L$2,'Base de Dados - Resíduos'!$G$3:$AW$1048576,$G172,) -> 0
G173: 172 | H173: =HLOOKUP(H$2,'Base de Dados - Resíduos'!$G$3:$AW$1048576,$G173,) -> 0 | I173: =HLOOKUP(I$2,'Base de Dados - Resíduos'!$G$3:$AW$1048576,$G173,) -> 0 | J173: =HLOOKUP(J$2,'Base de Dados - Resíduos'!$G$3:$AW$1048576,$G173,) -> 0 | K173: =HLOOKUP(K$2,'Base de Dados - Resíduos'!$G$3:$AW$1048576,$G173,) -> 0 | L173: =HLOOKUP(L$2,'Base de Dados - Resíduos'!$G$3:$AW$1048576,$G173,) -> 0
G174: 173 | H174: =HLOOKUP(H$2,'Base de Dados - Resíduos'!$G$3:$AW$1048576,$G174,) -> 0 | I174: =HLOOKUP(I$2,'Base de Dados - Resíduos'!$G$3:$AW$1048576,$G174,) -> 0 | J174: =HLOOKUP(J$2,'Base de Dados - Resíduos'!$G$3:$AW$1048576,$G174,) -> 0 | K174: =HLOOKUP(K$2,'Base de Dados - Resíduos'!$G$3:$AW$1048576,$G174,) -> 0 | L174: =HLOOKUP(L$2,'Base de Dados - Resíduos'!$G$3:$AW$1048576,$G174,) -> 0
G175: 174 | H175: =HLOOKUP(H$2,'Base de Dados - Resíduos'!$G$3:$AW$1048576,$G175,) -> 0 | I175: =HLOOKUP(I$2,'Base de Dados - Resíduos'!$G$3:$AW$1048576,$G175,) -> 0 | J175: =HLOOKUP(J$2,'Base de Dados - Resíduos'!$G$3:$AW$1048576,$G175,) -> 0 | K175: =HLOOKUP(K$2,'Base de Dados - Resíduos'!$G$3:$AW$1048576,$G175,) -> 0 | L175: =HLOOKUP(L$2,'Base de Dados - Resíduos'!$G$3:$AW$1048576,$G175,) -> 0
G176: 175 | H176: =HLOOKUP(H$2,'Base de Dados - Resíduos'!$G$3:$AW$1048576,$G176,) -> 0 | I176: =HLOOKUP(I$2,'Base de Dados - Resíduos'!$G$3:$AW$1048576,$G176,) -> 0 | J176: =HLOOKUP(J$2,'Base de Dados - Resíduos'!$G$3:$AW$1048576,$G176,) -> 0 | K176: =HLOOKUP(K$2,'Base de Dados - Resíduos'!$G$3:$AW$1048576,$G176,) -> 0 | L176: =HLOOKUP(L$2,'Base de Dados - Resíduos'!$G$3:$AW$1048576,$G176,) -> 0
G177: 176 | H177: =HLOOKUP(H$2,'Base de Dados - Resíduos'!$G$3:$AW$1048576,$G177,) -> 0 | I177: =HLOOKUP(I$2,'Base de Dados - Resíduos'!$G$3:$AW$1048576,$G177,) -> 0 | J177: =HLOOKUP(J$2,'Base de Dados - Resíduos'!$G$3:$AW$1048576,$G177,) -> 0 | K177: =HLOOKUP(K$2,'Base de Dados - Resíduos'!$G$3:$AW$1048576,$G177,) -> 0 | L177: =HLOOKUP(L$2,'Base de Dados - Resíduos'!$G$3:$AW$1048576,$G177,) -> 0
G178: 177 | H178: =HLOOKUP(H$2,'Base de Dados - Resíduos'!$G$3:$AW$1048576,$G178,) -> 0 | I178: =HLOOKUP(I$2,'Base de Dados - Resíduos'!$G$3:$AW$1048576,$G178,) -> 0 | J178: =HLOOKUP(J$2,'Base de Dados - Resíduos'!$G$3:$AW$1048576,$G178,) -> 0 | K178: =HLOOKUP(K$2,'Base de Dados - Resíduos'!$G$3:$AW$1048576,$G178,) -> 0 | L178: =HLOOKUP(L$2,'Base de Dados - Resíduos'!$G$3:$AW$1048576,$G178,) -> 0
G179: 178 | H179: =HLOOKUP(H$2,'Base de Dados - Resíduos'!$G$3:$AW$1048576,$G179,) -> 0 | I179: =HLOOKUP(I$2,'Base de Dados - Resíduos'!$G$3:$AW$1048576,$G179,) -> 0 | J179: =HLOOKUP(J$2,'Base de Dados - Resíduos'!$G$3:$AW$1048576,$G179,) -> 0 | K179: =HLOOKUP(K$2,'Base de Dados - Resíduos'!$G$3:$AW$1048576,$G179,) -> 0 | L179: =HLOOKUP(L$2,'Base de Dados - Resíduos'!$G$3:$AW$1048576,$G179,) -> 0
G180: 179 | H180: =HLOOKUP(H$2,'Base de Dados - Resíduos'!$G$3:$AW$1048576,$G180,) -> 0 | I180: =HLOOKUP(I$2,'Base de Dados - Resíduos'!$G$3:$AW$1048576,$G180,) -> 0 | J180: =HLOOKUP(J$2,'Base de Dados - Resíduos'!$G$3:$AW$1048576,$G180,) -> 0 | K180: =HLOOKUP(K$2,'Base de Dados - Resíduos'!$G$3:$AW$1048576,$G180,) -> 0 | L180: =HLOOKUP(L$2,'Base de Dados - Resíduos'!$G$3:$AW$1048576,$G180,) -> 0
G181: 180 | H181: =HLOOKUP(H$2,'Base de Dados - Resíduos'!$G$3:$AW$1048576,$G181,) -> 0 | I181: =HLOOKUP(I$2,'Base de Dados - Resíduos'!$G$3:$AW$1048576,$G181,) -> 0 | J181: =HLOOKUP(J$2,'Base de Dados - Resíduos'!$G$3:$AW$1048576,$G181,) -> 0 | K181: =HLOOKUP(K$2,'Base de Dados - Resíduos'!$G$3:$AW$1048576,$G181,) -> 0 | L181: =HLOOKUP(L$2,'Base de Dados - Resíduos'!$G$3:$AW$1048576,$G181,) -> 0
G182: 181 | H182: =HLOOKUP(H$2,'Base de Dados - Resíduos'!$G$3:$AW$1048576,$G182,) -> 0 | I182: =HLOOKUP(I$2,'Base de Dados - Resíduos'!$G$3:$AW$1048576,$G182,) -> 0 | J182: =HLOOKUP(J$2,'Base de Dados - Resíduos'!$G$3:$AW$1048576,$G182,) -> 0 | K182: =HLOOKUP(K$2,'Base de Dados - Resíduos'!$G$3:$AW$1048576,$G182,) -> 0 | L182: =HLOOKUP(L$2,'Base de Dados - Resíduos'!$G$3:$AW$1048576,$G182,) -> 0
G183: 182 | H183: =HLOOKUP(H$2,'Base de Dados - Resíduos'!$G$3:$AW$1048576,$G183,) -> 0 | I183: =HLOOKUP(I$2,'Base de Dados - Resíduos'!$G$3:$AW$1048576,$G183,) -> 0 | J183: =HLOOKUP(J$2,'Base de Dados - Resíduos'!$G$3:$AW$1048576,$G183,) -> 0 | K183: =HLOOKUP(K$2,'Base de Dados - Resíduos'!$G$3:$AW$1048576,$G183,) -> 0 | L183: =HLOOKUP(L$2,'Base de Dados - Resíduos'!$G$3:$AW$1048576,$G183,) -> 0
G184: 183 | H184: =HLOOKUP(H$2,'Base de Dados - Resíduos'!$G$3:$AW$1048576,$G184,) -> 0 | I184: =HLOOKUP(I$2,'Base de Dados - Resíduos'!$G$3:$AW$1048576,$G184,) -> 0 | J184: =HLOOKUP(J$2,'Base de Dados - Resíduos'!$G$3:$AW$1048576,$G184,) -> 0 | K184: =HLOOKUP(K$2,'Base de Dados - Resíduos'!$G$3:$AW$1048576,$G184,) -> 0 | L184: =HLOOKUP(L$2,'Base de Dados - Resíduos'!$G$3:$AW$1048576,$G184,) -> 0
G185: 184 | H185: =HLOOKUP(H$2,'Base de Dados - Resíduos'!$G$3:$AW$1048576,$G185,) -> 0 | I185: =HLOOKUP(I$2,'Base de Dados - Resíduos'!$G$3:$AW$1048576,$G185,) -> 0 | J185: =HLOOKUP(J$2,'Base de Dados - Resíduos'!$G$3:$AW$1048576,$G185,) -> 0 | K185: =HLOOKUP(K$2,'Base de Dados - Resíduos'!$G$3:$AW$1048576,$G185,) -> 0 | L185: =HLOOKUP(L$2,'Base de Dados - Resíduos'!$G$3:$AW$1048576,$G185,) -> 0
G186: 185 | H186: =HLOOKUP(H$2,'Base de Dados - Resíduos'!$G$3:$AW$1048576,$G186,) -> 0 | I186: =HLOOKUP(I$2,'Base de Dados - Resíduos'!$G$3:$AW$1048576,$G186,) -> 0 | J186: =HLOOKUP(J$2,'Base de Dados - Resíduos'!$G$3:$AW$1048576,$G186,) -> 0 | K186: =HLOOKUP(K$2,'Base de Dados - Resíduos'!$G$3:$AW$1048576,$G186,) -> 0 | L186: =HLOOKUP(L$2,'Base de Dados - Resíduos'!$G$3:$AW$1048576,$G186,) -> 0
G187: 186 | H187: =HLOOKUP(H$2,'Base de Dados - Resíduos'!$G$3:$AW$1048576,$G187,) -> 0 | I187: =HLOOKUP(I$2,'Base de Dados - Resíduos'!$G$3:$AW$1048576,$G187,) -> 0 | J187: =HLOOKUP(J$2,'Base de Dados - Resíduos'!$G$3:$AW$1048576,$G187,) -> 0 | K187: =HLOOKUP(K$2,'Base de Dados - Resíduos'!$G$3:$AW$1048576,$G187,) -> 0 | L187: =HLOOKUP(L$2,'Base de Dados - Resíduos'!$G$3:$AW$1048576,$G187,) -> 0
G188: 187 | H188: =HLOOKUP(H$2,'Base de Dados - Resíduos'!$G$3:$AW$1048576,$G188,) -> 0 | I188: =HLOOKUP(I$2,'Base de Dados - Resíduos'!$G$3:$AW$1048576,$G188,) -> 0 | J188: =HLOOKUP(J$2,'Base de Dados - Resíduos'!$G$3:$AW$1048576,$G188,) -> 0 | K188: =HLOOKUP(K$2,'Base de Dados - Resíduos'!$G$3:$AW$1048576,$G188,) -> 0 | L188: =HLOOKUP(L$2,'Base de Dados - Resíduos'!$G$3:$AW$1048576,$G188,) -> 0
G189: 188 | H189: =HLOOKUP(H$2,'Base de Dados - Resíduos'!$G$3:$AW$1048576,$G189,) -> 0 | I189: =HLOOKUP(I$2,'Base de Dados - Resíduos'!$G$3:$AW$1048576,$G189,) -> 0 | J189: =HLOOKUP(J$2,'Base de Dados - Resíduos'!$G$3:$AW$1048576,$G189,) -> 0 | K189: =HLOOKUP(K$2,'Base de Dados - Resíduos'!$G$3:$AW$1048576,$G189,) -> 0 | L189: =HLOOKUP(L$2,'Base de Dados - Resíduos'!$G$3:$AW$1048576,$G189,) -> 0
G190: 189 | H190: =HLOOKUP(H$2,'Base de Dados - Resíduos'!$G$3:$AW$1048576,$G190,) -> 0 | I190: =HLOOKUP(I$2,'Base de Dados - Resíduos'!$G$3:$AW$1048576,$G190,) -> 0 | J190: =HLOOKUP(J$2,'Base de Dados - Resíduos'!$G$3:$AW$1048576,$G190,) -> 0 | K190: =HLOOKUP(K$2,'Base de Dados - Resíduos'!$G$3:$AW$1048576,$G190,) -> 0 | L190: =HLOOKUP(L$2,'Base de Dados - Resíduos'!$G$3:$AW$1048576,$G190,) -> 0
G191: 190 | H191: =HLOOKUP(H$2,'Base de Dados - Resíduos'!$G$3:$AW$1048576,$G191,) -> 0 | I191: =HLOOKUP(I$2,'Base de Dados - Resíduos'!$G$3:$AW$1048576,$G191,) -> 0 | J191: =HLOOKUP(J$2,'Base de Dados - Resíduos'!$G$3:$AW$1048576,$G191,) -> 0 | K191: =HLOOKUP(K$2,'Base de Dados - Resíduos'!$G$3:$AW$1048576,$G191,) -> 0 | L191: =HLOOKUP(L$2,'Base de Dados - Resíduos'!$G$3:$AW$1048576,$G191,) -> 0
G192: 191 | H192: =HLOOKUP(H$2,'Base de Dados - Resíduos'!$G$3:$AW$1048576,$G192,) -> 0 | I192: =HLOOKUP(I$2,'Base de Dados - Resíduos'!$G$3:$AW$1048576,$G192,) -> 0 | J192: =HLOOKUP(J$2,'Base de Dados - Resíduos'!$G$3:$AW$1048576,$G192,) -> 0 | K192: =HLOOKUP(K$2,'Base de Dados - Resíduos'!$G$3:$AW$1048576,$G192,) -> 0 | L192: =HLOOKUP(L$2,'Base de Dados - Resíduos'!$G$3:$AW$1048576,$G192,) -> 0
G193: 192 | H193: =HLOOKUP(H$2,'Base de Dados - Resíduos'!$G$3:$AW$1048576,$G193,) -> 0 | I193: =HLOOKUP(I$2,'Base de Dados - Resíduos'!$G$3:$AW$1048576,$G193,) -> 0 | J193: =HLOOKUP(J$2,'Base de Dados - Resíduos'!$G$3:$AW$1048576,$G193,) -> 0 | K193: =HLOOKUP(K$2,'Base de Dados - Resíduos'!$G$3:$AW$1048576,$G193,) -> 0 | L193: =HLOOKUP(L$2,'Base de Dados - Resíduos'!$G$3:$AW$1048576,$G193,) -> 0
G194: 193 | H194: =HLOOKUP(H$2,'Base de Dados - Resíduos'!$G$3:$AW$1048576,$G194,) -> 0 | I194: =HLOOKUP(I$2,'Base de Dados - Resíduos'!$G$3:$AW$1048576,$G194,) -> 0 | J194: =HLOOKUP(J$2,'Base de Dados - Resíduos'!$G$3:$AW$1048576,$G194,) -> 0 | K194: =HLOOKUP(K$2,'Base de Dados - Resíduos'!$G$3:$AW$1048576,$G194,) -> 0 | L194: =HLOOKUP(L$2,'Base de Dados - Resíduos'!$G$3:$AW$1048576,$G194,) -> 0
G195: 194 | H195: =HLOOKUP(H$2,'Base de Dados - Resíduos'!$G$3:$AW$1048576,$G195,) -> 0 | I195: =HLOOKUP(I$2,'Base de Dados - Resíduos'!$G$3:$AW$1048576,$G195,) -> 0 | J195: =HLOOKUP(J$2,'Base de Dados - Resíduos'!$G$3:$AW$1048576,$G195,) -> 0 | K195: =HLOOKUP(K$2,'Base de Dados - Resíduos'!$G$3:$AW$1048576,$G195,) -> 0 | L195: =HLOOKUP(L$2,'Base de Dados - Resíduos'!$G$3:$AW$1048576,$G195,) -> 0
G196: 195 | H196: =HLOOKUP(H$2,'Base de Dados - Resíduos'!$G$3:$AW$1048576,$G196,) -> 0 | I196: =HLOOKUP(I$2,'Base de Dados - Resíduos'!$G$3:$AW$1048576,$G196,) -> 0 | J196: =HLOOKUP(J$2,'Base de Dados - Resíduos'!$G$3:$AW$1048576,$G196,) -> 0 | K196: =HLOOKUP(K$2,'Base de Dados - Resíduos'!$G$3:$AW$1048576,$G196,) -> 0 | L196: =HLOOKUP(L$2,'Base de Dados - Resíduos'!$G$3:$AW$1048576,$G196,) -> 0
G197: 196 | H197: =HLOOKUP(H$2,'Base de Dados - Resíduos'!$G$3:$AW$1048576,$G197,) -> 0 | I197: =HLOOKUP(I$2,'Base de Dados - Resíduos'!$G$3:$AW$1048576,$G197,) -> 0 | J197: =HLOOKUP(J$2,'Base de Dados - Resíduos'!$G$3:$AW$1048576,$G197,) -> 0 | K197: =HLOOKUP(K$2,'Base de Dados - Resíduos'!$G$3:$AW$1048576,$G197,) -> 0 | L197: =HLOOKUP(L$2,'Base de Dados - Resíduos'!$G$3:$AW$1048576,$G197,) -> 0
G198: 197 | H198: =HLOOKUP(H$2,'Base de Dados - Resíduos'!$G$3:$AW$1048576,$G198,) -> 0 | I198: =HLOOKUP(I$2,'Base de Dados - Resíduos'!$G$3:$AW$1048576,$G198,) -> 0 | J198: =HLOOKUP(J$2,'Base de Dados - Resíduos'!$G$3:$AW$1048576,$G198,) -> 0 | K198: =HLOOKUP(K$2,'Base de Dados - Resíduos'!$G$3:$AW$1048576,$G198,) -> 0 | L198: =HLOOKUP(L$2,'Base de Dados - Resíduos'!$G$3:$AW$1048576,$G198,) -> 0
G199: 198 | H199: =HLOOKUP(H$2,'Base de Dados - Resíduos'!$G$3:$AW$1048576,$G199,) -> 0 | I199: =HLOOKUP(I$2,'Base de Dados - Resíduos'!$G$3:$AW$1048576,$G199,) -> 0 | J199: =HLOOKUP(J$2,'Base de Dados - Resíduos'!$G$3:$AW$1048576,$G199,) -> 0 | K199: =HLOOKUP(K$2,'Base de Dados - Resíduos'!$G$3:$AW$1048576,$G199,) -> 0 | L199: =HLOOKUP(L$2,'Base de Dados - Resíduos'!$G$3:$AW$1048576,$G199,) -> 0
G200: 199 | H200: =HLOOKUP(H$2,'Base de Dados - Resíduos'!$G$3:$AW$1048576,$G200,) -> 0 | I200: =HLOOKUP(I$2,'Base de Dados - Resíduos'!$G$3:$AW$1048576,$G200,) -> 0 | J200: =HLOOKUP(J$2,'Base de Dados - Resíduos'!$G$3:$AW$1048576,$G200,) -> 0 | K200: =HLOOKUP(K$2,'Base de Dados - Resíduos'!$G$3:$AW$1048576,$G200,) -> 0 | L200: =HLOOKUP(L$2,'Base de Dados - Resíduos'!$G$3:$AW$1048576,$G200,) -> 0
... 50 more rows

Sheet ID (hidden)
G2: =IFERROR('Indicadores - Drenagem'!A2,"") -> 2019 | H2: =G2+1 -> 2020 | I2: =H2+1 -> 2021 | J2: =I2+1 -> 2022 | K2: =J2+1 -> 2023
B3: Número de Reclamações | F3: 3 | G3: =IFERROR(HLOOKUP(G$2,'Base de Dados - Drenagem'!$G$2:$AA$64,$F3,),"") -> 10 | H3: =IFERROR(HLOOKUP(H$2,'Base de Dados - Drenagem'!$G$2:$AA$64,$F3,),"") -> 2 | I3: =IFERROR(HLOOKUP(I$2,'Base de Dados - Drenagem'!$G$2:$AA$64,$F3,),"") -> 0 | J3: =IFERROR(HLOOKUP(J$2,'Base de Dados - Drenagem'!$G$2:$AA$64,$F3,),"") -> 0 | K3: =IFERROR(HLOOKUP(K$2,'Base de Dados - Drenagem'!$G$2:$AA$64,$F3,),"") -> 0
B4: Extensão de Rede Cadastrada | F4: 4 | G4: =IFERROR(HLOOKUP(G$2,'Base de Dados - Drenagem'!$G$2:$AA$64,$F4,),"") -> 5 | H4: =IFERROR(HLOOKUP(H$2,'Base de Dados - Drenagem'!$G$2:$AA$64,$F4,),"") -> 3 | I4: =IFERROR(HLOOKUP(I$2,'Base de Dados - Drenagem'!$G$2:$AA$64,$F4,),"") -> 0 | J4: =IFERROR(HLOOKUP(J$2,'Base de Dados - Drenagem'!$G$2:$AA$64,$F4,),"") -> 0 | K4: =IFERROR(HLOOKUP(K$2,'Base de Dados - Drenagem'!$G$2:$AA$64,$F4,),"") -> 0
B5: Extensão de Rede Estimada | F5: 5 | G5: =IFERROR(HLOOKUP(G$2,'Base de Dados - Drenagem'!$G$2:$AA$64,$F5,),"") -> 3 | H5: =IFERROR(HLOOKUP(H$2,'Base de Dados - Drenagem'!$G$2:$AA$64,$F5,),"") -> 4 | I5: =IFERROR(HLOOKUP(I$2,'Base de Dados - Drenagem'!$G$2:$AA$64,$F5,),"") -> 0 | J5: =IFERROR(HLOOKUP(J$2,'Base de Dados - Drenagem'!$G$2:$AA$64,$F5,),"") -> 0 | K5: =IFERROR(HLOOKUP(K$2,'Base de Dados - Drenagem'!$G$2:$AA$64,$F5,),"") -> 0
B6: Extensão Beneficiada com Sistema de Drenagem Superficial | F6: 6 | G6: =IFERROR(HLOOKUP(G$2,'Base de Dados - Drenagem'!$G$2:$AA$64,$F6,),"") -> 0 | H6: =IFERROR(HLOOKUP(H$2,'Base de Dados - Drenagem'!$G$2:$AA$64,$F6,),"") -> 0 | I6: =IFERROR(HLOOKUP(I$2,'Base de Dados - Drenagem'!$G$2:$AA$64,$F6,),"") -> 0 | J6: =IFERROR(HLOOKUP(J$2,'Base de Dados - Drenagem'!$G$2:$AA$64,$F6,),"") -> 0 | K6: =IFERROR(HLOOKUP(K$2,'Base de Dados - Drenagem'!$G$2:$AA$64,$F6,),"") -> 0
B7: Extensão Total de Vias | F7: 7 | G7: =IFERROR(HLOOKUP(G$2,'Base de Dados - Drenagem'!$G$2:$AA$64,$F7,),"") -> 0 | H7: =IFERROR(HLOOKUP(H$2,'Base de Dados - Drenagem'!$G$2:$AA$64,$F7,),"") -> 0 | I7: =IFERROR(HLOOKUP(I$2,'Base de Dados - Drenagem'!$G$2:$AA$64,$F7,),"") -> 0 | J7: =IFERROR(HLOOKUP(J$2,'Base de Dados - Drenagem'!$G$2:$AA$64,$F7,),"") -> 0 | K7: =IFERROR(HLOOKUP(K$2,'Base de Dados - Drenagem'!$G$2:$AA$64,$F7,),"") -> 0
B8: Extensão Beneficiada com Sistema de Drenagem Subterrênea | F8: 8 | G8: =IFERROR(HLOOKUP(G$2,'Base de Dados - Drenagem'!$G$2:$AA$64,$F8,),"") -> 0 | H8: =IFERROR(HLOOKUP(H$2,'Base de Dados - Drenagem'!$G$2:$AA$64,$F8,),"") -> 0 | I8: =IFERROR(HLOOKUP(I$2,'Base de Dados - Drenagem'!$G$2:$AA$64,$F8,),"") -> 0 | J8: =IFERROR(HLOOKUP(J$2,'Base de Dados - Drenagem'!$G$2:$AA$64,$F8,),"") -> 0 | K8: =IFERROR(HLOOKUP(K$2,'Base de Dados - Drenagem'!$G$2:$AA$64,$F8,),"") -> 0
B9: Extensão Total de Vias | F9: 9 | G9: =IFERROR(HLOOKUP(G$2,'Base de Dados - Drenagem'!$G$2:$AA$64,$F9,),"") -> 0 | H9: =IFERROR(HLOOKUP(H$2,'Base de Dados - Drenagem'!$G$2:$AA$64,$F9,),"") -> 0 | I9: =IFERROR(HLOOKUP(I$2,'Base de Dados - Drenagem'!$G$2:$AA$64,$F9,),"") -> 0 | J9: =IFERROR(HLOOKUP(J$2,'Base de Dados - Drenagem'!$G$2:$AA$64,$F9,),"") -> 0 | K9: =IFERROR(HLOOKUP(K$2,'Base de Dados - Drenagem'!$G$2:$AA$64,$F9,),"") -> 0
B10: Número de Bocas de Lobo Inspecionadas | F10: 10 | G10: =IFERROR(HLOOKUP(G$2,'Base de Dados - Drenagem'!$G$2:$AA$64,$F10,),"") -> 0 | H10: =IFERROR(HLOOKUP(H$2,'Base de Dados - Drenagem'!$G$2:$AA$64,$F10,),"") -> 0 | I10: =IFERROR(HLOOKUP(I$2,'Base de Dados - Drenagem'!$G$2:$AA$64,$F10,),"") -> 0 | J10: =IFERROR(HLOOKUP(J$2,'Base de Dados - Drenagem'!$G$2:$AA$64,$F10,),"") -> 0 | K10: =IFERROR(HLOOKUP(K$2,'Base de Dados - Drenagem'!$G$2:$AA$64,$F10,),"") -> 0
B11: Número de Bocas de Lobo Existentes | F11: 11 | G11: =IFERROR(HLOOKUP(G$2,'Base de Dados - Drenagem'!$G$2:$AA$64,$F11,),"") -> 0 | H11: =IFERROR(HLOOKUP(H$2,'Base de Dados - Drenagem'!$G$2:$AA$64,$F11,),"") -> 0 | I11: =IFERROR(HLOOKUP(I$2,'Base de Dados - Drenagem'!$G$2:$AA$64,$F11,),"") -> 0 | J11: =IFERROR(HLOOKUP(J$2,'Base de Dados - Drenagem'!$G$2:$AA$64,$F11,),"") -> 0 | K11: =IFERROR(HLOOKUP(K$2,'Base de Dados - Drenagem'!$G$2:$AA$64,$F11,),"") -> 0
B12: Número de Bocas de Lobo Limpas | F12: 12 | G12: =IFERROR(HLOOKUP(G$2,'Base de Dados - Drenagem'!$G$2:$AA$64,$F12,),"") -> 0 | H12: =IFERROR(HLOOKUP(H$2,'Base de Dados - Drenagem'!$G$2:$AA$64,$F12,),"") -> 0 | I12: =IFERROR(HLOOKUP(I$2,'Base de Dados - Drenagem'!$G$2:$AA$64,$F12,),"") -> 0 | J12: =IFERROR(HLOOKUP(J$2,'Base de Dados - Drenagem'!$G$2:$AA$64,$F12,),"") -> 0 | K12: =IFERROR(HLOOKUP(K$2,'Base de Dados - Drenagem'!$G$2:$AA$64,$F12,),"") -> 0
B13: Número de Bocas de Lobo Existentes | F13: 13 | G13: =IFERROR(HLOOKUP(G$2,'Base de Dados - Drenagem'!$G$2:$AA$64,$F13,),"") -> 0 | H13: =IFERROR(HLOOKUP(H$2,'Base de Dados - Drenagem'!$G$2:$AA$64,$F13,),"") -> 0 | I13: =IFERROR(HLOOKUP(I$2,'Base de Dados - Drenagem'!$G$2:$AA$64,$F13,),"") -> 0 | J13: =IFERROR(HLOOKUP(J$2,'Base de Dados - Drenagem'!$G$2:$AA$64,$F13,),"") -> 0 | K13: =IFERROR(HLOOKUP(K$2,'Base de Dados - Drenagem'!$G$2:$AA$64,$F13,),"") -> 0
B14: Número de Bocas de Lobo com Manutenção | F14: 14 | G14: =IFERROR(HLOOKUP(G$2,'Base de Dados - Drenagem'!$G$2:$AA$64,$F14,),"") -> 0 | H14: =IFERROR(HLOOKUP(H$2,'Base de Dados - Drenagem'!$G$2:$AA$64,$F14,),"") -> 0 | I14: =IFERROR(HLOOKUP(I$2,'Base de Dados - Drenagem'!$G$2:$AA$64,$F14,),"") -> 0 | J14: =IFERROR(HLOOKUP(J$2,'Base de Dados - Drenagem'!$G$2:$AA$64,$F14,),"") -> 0 | K14: =IFERROR(HLOOKUP(K$2,'Base de Dados - Drenagem'!$G$2:$AA$64,$F14,),"") -> 0
B15: Número de Bocas de Lobo Existentes | F15: 15 | G15: =IFERROR(HLOOKUP(G$2,'Base de Dados - Drenagem'!$G$2:$AA$64,$F15,),"") -> 0 | H15: =IFERROR(HLOOKUP(H$2,'Base de Dados - Drenagem'!$G$2:$AA$64,$F15,),"") -> 0 | I15: =IFERROR(HLOOKUP(I$2,'Base de Dados - Drenagem'!$G$2:$AA$64,$F15,),"") -> 0 | J15: =IFERROR(HLOOKUP(J$2,'Base de Dados - Drenagem'!$G$2:$AA$64,$F15,),"") -> 0 | K15: =IFERROR(HLOOKUP(K$2,'Base de Dados - Drenagem'!$G$2:$AA$64,$F15,),"") -> 0
B16: Quilômetros de Galerias Inspecionadas | F16: 16 | G16: =IFERROR(HLOOKUP(G$2,'Base de Dados - Drenagem'!$G$2:$AA$64,$F16,),"") -> 0 | H16: =IFERROR(HLOOKUP(H$2,'Base de Dados - Drenagem'!$G$2:$AA$64,$F16,),"") -> 0 | I16: =IFERROR(HLOOKUP(I$2,'Base de Dados - Drenagem'!$G$2:$AA$64,$F16,),"") -> 0 | J16: =IFERROR(HLOOKUP(J$2,'Base de Dados - Drenagem'!$G$2:$AA$64,$F16,),"") -> 0 | K16: =IFERROR(HLOOKUP(K$2,'Base de Dados - Drenagem'!$G$2:$AA$64,$F16,),"") -> 0
B17: Quilômetros de Galerias Existentes | F17: 17 | G17: =IFERROR(HLOOKUP(G$2,'Base de Dados - Drenagem'!$G$2:$AA$64,$F17,),"") -> 0 | H17: =IFERROR(HLOOKUP(H$2,'Base de Dados - Drenagem'!$G$2:$AA$64,$F17,),"") -> 0 | I17: =IFERROR(HLOOKUP(I$2,'Base de Dados - Drenagem'!$G$2:$AA$64,$F17,),"") -> 0 | J17: =IFERROR(HLOOKUP(J$2,'Base de Dados - Drenagem'!$G$2:$AA$64,$F17,),"") -> 0 | K17: =IFERROR(HLOOKUP(K$2,'Base de Dados - Drenagem'!$G$2:$AA$64,$F17,),"") -> 0
B18: Quilômetros de Galerias Limpas | F18: 18 | G18: =IFERROR(HLOOKUP(G$2,'Base de Dados - Drenagem'!$G$2:$AA$64,$F18,),"") -> 0 | H18: =IFERROR(HLOOKUP(H$2,'Base de Dados - Drenagem'!$G$2:$AA$64,$F18,),"") -> 0 | I18: =IFERROR(HLOOKUP(I$2,'Base de Dados - Drenagem'!$G$2:$AA$64,$F18,),"") -> 0 | J18: =IFERROR(HLOOKUP(J$2,'Base de Dados - Drenagem'!$G$2:$AA$64,$F18,),"") -> 0 | K18: =IFERROR(HLOOKUP(K$2,'Base de Dados - Drenagem'!$G$2:$AA$64,$F18,),"") -> 0
B19: Quilômetros de Galerias Existentes | F19: 19 | G19: =IFERROR(HLOOKUP(G$2,'Base de Dados - Drenagem'!$G$2:$AA$64,$F19,),"") -> 0 | H19: =IFERROR(HLOOKUP(H$2,'Base de Dados - Drenagem'!$G$2:$AA$64,$F19,),"") -> 0 | I19: =IFERROR(HLOOKUP(I$2,'Base de Dados - Drenagem'!$G$2:$AA$64,$F19,),"") -> 0 | J19: =IFERROR(HLOOKUP(J$2,'Base de Dados - Drenagem'!$G$2:$AA$64,$F19,),"") -> 0 | K19: =IFERROR(HLOOKUP(K$2,'Base de Dados - Drenagem'!$G$2:$AA$64,$F19,),"") -> 0
B20: Quilômetros de Galerias com Manutenção | F20: 20 | G20: =IFERROR(HLOOKUP(G$2,'Base de Dados - Drenagem'!$G$2:$AA$64,$F20,),"") -> 0 | H20: =IFERROR(HLOOKUP(H$2,'Base de Dados - Drenagem'!$G$2:$AA$64,$F20,),"") -> 0 | I20: =IFERROR(HLOOKUP(I$2,'Base de Dados - Drenagem'!$G$2:$AA$64,$F20,),"") -> 0 | J20: =IFERROR(HLOOKUP(J$2,'Base de Dados - Drenagem'!$G$2:$AA$64,$F20,),"") -> 0 | K20: =IFERROR(HLOOKUP(K$2,'Base de Dados - Drenagem'!$G$2:$AA$64,$F20,),"") -> 0
B21: Quilômetros de Galerias Existentes | F21: 21 | G21: =IFERROR(HLOOKUP(G$2,'Base de Dados - Drenagem'!$G$2:$AA$64,$F21,),"") -> 0 | H21: =IFERROR(HLOOKUP(H$2,'Base de Dados - Drenagem'!$G$2:$AA$64,$F21,),"") -> 0 | I21: =IFERROR(HLOOKUP(I$2,'Base de Dados - Drenagem'!$G$2:$AA$64,$F21,),"") -> 0 | J21: =IFERROR(HLOOKUP(J$2,'Base de Dados - Drenagem'!$G$2:$AA$64,$F21,),"") -> 0 | K21: =IFERROR(HLOOKUP(K$2,'Base de Dados - Drenagem'!$G$2:$AA$64,$F21,),"") -> 0
B22: Quilômetros de Canais Inspecionados | F22: 22 | G22: =IFERROR(HLOOKUP(G$2,'Base de Dados - Drenagem'!$G$2:$AA$64,$F22,),"") -> 0 | H22: =IFERROR(HLOOKUP(H$2,'Base de Dados - Drenagem'!$G$2:$AA$64,$F22,),"") -> 0 | I22: =IFERROR(HLOOKUP(I$2,'Base de Dados - Drenagem'!$G$2:$AA$64,$F22,),"") -> 0 | J22: =IFERROR(HLOOKUP(J$2,'Base de Dados - Drenagem'!$G$2:$AA$64,$F22,),"") -> 0 | K22: =IFERROR(HLOOKUP(K$2,'Base de Dados - Drenagem'!$G$2:$AA$64,$F22,),"") -> 0
B23: Quilômetros de Canais Existentes | F23: 23 | G23: =IFERROR(HLOOKUP(G$2,'Base de Dados - Drenagem'!$G$2:$AA$64,$F23,),"") -> 0 | H23: =IFERROR(HLOOKUP(H$2,'Base de Dados - Drenagem'!$G$2:$AA$64,$F23,),"") -> 0 | I23: =IFERROR(HLOOKUP(I$2,'Base de Dados - Drenagem'!$G$2:$AA$64,$F23,),"") -> 0 | J23: =IFERROR(HLOOKUP(J$2,'Base de Dados - Drenagem'!$G$2:$AA$64,$F23,),"") -> 0 | K23: =IFERROR(HLOOKUP(K$2,'Base de Dados - Drenagem'!$G$2:$AA$64,$F23,),"") -> 0
B24: Quilômetros de Canais Inspecionados | F24: 24 | G24: =IFERROR(HLOOKUP(G$2,'Base de Dados - Drenagem'!$G$2:$AA$64,$F24,),"") -> 0 | H24: =IFERROR(HLOOKUP(H$2,'Base de Dados - Drenagem'!$G$2:$AA$64,$F24,),"") -> 0 | I24: =IFERROR(HLOOKUP(I$2,'Base de Dados - Drenagem'!$G$2:$AA$64,$F24,),"") -> 0 | J24: =IFERROR(HLOOKUP(J$2,'Base de Dados - Drenagem'!$G$2:$AA$64,$F24,),"") -> 0 | K24: =IFERROR(HLOOKUP(K$2,'Base de Dados - Drenagem'!$G$2:$AA$64,$F24,),"") -> 0
B25: Quilômetros de Canais Limpos | F25: 25 | G25: =IFERROR(HLOOKUP(G$2,'Base de Dados - Drenagem'!$G$2:$AA$64,$F25,),"") -> 0 | H25: =IFERROR(HLOOKUP(H$2,'Base de Dados - Drenagem'!$G$2:$AA$64,$F25,),"") -> 0 | I25: =IFERROR(HLOOKUP(I$2,'Base de Dados - Drenagem'!$G$2:$AA$64,$F25,),"") -> 0 | J25: =IFERROR(HLOOKUP(J$2,'Base de Dados - Drenagem'!$G$2:$AA$64,$F25,),"") -> 0 | K25: =IFERROR(HLOOKUP(K$2,'Base de Dados - Drenagem'!$G$2:$AA$64,$F25,),"") -> 0
B26: Quilômetros de Canais Existentes | F26: 26 | G26: =IFERROR(HLOOKUP(G$2,'Base de Dados - Drenagem'!$G$2:$AA$64,$F26,),"") -> 0 | H26: =IFERROR(HLOOKUP(H$2,'Base de Dados - Drenagem'!$G$2:$AA$64,$F26,),"") -> 0 | I26: =IFERROR(HLOOKUP(I$2,'Base de Dados - Drenagem'!$G$2:$AA$64,$F26,),"") -> 0 | J26: =IFERROR(HLOOKUP(J$2,'Base de Dados - Drenagem'!$G$2:$AA$64,$F26,),"") -> 0 | K26: =IFERROR(HLOOKUP(K$2,'Base de Dados - Drenagem'!$G$2:$AA$64,$F26,),"") -> 0
B27: Quilômetros de Canais com Manutenção | F27: 27 | G27: =IFERROR(HLOOKUP(G$2,'Base de Dados - Drenagem'!$G$2:$AA$64,$F27,),"") -> 0 | H27: =IFERROR(HLOOKUP(H$2,'Base de Dados - Drenagem'!$G$2:$AA$64,$F27,),"") -> 0 | I27: =IFERROR(HLOOKUP(I$2,'Base de Dados - Drenagem'!$G$2:$AA$64,$F27,),"") -> 0 | J27: =IFERROR(HLOOKUP(J$2,'Base de Dados - Drenagem'!$G$2:$AA$64,$F27,),"") -> 0 | K27: =IFERROR(HLOOKUP(K$2,'Base de Dados - Drenagem'!$G$2:$AA$64,$F27,),"") -> 0
